Workbook

Sheet Disclaimer
B4: Oklahoma Department of Transportation
B5: USDOT FASTLANE Grant Application - I-44/US75 Interchange Improvements in Tulsa County
B6: 2016-04-14
B13: Disclaimer
B14: ="The Model is provided to "&Client.Name&" on the basis that it is strictly private and confidential. The Recipients agree to not disclose that information to any person or entity except with the prior written consent of HDR Inc. (HDR) or as required by law." -> The Model is provided to Oklahoma Department of Transportation on the basis that it is strictly private and confidential. The Recipients agree to not disclose that information to any person or entity except with the prior written consent of HDR Inc. (HDR) or as required by law.
B17: ="HDR retains all intellectual property with respect to this Model. The Recipients agree to use this Model only for the purpose of performing analysis in support of the "&Project.Name&" project. The Model must not be used for any other purpose. " -> HDR retains all intellectual property with respect to this Model. The Recipients agree to use this Model only for the purpose of performing analysis in support of the USDOT FASTLANE Grant Application - I-44/US75 Interchange Improvements in Tulsa County project. The Model must not be used for any other purpose.
B20: By retaining and using this Model, the Recipients represent to HDR that they are capable of making their own independent assessment as to the validity of the assumptions, data and results contained in this Model.
B22: The Model may be a development version and may not be complete or, in the event that development of the Model has concluded, material events may have occurred since completion which are not reflected in the Model. In consultation with the client, HDR used what was deemed the best available data at the time of analysis and makes no warranties as to the accuracy of this information or completeness of the Model.

Sheet Reporting Tables
B2: Table ES-1: Merit Criteria and Cost-Effectiveness - Summary of Infrastructure Improvements and Associated Benefits, Millions of 2015 Dollars | I2: US75/I-44 FASTLANE Tulsa OKLAHOMA Apr 2016
B3: Current Status or Baseline & Problems to be Addressed | C3: Changes to Baseline / Alternatives | D3: Type of Impacts | E3: Population Affected by Impacts | F3: Economic Benefit | G3: Summary of Results ($M Discounted at 7%) | H3: Page in BCA Report
B4: Travel Delays for Passenger Vehicles and Trucks due to congestion on the I-44. | C4: Increase the capacity of I-44 by widening I-44 from four through lanes to six through lanes along with other spot infrastructure improvements along the corridor. | D4: Improved travel speeds, reduced long-term congestion, fuel savings | E4: Passenger vehicles, trucks | F4: Travel Time and Vehicle Operating Cost Savings | G4: =LifeCycleTT+LifeCycleVOC -> 316.2677344 | H4: Pg. 12
D5: Emission Savings | E5: Passenger vehicles, trucks | F5: Emissions Cost Reduction | G5: =LifeCycleEm -> 4.516978603 | H5: Pg. 14
D6: Improved Safety | E6: Passenger vehicles, trucks | F6: Accident Cost Reduction | G6: =LifeCycleAcc -> 88.74805753 | H6: Pg. 15
B8: Table ES-2: Summary of Pertinent Data, Quantifiable Benefits and Costs, Discounted at 7%
B9: Calendar | C9: Project Year | D9: Total Benefits | E9: Economic | F9: Safety | G9: Community and Environmental | H9: Total Costs
B10: 2016 | C10: 1 | D10: 0 | E10: 0 | F10: 0 | G10: 0 | H10: ='Final Calculations'!T25 -> 664685.056
B11: 2017 | C11: 2 | D11: 0 | E11: 0 | F11: 0 | G11: 0 | H11: ='Final Calculations'!T26 -> 1725177.681
B12: 2018 | C12: 3 | D12: 0 | E12: 0 | F12: 0 | G12: 0 | H12: ='Final Calculations'!T27 -> 1403789.71
B13: 2019 | C13: 4 | D13: 0 | E13: 0 | F13: 0 | G13: 0 | H13: ='Final Calculations'!T28 -> 34953917
B14: 2020 | C14: 5 | D14: 0 | E14: 0 | F14: 0 | G14: 0 | H14: ='Final Calculations'!T29 -> 32320871.96
B15: 2021 | C15: 6 | D15: 0 | E15: 0 | F15: 0 | G15: 0 | H15: ='Final Calculations'!T30 -> 22597606.78
B16: 2022 | C16: 7 | D16: 0 | E16: 0 | F16: 0 | G16: 0 | H16: ='Final Calculations'!T31 -> 8979276.646
B17: 2023 (opening) | C17: 8 | D17: ='Final Calculations'!S34 -> 26373952.92 | E17: ='Final Calculations'!C34+'Final Calculations'!D34 -> 19161174.12 | F17: ='Final Calculations'!E34 -> 6986747.186 | G17: ='Final Calculations'!F34 -> 226031.6179 | H17: ='Final Calculations'!T34 -> 38144.7606
B18: 2024 | C18: 9 | D18: ='Final Calculations'!S35 -> 27187950.18 | E18: ='Final Calculations'!C35+'Final Calculations'!D35 -> 20120538.1 | F18: ='Final Calculations'!E35 -> 6638039.375 | G18: ='Final Calculations'!F35 -> 429372.708 | H18: ='Final Calculations'!T35 -> 35649.30897
B19: 2025 | C19: 10 | D19: ='Final Calculations'!S36 -> 26339652.65 | E19: ='Final Calculations'!C36+'Final Calculations'!D36 -> 19601672.49 | F19: ='Final Calculations'!E36 -> 6306469.997 | G19: ='Final Calculations'!F36 -> 431510.1578 | H19: ='Final Calculations'!T36 -> 33317.11119
B20: 2026 | C20: 11 | D20: ='Final Calculations'!S37 -> 25500134.81 | E20: ='Final Calculations'!C37+'Final Calculations'!D37 -> 19076832.39 | F20: ='Final Calculations'!E37 -> 5991213.456 | G20: ='Final Calculations'!F37 -> 432088.9719 | H20: ='Final Calculations'!T37 -> 31137.48709
B21: 2027 | C21: 12 | D21: ='Final Calculations'!S38 -> 24671145.87 | E21: ='Final Calculations'!C38+'Final Calculations'!D38 -> 18548380.45 | F21: ='Final Calculations'!E38 -> 5691482.854 | G21: ='Final Calculations'!F38 -> 431282.5717 | H21: ='Final Calculations'!T38 -> 29100.45523
B22: 2028 | C22: 13 | D22: ='Final Calculations'!S39 -> 23854206.38 | E22: ='Final Calculations'!C39+'Final Calculations'!D39 -> 18018428.99 | F22: ='Final Calculations'!E39 -> 5406528.251 | G22: ='Final Calculations'!F39 -> 429249.1354 | H22: ='Final Calculations'!T39 -> 27196.68713
B23: 2029 | C23: 14 | D23: ='Final Calculations'!S40 -> 23050628.76 | E23: ='Final Calculations'!C40+'Final Calculations'!D40 -> 17488860.94 | F23: ='Final Calculations'!E40 -> 5135634.992 | G23: ='Final Calculations'!F40 -> 426132.8244 | H23: ='Final Calculations'!T40 -> 25417.46461
B24: 2030 | C24: 15 | D24: ='Final Calculations'!S41 -> 22023704.08 | E24: ='Final Calculations'!C41+'Final Calculations'!D41 -> 16961349.14 | F24: ='Final Calculations'!E41 -> 4878122.109 | G24: ='Final Calculations'!F41 -> 184232.8234 | H24: ='Final Calculations'!T41 -> 23754.63982
B25: 2031 | C25: 16 | D25: ='Final Calculations'!S42 -> 21254617.2 | E25: ='Final Calculations'!C42+'Final Calculations'!D42 -> 16437374.28 | F25: ='Final Calculations'!E42 -> 4633340.79 | G25: ='Final Calculations'!F42 -> 183902.1299 | H25: ='Final Calculations'!T42 -> 22200.59796
B26: 2032 | C26: 17 | D26: ='Final Calculations'!S43 -> 20752909.14 | E26: ='Final Calculations'!C43+'Final Calculations'!D43 -> 16233208 | F26: ='Final Calculations'!E43 -> 4400672.915 | G26: ='Final Calculations'!F43 -> 119028.2227 | H26: ='Final Calculations'!T43 -> 20748.22239
B27: 2033 | C27: 18 | D27: ='Final Calculations'!S44 -> 20001440.32 | E27: ='Final Calculations'!C44+'Final Calculations'!D44 -> 15701114.56 | F27: ='Final Calculations'!E44 -> 4179529.653 | G27: ='Final Calculations'!F44 -> 120796.1041 | H27: ='Final Calculations'!T44 -> 19390.86205
B28: 2034 | C28: 19 | D28: ='Final Calculations'!S45 -> 19268591.81 | E28: ='Final Calculations'!C45+'Final Calculations'!D45 -> 15177137.06 | F28: ='Final Calculations'!E45 -> 3969350.118 | G28: ='Final Calculations'!F45 -> 122104.6316 | H28: ='Final Calculations'!T45 -> 18122.30098
B29: 2035 | C29: 20 | D29: ='Final Calculations'!S46 -> 18554669.16 | E29: ='Final Calculations'!C46+'Final Calculations'!D46 -> 14662073.57 | F29: ='Final Calculations'!E46 -> 3769600.093 | G29: ='Final Calculations'!F46 -> 122995.5005 | H29: ='Final Calculations'!T46 -> 16936.72989
B30: 2036 | C30: 21 | D30: ='Final Calculations'!S47 -> 17859882.87 | E30: ='Final Calculations'!C47+'Final Calculations'!D47 -> 14156604.76 | F30: ='Final Calculations'!E47 -> 3579770.797 | G30: ='Final Calculations'!F47 -> 123507.3157 | H30: ='Final Calculations'!T47 -> 15828.71952
B31: 2037 | C31: 22 | D31: ='Final Calculations'!S48 -> 17184358.2 | E31: ='Final Calculations'!C48+'Final Calculations'!D48 -> 13661304.68 | F31: ='Final Calculations'!E48 -> 3399377.715 | G31: ='Final Calculations'!F48 -> 123675.8031 | H31: ='Final Calculations'!T48 -> 14793.19582
B32: 2038 | C32: 23 | D32: ='Final Calculations'!S49 -> 16528144.24 | E32: ='Final Calculations'!C49+'Final Calculations'!D49 -> 13176650.76 | F32: ='Final Calculations'!E49 -> 3227959.476 | G32: ='Final Calculations'!F49 -> 123534.0088 | H32: ='Final Calculations'!T49 -> 13825.41665
B33: 2039 | C33: 24 | D33: ='Final Calculations'!S50 -> 15891222.23 | E33: ='Final Calculations'!C50+'Final Calculations'!D50 -> 12703032.96 | F33: ='Final Calculations'!E50 -> 3065076.778 | G33: ='Final Calculations'!F50 -> 123112.4836 | H33: ='Final Calculations'!T50 -> 12920.95014
B34: 2040 | C34: 25 | D34: ='Final Calculations'!S51 -> 14465518.79 | E34: ='Final Calculations'!C51+'Final Calculations'!D51 -> 12240762.24 | F34: ='Final Calculations'!E51 -> 2102317.096 | G34: ='Final Calculations'!F51 -> 122439.4555 | H34: ='Final Calculations'!T51 -> 12075.65434
B35: 2041 | C35: 26 | D35: ='Final Calculations'!S52 -> 14674884.33 | E35: ='Final Calculations'!C52+'Final Calculations'!D52 -> 11790078.28 | F35: ='Final Calculations'!E52 -> 2763265.065 | G35: ='Final Calculations'!F52 -> 121540.9912 | H35: ='Final Calculations'!T52 -> 11285.65826
B36: 2042 | C36: 27 | D36: ='Final Calculations'!S53 -> 14095156.58 | E36: ='Final Calculations'!C53+'Final Calculations'!D53 -> 11351156.63 | F36: ='Final Calculations'!E53 -> 2623558.811 | G36: ='Final Calculations'!F53 -> 120441.1462 | H36: ='Final Calculations'!T53 -> 10547.34417
B37: Total | D37: =SUM(D10:D36) -> 409532770.5 | E37: =SUM(E10:E36) -> 316267734.4 | F37: =SUM(F10:F36) -> 88748057.53 | G37: =SUM(G10:G36) -> 4516978.603 | H37: =SUM(H10:H36) -> 103077718.4
B39: Table 1: Project Cost Summary Table
B40: Cost Type | C40: Cost in 2015 Dollars
B41: Capital Cost | C41: 109770621
B42: Total Operation and Maintenance Costs (30-year period) | C42: 1000000
B43: TOTAL | C43: 110770621
B44: *Annual O&M costs are estimated at $50,000
B46: Table 2: Project Capital Cost Breakdown and Source of Funds
B47: Use of Funds | C47: Sources of Funds ($000)
C48: State Funds | E48: Federal Funds | G48: FASTLANE Funds | H48: Future Eligible Costs | I48: Total Project Cost
C49: Previously Incurred | D49: Future | E49: Previously Incurred | F49: Future
B50: Environmental and Engineering | C50: 109 | D50: 526 | E50: 434 | F50: 2102 | H50: 2628 | I50: 3171
B51: ROW and Utilities | D51: 44 | F51: 174 | H51: 218 | I51: 218
B52: Construction | D52: 20000 | F52: 20000 | G52: 60000 | H52: 100000 | I52: 100000
B53: Contingency and Other | D53: 1276 | F53: 1276 | G53: 3829 | H53: 6382 | I53: 6382
B54: TOTAL | C54: 109 | D54: 21846 | E54: 434 | F54: 23553 | G54: 63829 | H54: 109228 | I54: 109771
B56: Table 3: Expected Effects on Merit Outcomes and Benefit Categories
B57: Merit Criteria | C57: Benefit or Impact Categories | D57: Description | E57: Monetized | F57: Quantified | G57: Qualitative
B58: Economic | C58: Travel Time Savings | D58: The proposed project will reduce travel times for users of this corridor | E58: Yes | F58: Yes
C59: Vehicle Operating Cost Savings | D59: Fuel and non-fuel cost savings to the users. Non-fuel costs include all vehicles operating cost other than fuel (e.g., maintenance and repair, depreciation). | E59: Yes | F59: Yes
C60: Inventory Cost Savings | D60: Faster delivery times for truck drivers due to higher speeds along the corridor will lead to inventory cost savings | G60: Yes
B61: Mobility | C61: Travel Time Reliability | D61: The proposed project improvements will significantly reduce bottlenecks along the corridor | G61: Yes
B62: Safety | C62: Accident Cost Reduction | D62: Reduction in property losses, injuries, and deaths due to infrastructure improvements in the build scenario | E62: Yes | F62: Yes
B63: Community and Environmental | C63: Emission Cost Reduction | D63: Reduction in pollutants and green house gasses due to reductions in vehicle miles traveled (VMT) and vehicle hours traveled (VHT) in the build scenario | E63: Yes | F63: Yes
B65: Table 4: Calibrated Travel Demand Model Runs for No-Build Conditions
B66: Variable Name | C66: Unit | D66: Value | E66: Source
B67: Share of Trucks | C67: Percentage | D67: 0.13 | E67: Oklahoma bridge condition inventory
B68: Base Year No Build VMT | C68: VMT/day | D68: 27412830 | E68: INCOG Regional Travel Demand Model, April 2016
B69: Forecast Year No Build VMT | C69: VMT/day | D69: 37632232
B70: Base Year No Build VHT | C70: VHT/day | D70: 653684
B71: Forecast Year No Build VHT | C71: VHT/day | D71: 1146757
B72: Base Year Build VMT | C72: VMT/day | D72: 27476880
B73: Forecast Year Build VMT | C73: VMT/day | D73: 37720159
B74: Base Year Build VHT | C74: VHT/day | D74: 647559
B75: Forecast Year Build VHT | C75: VHT/day | D75: 1136011
B77: Table 5: Assumptions used in the Estimation of Demand (No Build)
B78: Speed (Miles per hour) | C78: Base Year | D78: Forecast Year | E78: Base Year | F78: Forecast Year | G78: Source
C79: No Build | D79: No build | E79: No Build | F79: No build
C80: VMT | D80: VMT | E80: VHT | F80: VHT
B81: 5 | C81: ='2) Model Inputs'!G120 -> 6127 | D81: ='2) Model Inputs'!T120 -> 105046.4526 | E81: ='2) Model Inputs'!H120 -> 2360.071577 | F81: ='2) Model Inputs'!U120 -> 36951.83061 | G81: INCOG Regional Travel Demand Model, April 2016
B82: 10 | C82: ='2) Model Inputs'!G121 -> 59912 | D82: ='2) Model Inputs'!T121 -> 402539.4158 | E82: ='2) Model Inputs'!H121 -> 6950.071434 | F82: ='2) Model Inputs'!U121 -> 55844.76238
B83: =B82+5 -> 15 | C83: ='2) Model Inputs'!G122 -> 132418 | D83: ='2) Model Inputs'!T122 -> 753765.5863 | E83: ='2) Model Inputs'!H122 -> 10565.53308 | F83: ='2) Model Inputs'!U122 -> 59920.48378
B84: =B83+5 -> 20 | C84: ='2) Model Inputs'!G123 -> 336386 | D84: ='2) Model Inputs'!T123 -> 1630206.309 | E84: ='2) Model Inputs'!H123 -> 18840.18519 | F84: ='2) Model Inputs'!U123 -> 92004.92117
B85: 25 | C85: ='2) Model Inputs'!G124 -> 767859 | D85: ='2) Model Inputs'!T124 -> 2576930.487 | E85: ='2) Model Inputs'!H124 -> 34056.02218 | F85: ='2) Model Inputs'!U124 -> 115325.7422
B86: 30 | C86: ='2) Model Inputs'!G125 -> 1688045 | D86: ='2) Model Inputs'!T125 -> 3736261.264 | E86: ='2) Model Inputs'!H125 -> 60747.27576 | F86: ='2) Model Inputs'!U125 -> 135103.2264
B87: 35 | C87: ='2) Model Inputs'!G126 -> 5537794 | D87: ='2) Model Inputs'!T126 -> 8271900.657 | E87: ='2) Model Inputs'!H126 -> 165865.348 | F87: ='2) Model Inputs'!U126 -> 248292.7189
B88: 40 | C88: ='2) Model Inputs'!G127 -> 1930927 | D88: ='2) Model Inputs'!T127 -> 2952812.736 | E88: ='2) Model Inputs'!H127 -> 51532.11326 | F88: ='2) Model Inputs'!U127 -> 78517.56818
B89: 45 | C89: ='2) Model Inputs'!G128 -> 1755501 | D89: ='2) Model Inputs'!T128 -> 3220653.945 | E89: ='2) Model Inputs'!H128 -> 41019.42709 | F89: ='2) Model Inputs'!U128 -> 75483.00415
B90: 50 | C90: ='2) Model Inputs'!G129 -> 1987242 | D90: ='2) Model Inputs'!T129 -> 2886467.689 | E90: ='2) Model Inputs'!H129 -> 41801.72808 | F90: ='2) Model Inputs'!U129 -> 60642.82245
B91: 55 | C91: ='2) Model Inputs'!G130 -> 3713000 | D91: ='2) Model Inputs'!T130 -> 4289072.426 | E91: ='2) Model Inputs'!H130 -> 70078.25333 | F91: ='2) Model Inputs'!U130 -> 81243.63276
B92: 60 | C92: ='2) Model Inputs'!G131 -> 2613060 | D92: ='2) Model Inputs'!T131 -> 1955786.823 | E92: ='2) Model Inputs'!H131 -> 45652.25405 | F92: ='2) Model Inputs'!U131 -> 34065.62261
B93: 65 | C93: ='2) Model Inputs'!G132 -> 2161970 | D93: ='2) Model Inputs'!T132 -> 1673826.893 | E93: ='2) Model Inputs'!H132 -> 34563.56097 | F93: ='2) Model Inputs'!U132 -> 26837.5232
B94: 70 | C94: ='2) Model Inputs'!G133 -> 4722589 | D94: ='2) Model Inputs'!T133 -> 3176961.548 | E94: ='2) Model Inputs'!H133 -> 69652.40505 | F94: ='2) Model Inputs'!U133 -> 46522.68083
B96: Table 6: Assumptions used in the Estimation of Demand (Build)
B97: Speed (Miles per hour) | C97: Base Year | D97: Forecast Year | E97: Base Year | F97: Forecast Year | G97: Source
C98: Build | D98: Build | E98: Build | F98: Build
C99: VMT | D99: VMT | E99: VHT | F99: VHT
B100: 5 | C100: ='2) Model Inputs'!G225 -> 6489.772852 | D100: ='2) Model Inputs'!T225 -> 111412.3065 | E100: ='2) Model Inputs'!H225 -> 2317.619574 | F100: ='2) Model Inputs'!U225 -> 36587.14616 | G100: INCOG Regional Travel Demand Model, April 2016
B101: 10 | C101: ='2) Model Inputs'!G226 -> 54253.222 | D101: ='2) Model Inputs'!T226 -> 365014.3751 | E101: ='2) Model Inputs'!H226 -> 6187.952938 | F101: ='2) Model Inputs'!U226 -> 50132.08674
B102: =B101+5 -> 15 | C102: ='2) Model Inputs'!G227 -> 127714.2967 | D102: ='2) Model Inputs'!T227 -> 727978.9826 | E102: ='2) Model Inputs'!H227 -> 10153.10763 | F102: ='2) Model Inputs'!U227 -> 58057.52104
B103: =B102+5 -> 20 | C103: ='2) Model Inputs'!G228 -> 308064.3896 | D103: ='2) Model Inputs'!T228 -> 1494982.567 | E103: ='2) Model Inputs'!H228 -> 17136.1108 | F103: ='2) Model Inputs'!U228 -> 84374.99367
B104: 25 | C104: ='2) Model Inputs'!G229 -> 766356.0244 | D104: ='2) Model Inputs'!T229 -> 2575383.561 | E104: ='2) Model Inputs'!H229 -> 33699.35777 | F104: ='2) Model Inputs'!U229 -> 115061.3761
B105: 30 | C105: ='2) Model Inputs'!G230 -> 1788603.369 | D105: ='2) Model Inputs'!T230 -> 3964215.171 | E105: ='2) Model Inputs'!H230 -> 63617.62498 | F105: ='2) Model Inputs'!U230 -> 142656.6322
B106: 35 | C106: ='2) Model Inputs'!G231 -> 5188678.422 | D106: ='2) Model Inputs'!T231 -> 7760955.999 | E106: ='2) Model Inputs'!H231 -> 154213.8853 | F106: ='2) Model Inputs'!U231 -> 232759.4919
B107: 40 | C107: ='2) Model Inputs'!G232 -> 2013801.448 | D107: ='2) Model Inputs'!T232 -> 3083732.333 | E107: ='2) Model Inputs'!H232 -> 53707.34402 | F107: ='2) Model Inputs'!U232 -> 82508.39991
B108: 45 | C108: ='2) Model Inputs'!G233 -> 1645074.085 | D108: ='2) Model Inputs'!T233 -> 3022167.449 | E108: ='2) Model Inputs'!H233 -> 38350.10337 | F108: ='2) Model Inputs'!U233 -> 71154.39434
B109: 50 | C109: ='2) Model Inputs'!G234 -> 2438595.431 | D109: ='2) Model Inputs'!T234 -> 3546873.056 | E109: ='2) Model Inputs'!H234 -> 50896.22981 | F109: ='2) Model Inputs'!U234 -> 74446.85992
B110: 55 | C110: ='2) Model Inputs'!G235 -> 3762767.999 | D110: ='2) Model Inputs'!T235 -> 4352470.923 | E110: ='2) Model Inputs'!H235 -> 70530.22234 | F110: ='2) Model Inputs'!U235 -> 82443.59478
B111: 60 | C111: ='2) Model Inputs'!G236 -> 2652380.372 | D111: ='2) Model Inputs'!T236 -> 1987915.249 | E111: ='2) Model Inputs'!H236 -> 45839.25778 | F111: ='2) Model Inputs'!U236 -> 34487.94235
B112: 65 | C112: ='2) Model Inputs'!G237 -> 1943189.714 | D112: ='2) Model Inputs'!T237 -> 1506489.379 | E112: ='2) Model Inputs'!H237 -> 30912.74576 | F112: ='2) Model Inputs'!U237 -> 24201.21313
B113: 70 | C113: ='2) Model Inputs'!G238 -> 4780911.54 | D113: ='2) Model Inputs'!T238 -> 3220568.037 | E113: ='2) Model Inputs'!H238 -> 69997.68921 | F113: ='2) Model Inputs'!U238 -> 47139.82005
B115: Table 7: Demand Projections
C116: Variable Name | D116: In Project Opening Year (2023) | E116: Intermediate Year (2033) | F116: Final Year of Analysis (2042)
B117: No Build | C117: Vehicle Miles Traveled (VMT) | D117: =SUMIF('Vehicle Operating Costs'!B:B,'Vehicle Operating Costs'!B27,'Vehicle Operating Costs'!C:C) -> 7772953701 | E117: =SUMIF('Vehicle Operating Costs'!B:B,"11",'Vehicle Operating Costs'!C:C) -> 8794893924 | F117: =SUMIF('Vehicle Operating Costs'!B:B,"20",'Vehicle Operating Costs'!C:C) -> 9714640125
C118: Vehicle Hours Traveled (VHT) | D118: =SUMIF('Vehicle Operating Costs'!B:B,'Vehicle Operating Costs'!B27,'Vehicle Operating Costs'!E:E) -> 207797568.4 | E118: =SUMIF('Vehicle Operating Costs'!B:B,"11",'Vehicle Operating Costs'!E:E) -> 257104797.5 | F118: =SUMIF('Vehicle Operating Costs'!B:B,"20",'Vehicle Operating Costs'!E:E) -> 301481303.6
C119: Average Speed (MPH) | D119: =D117/D118 -> 37.40637467 | E119: =E117/E118 -> 34.20742829 | F119: =F117/F118 -> 32.22302679
B120: Build | C120: Vehicle Miles Traveled (VMT) | D120: =SUMIF('Vehicle Operating Costs'!B:B, "1", 'Vehicle Operating Costs'!D:D) -> 7791115159 | E120: =SUMIF('Vehicle Operating Costs'!B:B, "11", 'Vehicle Operating Costs'!D:D) -> 8815443089 | F120: =SUMIF('Vehicle Operating Costs'!B:B, "20", 'Vehicle Operating Costs'!D:D) -> 9737338226
C121: Vehicle Hours Traveled (VHT) | D121: =SUMIF('Vehicle Operating Costs'!B:B, "1", 'Vehicle Operating Costs'!F:F) -> 205850512.7 | E121: =SUMIF('Vehicle Operating Costs'!B:B, "11", 'Vehicle Operating Costs'!F:F) -> 254695734.8 | F121: =SUMIF('Vehicle Operating Costs'!B:B, "20", 'Vehicle Operating Costs'!F:F) -> 298656434.7
C122: Average Speed (MPH) | D122: =D120/D121 -> 37.8484127 | E122: =E120/E121 -> 34.61166358 | F122: =F120/F121 -> 32.60381192
B124: Table 8: Assumptions used in the Estimation of Economic Benefits
B125: Variable Name | C125: Unit | D125: Value | E125: Source
B126: Average Vehicle Occupancy (AVO) for State of Oklahoma | C126: Persons per vehicle | D126: 1.08 | E126: Oklahoma state average vehicle occupancy; US Census
B127: Share of Trucks | C127: Percentage | D127: 0.13 | E127: Oklahoma bridge condition inventory
B128: Travel Time Cost - Automobile | C128: Dollars per hour | D128: =ValTimeAuto -> 13.6 | E128: TIGER and FASTLANE BCA Resource Guide, March 2016, US DOT. HDR has inflated values from 214 Dollars to 2015 Dollars using Consumer Price Index.
B129: Travel Time Cost - Truck | C129: Dollars per hour | D129: 26.98
B130: Real Annual Growth Rate of Value of Time | C130: Percentage | D130: 0.01 | E130: The Value of Travel Time Savings: Departmental Guidance for Conducting Economic Evaluations Revision 2 (2015 Update), US DOT
B131: Fuel Cost (Excludes Tax) - Automobile* | C131: Dollars per gallon | D131: =FuelAuto -> 2.26 | E131: Annual Energy Outlook, 2015 Release, US Energy Information Administration (EIA). HDR has inflated values from 2013 Dollars to 2015 Dollars using Consumer Price Index
B132: Fuel Cost (Excludes Tax) - Truck** | C132: Dollars per gallon | D132: =FuelTruck -> 2.6
B133: Vehicle Operating Cost (Non-Fuel Cost) - Automobile | C133: Dollars per mile | D133: =NonFuelAuto -> 0.404 | E133: Your Driving Costs, 2015 Edition, American Automobile Association (AAA). HDR has inflated value from 2014 Dollars to 2015 Dollars using Consumer Price Index
B134: Vehicle Operating Cost (Non-Fuel Cost) - Truck | C134: Dollars per mile | D134: =NonFuelTruck -> 0.417 | E134: American Transport Research Institute
B135: *Retail Gasoline Prices
B136: ** Retail Diesel Prices
B138: Table 9: Estimates of Economic Benefits, Millions of 2015 Dollars
B139: Variable | C139: In Project Opening Year (Discounted at 7 Percent) | D139: Over the Project Lifecycle
D140: In Constant Dollars | E140: Discounted at 7 Percent
B141: Travel Time Savings | C141: ='Final Calculations'!C34/10^6 -> 25.54202368 | D141: ='Final Calculations'!Y55/10^6 -> 909.1694817 | E141: ='Final Calculations'!C55/10^6 -> 368.2801909
B142: Vehicle Operating Cost Savings | C142: ='Final Calculations'!D34/10^6 -> -6.380849559 | D142: ='Final Calculations'!Z55/10^6 -> -114.4665778 | E142: ='Final Calculations'!D55/10^6 -> -52.01245647
B143: Total | C143: =C141+C142 -> 19.16117412 | D143: =SUM(D141:D142) -> 794.7029039 | E143: =SUM(E141:E142) -> 316.2677344
B145: Table 10: Assumptions used in the Estimation of Safety Benefits
B146: Variable Name | C146: Unit | D146: Value | E146: Source
B147: Fatality Collision Rate - No Build | C147: Fatalities or collisions per million VMT per day | D147: 0.02 | E147: Collision Rate Analysis, March 2016, ODOT Traffic Engineering Division Collision Analysis and Safety Branch
B148: Visible Injury Collision Rate - No Build | D148: 0.85
B149: Property Damage Only Collision Rate - No Build | D149: 1.32
B150: Fatality Collision Rate - Build | D150: 0.01
B151: Visible Injury Collision Rate - Build | D151: 0.5
B152: Property Damage Only Collision Rate - Build | D152: 0.78
B153: AIS 1 Minor | C153: Dollars per injury | D153: 28800 | E153: TIGER AND FASTLANE BCA Resource Guide, March 2016, US DOT.
B154: AIS 2 Moderate | D154: 451200
B155: AIS 3 Serious | D155: 1008000
B156: AIS 4 Severe | D156: 2553600
B157: AIS 5 Critical | D157: 5692800
B158: AIS 6 Not Survivable | D158: 9600000
B159: PDO Crashes | D159: 4198
B160: Unknown - If Injured | D160: 132245 | E160: HDR Calculation Based on BCA Resource Guide, March 2016, US DOT
B161: Cost per Injury Growth Factor* | C161: Percentage | D161: 0.01 | E161: Guidance on Treatment of the Economic Value of a Statistical Life, 2015, US DOT
B163: Table 11: Estimates of Safety Benefits, Millions of 2015 Dollars
B164: Variable | C164: In Project Opening Year (Discounted at 7 Percent) | D164: Over the Project Lifecycle
D165: In Constant Dollars | E165: Discounted at 7 Percent
B166: Accident Cost Reduction | C166: ='Final Calculations'!E34/10^6 -> 6.986747186 | D166: ='Final Calculations'!AA55/10^6 -> 258.7977975 | E166: ='Final Calculations'!E55/10^6 -> 88.74805753
B168: Table 12: Assumptions used in the Estimation of Community and Environmental Benefits
B169: Variable Name | C169: Unit | D169: Value | E169: Source
B170: Volatile Organic Compounds (VOC) | C170: $ per short ton | D170: 1844 | E170: TIGER and FASTLANE BCA Resource Guide, March 2016, US DOT
B171: Nitrogen Oxides (NOx) | C171: $ per short ton | D171: 7266
B172: Fine Particulate Matter (PM) | C172: $ per short ton | D172: 332405
B173: Sulfur Dioxide (SO2) | C173: $ per short ton | D173: 42947
B174: Carbon (CO2) | C174: $ per short ton | D174: 39
B176: Table 13: Estimates of Community and Environmental Benefits, Millions of 2015 Dollars
B177: Variable | C177: In Project Opening Year (Discounted at 7 Percent) | D177: Over the Project Lifecycle
D178: In Constant Dollars | E178: Discounted at 7 Percent
B179: Emissions Cost Reduction | C179: ='Final Calculations'!F34/10^6 -> 0.2260316179 | D179: ='Final Calculations'!AB55/10^6 -> 10.05636537 | E179: ='Final Calculations'!F55/10^6 -> 4.516978603
B181: Table 14: Overall Results of the Benefit Cost Analysis, Millions of 2015 Dollars
B182: Project Evaluation Metric | C182: 7% Discount Rate | D182: 3% Discount Rate
B183: Total Discounted Benefits | C183: =LifeCycleBene/10^6 -> 409.5327705 | D183: 687.8611472
B184: Total Discounted Costs | C184: =LifeCycleCost/10^6 -> 103.0777184 | D184: 107.2069258
B185: Net Present Value | C185: =C183-C184 -> 306.4550521 | D185: =D183-D184 -> 580.6542214
B186: Benefit / Cost Ratio | C186: =C183/C184 -> 3.973048462 | D186: =D183/D184 -> 6.416200652
B187: Internal Rate of Return (%) | C187: ='3) Results'!H19 -> 0.2480845439
B188: Payback Period (years) | C188: ='3) Results'!H21 -> 3 years
B190: Table 15: Benefit Estimates by Merit Criteria for the Full Build Alternative
B191: Merit Criteria | C191: Benefit Categories | D191: 7% Discount Rate | E191: 3% Discount Rate
B192: Economic | C192: Travel Time Savings | D192: ='Final Calculations'!C55 -> 368280190.9 | E192: 601346996.3
C193: Vehicle Operating Cost Savings | D193: ='Final Calculations'!D55 -> -52012456.47 | E193: -79644910.44
B194: Safety | C194: Accident Cost Reduction | D194: ='Final Calculations'!E55 -> 88748057.53 | E194: 159198921
B195: Community and Environmental | C195: Emissions Cost Reduction | D195: ='Final Calculations'!F55 -> 4516978.603 | E195: 6960140.382
B196: Total Benefit Estimates | D196: =SUM(D192:D195) -> 409532770.5 | E196: =SUM(E192:E195) -> 687861147.2
B198: Table 16: Assessment of BCA Sensitivity, Summary
B199: Parameters | C199: Change in Parameter Value | D199: Current NPV | E199: New NPV | F199: Change in NPV | G199: New B/C Ratio
B200: Value of Travel Time | C200: Lower Bound of Range Recommended by US DOT | D200: 306455052 | E200: 208124956 | F200: -0.3209 | G200: 3.02
C201: Upper Bound of Range Recommended by US DOT | E201: 382150298 | F201: 0.247 | G201: 4.71
B202: Average Vehicle Occupancy (AVO) | C202: National Average instead of Alabama AVO* | E202: 364425082 | F202: 0.1892 | G202: 4.54
B203: Capital Cost Estimate | C203: 25% Increase | E203: 280793721 | F203: -0.0837 | G203: 3.18
C204: 25% Reduction | E204: 332116383 | F204: 0.0837 | G204: 5.29
B205: *National Average is 1.25, Source: Texas Transportation Institute, 2012 Urban Mobility Report, Page A-13

Sheet Supplementary Tables
B2: Table 17: Annual Monetized Estimates of Total Project Benefits and Costs
B3: Calendar Year | C3: Project Year | D3: Total Benefits | E3: Total Costs | F3: Undiscounted | G3: Discounted | H3: Discounted | J3: Discount Factors
D4: 2015 | E4: 2015 | F4: Net Benefits ($2015) | G4: Net Benefit at 7% | H4: Net Benefit at 3% | J4: 0.07 | K4: 0.03
B5: 2016 | C5: 1 | D5: ='Final Calculations'!AO25 -> 0 | E5: ='Final Calculations'!AP25 -> 542581 | F5: =D5-E5 -> -542581 | G5: =F5*J5 -> -542581 | H5: =F5*K5 -> -542581 | J5: 1 | K5: 1
B6: 2017 | C6: 2 | D6: ='Final Calculations'!AO26 -> 0 | E6: ='Final Calculations'!AP26 -> 1506837 | F6: -1506837 | G6: -1408258.879 | H6: -1462948.544 | J6: 0.9345794393 | K6: 0.9708737864
B7: 2018 | C7: 3 | D7: ='Final Calculations'!AO27 -> 0 | E7: ='Final Calculations'!AP27 -> 1311953 | F7: -1311953 | G7: -1145910.56 | H7: -1236641.531 | J7: 0.8734387283 | K7: 0.9425959091
B8: 2019 | C8: 4 | D8: ='Final Calculations'!AO28 -> 0 | E8: ='Final Calculations'!AP28 -> 34953917 | F8: -34953917 | G8: -28532808.24 | H8: -31987785.6 | J8: 0.8162978769 | K8: 0.9151416594
B9: 2020 | C9: 5 | D9: ='Final Calculations'!AO29 -> 0 | E9: ='Final Calculations'!AP29 -> 34583333 | F9: -34583333 | G9: -26383459.16 | H9: -30726843.44 | J9: 0.762895212 | K9: 0.8884870479
B10: 2021 | C10: 6 | D10: ='Final Calculations'!AO30 -> 0 | E10: ='Final Calculations'!AP30 -> 25872000 | F10: -25872000 | G10: -18446378.44 | H10: -22317414.47 | J10: 0.7129861795 | K10: 0.8626087844
B11: 2022 | C11: 7 | D11: ='Final Calculations'!AO31 -> 0 | E11: ='Final Calculations'!AP31 -> 11000000 | F11: -11000000 | G11: -7329764.462 | H11: -9212326.824 | J11: 0.6663422238 | K11: 0.8374842567
B12: 2023 (opening) | C12: 8 | D12: ='Final Calculations'!AO34 -> 36631861.14 | E12: ='Final Calculations'!AP34 -> 50000 | F12: =D12-E12 -> 36581861.14 | G12: 22781344.58 | H12: 29744400.76 | J12: 0.6227497419 | K12: 0.8130915113
B13: 2024 | C13: 9 | D13: ='Final Calculations'!AO35 -> 40227700.48 | E13: ='Final Calculations'!AP35 -> 50000 | F13: 40177700.48 | G13: 23383787.48 | H13: 31716647.77 | J13: 0.5820091046 | K13: 0.7894092343
B14: 2025 | C14: 10 | D14: ='Final Calculations'!AO36 -> 41658593.11 | E14: ='Final Calculations'!AP36 -> 50000 | F14: 41608593.11 | G14: 22632317.77 | H14: 31889521.97 | J14: 0.5439337426 | K14: 0.7664167323
B15: 2026 | C15: 11 | D15: ='Final Calculations'!AO37 -> 43112688.23 | E15: ='Final Calculations'!AP37 -> 50000 | F15: 43062688.23 | G15: 21890887.08 | H15: 32042684.27 | J15: 0.5083492921 | K15: 0.7440939149
B16: 2027 | C16: 12 | D16: ='Final Calculations'!AO38 -> 44590323.49 | E16: ='Final Calculations'!AP38 -> 50000 | F16: 44540323.49 | G16: 21160786.84 | H16: 32176877.36 | J16: 0.4750927964 | K16: 0.7224212766
B17: 2028 | C17: 13 | D17: ='Final Calculations'!AO39 -> 46091841.25 | E17: ='Final Calculations'!AP39 -> 50000 | F17: 46041841.25 | G17: 20443128.14 | H17: 32292821.1 | J17: 0.4440119592 | K17: 0.7013798802
B18: 2029 | C18: 14 | D18: ='Final Calculations'!AO40 -> 47617588.61 | E18: ='Final Calculations'!AP40 -> 50000 | F18: 47567588.61 | G18: 19738858.14 | H18: 32391213.2 | J18: 0.4149644479 | K18: 0.68095134
B19: 2030 | C19: 15 | D19: ='Final Calculations'!AO41 -> 48667316.12 | E19: ='Final Calculations'!AP41 -> 50000 | F19: 48617316.12 | G19: 18854633.4 | H19: 32141773.36 | J19: 0.387817241 | K19: 0.6611178058
B20: 2031 | C20: 16 | D20: ='Final Calculations'!AO42 -> 50217832.31 | E20: ='Final Calculations'!AP42 -> 50000 | F20: 50167832.31 | G20: 18183131.14 | H20: 32200822.54 | J20: 0.3624460196 | K20: 0.6418619474
B21: 2032 | C21: 17 | D21: ='Final Calculations'!AO43 -> 52397861.75 | E21: ='Final Calculations'!AP43 -> 50000 | F21: 52347861.75 | G21: 17732031.9 | H21: 32621456.78 | J21: 0.3387345978 | K21: 0.6231669392
B22: 2033 | C22: 18 | D22: ='Final Calculations'!AO44 -> 53999698.82 | E22: ='Final Calculations'!AP44 -> 50000 | F22: 53949698.82 | G22: 17079093.02 | H22: 32640455.04 | J22: 0.3165743905 | K22: 0.6050164458
B23: 2034 | C23: 19 | D23: ='Final Calculations'!AO45 -> 55627224.96 | E23: ='Final Calculations'!AP45 -> 50000 | F23: 55577224.96 | G23: 16443295.43 | H23: 32645762.25 | J23: 0.2958639163 | K23: 0.5873946076
B24: 2035 | C24: 20 | D24: ='Final Calculations'!AO46 -> 57280807.47 | E24: ='Final Calculations'!AP46 -> 50000 | F24: 57230807.47 | G24: 15824795.17 | H24: 32637929.8 | J24: 0.276508333 | K24: 0.5702860268
B25: 2036 | C25: 21 | D25: ='Final Calculations'!AO47 -> 58960818.66 | E25: ='Final Calculations'!AP47 -> 50000 | F25: 58910818.66 | G25: 15223675.01 | H25: 32617491.95 | J25: 0.2584190028 | K25: 0.5536757542
B26: 2037 | C26: 22 | D26: ='Final Calculations'!AO48 -> 60667635.91 | E26: ='Final Calculations'!AP48 -> 50000 | F26: 60617635.91 | G26: 14639952.36 | H26: 32584966.29 | J26: 0.2415130867 | K26: 0.5375492759
B27: 2038 | C27: 23 | D27: ='Final Calculations'!AO49 -> 62401641.71 | E27: ='Final Calculations'!AP49 -> 50000 | F27: 62351641.71 | G27: 14073586.4 | H27: 32540854.23 | J27: 0.2257131652 | K27: 0.5218925009
B28: 2039 | C28: 24 | D28: ='Final Calculations'!AO50 -> 64163223.75 | E28: ='Final Calculations'!AP50 -> 50000 | F28: 64113223.75 | G28: 13524484.73 | H28: 32485641.44 | J28: 0.2109468833 | K28: 0.5066917484
B29: 2040 | C29: 25 | D29: ='Final Calculations'!AO51 -> 61854331.54 | E29: ='Final Calculations'!AP51 -> 50000 | F29: 61804331.54 | G29: 12184515.06 | H29: 30403635.74 | J29: 0.1971466199 | K29: 0.4919337363
B30: 2041 | C30: 26 | D30: ='Final Calculations'!AO52 -> 67770693.76 | E30: ='Final Calculations'!AP52 -> 50000 | F30: 67720693.76 | G30: 12477482.13 | H30: 32343780.49 | J30: 0.1842491775 | K30: 0.4776055693
B31: 2042 | C31: 27 | D31: ='Final Calculations'!AO53 -> 69617383.75 | E31: ='Final Calculations'!AP53 -> 50000 | F31: 69567383.75 | G31: 11979189.94 | H31: 32258029.05 | J31: 0.172195493 | K31: 0.4636947274
B32: Total | D32: =SUM(D5:D31) -> 1063557067 | E32: =SUM(E5:E31) -> 110770621 | F32: =SUM(F5:F31) -> 952786445.8 | G32: =SUM(G5:G31) -> 266461815 | H32: =SUM(H5:H31) -> 544890224
B34: Table 18: Annual Demand Projections
B35: Calendar Year | C35: Project Year | D35: Total Vehicle Miles Traveled (VMT) | F35: Total Vehicle Hours Traveled (VHT) | H35: Average Speed (MPH)
D36: No-Build Scenario | E36: Build Scenario | F36: No-Build Scenario | G36: Build Scenario | H36: No-Build Scenario | I36: Build Scenario
B37: 2023 (opening) | C37: 8 | D37: =SUMIF('Vehicle Operating Costs'!B:B, "1", 'Vehicle Operating Costs'!C:C) -> 7772953701 | E37: =SUMIF('Vehicle Operating Costs'!B:B,'Vehicle Operating Costs'!B27, 'Vehicle Operating Costs'!D:D) -> 7791115159 | F37: =SUMIF('Vehicle Operating Costs'!B:B,'Vehicle Operating Costs'!B27, 'Vehicle Operating Costs'!E:E) -> 207797568.4 | G37: =SUMIF('Vehicle Operating Costs'!B:B,'Vehicle Operating Costs'!B27,'Vehicle Operating Costs'!F:F) -> 205850512.7 | H37: =D37/F37 -> 37.40637467 | I37: =E37/G37 -> 37.8484127
B38: 2024 | C38: 9 | D38: =SUMIF('Vehicle Operating Costs'!B:B, "2", 'Vehicle Operating Costs'!C:C) -> 7875147723 | E38: =SUMIF('Vehicle Operating Costs'!B:B,'Vehicle Operating Costs'!B28, 'Vehicle Operating Costs'!D:D) -> 7893547952 | F38: =SUMIF('Vehicle Operating Costs'!B:B,'Vehicle Operating Costs'!B28, 'Vehicle Operating Costs'!E:E) -> 212728291.3 | G38: =SUMIF('Vehicle Operating Costs'!B:B,'Vehicle Operating Costs'!B28,'Vehicle Operating Costs'!F:F) -> 210735034.9 | H38: =D38/F38 -> 37.01974793 | I38: =E38/G38 -> 37.45721709
B39: 2025 | C39: 10 | D39: =SUMIF('Vehicle Operating Costs'!B:B, "3", 'Vehicle Operating Costs'!C:C) -> 7977341745 | E39: =SUMIF('Vehicle Operating Costs'!B:B,'Vehicle Operating Costs'!B29, 'Vehicle Operating Costs'!D:D) -> 7995980745 | F39: =SUMIF('Vehicle Operating Costs'!B:B,'Vehicle Operating Costs'!B29, 'Vehicle Operating Costs'!E:E) -> 217659014.2 | G39: =SUMIF('Vehicle Operating Costs'!B:B,'Vehicle Operating Costs'!B29,'Vehicle Operating Costs'!F:F) -> 215619557.1 | H39: 36.65063803 | I39: 37.08374533
B40: 2026 | C40: 11 | D40: =SUMIF('Vehicle Operating Costs'!B:B, "4", 'Vehicle Operating Costs'!C:C) -> 8079535768 | E40: =SUMIF('Vehicle Operating Costs'!B:B,'Vehicle Operating Costs'!B30, 'Vehicle Operating Costs'!D:D) -> 8098413538 | F40: =SUMIF('Vehicle Operating Costs'!B:B,'Vehicle Operating Costs'!B30, 'Vehicle Operating Costs'!E:E) -> 222589737.1 | G40: =SUMIF('Vehicle Operating Costs'!B:B,'Vehicle Operating Costs'!B30,'Vehicle Operating Costs'!F:F) -> 220504079.3 | H40: 36.2978809 | I40: 36.72681958
B41: 2027 | C41: 12 | D41: =SUMIF('Vehicle Operating Costs'!B:B, "5", 'Vehicle Operating Costs'!C:C) -> 8181729790 | E41: =SUMIF('Vehicle Operating Costs'!B:B,'Vehicle Operating Costs'!B31, 'Vehicle Operating Costs'!D:D) -> 8200846331 | F41: =SUMIF('Vehicle Operating Costs'!B:B,'Vehicle Operating Costs'!B31, 'Vehicle Operating Costs'!E:E) -> 227520460 | G41: =SUMIF('Vehicle Operating Costs'!B:B,'Vehicle Operating Costs'!B31,'Vehicle Operating Costs'!F:F) -> 225388601.5 | H41: 35.96041336 | I41: 36.3853641
B42: 2028 | C42: 13 | D42: =SUMIF('Vehicle Operating Costs'!B:B, "6", 'Vehicle Operating Costs'!C:C) -> 8283923812 | E42: =SUMIF('Vehicle Operating Costs'!B:B,'Vehicle Operating Costs'!B32, 'Vehicle Operating Costs'!D:D) -> 8303279124 | F42: =SUMIF('Vehicle Operating Costs'!B:B,'Vehicle Operating Costs'!B32, 'Vehicle Operating Costs'!E:E) -> 232451182.9 | G42: =SUMIF('Vehicle Operating Costs'!B:B,'Vehicle Operating Costs'!B32,'Vehicle Operating Costs'!F:F) -> 230273123.8 | H42: 35.63726244 | I42: 36.05839443
B43: 2029 | C43: 14 | D43: =SUMIF('Vehicle Operating Costs'!B:B, "7", 'Vehicle Operating Costs'!C:C) -> 8386117835 | E43: =SUMIF('Vehicle Operating Costs'!B:B,'Vehicle Operating Costs'!B33, 'Vehicle Operating Costs'!D:D) -> 8405711917 | F43: =SUMIF('Vehicle Operating Costs'!B:B,'Vehicle Operating Costs'!B33, 'Vehicle Operating Costs'!E:E) -> 237381905.9 | G43: =SUMIF('Vehicle Operating Costs'!B:B,'Vehicle Operating Costs'!B33,'Vehicle Operating Costs'!F:F) -> 235157646 | H43: 35.32753604 | I43: 35.74500792
B44: 2030 | C44: 15 | D44: =SUMIF('Vehicle Operating Costs'!B:B, "8", 'Vehicle Operating Costs'!C:C) -> 8488311857 | E44: =SUMIF('Vehicle Operating Costs'!B:B,'Vehicle Operating Costs'!B34, 'Vehicle Operating Costs'!D:D) -> 8508144710 | F44: =SUMIF('Vehicle Operating Costs'!B:B,'Vehicle Operating Costs'!B34, 'Vehicle Operating Costs'!E:E) -> 242312628.8 | G44: =SUMIF('Vehicle Operating Costs'!B:B,'Vehicle Operating Costs'!B34,'Vehicle Operating Costs'!F:F) -> 240042168.2 | H44: 35.03041464 | I44: 35.44437535
B45: 2031 | C45: 16 | D45: =SUMIF('Vehicle Operating Costs'!B:B, "9", 'Vehicle Operating Costs'!C:C) -> 8590505879 | E45: =SUMIF('Vehicle Operating Costs'!B:B,'Vehicle Operating Costs'!B35, 'Vehicle Operating Costs'!D:D) -> 8610577503 | F45: =SUMIF('Vehicle Operating Costs'!B:B,'Vehicle Operating Costs'!B35, 'Vehicle Operating Costs'!E:E) -> 247243351.7 | G45: =SUMIF('Vehicle Operating Costs'!B:B,'Vehicle Operating Costs'!B35,'Vehicle Operating Costs'!F:F) -> 244926690.4 | H45: 34.74514409 | I45: 35.1557337
B46: 2032 | C46: 17 | D46: =SUMIF('Vehicle Operating Costs'!B:B, "10", 'Vehicle Operating Costs'!C:C) -> 8692699902 | E46: =SUMIF('Vehicle Operating Costs'!B:B,'Vehicle Operating Costs'!B36, 'Vehicle Operating Costs'!D:D) -> 8713010296 | F46: =SUMIF('Vehicle Operating Costs'!B:B,'Vehicle Operating Costs'!B36, 'Vehicle Operating Costs'!E:E) -> 252174074.6 | G46: =SUMIF('Vehicle Operating Costs'!B:B,'Vehicle Operating Costs'!B36,'Vehicle Operating Costs'!F:F) -> 249811212.6 | H46: 34.47102925 | I46: 34.87837958
B47: 2033 | C47: 18 | D47: =SUMIF('Vehicle Operating Costs'!B:B, "11", 'Vehicle Operating Costs'!C:C) -> 8794893924 | E47: =SUMIF('Vehicle Operating Costs'!B:B,'Vehicle Operating Costs'!B37, 'Vehicle Operating Costs'!D:D) -> 8815443089 | F47: =SUMIF('Vehicle Operating Costs'!B:B,'Vehicle Operating Costs'!B37, 'Vehicle Operating Costs'!E:E) -> 257104797.5 | G47: =SUMIF('Vehicle Operating Costs'!B:B,'Vehicle Operating Costs'!B37,'Vehicle Operating Costs'!F:F) -> 254695734.8 | H47: 34.20742829 | I47: 34.61166358
B48: 2034 | C48: 19 | D48: =SUMIF('Vehicle Operating Costs'!B:B, "12", 'Vehicle Operating Costs'!C:C) -> 8897087946 | E48: =SUMIF('Vehicle Operating Costs'!B:B,'Vehicle Operating Costs'!B38, 'Vehicle Operating Costs'!D:D) -> 8917875882 | F48: =SUMIF('Vehicle Operating Costs'!B:B,'Vehicle Operating Costs'!B38, 'Vehicle Operating Costs'!E:E) -> 262035520.4 | G48: =SUMIF('Vehicle Operating Costs'!B:B,'Vehicle Operating Costs'!B38,'Vehicle Operating Costs'!F:F) -> 259580257 | H48: 33.95374769 | I48: 34.35498518
B49: 2035 | C49: 20 | D49: =SUMIF('Vehicle Operating Costs'!B:B, "13", 'Vehicle Operating Costs'!C:C) -> 8999281968 | E49: =SUMIF('Vehicle Operating Costs'!B:B,'Vehicle Operating Costs'!B39, 'Vehicle Operating Costs'!D:D) -> 9020308675 | F49: =SUMIF('Vehicle Operating Costs'!B:B,'Vehicle Operating Costs'!B39, 'Vehicle Operating Costs'!E:E) -> 266966243.3 | G49: =SUMIF('Vehicle Operating Costs'!B:B,'Vehicle Operating Costs'!B39,'Vehicle Operating Costs'!F:F) -> 264464779.2 | H49: 33.70943778 | I49: 34.10778819
B50: 2036 | C50: 21 | D50: =SUMIF('Vehicle Operating Costs'!B:B, "14", 'Vehicle Operating Costs'!C:C) -> 9101475991 | E50: =SUMIF('Vehicle Operating Costs'!B:B,'Vehicle Operating Costs'!B40, 'Vehicle Operating Costs'!D:D) -> 9122741468 | F50: =SUMIF('Vehicle Operating Costs'!B:B,'Vehicle Operating Costs'!B40, 'Vehicle Operating Costs'!E:E) -> 271896966.2 | G50: =SUMIF('Vehicle Operating Costs'!B:B,'Vehicle Operating Costs'!B40,'Vehicle Operating Costs'!F:F) -> 269349301.4 | H50: 33.47398876 | I50: 33.86955681
B51: 2037 | C51: 22 | D51: =SUMIF('Vehicle Operating Costs'!B:B, "15", 'Vehicle Operating Costs'!C:C) -> 9203670013 | E51: =SUMIF('Vehicle Operating Costs'!B:B,'Vehicle Operating Costs'!B41, 'Vehicle Operating Costs'!D:D) -> 9225174261 | F51: =SUMIF('Vehicle Operating Costs'!B:B,'Vehicle Operating Costs'!B41, 'Vehicle Operating Costs'!E:E) -> 276827689.1 | G51: =SUMIF('Vehicle Operating Costs'!B:B,'Vehicle Operating Costs'!B41,'Vehicle Operating Costs'!F:F) -> 274233823.6 | H51: 33.24692715 | I51: 33.63981196
B52: 2038 | C52: 23 | D52: =SUMIF('Vehicle Operating Costs'!B:B, "16", 'Vehicle Operating Costs'!C:C) -> 9305864035 | E52: =SUMIF('Vehicle Operating Costs'!B:B,'Vehicle Operating Costs'!B42, 'Vehicle Operating Costs'!D:D) -> 9327607054 | F52: =SUMIF('Vehicle Operating Costs'!B:B,'Vehicle Operating Costs'!B42, 'Vehicle Operating Costs'!E:E) -> 281758412 | G52: =SUMIF('Vehicle Operating Costs'!B:B,'Vehicle Operating Costs'!B42,'Vehicle Operating Costs'!F:F) -> 279118345.9 | H52: 33.02781262 | I52: 33.4181081
B53: 2039 | C53: 24 | D53: =SUMIF('Vehicle Operating Costs'!B:B, "17", 'Vehicle Operating Costs'!C:C) -> 1.881611612e+10 | E53: =SUMIF('Vehicle Operating Costs'!B:B,'Vehicle Operating Costs'!B43, 'Vehicle Operating Costs'!D:D)/2 -> 9430039847 | F53: =SUMIF('Vehicle Operating Costs'!B:B,'Vehicle Operating Costs'!B43, 'Vehicle Operating Costs'!E:E)/2 -> 286689134.9 | G53: =SUMIF('Vehicle Operating Costs'!B:B,'Vehicle Operating Costs'!B43,'Vehicle Operating Costs'!F:F)/2 -> 284002868.1 | H53: 65.63247024 | I53: 33.20403034
B54: 2040 | C54: 25 | D54: =SUMIF('Vehicle Operating Costs'!B:B, "18", 'Vehicle Operating Costs'!C:C)/2 -> 4755126040 | E54: =SUMIF('Vehicle Operating Costs'!B:B,'Vehicle Operating Costs'!B44, 'Vehicle Operating Costs'!D:D) -> 9532472640 | F54: =SUMIF('Vehicle Operating Costs'!B:B,'Vehicle Operating Costs'!B44, 'Vehicle Operating Costs'!E:E) -> 291619857.8 | G54: =SUMIF('Vehicle Operating Costs'!B:B,'Vehicle Operating Costs'!B44,'Vehicle Operating Costs'!F:F) -> 288887390.3 | H54: 16.30590617 | I54: 32.99719185
B55: 2041 | C55: 26 | D55: =SUMIF('Vehicle Operating Costs'!B:B, "19", 'Vehicle Operating Costs'!C:C) -> 9612446102 | E55: =SUMIF('Vehicle Operating Costs'!B:B,'Vehicle Operating Costs'!B45, 'Vehicle Operating Costs'!D:D) -> 9634905433 | F55: =SUMIF('Vehicle Operating Costs'!B:B,'Vehicle Operating Costs'!B45, 'Vehicle Operating Costs'!E:E) -> 296550580.7 | G55: =SUMIF('Vehicle Operating Costs'!B:B,'Vehicle Operating Costs'!B45,'Vehicle Operating Costs'!F:F) -> 293771912.5 | H55: 32.41418742 | I55: 32.79723154
B56: 2042 | C56: 27 | D56: =SUMIF('Vehicle Operating Costs'!B:B, "20", 'Vehicle Operating Costs'!C:C) -> 9714640125 | E56: =SUMIF('Vehicle Operating Costs'!B:B,'Vehicle Operating Costs'!B46, 'Vehicle Operating Costs'!D:D) -> 9737338226 | F56: =SUMIF('Vehicle Operating Costs'!B:B,'Vehicle Operating Costs'!B46, 'Vehicle Operating Costs'!E:E) -> 301481303.6 | G56: =SUMIF('Vehicle Operating Costs'!B:B,'Vehicle Operating Costs'!B46,'Vehicle Operating Costs'!F:F) -> 298656434.7 | H56: 32.22302679 | I56: 32.60381192
B57: Total | D57: =SUM(D37:D56) -> 1.795288703e+11 | E57: =SUM(E37:E56) -> 1.752845338e+11 | F57: =SUM(F37:F56) -> 5092788720 | G57: =SUM(G37:G56) -> 5045069474
B59: Table 19: Annual Average Travel Time (Hours)
B60: Calendar Year | C60: Project Year | D60: No-Build | E60: Build | F60: Total Person-Hours of Time Saved
B61: 2023 (opening) | C61: 8 | D61: =SUMIF('Travel Time'!B:B,'Travel Time'!B27,'Travel Time'!I:I)/14 -> 16030098.14 | E61: =SUMIF('Travel Time'!B:B,'Travel Time'!B27,'Travel Time'!J:J)/14 -> 15879896.69 | F61: =D61-E61 -> 150201.4407
B62: 2024 | C62: 9 | D62: =SUMIF('Travel Time'!B:B,'Travel Time'!B28,'Travel Time'!I:I)/14 -> 16410468.19 | E62: =SUMIF('Travel Time'!B:B,'Travel Time'!B28,'Travel Time'!J:J)/14 -> 16256702.69 | F62: 153765.4944
B63: 2025 | C63: 10 | D63: =SUMIF('Travel Time'!B:B,'Travel Time'!B29,'Travel Time'!I:I)/14 -> 16790838.24 | E63: =SUMIF('Travel Time'!B:B,'Travel Time'!B29,'Travel Time'!J:J)/14 -> 16633508.69 | F63: 157329.548
B64: 2026 | C64: 11 | D64: =SUMIF('Travel Time'!B:B,'Travel Time'!B30,'Travel Time'!I:I)/14 -> 17171208.29 | E64: =SUMIF('Travel Time'!B:B,'Travel Time'!B30,'Travel Time'!J:J)/14 -> 17010314.69 | F64: 160893.6017
B65: 2027 | C65: 12 | D65: =SUMIF('Travel Time'!B:B,'Travel Time'!B31,'Travel Time'!I:I)/14 -> 17551578.35 | E65: =SUMIF('Travel Time'!B:B,'Travel Time'!B31,'Travel Time'!J:J)/14 -> 17387120.69 | F65: 164457.6553
B66: 2028 | C66: 13 | D66: =SUMIF('Travel Time'!B:B,'Travel Time'!B32,'Travel Time'!I:I)/14 -> 17931948.4 | E66: =SUMIF('Travel Time'!B:B,'Travel Time'!B32,'Travel Time'!J:J)/14 -> 17763926.69 | F66: 168021.709
B67: 2029 | C67: 14 | D67: =SUMIF('Travel Time'!B:B,'Travel Time'!B33,'Travel Time'!I:I)/14 -> 18312318.45 | E67: =SUMIF('Travel Time'!B:B,'Travel Time'!B33,'Travel Time'!J:J)/14 -> 18140732.69 | F67: 171585.7627
B68: 2030 | C68: 15 | D68: =SUMIF('Travel Time'!B:B,'Travel Time'!B34,'Travel Time'!I:I)/14 -> 18692688.5 | E68: =SUMIF('Travel Time'!B:B,'Travel Time'!B34,'Travel Time'!J:J)/14 -> 18517538.69 | F68: 175149.8163
B69: 2031 | C69: 16 | D69: =SUMIF('Travel Time'!B:B,'Travel Time'!B35,'Travel Time'!I:I)/14 -> 19073058.56 | E69: =SUMIF('Travel Time'!B:B,'Travel Time'!B35,'Travel Time'!J:J)/14 -> 18894344.69 | F69: 178713.87
B70: 2032 | C70: 17 | D70: =SUMIF('Travel Time'!B:B,'Travel Time'!B36,'Travel Time'!I:I)/14 -> 19453428.61 | E70: =SUMIF('Travel Time'!B:B,'Travel Time'!B36,'Travel Time'!J:J)/14 -> 19271150.69 | F70: 182277.9236
B71: 2033 | C71: 18 | D71: =SUMIF('Travel Time'!B:B,'Travel Time'!B37,'Travel Time'!I:I)/14 -> 19833798.66 | E71: =SUMIF('Travel Time'!B:B,'Travel Time'!B37,'Travel Time'!J:J)/14 -> 19647956.69 | F71: 185841.9773
B72: 2034 | C72: 19 | D72: =SUMIF('Travel Time'!B:B,'Travel Time'!B38,'Travel Time'!I:I)/14 -> 20214168.72 | E72: =SUMIF('Travel Time'!B:B,'Travel Time'!B38,'Travel Time'!J:J)/14 -> 20024762.68 | F72: 189406.0309
B73: 2035 | C73: 20 | D73: =SUMIF('Travel Time'!B:B,'Travel Time'!B39,'Travel Time'!I:I)/14 -> 20594538.77 | E73: =SUMIF('Travel Time'!B:B,'Travel Time'!B39,'Travel Time'!J:J)/14 -> 20401568.68 | F73: 192970.0846
B74: 2036 | C74: 21 | D74: =SUMIF('Travel Time'!B:B,'Travel Time'!B40,'Travel Time'!I:I)/14 -> 20974908.82 | E74: =SUMIF('Travel Time'!B:B,'Travel Time'!B40,'Travel Time'!J:J)/14 -> 20778374.68 | F74: 196534.1383
B75: 2037 | C75: 22 | D75: =SUMIF('Travel Time'!B:B,'Travel Time'!B41,'Travel Time'!I:I)/14 -> 21355278.87 | E75: =SUMIF('Travel Time'!B:B,'Travel Time'!B41,'Travel Time'!J:J)/14 -> 21155180.68 | F75: 200098.1919
B76: 2038 | C76: 23 | D76: =SUMIF('Travel Time'!B:B,'Travel Time'!B42,'Travel Time'!I:I)/14 -> 21735648.93 | E76: =SUMIF('Travel Time'!B:B,'Travel Time'!B42,'Travel Time'!J:J)/14 -> 21531986.68 | F76: 203662.2456
B77: 2039 | C77: 24 | D77: =SUMIF('Travel Time'!B:B,'Travel Time'!B43,'Travel Time'!I:I)/14/2 -> 22116018.98 | E77: =SUMIF('Travel Time'!B:B,'Travel Time'!B43,'Travel Time'!J:J)/14/2 -> 21908792.68 | F77: 207226.2992
B78: 2040 | C78: 25 | D78: =SUMIF('Travel Time'!B:B,'Travel Time'!B44,'Travel Time'!I:I)/14 -> 22496389.03 | E78: =SUMIF('Travel Time'!B:B,'Travel Time'!B44,'Travel Time'!J:J)/14 -> 22285598.68 | F78: 210790.3529
B79: 2041 | C79: 26 | D79: =SUMIF('Travel Time'!B:B,'Travel Time'!B45,'Travel Time'!I:I)/14 -> 22876759.08 | E79: =SUMIF('Travel Time'!B:B,'Travel Time'!B45,'Travel Time'!J:J)/14 -> 22662404.68 | F79: 214354.4066
B80: 2042 | C80: 27 | D80: =SUMIF('Travel Time'!B:B,'Travel Time'!B46,'Travel Time'!I:I)/14 -> 23257129.14 | E80: =SUMIF('Travel Time'!B:B,'Travel Time'!B46,'Travel Time'!J:J)/14 -> 23039210.68 | F80: 217918.4602
B81: Total | D81: =SUM(D61:D80) -> 392872272.7 | E81: =SUM(E61:E80) -> 389191073.7 | F81: 3681199.009
B83: Table 20: Economic - Annual Benefit Estimates
B84: Calendar Year | C84: Project Year | D84: Total Benefits | E84: Discounted | F84: Discounted | H84: Discount Factors
D85: $2015 | E85: Benefits at 7% | F85: Benefits at 3% | H85: 0.07 | I85: 0.03
B86: 2023 (opening) | C86: 8 | D86: ='Final Calculations'!Y34+'Final Calculations'!Z34 -> 25116390.58 | E86: =D86*H86 -> 15641225.75 | F86: =D86*I86 -> 20421923.98 | H86: 0.6227497419 | I86: 0.8130915113
B87: 2024 | C87: 9 | D87: ='Final Calculations'!Y35+'Final Calculations'!Z35 -> 28220095.53 | E87: 16424352.53 | F87: 22277204.01 | H87: 0.5820091046 | I87: 0.7894092343
B88: 2025 | C88: 10 | D88: ='Final Calculations'!Y36+'Final Calculations'!Z36 -> 29416824.85 | E88: 16000803.64 | F88: 22545546.78 | H88: 0.5439337426 | I88: 0.7664167323
B89: 2026 | C89: 11 | D89: ='Final Calculations'!Y37+'Final Calculations'!Z37 -> 30633224.08 | E89: 15572377.78 | F89: 22793995.63 | H89: 0.5083492921 | I89: 0.7440939149
B90: 2027 | C90: 12 | D90: ='Final Calculations'!Y38+'Final Calculations'!Z38 -> 31869570.94 | E90: 15141003.58 | F90: 23023256.12 | H90: 0.4750927964 | I90: 0.7224212766
B91: 2028 | C91: 13 | D91: ='Final Calculations'!Y39+'Final Calculations'!Z39 -> 33126146.77 | E91: 14708405.33 | F91: 23234012.86 | H91: 0.4440119592 | I91: 0.7013798802
B92: 2029 | C92: 14 | D92: ='Final Calculations'!Y40+'Final Calculations'!Z40 -> 34403236.53 | E92: 14276120.05 | F92: 23426930.02 | H92: 0.4149644479 | I92: 0.68095134
B93: 2030 | C93: 15 | D93: ='Final Calculations'!Y41+'Final Calculations'!Z41 -> 35701128.86 | E93: 13845513.29 | F93: 23602651.98 | H93: 0.387817241 | I93: 0.6611178058
B94: 2031 | C94: 16 | D94: ='Final Calculations'!Y42+'Final Calculations'!Z42 -> 37020116.1 | E94: 13417793.73 | F94: 23761803.81 | H94: 0.3624460196 | I94: 0.6418619474
B95: 2032 | C95: 17 | D95: ='Final Calculations'!Y43+'Final Calculations'!Z43 -> 39119515.13 | E95: 13251133.22 | F95: 24377988.51 | H95: 0.3387345978 | I95: 0.6231669392
B96: 2033 | C96: 18 | D96: ='Final Calculations'!Y44+'Final Calculations'!Z44 -> 40485860.1 | E96: 12816786.48 | F96: 24494611.19 | H96: 0.3165743905 | I96: 0.6050164458
B97: 2034 | C97: 19 | D97: ='Final Calculations'!Y45+'Final Calculations'!Z45 -> 41874199.85 | E97: 12389064.76 | F97: 24596679.19 | H97: 0.2958639163 | I97: 0.5873946076
B98: 2035 | C98: 20 | D98: ='Final Calculations'!Y46+'Final Calculations'!Z46 -> 43284842.08 | E98: 11968619.53 | F98: 24684740.61 | H98: 0.276508333 | I98: 0.5702860268
B99: 2036 | C99: 21 | D99: ='Final Calculations'!Y47+'Final Calculations'!Z47 -> 44718098.44 | E99: 11556006.41 | F99: 24759326.88 | H99: 0.2584190028 | I99: 0.5536757542
B100: 2037 | C100: 22 | D100: ='Final Calculations'!Y48+'Final Calculations'!Z48 -> 46174284.61 | E100: 11151694 | F100: 24820953.26 | H100: 0.2415130867 | I100: 0.5375492759
B101: 2038 | C101: 23 | D101: ='Final Calculations'!Y49+'Final Calculations'!Z49 -> 47653720.28 | E101: 10756072.04 | F101: 24870119.26 | H101: 0.2257131652 | I101: 0.5218925009
B102: 2039 | C102: 24 | D102: ='Final Calculations'!Y50+'Final Calculations'!Z50 -> 49156729.29 | E102: 10369458.84 | F102: 24907309.11 | H102: 0.2109468833 | I102: 0.5066917484
B103: 2040 | C103: 25 | D103: ='Final Calculations'!Y51+'Final Calculations'!Z51 -> 50683639.58 | E103: 9992108.23 | F103: 24932992.19 | H103: 0.1971466199 | I103: 0.4919337363
B104: 2041 | C104: 26 | D104: ='Final Calculations'!Y52+'Final Calculations'!Z52 -> 52234783.33 | E104: 9624215.867 | F104: 24947623.43 | H104: 0.1842491775 | I104: 0.4776055693
B105: 2042 | C105: 27 | D105: ='Final Calculations'!Y53+'Final Calculations'!Z53 -> 53810496.96 | E105: 9265925.054 | F105: 24951643.72 | H105: 0.172195493 | I105: 0.4636947274
B106: Total | D106: =SUM(D86:D105) -> 794702903.9 | E106: =SUM(E86:E105) -> 258168680.1 | F106: =SUM(F86:F105) -> 477431312.5
B108: Table 21: Safety - Annual Benefit Estimates
B109: Calendar Year | C109: Project Year | D109: Total Benefits | E109: Discounted | F109: Discounted | H109: Discount Factors
D110: 2015 Dollars | E110: Benefits at 7% | F110: Benefits at 3% | H110: 0.07 | I110: 0.03
B111: 2023 (opening) | C111: 8 | D111: ='Final Calculations'!AA34 -> 11219189.21 | E111: =D111*H111 -> 6986747.186 | F111: =D111*I111 -> 9122227.513 | H111: 0.6227497419 | I111: 0.8130915113
B112: 2024 | C112: 9 | D112: ='Final Calculations'!AA35 -> 11405387.51 | E112: 6638039.375 | F112: 9003518.225 | H112: 0.5820091046 | I112: 0.7894092343
B113: 2025 | C113: 10 | D113: ='Final Calculations'!AA36 -> 11594187.86 | E113: 6306469.997 | F113: 8885979.577 | H113: 0.5439337426 | I113: 0.7664167323
B114: 2026 | C114: 11 | D114: ='Final Calculations'!AA37 -> 11785623.68 | E114: 5991213.456 | F114: 8769610.865 | H114: 0.5083492921 | I114: 0.7440939149
B115: 2027 | C115: 12 | D115: ='Final Calculations'!AA38 -> 11979728.8 | E115: 5691482.854 | F115: 8654410.971 | H115: 0.4750927964 | I115: 0.7224212766
B116: 2028 | C116: 13 | D116: ='Final Calculations'!AA39 -> 12176537.45 | E116: 5406528.251 | F116: 8540378.379 | H116: 0.4440119592 | I116: 0.7013798802
B117: 2029 | C117: 14 | D117: ='Final Calculations'!AA40 -> 12376084.31 | E117: 5135634.992 | F117: 8427511.193 | H117: 0.4149644479 | I117: 0.68095134
B118: 2030 | C118: 15 | D118: ='Final Calculations'!AA41 -> 12578404.45 | E118: 4878122.109 | F118: 8315807.148 | H118: 0.387817241 | I118: 0.6611178058
B119: 2031 | C119: 16 | D119: ='Final Calculations'!AA42 -> 12783533.38 | E119: 4633340.79 | F119: 8205263.629 | H119: 0.3624460196 | I119: 0.6418619474
B120: 2032 | C120: 17 | D120: ='Final Calculations'!AA43 -> 12991507.05 | E120: 4400672.915 | F120: 8095877.684 | H120: 0.3387345978 | I120: 0.6231669392
B121: 2033 | C121: 18 | D121: ='Final Calculations'!AA44 -> 13202361.84 | E121: 4179529.653 | F121: 7987646.038 | H121: 0.3165743905 | I121: 0.6050164458
B122: 2034 | C122: 19 | D122: ='Final Calculations'!AA45 -> 13416134.58 | E122: 3969350.118 | F122: 7880565.106 | H122: 0.2958639163 | I122: 0.5873946076
B123: 2035 | C123: 20 | D123: ='Final Calculations'!AA46 -> 13632862.53 | E123: 3769600.093 | F123: 7774631.008 | H123: 0.276508333 | I123: 0.5702860268
B124: 2036 | C124: 21 | D124: ='Final Calculations'!AA47 -> 13852583.43 | E124: 3579770.797 | F124: 7669839.58 | H124: 0.2584190028 | I124: 0.5536757542
B125: 2037 | C125: 22 | D125: ='Final Calculations'!AA48 -> 14075335.47 | E125: 3399377.715 | F125: 7566186.388 | H125: 0.2415130867 | I125: 0.5375492759
B126: 2038 | C126: 23 | D126: ='Final Calculations'!AA49 -> 14301157.28 | E126: 3227959.476 | F126: 7463666.739 | H126: 0.2257131652 | I126: 0.5218925009
B127: 2039 | C127: 24 | D127: ='Final Calculations'!AA50 -> 14530088 | E127: 3065076.778 | F127: 7362275.693 | H127: 0.2109468833 | I127: 0.5066917484
B128: 2040 | C128: 25 | D128: ='Final Calculations'!AA51 -> 10663723.76 | E128: 2102317.096 | F128: 5245845.473 | H128: 0.1971466199 | I128: 0.4919337363
B129: 2041 | C129: 26 | D129: ='Final Calculations'!AA52 -> 14997435.01 | E129: 2763265.065 | F129: 7162858.484 | H129: 0.1842491775 | I129: 0.4776055693
B130: 2042 | C130: 27 | D130: ='Final Calculations'!AA53 -> 15235931.94 | E130: 2623558.811 | F130: 7064821.307 | H130: 0.172195493 | I130: 0.4636947274
B131: Total | D131: =SUM(D111:D130) -> 258797797.5 | E131: =SUM(E111:E130) -> 88748057.53 | F131: =SUM(F111:F130) -> 159198921
B133: Table 22: Annual CO2 Emissions Saved
B134: Calendar Year | C134: Project Year | D134: Annual CO2 Emissions Saved (Short Tons)
B135: 2023 (opening) | C135: 8 | D135: =Emissions!EK24 -> 891.0962619
B136: 2024 | C136: 9 | D136: =Emissions!EK25 -> 4776.865102
B137: 2025 | C137: 10 | D137: =Emissions!EK26 -> 5240.567286
B138: 2026 | C138: 11 | D138: =Emissions!EK27 -> 5704.269471
B139: 2027 | C139: 12 | D139: =Emissions!EK28 -> 6167.971656
B140: 2028 | C140: 13 | D140: =Emissions!EK29 -> 6631.67384
B141: 2029 | C141: 14 | D141: =Emissions!EK30 -> 7095.376025
B142: 2030 | C142: 15 | D142: =Emissions!EK31 -> 6512.689533
B143: 2031 | C143: 16 | D143: =Emissions!EK32 -> 6857.676538
B144: 2032 | C144: 17 | D144: =Emissions!EK33 -> 4706.737886
B145: 2033 | C145: 18 | D145: =Emissions!EK34 -> 5037.664894
B146: 2034 | C146: 19 | D146: =Emissions!EK35 -> 5368.591902
B147: 2035 | C147: 20 | D147: =Emissions!EK36 -> 5699.51891
B148: 2036 | C148: 21 | D148: =Emissions!EK37 -> 6030.445919
B149: 2037 | C149: 22 | D149: =Emissions!EK38 -> 6361.372927
B150: 2038 | C150: 23 | D150: =Emissions!EK39 -> 6692.299935
B151: 2039 | C151: 24 | D151: =Emissions!EK40 -> 7023.226943
B152: 2040 | C152: 25 | D152: =Emissions!EK41 -> 7354.153952
B153: 2041 | C153: 26 | D153: =Emissions!EK42 -> 7685.08096
B154: 2042 | C154: 27 | D154: =Emissions!EK43 -> 8016.007968
B155: Total | D155: =SUM(D135:D154) -> 119853.2879
B157: Table 23: Community and Environmental - Annual Benefit Estimates
B158: Calendar Year | C158: Project Year | D158: Total Benefits | E158: Discounted | F158: Discounted | H158: Discount Factors
D159: $2015 | E159: Benefits at 7% | F159: Benefits at 3% | H159: 0.07 | I159: 0.03
B160: 2023 (opening) | C160: 8 | D160: ='Final Calculations'!AB34 -> 296281.3428 | E160: =D160*H160 -> 184509.1298 | F160: =D160*I160 -> 240903.8448 | H160: 0.6227497419 | I160: 0.8130915113
B161: 2024 | C161: 9 | D161: ='Final Calculations'!AB35 -> 602217.4347 | E161: 350496.0299 | F161: 475396.004 | H161: 0.5820091046 | I161: 0.7894092343
B162: 2025 | C162: 10 | D162: ='Final Calculations'!AB36 -> 647580.3909 | E162: 352240.8257 | F162: 496316.4471 | H162: 0.5439337426 | I162: 0.7664167323
B163: 2026 | C163: 11 | D163: ='Final Calculations'!AB37 -> 693840.4672 | E163: 352713.3104 | F163: 516282.4696 | H163: 0.5083492921 | I163: 0.7440939149
B164: 2027 | C164: 12 | D164: ='Final Calculations'!AB38 -> 741023.7542 | E164: 352055.0476 | F164: 535331.3265 | H164: 0.4750927964 | I164: 0.7224212766
B165: 2028 | C165: 13 | D165: ='Final Calculations'!AB39 -> 789157.0274 | E165: 350395.1579 | F165: 553498.8613 | H165: 0.4440119592 | I165: 0.7013798802
B166: 2029 | C166: 14 | D166: ='Final Calculations'!AB40 -> 838267.7639 | E166: 347851.3198 | F166: 570819.5571 | H166: 0.4149644479 | I166: 0.68095134
B167: 2030 | C167: 15 | D167: ='Final Calculations'!AB41 -> 387782.8181 | E167: 150388.8626 | F167: 256370.1258 | H167: 0.387817241 | I167: 0.6611178058
B168: 2031 | C168: 16 | D168: ='Final Calculations'!AB42 -> 414182.8301 | E168: 150118.9182 | F168: 265848.1979 | H168: 0.3624460196 | I168: 0.6418619474
B169: 2032 | C169: 17 | D169: ='Final Calculations'!AB43 -> 286839.5673 | E169: 97162.48545 | F169: 178748.9352 | H169: 0.3387345978 | I169: 0.6231669392
B170: 2033 | C170: 18 | D170: ='Final Calculations'!AB44 -> 311476.8795 | E170: 98605.60328 | F170: 188448.6346 | H170: 0.3165743905 | I170: 0.6050164458
B171: 2034 | C171: 19 | D171: ='Final Calculations'!AB45 -> 336890.5297 | E171: 99673.7515 | F171: 197887.6805 | H171: 0.2958639163 | I171: 0.5873946076
B172: 2035 | C172: 20 | D172: ='Final Calculations'!AB46 -> 363102.858 | E172: 100400.966 | F172: 207072.4862 | H172: 0.276508333 | I172: 0.5702860268
B173: 2036 | C173: 21 | D173: ='Final Calculations'!AB47 -> 390136.7874 | E173: 100818.7596 | F173: 216009.28 | H173: 0.2584190028 | I173: 0.5536757542
B174: 2037 | C174: 22 | D174: ='Final Calculations'!AB48 -> 418015.8386 | E174: 100956.2955 | F174: 224704.1113 | H174: 0.2415130867 | I174: 0.5375492759
B175: 2038 | C175: 23 | D175: ='Final Calculations'!AB49 -> 446764.1444 | E175: 100840.5491 | F175: 233162.8566 | H175: 0.2257131652 | I175: 0.5218925009
B176: 2039 | C176: 24 | D176: ='Final Calculations'!AB50 -> 476406.4648 | E176: 100496.459 | F176: 241391.2246 | H176: 0.2109468833 | I176: 0.5066917484
B177: 2040 | C177: 25 | D177: ='Final Calculations'!AB51 -> 506968.2026 | E177: 99947.06757 | F177: 249394.7621 | H177: 0.1971466199 | I177: 0.4919337363
B178: 2041 | C178: 26 | D178: ='Final Calculations'!AB52 -> 538475.4191 | E178: 99213.65309 | F178: 257178.8591 | H178: 0.1842491775 | I178: 0.4776055693
B179: 2042 | C179: 27 | D179: ='Final Calculations'!AB53 -> 570954.8502 | E179: 98315.85192 | F179: 264748.7537 | H179: 0.172195493 | I179: 0.4636947274
B180: Total | D180: =SUM(D160:D179) -> 10056365.37 | E180: =SUM(E160:E179) -> 3687200.044 | F180: =SUM(F160:F179) -> 6369514.418

Sheet Title
C2: California Life-Cycle Benefit/Cost Analysis Model (Cal-B/C) Version 5.0 Corridor 2016 FASTLANE Inputs
B22: Office of Transportation Economics
B23: Division of Transportation Planning
B24: February 2012

Sheet PARAMETERS
B1: Parameters
B3: This page contains all economic values and rate tables.
B4: To update economic values automatically, change "Economic Update Factor."
Y5: Travel Demand Tables | AJ5: Operating Cost Tables | AQ5: Accident Tables | BG5: Emissions Tables | CO5: Pavement Adjustments (used only for pavement projects) | DC5: Weaving Adjustments (used only for freeway | DJ5: TMS Adjustments (used only for ramp metering, ramp metering signal coordination, incident
DC6: connector, HOV connector, and HOV drop ramp projects) | DJ6: management, traveler information projects, AVL, transit priority, and BRT projects)
B7: General Economic Parameters
R8: Project Types | CM8: Short tons
C9: Year of Current Dollars for Model | F9: 2011 | Z9: DEMAND FOR TRAVEL IN PEAK PERIOD | AK9: FUEL CONSUMPTION RATES | AR9: HIGHWAY INJURY SEVERITY FREQUENCY | AZ9: RATES FOR TRANSIT ACCIDENT EVENTS | BH9: HIGHWAY EMISSIONS FACTORS (g/mi) | BS9: HIGHWAY EMISSIONS FACTORS (g/mi) | CD9: HEALTH COST OF TRANSPORTATION EMISSIONS | CP9: PAVEMENT DETERIORATION | CW9: VEHICLE OPERATING SPEED | DD9: VEHICLE OPERATING SPEED | DK9: PEAK PERIOD SPEED, VOLUME, AND NON-HIGHWAY BENEFITS
C10: Economic Update Factor (Using GDP Deflator) | F10: =237.017/224.939 -> 1.053694557 | H10: 1 | S10: Highway Capacity Expansion | V10: Please select a type of highway project | Z10: (percent of total daily travel) | AK10: (gal/veh-mi) | AR10: (percent of injuries) | AZ10: (events/million veh-mi) | BH10: Model Year 2016 | BS10: Model Year 2035 | CD10: ($/ton) | CP10: (IRI in inches/mile) | CW10: (percent adjustment) | DD10: (percent adjustment) | DK10: (percent adjustment)
S11: General Highway | U11: GenHwy
C12: Real Discount Rate | F12: 0.07 | H12: 2 | S12: HOV Lane Addition | U12: HOV | V12: Enter HOV restriction in section 1B | Z12: Number of | AA12: Urban | AK12: Speed | AL12: Auto* | AM12: Truck | AR12: Event | AS12: Urban | AT12: Suburban | AU12: Rural | AV12: Average | AZ12: Event | BA12: Pass Train | BB12: Light Rail | BC12: Bus | BH12: Mode | BI12: Speed | BJ12: CO | BK12: CO2 | BL12: NOX | BM12: PM10 | BN12: SOX | BO12: VOC | BS12: Mode | BT12: Speed | BU12: CO | BV12: CO2 | BW12: NOX | BX12: PM10 | BY12: SOX | BZ12: VOC | CD12: Area | CE12: Proj Loc | CF12: CO | CG12: CO2e | CH12: NOX | CI12: PM10 | CJ12: SOX | CK12: VOC | CQ12: Year 20, By Loading | DD12: Percent | DE12: Freeway | DF12: HOV | DK12: TMS | DL12: Without | DN12: With | DP12: Non-Highway Benefits | DS12: Total
S13: HOT Lane Addition | U13: HOT | V13: Include toll payers as HOVs & check AVOs | Z13: Hours in | AA13: So. California | AC13: No. California | AE13: Rural | AK13: 5 | AL13: 0.1439 | AM13: 0.2234 | AR13: Severe Injury (A) | AS13: =ROUND(10931/232777,4) -> 0.047 | AT13: =ROUND(10931/232777,4) -> 0.047 | AU13: =ROUND(10931/232777,4) -> 0.047 | AV13: =ROUND(10931/232777,4) -> 0.047 | AZ13: Fatality | BA13: 0.0428 | BB13: 0.1897 | BC13: 0.0351 | BH13: Auto | BI13: 0 | BS13: Auto | BT13: 0 | CD13: LA/South Coast | CE13: 1 | CF13: 0 | CG13: =43/1.10231 -> 39.00899021 | CH13: =8010/1.10231 -> 7266.558409 | CI13: =366414/1.10231 -> 332405.5846 | CJ13: =47341/1.10231 -> 42947.08385 | CK13: =2032/1.10231 -> 1843.401584 | CP13: Year 0 | CQ13: Light | CR13: Medium | CS13: Heavy | CW13: IRI | CX13: Auto | CY13: Truck | DD13: Weaving | DE13: Conn | DF13: Project | DK13: Strategy | DL13: Speed | DM13: Volume | DN13: Speed | DO13: Volume | DP13: TT | DQ13: VOC | DR13: Em | DS13: Benefit
S14: Passing Lane | U14: Passing | V14: Enter a truck speed in section 1B | Z14: Peak Period | AA14: Fwy/Exp | AB14: Other | AC14: Fwy/Exp | AD14: Other | AE14: Fwy/Exp | AF14: Other | AK14: 6 | AL14: 0.1366 | AM14: 0.213 | AR14: Other Visible Injury (B) | AS14: =ROUND(61175/232777,4) -> 0.2628 | AT14: =ROUND(61175/232777,4) -> 0.2628 | AU14: =ROUND(61175/232777,4) -> 0.2628 | AV14: =ROUND(61175/232777,4) -> 0.2628 | AZ14: Injury | BA14: 0.2517 | BB14: 3.6283 | BC14: 3.8909 | BI14: 5 | BJ14: 6.368 | BK14: 1052.6575 | BL14: 0.4754 | BM14: 0.0163 | BN14: 0.0208 | BO14: 0.1923 | BT14: 5 | BU14: 1.4786 | BV14: 612.426 | BW14: 0.0146 | BX14: 0.0057 | BY14: 0.0041 | BZ14: 0.007 | CD14: CA Urban Area | CE14: 2 | CF14: 0 | CG14: =43/1.10231 -> 39.00899021 | CH14: =8010/1.10231 -> 7266.558409 | CI14: =366414/1.10231 -> 332405.5846 | CJ14: =47341/1.10231 -> 42947.08385 | CK14: =2032/1.10231 -> 1843.401584 | CP14: 0 | CQ14: 125 | CR14: 150 | CS14: 350 | CW14: 0 | CX14: 1 | CY14: 1.024789994 | DD14: 0 | DE14: 1 | DF14: 1 | DK14: AMoth | DL14: 1.024390244 | DM14: 0.9503320629 | DN14: 1.022648084 | DO14: 0.9502478565 | DP14: -5.048265471 | DQ14: 12.81200477 | DR14: 1.368537764 | DS14: 0.736497545
S15: Intersection | U15: Intersect | V15: Remember to run model for both roads | Z15: 1 | AA15: 0.086 | AB15: 0.086 | AC15: 0.086 | AD15: 0.086 | AE15: 0.086 | AF15: 0.086 | AK15: 7 | AL15: 0.1293 | AM15: 0.2026 | AR15: Complaint of Pain (C) | AS15: =ROUND(160671/232777,4) -> 0.6902 | AT15: =ROUND(160671/232777,4) -> 0.6902 | AU15: =ROUND(160671/232777,4) -> 0.6902 | AV15: =ROUND(160671/232777,4) -> 0.6902 | AZ15: All Accidents | BA15: 0.2519 | BB15: 7.4952 | BC15: 3.8924 | BI15: 6 | BJ15: 6.0075 | BK15: 970.3326 | BL15: 0.4588 | BM15: 0.0154 | BN15: 0.0192 | BO15: 0.1772 | BT15: 6 | BU15: 1.4175 | BV15: 564.3722 | BW15: 0.015 | BX15: 0.0053 | BY15: 0.0038 | BZ15: 0.0067 | CD15: CA Rural Area | CE15: 3 | CF15: 0 | CG15: =43/1.10231 -> 39.00899021 | CH15: =8010/1.10231 -> 7266.558409 | CI15: =366414/1.10231 -> 332405.5846 | CJ15: =47341/1.10231 -> 42947.08385 | CK15: =2032/1.10231 -> 1843.401584 | CP15: 25 | CQ15: 150 | CR15: 200 | CS15: 500 | CW15: 25 | CX15: 1 | CY15: 1.024789994 | DD15: 0.002 | DE15: 0.9818181818 | DF15: 0.9878787879 | DK15: AMsev | DL15: 1.530973451 | DM15: 0.9385815808 | DN15: 1.533923304 | DO15: 0.9365252325 | DP15: 1.205596712 | DQ15: 1.379528678 | DR15: -0.3652658395 | DS15: 1
S16: Bypass | U16: Bypass | V16: Remember to run model for both roads | Z16: 2 | AA16: 0.172 | AB16: 0.172 | AC16: 0.172 | AD16: 0.172 | AE16: 0.172 | AF16: 0.172 | AK16: 8 | AL16: 0.122 | AM16: 0.1922 | BI16: 7 | BJ16: 5.6469 | BK16: 888.0077 | BL16: 0.4423 | BM16: 0.0145 | BN16: 0.0176 | BO16: 0.1621 | BT16: 7 | BU16: 1.3565 | BV16: 516.3183 | BW16: 0.0154 | BX16: 0.0049 | BY16: 0.0035 | BZ16: 0.0065 | CP16: 50 | CQ16: 175 | CR16: 250 | CS16: 675 | CW16: 50 | CX16: 1 | CY16: 1.024789994 | DD16: 0.004 | DE16: 0.9636363636 | DF16: 0.9757575758 | DK16: IMoth | DL16: 0.8763197587 | DM16: 1.178741497 | DN16: 0.9793459552 | DO16: 0.9556060017 | DP16: 0.5127996725 | DQ16: 0.148212878 | DR16: 0.05879892443 | DS16: 0.736497545
B17: Travel Time Parameters | I17: Highway Operations Parameters | S17: Queuing | U17: Queuing | V17: Add arrival rate & check departure rate in 1B | Z17: 3 | AA17: 0.258 | AB17: 0.258 | AC17: 0.258 | AD17: 0.258 | AE17: 0.258 | AF17: 0.258 | AK17: 9 | AL17: 0.1147 | AM17: 0.1818 | BI17: 8 | BJ17: 5.2864 | BK17: 805.6828 | BL17: 0.4257 | BM17: 0.0136 | BN17: 0.0159 | BO17: 0.147 | BT17: 8 | BU17: 1.2954 | BV17: 468.2645 | BW17: 0.0158 | BX17: 0.0045 | BY17: 0.0031 | BZ17: 0.0062 | CF17: CO2e Uprater | CG17: 0.02 | CH17: increase in value per year | CP17: 75 | CQ17: 200 | CR17: 300 | CS17: 750 | CW17: 75 | CX17: 1 | CY17: 1.024789994 | DD17: 0.006 | DE17: 0.9454545455 | DF17: 0.9636363636 | DK17: IMsev | DL17: 1.006389776 | DM17: 0.9724862862 | DN17: 1.009584665 | DO17: 0.9461055622 | DP17: 0.2957044886 | DQ17: 0.3126114503 | DR17: 0.3020072069 | DS17: 1
E18: Value | F18: Units | M18: Value | N18: Units | S18: Pavement | U18: Pavement | V18: Enter pavement condition in section 1B | Z18: 4 | AA18: 0.341 | AB18: 0.341 | AC18: 0.341 | AD18: 0.341 | AE18: 0.341 | AF18: 0.341 | AK18: 10 | AL18: 0.1074 | AM18: 0.1714 | AQ18: Source: 2009 SWITRS Annual Report, Table 8C | AY18: Source: USDOT,Transportation Statistics Annual Report, Table 2-33, | BI18: 9 | BJ18: 4.9258 | BK18: 723.3579 | BL18: 0.4092 | BM18: 0.0127 | BN18: 0.0143 | BO18: 0.1319 | BT18: 9 | BU18: 1.2344 | BV18: 420.2106 | BW18: 0.0162 | BX18: 0.0041 | BY18: 0.0028 | BZ18: 0.006 | CP18: 100 | CQ18: 275 | CR18: 400 | CS18: 750 | CW18: 100 | CX18: 1 | CY18: 1.024789994 | DD18: 0.008 | DE18: 0.9272727273 | DF18: 0.9515151515 | DK18: NoAdj | DL18: 1 | DM18: 1 | DN18: 1 | DO18: 1 | DP18: 0 | DQ18: 0 | DR18: 0 | DS18: 1
C19: Statewide Average Hourly Wage | E19: =24.39*(114.5/111.5)*ValueUpdate -> 26.39107958 | F19: $/hr | H19: 3 | J19: Maximum V/C Ratio | M19: 1.56 | N19: - | Q19: 15 | Z19: 5 | AA19: 0.41 | AB19: 0.41 | AC19: 0.41 | AD19: 0.41 | AE19: 0.41 | AF19: 0.41 | AK19: 11 | AL19: 0.1025 | AM19: 0.1631 | AZ19: 2002 to 2008 average | BI19: 10 | BJ19: 4.5653 | BK19: 641.033 | BL19: 0.3927 | BM19: 0.0118 | BN19: 0.0127 | BO19: 0.1167 | BT19: 10 | BU19: 1.1734 | BV19: 372.1568 | BW19: 0.0165 | BX19: 0.0037 | BY19: 0.0025 | BZ19: 0.0058 | CP19: 125 | CQ19: 325 | CR19: 475 | CS19: 750 | CW19: 125 | CX19: 1 | CY19: 1.024789994 | DD19: 0.01 | DE19: 0.9090909091 | DF19: 0.9393939394 | DK19: ORoth | DL19: =1/1.025 -> 0.9756097561 | DM19: =1/0.967507287790243 -> 1.033583946 | DN19: 1 | DO19: 1 | DP19: -0.07356647791 | DQ19: -0.03071615219 | DR19: -0.0696029926 | DU19: 18
S20: Rail or Transit Cap Expansion | V20: Please select a type of rail or transit project | Z20: 6 | AA20: 0.473 | AB20: 0.473 | AC20: 0.473 | AD20: 0.473 | AE20: 0.473 | AF20: 0.473 | AK20: 12 | AL20: 0.0977 | AM20: 0.1548 | BI20: 11 | BJ20: 4.4451 | BK20: 613.5914 | BL20: 0.3871 | BM20: 0.0115 | BN20: 0.0121 | BO20: 0.1117 | BT20: 11 | BU20: 1.153 | BV20: 356.1388 | BW20: 0.0167 | BX20: 0.0035 | BY20: 0.0024 | BZ20: 0.0057 | CC20: Sources: McCubbin and Delucchi, 1996 for emissions other than CO2e | CP20: 150 | CQ20: 400 | CR20: 575 | CS20: 750 | CW20: 150 | CX20: 1 | CY20: 1.012836575 | DD20: 0.012 | DE20: 0.8909090909 | DF20: 0.9272727273 | DK20: ORsev | DL20: =1/1.05014749262537 -> 0.952247191 | DM20: =1/0.972697289554735 -> 1.028069072 | DN20: 1 | DO20: 1 | DP20: -0.001481505335 | DQ20: -0.001323833569 | DR20: 5.67437418 | DU20: 18
C21: Heavy and Light Truck Drivers | J21: Percent ADT in Peak Period | N21: % | S21: Passenger Rail | U21: PassRail | V21: Enter data in both sections 1B & 1E | Z21: 7 | AA21: 0.535 | AB21: 0.535 | AC21: 0.535 | AD21: 0.535 | AE21: 0.535 | AF21: 0.535 | AK21: 13 | AL21: 0.0929 | AM21: 0.1466 | BI21: 12 | BJ21: 4.3249 | BK21: 586.1497 | BL21: 0.3816 | BM21: 0.0112 | BN21: 0.0116 | BO21: 0.1067 | BT21: 12 | BU21: 1.1327 | BV21: 340.1208 | BW21: 0.0168 | BX21: 0.0034 | BY21: 0.0023 | BZ21: 0.0056 | CD21: Interagency Working Group on Social Cost of Carbon, United States Government, 2010 for CO2e | CP21: 175 | CQ21: 500 | CR21: 700 | CS21: 750 | CW21: 175 | CX21: 1 | CY21: 1 | DD21: 0.014 | DE21: 0.8727272727 | DF21: 0.9151515152 | DK21: RMoth | DL21: 1 | DM21: 1 | DN21: 1.025 | DO21: 0.9675072878 | DP21: -0.07356647791 | DQ21: -0.03071615219 | DR21: -0.0696029926 | DS21: 1
D22: Average Hourly Wage | E22: =(20.03*115640+16.42*90750)/(115640+90750)*(114.5/111.5)*ValueUpdate -> 19.95580847 | F22: $/hr | H22: 3 | J22: Percent ADT in Average Peak Hour | N22: % | S22: Light-Rail (LRT) | U22: LRT | V22: Enter data in both sections 1B & 1E | Z22: 8 | AA22: 0.596 | AB22: 0.596 | AC22: 0.596 | AD22: 0.596 | AE22: 0.596 | AF22: 0.596 | AK22: 14 | AL22: 0.088 | AM22: 0.1383 | BI22: 13 | BJ22: 4.2047 | BK22: 558.7081 | BL22: 0.3761 | BM22: 0.0109 | BN22: 0.0111 | BO22: 0.1016 | BT22: 13 | BU22: 1.1123 | BV22: 324.1028 | BW22: 0.0169 | BX22: 0.0033 | BY22: 0.0022 | BZ22: 0.0055 | CP22: 200 | CQ22: 575 | CR22: 750 | CS22: 750 | CW22: 200 | CX22: 1 | CY22: 0.9800772741 | DD22: 0.016 | DE22: 0.8545454545 | DF22: 0.903030303 | DK22: RMsev | DL22: 1 | DM22: 1 | DN22: 1.050147493 | DO22: 0.9726972896 | DP22: -0.001481505335 | DQ22: -0.001323833569 | DR22: 5.67437418 | DS22: 1
D23: Benefits and Costs | E23: =WageTruck*(24.2/15.96-1)*ValueUpdate -> 10.85621382 | F23: $/hr | H23: 4 | S23: Bus | U23: Bus | V23: Enter data in both sections 1B & 1E | Z23: 9 | AA23: 0.656 | AB23: 0.656 | AC23: 0.656 | AD23: 0.656 | AE23: 0.656 | AF23: 0.656 | AK23: 15 | AL23: 0.0832 | AM23: 0.13 | AR23: NUMBER OF FATALITIES | AZ23: COST OF TRANSIT ACCIDENT EVENTS | BI23: 14 | BJ23: 4.0845 | BK23: 531.2664 | BL23: 0.3706 | BM23: 0.0105 | BN23: 0.0105 | BO23: 0.0966 | BT23: 14 | BU23: 1.092 | BV23: 308.0848 | BW23: 0.0171 | BX23: 0.0031 | BY23: 0.0021 | BZ23: 0.0054 | CP23: 225 | CQ23: 650 | CR23: 750 | CS23: 750 | CW23: 225 | CX23: 1 | CY23: 0.949382456 | DD23: 0.018 | DE23: 0.8363636364 | DF23: 0.8909090909 | DK23: TIoth | DL23: 1 | DM23: 1 | DN23: 1.015463918 | DO23: 0.9691308177 | DP23: -0.1102658587 | DQ23: -0.1187270477 | DR23: -0.3518002468 | DS23: 1
J24: Annualization Factor | M24: 250 | N24: days/yr | S24: Hwy-Rail Grade Crossing | U24: HwyRail | V24: Put hwy design in 1B, safety in 1C & crossing in 1D | Z24: 10 | AA24: 0.711 | AB24: 0.711 | AC24: 0.711 | AD24: 0.711 | AE24: 0.711 | AF24: 0.711 | AK24: 16 | AL24: 0.08 | AM24: 0.1247 | AR24: (events/accident) | AZ24: ($/event) | BI24: 15 | BJ24: 3.9643 | BK24: 503.8248 | BL24: 0.3651 | BM24: 0.0102 | BN24: 0.01 | BO24: 0.0916 | BT24: 15 | BU24: 1.0716 | BV24: 292.0668 | BW24: 0.0172 | BX24: 0.003 | BY24: 0.002 | BZ24: 0.0054 | CP24: 250 | CQ24: 750 | CR24: 750 | CS24: 750 | CW24: 250 | CX24: 1 | CY24: 0.9186876379 | DD24: 0.02 | DE24: 0.788961039 | DF24: 0.8787878788 | DK24: TIsev | DL24: 1 | DM24: 1 | DN24: 1.005899705 | DO24: 0.9718304881 | DP24: -0.391225726 | DQ24: -0.3916022882 | DR24: -0.3518002468 | DS24: 1
C25: Value of Time | Z25: 11 | AA25: 0.765 | AB25: 0.765 | AC25: 0.765 | AD25: 0.765 | AE25: 0.765 | AF25: 0.765 | AK25: 17 | AL25: 0.0767 | AM25: 0.1193 | BI25: 16 | BJ25: 3.8713 | BK25: 489.5571 | BL25: 0.3617 | BM25: 0.01 | BN25: 0.0097 | BO25: 0.0888 | BT25: 16 | BU25: 1.0475 | BV25: 283.7571 | BW25: 0.0171 | BX25: 0.0029 | BY25: 0.0019 | BZ25: 0.0053 | CD25: PASSENGER TRAIN EMISSIONS FACTORS | CP25: 275 | CQ25: 750 | CR25: 750 | CS25: 750 | CW25: 275 | CX25: 0.9913229167 | CY25: 0.8900681627 | DD25: 0.022 | DE25: 0.7474025974 | DF25: 0.8666666667
D26: Automobile | E26: 13.6 | F26: $/hr/per | H26: 5 | N26: Capacity | O26: Dep. Rate | S26: Hwy Operational Improvement | V26: Please select a type of op. improvement | Z26: 12 | AA26: 0.817 | AB26: 0.817 | AC26: 0.817 | AD26: 0.817 | AE26: 0.817 | AF26: 0.817 | AK26: 18 | AL26: 0.0735 | AM26: 0.1139 | AR26: Accident Type | AS26: Urban | AT26: Suburban | AU26: Rural | AV26: Average | AZ26: Event | BA26: Pass Train | BB26: Light Rail | BC26: Bus | BI26: 17 | BJ26: 3.7782 | BK26: 475.2894 | BL26: 0.3582 | BM26: 0.0097 | BN26: 0.0094 | BO26: 0.086 | BT26: 17 | BU26: 1.0233 | BV26: 275.4474 | BW26: 0.0171 | BX26: 0.0028 | BY26: 0.0018 | BZ26: 0.0052 | CD26: (g/train-mile) | CP26: 300 | CQ26: 750 | CR26: 750 | CS26: 750 | CW26: 300 | CX26: 0.9812613636 | CY26: 0.8617798183 | DD26: 0.024 | DE26: 0.7058441558 | DF26: 0.8545454545
D27: Truck | E27: 26.68 | F27: $/hr/veh | H27: 5 | L27: Alpha | M27: Beta | N27: (vphpl) | O27: (vphpl) | S27: Auxiliary Lane | U27: AuxLane | V27: Enter ramp design speed & on-ramp volume | Z27: 13 | AA27: 0.869 | AB27: 0.869 | AC27: 0.869 | AD27: 0.869 | AE27: 0.869 | AF27: 0.869 | AK27: 19 | AL27: 0.0702 | AM27: 0.1086 | AR27: Fatal Accident | AS27: 1.09 | AT27: 1.11 | AU27: 1.16 | AV27: 1.13 | AZ27: Fatality | BA27: =FatValue -> 9600000 | BB27: =FatValue -> 9600000 | BC27: =FatValue -> 9600000 | BI27: 18 | BJ27: 3.6851 | BK27: 461.0217 | BL27: 0.3548 | BM27: 0.0094 | BN27: 0.0091 | BO27: 0.0833 | BT27: 18 | BU27: 0.9991 | BV27: 267.1377 | BW27: 0.017 | BX27: 0.0027 | BY27: 0.0018 | BZ27: 0.0051 | CP27: 325 | CQ27: 750 | CR27: 750 | CS27: 750 | CW27: 325 | CX27: 0.9712839654 | CY27: 0.8342189143 | DD27: 0.026 | DE27: 0.6642857143 | DF27: 0.8424242424 | DJ27: Source: California Department of Transportation TMS Master Plan, 2003
D28: Auto & Truck Composite | E28: =ROUND((1.3*ValTimeAuto*0.91+ValTimeTruck*0.09)/5,2)*5 -> 18.5 | F28: $/hr/veh | H28: 6 | J28: Freeway | L28: 0.2 | M28: 10 | N28: 2000 | O28: 1800 | Q28: 15, 16 | S28: Freeway Connector | U28: FreeConn | V28: Check percent traffic in weave in section 1B | Z28: 14 | AA28: 0.899 | AB28: 0.899 | AC28: 0.899 | AD28: 0.899 | AE28: 0.899 | AF28: 0.899 | AK28: 20 | AL28: 0.067 | AM28: 0.1032 | AZ28: Injury | BA28: =ROUND((AV13*InjAValue+AV14*InjBValue)/SUM(AV13:AV14),-2) -> 175700 | BB28: =ROUND((AV13*InjAValue+AV14*InjBValue)/SUM(AV13:AV14),-2) -> 175700 | BC28: =ROUND((AV13*InjAValue+AV14*InjBValue)/SUM(AV13:AV14),-2) -> 175700 | BI28: 19 | BJ28: 3.592 | BK28: 446.754 | BL28: 0.3514 | BM28: 0.0092 | BN28: 0.0088 | BO28: 0.0805 | BT28: 19 | BU28: 0.975 | BV28: 258.828 | BW28: 0.017 | BX28: 0.0027 | BY28: 0.0017 | BZ28: 0.005 | CD28: Mode | CE28: Year | CF28: CO | CG28: CO2 | CH28: NOX | CI28: PM10 | CJ28: SOX | CK28: VOC | CP28: 350 | CQ28: 750 | CR28: 750 | CS28: 750 | CW28: 350 | CX28: 0.961478982 | CY28: 0.8081483762 | DD28: 0.028 | DE28: 0.6227272727 | DF28: 0.8166666667 | DK28: 18) Chaudhary and Messer, 2000
D29: Transit | E29: 13.6 | F29: $/hr/per | H29: 5 | J29: Expressway | L29: 0.2 | M29: 10 | N29: 2000 | O29: 1800 | Q29: 15, 16 | S29: HOV Connector | U29: HOVConn | V29: Check percent traffic in weave in section 1B | Z29: 15 | AA29: 0.927 | AB29: 0.927 | AC29: 0.927 | AD29: 0.927 | AE29: 0.927 | AF29: 0.927 | AK29: 21 | AL29: 0.0648 | AM29: 0.0997 | AZ29: Prop Damage | BA29: =ROUND(19686581/240,-2) -> 82000 | BB29: =ROUND(3392946/581,-2) -> 5800 | BC29: =ROUND(22513626/8055,-2) -> 2800 | BI29: 20 | BJ29: 3.499 | BK29: 432.4863 | BL29: 0.348 | BM29: 0.0089 | BN29: 0.0086 | BO29: 0.0777 | BT29: 20 | BU29: 0.9508 | BV29: 250.5183 | BW29: 0.0169 | BX29: 0.0026 | BY29: 0.0017 | BZ29: 0.005 | CD29: Passenger Train | CE29: 2002 | CF29: 45.67 | CH29: 583.58 | CI29: 62.02 | CK29: 19.73 | CP29: 375 | CQ29: 750 | CR29: 750 | CS29: 750 | CW29: 375 | CX29: 0.9516739986 | CY29: 0.782077838 | DD29: 0.03 | DE29: 0.5811688312 | DF29: 0.788961039
D30: Out-of-Vehicle Travel | E30: 2 | F30: times | H30: 5 | J30: Conventional Highway | L30: 0.05 | M30: 10 | N30: 800 | O30: 1400 | Q30: 16 | S30: HOV Drop Ramp | U30: HOVDrop | V30: Check percent traffic in weave in section 1B | Z30: 16 | AA30: 0.95 | AB30: 0.95 | AC30: 0.95 | AD30: 0.95 | AE30: 0.95 | AF30: 0.95 | AK30: 22 | AL30: 0.0626 | AM30: 0.0962 | AR30: NUMBER OF INJURIES | BI30: 21 | BJ30: 3.3767 | BK30: 422.8248 | BL30: 0.3446 | BM30: 0.0085 | BN30: 0.0084 | BO30: 0.0755 | BT30: 21 | BU30: 0.9082 | BV30: 244.9266 | BW30: 0.0166 | BX30: 0.0025 | BY30: 0.0016 | BZ30: 0.0048 | CE30: 2022 | CF30: 45.67 | CH30: 250.11 | CI30: 31.01 | CK30: 19.73 | CP30: 400 | CQ30: 750 | CR30: 750 | CS30: 750 | CW30: 400 | CX30: 0.9420483249 | CY30: 0.7576050955 | DD30: 0.032 | DE30: 0.5396103896 | DF30: 0.7612554113
D31: Incident-Related Travel | E31: 3 | F31: times | H31: 7 | J31: HOV Lanes | L31: 0.55 | M31: 8 | N31: 1600 | Q31: 17 | S31: Off-Ramp Widening | U31: OffRamp | V31: Check percent traffic in weave in section 1B | Z31: 17 | AA31: 0.967 | AB31: 0.967 | AC31: 0.967 | AD31: 0.967 | AE31: 0.967 | AF31: 0.967 | AK31: 23 | AL31: 0.0603 | AM31: 0.0926 | AR31: (events/accident) | BI31: 22 | BJ31: 3.2545 | BK31: 413.1634 | BL31: 0.3412 | BM31: 0.0081 | BN31: 0.0082 | BO31: 0.0734 | BT31: 22 | BU31: 0.8655 | BV31: 239.3349 | BW31: 0.0164 | BX31: 0.0024 | BY31: 0.0016 | BZ31: 0.0047 | CP31: 425 | CQ31: 750 | CR31: 750 | CS31: 750 | CW31: 425 | CX31: 0.9324692862 | CY31: 0.7335479087 | DD31: 0.034 | DE31: 0.4980519481 | DF31: 0.7335497835
D32: Travel Time Uprater | E32: 0.01 | F32: annual incr | S32: On-Ramp Widening | U32: OnRamp | V32: Enter on-ramp volume & metering strategy | Z32: 18 | AA32: 0.979 | AB32: 0.979 | AC32: 0.979 | AD32: 0.979 | AE32: 0.979 | AF32: 0.979 | AK32: 24 | AL32: 0.0581 | AM32: 0.0891 | AY32: Source: FTA, Transit Safety & Security Statistics, 2002 to 2007 average | BI32: 23 | BJ32: 3.1322 | BK32: 403.5019 | BL32: 0.3378 | BM32: 0.0077 | BN32: 0.008 | BO32: 0.0712 | BT32: 23 | BU32: 0.8229 | BV32: 233.7432 | BW32: 0.0161 | BX32: 0.0023 | BY32: 0.0016 | BZ32: 0.0046 | CP32: 450 | CQ32: 750 | CR32: 750 | CS32: 750 | CW32: 450 | CX32: 0.9228902475 | CY32: 0.709490722 | DD32: 0.036 | DE32: 0.475974026 | DF32: 0.7058441558
N33: Capacity | S33: HOV-2 to HOV-3 Conv | U33: HOV2to3 | V33: Check AVOs & trips in sections 1B & 2D | Z33: 19 | AA33: 0.989 | AB33: 0.989 | AC33: 0.989 | AD33: 0.989 | AE33: 0.989 | AF33: 0.989 | AK33: 25 | AL33: 0.0559 | AM33: 0.0856 | AR33: Accident Type | AS33: Urban | AT33: Suburban | AU33: Rural | AV33: Average | BI33: 24 | BJ33: 3.0099 | BK33: 393.8405 | BL33: 0.3344 | BM33: 0.0073 | BN33: 0.0078 | BO33: 0.069 | BT33: 24 | BU33: 0.7803 | BV33: 228.1515 | BW33: 0.0158 | BX33: 0.0023 | BY33: 0.0015 | BZ33: 0.0045 | CD33: LIGHT RAIL EMISSIONS FACTORS | DD33: 0.038 | DE33: 0.4733766234 | DF33: 0.6781385281 | DK33: TRANSIT TRAVEL TIME AND AGENCY COST SAVINGS
B34: Vehicle Operating Cost Parameters | J34: Non-HOV Lanes | L34: Alpha | M34: Beta | N34: (vphpl) | S34: HOT Lane Conversion | U34: HOTConv | V34: Check AVOs & trips in sections 1B & 2D | Z34: 20 | AA34: 0.995 | AB34: 0.995 | AC34: 0.995 | AD34: 0.995 | AE34: 0.995 | AF34: 0.995 | AK34: 26 | AL34: 0.0544 | AM34: 0.0832 | AR34: Fatal Accident | AS34: 0.84 | AT34: 1.02 | AU34: 1.26 | AV34: 1.06 | BI34: 25 | BJ34: 2.8877 | BK34: 384.179 | BL34: 0.331 | BM34: 0.0069 | BN34: 0.0076 | BO34: 0.0668 | BT34: 25 | BU34: 0.7376 | BV34: 222.5598 | BW34: 0.0156 | BX34: 0.0022 | BY34: 0.0015 | BZ34: 0.0044 | CD34: (g/veh-mile) | DD34: 0.04 | DE34: 0.4707792208 | DF34: 0.6504329004 | DK34: (percent savings)
K35: No Build | Z35: 21 | AA35: 0.997 | AB35: 0.997 | AC35: 0.997 | AD35: 0.997 | AE35: 0.997 | AF35: 0.997 | AK35: 27 | AL35: 0.0529 | AM35: 0.0809 | AR35: Injury Accident | AS35: 1.42 | AT35: 1.43 | AU35: 1.51 | AV35: 1.44 | BI35: 26 | BJ35: 2.857 | BK35: 376.0009 | BL35: 0.3247 | BM35: 0.0068 | BN35: 0.0074 | BO35: 0.0653 | BT35: 26 | BU35: 0.7382 | BV35: 217.8331 | BW35: 0.0158 | BX35: 0.0021 | BY35: 0.0015 | BZ35: 0.0043 | CO35: Source: Paterson, 1987 | CV35: Source: Botterill, 1996 and 1997 | DD35: 0.042 | DE35: 0.4681818182 | DF35: 0.6227272727
C36: Average Fuel Price | K36: Build | S36: Transp Mgmt Systems (TMS) | V36: Please select a type of TMS project | Z36: 22 | AA36: 0.998 | AB36: 0.998 | AC36: 0.998 | AD36: 0.998 | AE36: 0.998 | AF36: 0.998 | AK36: 28 | AL36: 0.0515 | AM36: 0.0785 | AZ36: COSTS OF TRANSIT ACCIDENTS | BI36: 27 | BJ36: 2.8263 | BK36: 367.8227 | BL36: 0.3184 | BM36: 0.0067 | BN36: 0.0073 | BO36: 0.0637 | BT36: 27 | BU36: 0.7388 | BV36: 213.1065 | BW36: 0.0161 | BX36: 0.0021 | BY36: 0.0014 | BZ36: 0.0043 | CD36: Mode | CE36: Year | CF36: CO | CG36: CO2 | CH36: NOX | CI36: PM10 | CJ36: SOX | CK36: VOC | DD36: 0.044 | DE36: 0.4655844156 | DF36: 0.595021645 | DN36: Travel | DO36: Agency Costs
D37: Automobile (regular unleaded) | E37: =AVERAGE(3.335,3.666)*ValueUpdate -> 3.688457797 | F37: $/gal | H37: 8 | S37: Ramp Metering | U37: RM | V37: Enter model data, if avail, in sections 2A & 2C | Z37: 23 | AA37: 0.999 | AB37: 0.999 | AC37: 0.999 | AD37: 0.999 | AE37: 0.999 | AF37: 0.999 | AK37: 29 | AL37: 0.05 | AM37: 0.0762 | AZ37: ($/million veh-mi) | BI37: 28 | BJ37: 2.7955 | BK37: 359.6446 | BL37: 0.312 | BM37: 0.0066 | BN37: 0.0071 | BO37: 0.0622 | BT37: 28 | BU37: 0.7394 | BV37: 208.3798 | BW37: 0.0163 | BX37: 0.0021 | BY37: 0.0014 | BZ37: 0.0043 | CD37: Light Rail | CE37: 2002 | CF37: =CF29/CK29*CK37 -> 0.1388849468 | CH37: 1.13 | CI37: 0.17 | CK37: 0.06 | DD37: 0.046 | DE37: 0.462987013 | DF37: 0.5673160173 | DK37: TMS Strategy | DN37: Time | DO37: Capital | DP37: O&M
D38: Truck (diesel) | E38: =AVERAGE(3.562,4.125)*ValueUpdate -> 4.049875031 | F38: $/gal | H38: 8 | S38: Ramp Metering Signal Coord | U38: AM | V38: Enter model data, if avail, in sections 2A & 2C | Z38: 24 | AA38: 1 | AB38: 1 | AC38: 1 | AD38: 1 | AE38: 1 | AF38: 1 | AK38: 30 | AL38: 0.0485 | AM38: 0.0738 | AR38: NUMBER OF VEHICLES INVOLVED | BI38: 29 | BJ38: 2.7648 | BK38: 351.4664 | BL38: 0.3057 | BM38: 0.0065 | BN38: 0.007 | BO38: 0.0606 | BT38: 29 | BU38: 0.74 | BV38: 203.6532 | BW38: 0.0165 | BX38: 0.002 | BY38: 0.0014 | BZ38: 0.0043 | CE38: 2022 | CF38: =CF30/CK30*CK38 -> 0.1388849468 | CH38: 1.14 | CI38: 0.17 | CK38: 0.06 | DD38: 0.048 | DE38: 0.4603896104 | DF38: 0.5396103896 | DK38: Transit Vehicle Location (AVL) | DN38: 0.15 | DO38: 0.02 | DP38: 0.08
I39: Sources: 15) Highway Capacity Manual, 16) NCHRP 387, 17) PeMS data | S39: Incident Management | U39: IM | V39: Enter model data, if avail, in sections 2A & 2C | AK39: 31 | AL39: 0.0475 | AM39: 0.0723 | AR39: (events/accident) | AZ39: Value | BA39: Pass Train | BB39: Light Rail | BC39: Bus | BI39: 30 | BJ39: 2.7341 | BK39: 343.2883 | BL39: 0.2994 | BM39: 0.0064 | BN39: 0.0068 | BO39: 0.0591 | BT39: 30 | BU39: 0.7406 | BV39: 198.9265 | BW39: 0.0168 | BX39: 0.002 | BY39: 0.0013 | BZ39: 0.0042 | CP39: FUEL CONSUMPTION | CW39: NON-FUEL COSTS | DD39: 0.05 | DE39: 0.4577922078 | DF39: 0.5119047619 | DK39: Transit Vehicle Signal Priority | DN39: 0.1 | DO39: - | DP39: -
C40: Sales and Fuel Taxes | S40: Traveler Information | U40: TI | V40: Enter model data, if avail, in sections 2A & 2C | AK40: 32 | AL40: 0.0465 | AM40: 0.0708 | AZ40: Cost | BA40: =ROUND(BA13*BA27+BA14*BA28+BA15*BA29,-2) -> 475800 | BB40: =ROUND(BB13*BB27+BB14*BB28+BB15*BB29,-2) -> 2502100 | BC40: =ROUND(BC13*BC27+BC14*BC28+BC15*BC29,-2) -> 1031500 | BI40: 31 | BJ40: 2.6804 | BK40: 339.2906 | BL40: 0.297 | BM40: 0.0063 | BN40: 0.0067 | BO40: 0.0578 | BT40: 31 | BU40: 0.7284 | BV40: 196.6413 | BW40: 0.017 | BX40: 0.002 | BY40: 0.0013 | BZ40: 0.0042 | CP40: (percent adjustment) | CW40: (percent adjustment) | DD40: 0.052 | DE40: 0.4551948052 | DF40: 0.4841991342 | DK40: Bus Rapid Transit (BRT) | DN40: 0.29 | DO40: - | DP40: -
D41: State Sales Tax (gasoline) | E41: 0.0225 | F41: % | H41: 9 | S41: Arterial Signal Management | U41: ASM | V41: Complete only sections 1A, 1E & 2C | Y41: Source: California Department of Transportation, 2000-2001 California Statewide Travel Survey | AK41: 33 | AL41: 0.0455 | AM41: 0.0693 | AR41: Accident Type | AS41: Urban | AT41: Suburban | AU41: Rural | AV41: Average | BI41: 32 | BJ41: 2.6266 | BK41: 335.2929 | BL41: 0.2946 | BM41: 0.0062 | BN41: 0.0066 | BO41: 0.0566 | BT41: 32 | BU41: 0.7162 | BV41: 194.356 | BW41: 0.0171 | BX41: 0.0019 | BY41: 0.0013 | BZ41: 0.0041 | CC41: Source: California Air Resources Board | DD41: 0.054 | DE41: 0.4525974026 | DF41: 0.475974026
D42: State Sales Tax (diesel) | E42: =7.25%+1.87% -> 0.0912 | F42: % | H42: 9 | S42: Transit Vehicle Location (AVL) | U42: AVL | V42: Enter transit agency costs in section 1D | Y42: Weekday Travel Report, June 2003 | AK42: 34 | AL42: 0.0445 | AM42: 0.0678 | AR42: Fatal Accident | AS42: 1.69 | AT42: 1.63 | AU42: 1.61 | AV42: 1.65 | BI42: 33 | BJ42: 2.5729 | BK42: 331.2952 | BL42: 0.2922 | BM42: 0.0061 | BN42: 0.0066 | BO42: 0.0553 | BT42: 33 | BU42: 0.704 | BV42: 192.0708 | BW42: 0.0173 | BX42: 0.0019 | BY42: 0.0013 | BZ42: 0.0041 | CP42: IRI | CQ42: Auto | CR42: Truck | CW42: IRI | CX42: Auto | CY42: Truck | DD42: 0.056 | DE42: 0.4525974026 | DF42: 0.4742424242
D43: Average Local Sales Tax | E43: 0.005 | F43: % | H43: 9 | S43: Transit Vehicle Signal Priority | U43: SigPriority | V43: Check travel time in section 1D | AK43: 35 | AL43: 0.0435 | AM43: 0.0663 | AR43: Injury Accident | AS43: 2.08 | AT43: 1.97 | AU43: 1.58 | AV43: 1.96 | AY43: Source: Combination of above two tables | BI43: 34 | BJ43: 2.5192 | BK43: 327.2975 | BL43: 0.2898 | BM43: 0.0061 | BN43: 0.0065 | BO43: 0.054 | BT43: 34 | BU43: 0.6918 | BV43: 189.7855 | BW43: 0.0175 | BX43: 0.0019 | BY43: 0.0013 | BZ43: 0.004 | CP43: 0 | CQ43: 0.9705221313 | CR43: 0.9607247245 | CW43: 0 | CX43: 1 | CY43: 1 | DD43: 0.058 | DE43: 0.4525974026 | DF43: 0.4725108225 | DJ43: Sources: FHWA ITS Deployment Analysis System (IDAS), California PATH
D44: Federal Fuel Excise Tax (gasoline) | E44: 0.184 | F44: $/gal | H44: 9 | S44: Bus Rapid Transit (BRT) | U44: BRT | V44: Enter free-flow bus lane speed in section 1B | AK44: 36 | AL44: 0.0429 | AM44: 0.0654 | AR44: PDO Accident | AS44: 2.03 | AT44: 1.94 | AU44: 1.62 | AV44: 1.95 | BI44: 35 | BJ44: 2.4655 | BK44: 323.2998 | BL44: 0.2874 | BM44: 0.006 | BN44: 0.0064 | BO44: 0.0528 | BT44: 35 | BU44: 0.6796 | BV44: 187.5003 | BW44: 0.0177 | BX44: 0.0019 | BY44: 0.0013 | BZ44: 0.0039 | CP44: 25 | CQ44: 0.9767907836 | CR44: 0.9653071759 | CW44: 25 | CX44: 1 | CY44: 1 | DD44: 0.06 | DE44: 0.4525974026 | DF44: 0.4707792208
D45: Federal Fuel Excise Tax (diesel) | E45: 0.244 | F45: $/gal | H45: 9 | AK45: 37 | AL45: 0.0423 | AM45: 0.0645 | BI45: 36 | BJ45: 2.4172 | BK45: 320.7442 | BL45: 0.2862 | BM45: 0.0059 | BN45: 0.0064 | BO45: 0.0518 | BT45: 36 | BU45: 0.6671 | BV45: 186.0478 | BW45: 0.0178 | BX45: 0.0018 | BY45: 0.0012 | BZ45: 0.0039 | CP45: 50 | CQ45: 0.9800018645 | CR45: 0.9703585008 | CW45: 50 | CX45: 1 | CY45: 1 | DD45: 0.062 | DE45: 0.4525974026 | DF45: 0.469047619
D46: State Fuel Excise Tax (gasoline) | E46: =0.18+0.173 -> 0.353 | F46: $/gal | H46: 9 | S46: TMS Lookup Code | U46: TMSLookup | AK46: 38 | AL46: 0.0417 | AM46: 0.0635 | BI46: 37 | BJ46: 2.369 | BK46: 318.1887 | BL46: 0.2849 | BM46: 0.0058 | BN46: 0.0063 | BO46: 0.0508 | BT46: 37 | BU46: 0.6547 | BV46: 184.5953 | BW46: 0.0179 | BX46: 0.0018 | BY46: 0.0012 | BZ46: 0.0038 | CP46: 75 | CQ46: 0.9823644562 | CR46: 0.9752574104 | CW46: 75 | CX46: 1 | CY46: 1 | DD46: 0.064 | DE46: 0.4525974026 | DF46: 0.4673160173
D47: State Fuel Excise Tax (diesel) | E47: 0.13 | F47: $/gal | H47: 9 | S47: User Modified Inputs | U47: UserAdjInputs | AK47: 39 | AL47: 0.0411 | AM47: 0.0626 | AR47: DISTRIBUTION OF ACCIDENT TYPES | AZ47: HIGHWAY-RAIL GRADE CROSSING INCIDENTS | BI47: 38 | BJ47: 2.3208 | BK47: 315.6331 | BL47: 0.2837 | BM47: 0.0058 | BN47: 0.0063 | BO47: 0.0499 | BT47: 38 | BU47: 0.6422 | BV47: 183.1428 | BW47: 0.018 | BX47: 0.0018 | BY47: 0.0012 | BZ47: 0.0038 | CP47: 100 | CQ47: 0.9845546635 | CR47: 0.9798965899 | CW47: 100 | CX47: 1 | CY47: 1 | DD47: 0.066 | DE47: 0.4525974026 | DF47: 0.4655844156
AK48: 40 | AL48: 0.0405 | AM48: 0.0617 | AR48: (percent of accidents) | AZ48: (units in table) | BI48: 39 | BJ48: 2.2725 | BK48: 313.0776 | BL48: 0.2824 | BM48: 0.0057 | BN48: 0.0062 | BO48: 0.0489 | BT48: 39 | BU48: 0.6298 | BV48: 181.6903 | BW48: 0.0182 | BX48: 0.0018 | BY48: 0.0012 | BZ48: 0.0037 | CP48: 125 | CQ48: 0.9899645771 | CR48: 0.9864425973 | CW48: 125 | CX48: 1 | CY48: 1 | DD48: 0.068 | DE48: 0.4525974026 | DF48: 0.4638528139
C49: Fuel Cost Per Gallon (Exclude Taxes) | AK49: 41 | AL49: 0.0402 | AM49: 0.0613 | BI49: 40 | BJ49: 2.2243 | BK49: 310.522 | BL49: 0.2812 | BM49: 0.0057 | BN49: 0.0062 | BO49: 0.0479 | BT49: 40 | BU49: 0.6173 | BV49: 180.2378 | BW49: 0.0183 | BX49: 0.0018 | BY49: 0.0012 | BZ49: 0.0037 | CP49: 150 | CQ49: 0.9952063993 | CR49: 0.9930872697 | CW49: 150 | CX49: 1.016534091 | CY49: 1.018371212 | DD49: 0.07 | DE49: 0.4525974026 | DF49: 0.4621212121
D50: Automobile | E50: 2.26 | F50: $/gal | AK50: 42 | AL50: 0.04 | AM50: 0.0609 | AR50: Accident Type | AS50: Urban | AT50: Suburban | AU50: Rural | AV50: Average | AZ50: Value | BA50: Incident | BB50: Fatality | BC50: Injury | BI50: 41 | BJ50: 2.1949 | BK50: 308.645 | BL50: 0.2809 | BM50: 0.0056 | BN50: 0.0061 | BO50: 0.0473 | BT50: 41 | BU50: 0.6111 | BV50: 179.168 | BW50: 0.0185 | BX50: 0.0018 | BY50: 0.0012 | BZ50: 0.0036 | CP50: 175 | CQ50: 1 | CR50: 1 | CW50: 175 | CX50: 1.034289773 | CY50: 1.038099747 | DD50: 0.072 | DE50: 0.4525974026 | DF50: 0.4603896104
D51: Truck | E51: 2.6 | F51: $/gal | AK51: 43 | AL51: 0.0397 | AM51: 0.0604 | AR51: Fatal Accident | AS51: =1669/334368 -> 0.004991506364 | AT51: =504/68547 -> 0.007352619371 | AU51: =1914/90640 -> 0.02111650485 | AV51: =4087/493555 -> 0.008280738722 | AZ51: Total Events | BA51: 1500 | BB51: 332 | BC51: 608 | BI51: 42 | BJ51: 2.1655 | BK51: 306.7679 | BL51: 0.2806 | BM51: 0.0056 | BN51: 0.0061 | BO51: 0.0466 | BT51: 42 | BU51: 0.6048 | BV51: 178.0983 | BW51: 0.0187 | BX51: 0.0017 | BY51: 0.0012 | BZ51: 0.0036 | CP51: 200 | CQ51: 1.005311092 | CR51: 1.007420738 | CW51: 200 | CX51: 1.052045455 | CY51: 1.057828283 | DD51: 0.074 | DE51: 0.4525974026 | DF51: 0.4586580087
AK52: 44 | AL52: 0.0394 | AM52: 0.06 | AR52: Injury Accident | AS52: =107277/334368 -> 0.3208351278 | AT52: =22551/68547 -> 0.3289859512 | AU52: =34364/90640 -> 0.3791262136 | AV52: =164192/493555 -> 0.3326721439 | AZ52: Avg per Incident | BB52: =ROUND(BB51/BA51,4) -> 0.2213 | BC52: =ROUND(BC51/BA51,4) -> 0.4053 | BI52: 43 | BJ52: 2.1361 | BK52: 304.8909 | BL52: 0.2803 | BM52: 0.0056 | BN52: 0.006 | BO52: 0.046 | BT52: 43 | BU52: 0.5986 | BV52: 177.0285 | BW52: 0.0189 | BX52: 0.0017 | BY52: 0.0012 | BZ52: 0.0036 | CP52: 225 | CQ52: 1.012385023 | CR52: 1.016572008 | CW52: 225 | CX52: 1.069801136 | CY52: 1.077556818 | DD52: 0.076 | DE52: 0.4525974026 | DF52: 0.4569264069
C53: Non-Fuel Cost Per Mile | AK53: 45 | AL53: 0.0391 | AM53: 0.0596 | AR53: PDO Accident | AS53: =225422/334368 -> 0.6741733659 | AT53: =45492/68547 -> 0.6636614294 | AU53: =54362/90640 -> 0.5997572816 | AV53: =325276/493555 -> 0.6590471173 | AZ53: Cost per Event | BB53: =BA27 -> 9600000 | BC53: =BA28 -> 175700 | BI53: 44 | BJ53: 2.1067 | BK53: 303.0138 | BL53: 0.2799 | BM53: 0.0055 | BN53: 0.006 | BO53: 0.0453 | BT53: 44 | BU53: 0.5923 | BV53: 175.9588 | BW53: 0.0191 | BX53: 0.0017 | BY53: 0.0012 | BZ53: 0.0036 | CP53: 250 | CQ53: 1.019458954 | CR53: 1.025723278 | CW53: 250 | CX53: 1.087556818 | CY53: 1.097285354 | DD53: 0.078 | DE53: 0.4525974026 | DF53: 0.4551948052
D54: Automobile | E54: 0.404 | F54: $/mi | H54: 10 | AK54: 46 | AL54: 0.0391 | AM54: 0.0596 | BI54: 45 | BJ54: 2.0773 | BK54: 301.1368 | BL54: 0.2796 | BM54: 0.0055 | BN54: 0.006 | BO54: 0.0447 | BT54: 45 | BU54: 0.586 | BV54: 174.889 | BW54: 0.0193 | BX54: 0.0017 | BY54: 0.0012 | BZ54: 0.0035 | CP54: 275 | CQ54: 1.026641431 | CR54: 1.036037349 | CW54: 275 | CX54: 1.1053125 | CY54: 1.117013889 | DD54: 0.08 | DE54: 0.4525974026 | DF54: 0.4534632035
D55: Truck | E55: 0.417 | F55: $/mi | H55: 11 | AK55: 47 | AL55: 0.0391 | AM55: 0.0596 | BI55: 46 | BJ55: 2.0676 | BK55: 299.8229 | BL55: 0.2805 | BM55: 0.0055 | BN55: 0.0059 | BO55: 0.0444 | BT55: 46 | BU55: 0.5868 | BV55: 174.1349 | BW55: 0.0196 | BX55: 0.0017 | BY55: 0.0012 | BZ55: 0.0035 | CP55: 300 | CQ55: 1.033865169 | CR55: 1.046793436 | CW55: 300 | CX55: 1.123068182 | CY55: 1.136742424
AK56: 48 | AL56: 0.0391 | AM56: 0.0596 | AQ56: Source: California Department of Transportation,TASAS Unit, 2007 to 2009 average | AY56: Source: FRA, Office of Safety Analysis, 5.11 - Hwy/Rail Incidents Summary | BI56: 47 | BJ56: 2.0578 | BK56: 298.509 | BL56: 0.2814 | BM56: 0.0055 | BN56: 0.0059 | BO56: 0.044 | BT56: 47 | BU56: 0.5876 | BV56: 173.3807 | BW56: 0.02 | BX56: 0.0017 | BY56: 0.0012 | BZ56: 0.0036 | CP56: 325 | CQ56: 1.041088907 | CR56: 1.057549522 | CW56: 325 | CX56: 1.140823864 | CY56: 1.15647096
C57: Idling Speed for Op. Costs and Emissions | E57: 5 | F57: mph | AK57: 49 | AL57: 0.0391 | AM57: 0.0596 | AZ57: Tables, California, Jan 2001 to Dec 2010 | BI57: 48 | BJ57: 2.0481 | BK57: 297.1951 | BL57: 0.2823 | BM57: 0.0055 | BN57: 0.0059 | BO57: 0.0437 | BT57: 48 | BU57: 0.5884 | BV57: 172.6266 | BW57: 0.0203 | BX57: 0.0017 | BY57: 0.0012 | BZ57: 0.0036 | CP57: 350 | CQ57: 1.050072248 | CR57: 1.070254114 | CW57: 350 | CX57: 1.158579545 | CY57: 1.176199495 | DC57: Source: Fitzpatrick, Brewer, and Venglar, 2003
AK58: 50 | AL58: 0.039 | AM58: 0.0596 | BI58: 49 | BJ58: 2.0383 | BK58: 295.8812 | BL58: 0.2831 | BM58: 0.0055 | BN58: 0.0059 | BO58: 0.0434 | BT58: 49 | BU58: 0.5892 | BV58: 171.8724 | BW58: 0.0207 | BX58: 0.0017 | BY58: 0.0012 | BZ58: 0.0036 | CP58: 375 | CQ58: 1.060826084 | CR58: 1.084919274 | CW58: 375 | CX58: 1.176335227 | CY58: 1.19592803
B59: Accident Cost Parameters | AK59: 51 | AL59: 0.0393 | AM59: 0.06 | BI59: 50 | BJ59: 2.0286 | BK59: 294.5673 | BL59: 0.284 | BM59: 0.0055 | BN59: 0.0058 | BO59: 0.0431 | BT59: 50 | BU59: 0.59 | BV59: 171.1183 | BW59: 0.021 | BX59: 0.0017 | BY59: 0.0011 | BZ59: 0.0036 | CP59: 400 | CQ59: 1.07157992 | CR59: 1.099584434 | CW59: 400 | CX59: 1.194090909 | CY59: 1.215656566
AK60: 52 | AL60: 0.0396 | AM60: 0.0604 | BI60: 51 | BJ60: 2.0289 | BK60: 293.7869 | BL60: 0.2852 | BM60: 0.0055 | BN60: 0.0058 | BO60: 0.0429 | BT60: 51 | BU60: 0.5939 | BV60: 170.6728 | BW60: 0.0214 | BX60: 0.0017 | BY60: 0.0011 | BZ60: 0.0036 | CP60: 425 | CQ60: 1.082333756 | CR60: 1.114249594 | CW60: 425 | CX60: 1.211846591 | CY60: 1.235385101
C61: Cost of a Fatality | E61: 9600000 | F61: $/event | H61: 12 | AK61: 53 | AL61: 0.0399 | AM61: 0.0608 | AR61: COST OF HIGHWAY ACCIDENTS | AZ61: PASSING LANE ACCIDENT REDUCTION FACTORS | BI61: 52 | BJ61: 2.0292 | BK61: 293.0066 | BL61: 0.2864 | BM61: 0.0056 | BN61: 0.0058 | BO61: 0.0427 | BT61: 52 | BU61: 0.5977 | BV61: 170.2273 | BW61: 0.0218 | BX61: 0.0017 | BY61: 0.0011 | BZ61: 0.0037 | CP61: 450 | CQ61: 1.093087592 | CR61: 1.128914753 | CW61: 450 | CX61: 1.229602273 | CY61: 1.255113636
AK62: 54 | AL62: 0.0401 | AM62: 0.0612 | AR62: ($/accident) | AZ62: (rate with passing lane/rate without passing lane) | BI62: 53 | BJ62: 2.0295 | BK62: 292.2262 | BL62: 0.2876 | BM62: 0.0056 | BN62: 0.0058 | BO62: 0.0425 | BT62: 53 | BU62: 0.6015 | BV62: 169.7818 | BW62: 0.0222 | BX62: 0.0017 | BY62: 0.0011 | BZ62: 0.0037
C63: Cost of an Injury | AK63: 55 | AL63: 0.0404 | AM63: 0.0617 | BI63: 54 | BJ63: 2.0298 | BK63: 291.4459 | BL63: 0.2888 | BM63: 0.0056 | BN63: 0.0058 | BO63: 0.0423 | BT63: 54 | BU63: 0.6053 | BV63: 169.3363 | BW63: 0.0226 | BX63: 0.0017 | BY63: 0.0011 | BZ63: 0.0037
D64: Level A (Severe) | E64: 459120 | F64: $/event | H64: 12 | AK64: 56 | AL64: 0.041 | AM64: 0.0626 | AR64: Accident Type | AS64: Urban | AT64: Suburban | AU64: Rural | AV64: Average | AZ64: Minimum ADT | BA64: Fatality | BB64: Injury | BC64: PDO | BI64: 55 | BJ64: 2.0302 | BK64: 290.6655 | BL64: 0.2901 | BM64: 0.0056 | BN64: 0.0058 | BO64: 0.0422 | BT64: 55 | BU64: 0.6091 | BV64: 168.8908 | BW64: 0.023 | BX64: 0.0017 | BY64: 0.0011 | BZ64: 0.0037 | CO64: Source: Texas Transportation Institute, 1994 | CV64: Source: ARRB Research Board TR VOC Model
D65: Level B (Moderate) | E65: 125050 | F65: $/event | H65: 12 | AK65: 57 | AL65: 0.0416 | AM65: 0.0635 | AR65: Fatal Accident | AS65: =ROUND(FatValue*AS27+(InjAValue*AS$13+InjBValue*AS$14+InjCValue*AS$15)*AS34+NoInjValue*AS42,-5) -> 10600000 | AT65: =ROUND(FatValue*AT27+(InjAValue*AT$13+InjBValue*AT$14+InjCValue*AT$15)*AT34+NoInjValue*AT42,-5) -> 10800000 | AU65: =ROUND(FatValue*AU27+(InjAValue*AU$13+InjBValue*AU$14+InjCValue*AU$15)*AU34+NoInjValue*AU42,-5) -> 11300000 | AV65: =ROUND(FatValue*AV27+(InjAValue*AV$13+InjBValue*AV$14+InjCValue*AV$15)*AV34+NoInjValue*AV42,-5) -> 11000000 | AZ65: 0 | BA65: 0.25 | BB65: 0.694214876 | BC65: 0.9264270613 | BI65: 56 | BJ65: 2.0403 | BK65: 290.3664 | BL65: 0.2917 | BM65: 0.0056 | BN65: 0.0058 | BO65: 0.0421 | BT65: 56 | BU65: 0.616 | BV65: 168.7238 | BW65: 0.0235 | BX65: 0.0017 | BY65: 0.0011 | BZ65: 0.0038
D66: Level C (Minor) | E66: 63854 | F66: $/event | H66: 12 | AK66: 58 | AL66: 0.0422 | AM66: 0.0644 | AR66: Injury Accident | AS66: =ROUND((InjAValue*AS$13+InjBValue*AS$14+InjCValue*AS$15)*AS35+NoInjValue*AS43,-2) -> 144300 | AT66: =ROUND((InjAValue*AT$13+InjBValue*AT$14+InjCValue*AT$15)*AT35+NoInjValue*AT43,-2) -> 145000 | AU66: =ROUND((InjAValue*AU$13+InjBValue*AU$14+InjCValue*AU$15)*AU35+NoInjValue*AU43,-2) -> 152100 | AV66: =ROUND((InjAValue*AV$13+InjBValue*AV$14+InjCValue*AV$15)*AV35+NoInjValue*AV43,-2) -> 146000 | AZ66: 5000 | BA66: 0.1923076923 | BB66: 0.8026845638 | BC66: 0.964821521 | BI66: 57 | BJ66: 2.0504 | BK66: 290.0673 | BL66: 0.2933 | BM66: 0.0056 | BN66: 0.0058 | BO66: 0.0421 | BT66: 57 | BU66: 0.623 | BV66: 168.5568 | BW66: 0.0239 | BX66: 0.0017 | BY66: 0.0011 | BZ66: 0.0038
AK67: 59 | AL67: 0.0428 | AM67: 0.0653 | AR67: PDO Accident | AS67: =ROUND(NoInjValue*AS44*2,-2) -> 8500 | AT67: =ROUND(NoInjValue*AT44*2,-2) -> 8100 | AU67: =ROUND(NoInjValue*AU44*2,-2) -> 6800 | AV67: =ROUND(NoInjValue*AV44*2,-2) -> 8200 | AZ67: 10000 | BA67: 0.84 | BB67: 0.5770363101 | BC67: 0.9775583483 | BI67: 58 | BJ67: 2.0605 | BK67: 289.7682 | BL67: 0.2949 | BM67: 0.0056 | BN67: 0.0057 | BO67: 0.042 | BT67: 58 | BU67: 0.6299 | BV67: 168.3898 | BW67: 0.0244 | BX67: 0.0017 | BY67: 0.0011 | BZ67: 0.0039
C68: Cost of Property Damage | E68: =4198/2 -> 2099 | F68: $/event | H68: 12 | AK68: 60 | AL68: 0.0433 | AM68: 0.0662 | AR68: All Types | AS68: =ROUND(AS51*AS65+AS52*AS66+AS53*AS67,-2) -> 104900 | AT68: =ROUND(AT51*AT65+AT52*AT66+AT53*AT67,-2) -> 132500 | AU68: =ROUND(AU51*AU65+AU52*AU66+AU53*AU67,-2) -> 300400 | AV68: =ROUND(AV51*AV65+AV52*AV66+AV53*AV67,-2) -> 145100 | BI68: 59 | BJ68: 2.0706 | BK68: 289.4691 | BL68: 0.2965 | BM68: 0.0057 | BN68: 0.0057 | BO68: 0.042 | BT68: 59 | BU68: 0.6369 | BV68: 168.2228 | BW68: 0.0249 | BX68: 0.0017 | BY68: 0.0011 | BZ68: 0.0039
AK69: 61 | AL69: 0.0443 | AM69: 0.0677 | BI69: 60 | BJ69: 2.0807 | BK69: 289.17 | BL69: 0.2981 | BM69: 0.0057 | BN69: 0.0057 | BO69: 0.0419 | BT69: 60 | BU69: 0.6438 | BV69: 168.0558 | BW69: 0.0253 | BX69: 0.0017 | BY69: 0.0011 | BZ69: 0.0039
C70: Cost of Highway Accident | AK70: 62 | AL70: 0.0453 | AM70: 0.0692 | BI70: 61 | BJ70: 2.1038 | BK70: 289.5117 | BL70: 0.3008 | BM70: 0.0057 | BN70: 0.0057 | BO70: 0.0421 | BT70: 61 | BU70: 0.6562 | BV70: 168.2599 | BW70: 0.0262 | BX70: 0.0017 | BY70: 0.0011 | BZ70: 0.004
D71: Fatal Accident | E71: =IF(ProjLoc=3,HwyFatCostR,HwyFatCostU) -> 10600000 | F71: $/accident | AK71: 63 | AL71: 0.0462 | AM71: 0.0708 | AQ71: Source: Combination of above four tables | AY71: Source: Taylor and Jain, 1991 | BI71: 62 | BJ71: 2.1269 | BK71: 289.8533 | BL71: 0.3035 | BM71: 0.0057 | BN71: 0.0057 | BO71: 0.0424 | BT71: 62 | BU71: 0.6686 | BV71: 168.4641 | BW71: 0.027 | BX71: 0.0018 | BY71: 0.0011 | BZ71: 0.0041
D72: Injury Accident | E72: =IF(ProjLoc=3,HwyInjCostR,HwyInjCostU) -> 144300 | F72: $/accident | AK72: 64 | AL72: 0.0472 | AM72: 0.0723 | BI72: 63 | BJ72: 2.1501 | BK72: 290.195 | BL72: 0.3062 | BM72: 0.0058 | BN72: 0.0058 | BO72: 0.0426 | BT72: 63 | BU72: 0.681 | BV72: 168.6682 | BW72: 0.0279 | BX72: 0.0018 | BY72: 0.0011 | BZ72: 0.0042
D73: PDO Accident | E73: =IF(ProjLoc=3,HwyPDOCostR,HwyPDOCostU) -> 8500 | F73: $/accident | AK73: 65 | AL73: 0.0482 | AM73: 0.0738 | BI73: 64 | BJ73: 2.1732 | BK73: 290.5366 | BL73: 0.3089 | BM73: 0.0058 | BN73: 0.0058 | BO73: 0.0429 | BT73: 64 | BU73: 0.6934 | BV73: 168.8724 | BW73: 0.0287 | BX73: 0.0018 | BY73: 0.0011 | BZ73: 0.0043
D74: Average Cost | E74: =IF(ProjLoc=3,AvgAccCostR,AvgAccCostU) -> 104900 | F74: $/accident | AK74: 66 | AL74: 0.0488 | AM74: 0.0752 | BI74: 65 | BJ74: 2.1963 | BK74: 290.8783 | BL74: 0.3116 | BM74: 0.0059 | BN74: 0.0058 | BO74: 0.0431 | BT74: 65 | BU74: 0.7059 | BV74: 169.0765 | BW74: 0.0296 | BX74: 0.0018 | BY74: 0.0011 | BZ74: 0.0044
AK75: 67 | AL75: 0.0495 | AM75: 0.0767 | BI75: 66 | BJ75: 2.253 | BK75: 292.6794 | BL75: 0.3174 | BM75: 0.006 | BN75: 0.0058 | BO75: 0.044 | BT75: 66 | BU75: 0.7331 | BV75: 170.1274 | BW75: 0.0314 | BX75: 0.0018 | BY75: 0.0011 | BZ75: 0.0046
C76: Statewide Highway Accident Rates | AK76: 68 | AL76: 0.0502 | AM76: 0.0781 | BI76: 67 | BJ76: 2.3096 | BK76: 294.4805 | BL76: 0.3232 | BM76: 0.0061 | BN76: 0.0058 | BO76: 0.0449 | BT76: 67 | BU76: 0.7603 | BV76: 171.1783 | BW76: 0.0333 | BX76: 0.0018 | BY76: 0.0011 | BZ76: 0.0048
D77: Fatal Accident | E77: =ROUND(1159/176460.8,3) -> 0.007 | F77: per mil veh-mi | H77: 13 | AK77: 69 | AL77: 0.0509 | AM77: 0.0796 | BI77: 68 | BJ77: 2.3663 | BK77: 296.2816 | BL77: 0.3289 | BM77: 0.0061 | BN77: 0.0059 | BO77: 0.0458 | BT77: 68 | BU77: 0.7876 | BV77: 172.2292 | BW77: 0.0351 | BX77: 0.0019 | BY77: 0.0012 | BZ77: 0.005
D78: Injury Accident | E78: =ROUND(47673/176460.8,2) -> 0.27 | F78: per mil veh-mi | H78: 13 | AK78: 70 | AL78: 0.0515 | AM78: 0.081 | BI78: 69 | BJ78: 2.423 | BK78: 298.0827 | BL78: 0.3347 | BM78: 0.0062 | BN78: 0.0059 | BO78: 0.0468 | BT78: 69 | BU78: 0.8148 | BV78: 173.2801 | BW78: 0.037 | BX78: 0.0019 | BY78: 0.0012 | BZ78: 0.0053
D79: PDO Accident | E79: =ROUND(93389/176460.8,2) -> 0.53 | F79: per mil veh-mi | H79: 13 | AK79: 71 | AL79: 0.0516 | AM79: 0.0821 | BI79: 70 | BJ79: 2.4797 | BK79: 299.8838 | BL79: 0.3405 | BM79: 0.0063 | BN79: 0.0059 | BO79: 0.0477 | BT79: 70 | BU79: 0.842 | BV79: 174.331 | BW79: 0.0389 | BX79: 0.0019 | BY79: 0.0012 | BZ79: 0.0055
D80: Non-Freeway | E80: 1.05 | F80: per mil veh-mi | H80: 13 | AK80: 72 | AL80: 0.0516 | AM80: 0.0831 | BI80: 71 | BJ80: 2.6378 | BK80: 303.1393 | BL80: 0.3486 | BM80: 0.0066 | BN80: 0.006 | BO80: 0.0493 | BT80: 71 | BU80: 0.9082 | BV80: 176.2279 | BW80: 0.0416 | BX80: 0.002 | BY80: 0.0012 | BZ80: 0.0058
AK81: 73 | AL81: 0.0516 | AM81: 0.0842 | BI81: 72 | BJ81: 2.796 | BK81: 306.3949 | BL81: 0.3567 | BM81: 0.0068 | BN81: 0.0061 | BO81: 0.0509 | BT81: 72 | BU81: 0.9744 | BV81: 178.1248 | BW81: 0.0443 | BX81: 0.0021 | BY81: 0.0012 | BZ81: 0.0062
AK82: 74 | AL82: 0.0517 | AM82: 0.0854 | BI82: 73 | BJ82: 2.9541 | BK82: 309.6504 | BL82: 0.3648 | BM82: 0.007 | BN82: 0.0061 | BO82: 0.0526 | BT82: 73 | BU82: 1.0406 | BV82: 180.0217 | BW82: 0.047 | BX82: 0.0021 | BY82: 0.0012 | BZ82: 0.0065
B83: Sources: 1) Office of Management and Budget (OMB), 2) Review of OMB and State | AK83: 75 | AL83: 0.0517 | AM83: 0.0865 | BI83: 74 | BJ83: 3.1122 | BK83: 312.906 | BL83: 0.373 | BM83: 0.0072 | BN83: 0.0062 | BO83: 0.0542 | BT83: 74 | BU83: 1.1068 | BV83: 181.9186 | BW83: 0.0498 | BX83: 0.0022 | BY83: 0.0012 | BZ83: 0.0069
B84: Treasurer's Office data, 3) Bureau of Labor Statistics (BLS) OES, 4) BLS Employment | AK84: 76 | AL84: 0.0518 | AM84: 0.0882 | BI84: 75 | BJ84: 3.2703 | BK84: 316.1615 | BL84: 0.3811 | BM84: 0.0075 | BN84: 0.0063 | BO84: 0.0559 | BT84: 75 | BU84: 1.173 | BV84: 183.8155 | BW84: 0.0525 | BX84: 0.0023 | BY84: 0.0012 | BZ84: 0.0072
B85: Cost Index, 5) USDOT Department Guidance, 6) California Department of Transportation | AK85: 77 | AL85: 0.0518 | AM85: 0.09 | BI85: 76 | BJ85: 3.2703 | BK85: 316.1615 | BL85: 0.3811 | BM85: 0.0075 | BN85: 0.0063 | BO85: 0.0559 | BT85: 76 | BU85: 1.173 | BV85: 183.8155 | BW85: 0.0525 | BX85: 0.0023 | BY85: 0.0012 | BZ85: 0.0072
B86: TSI and Traffic Operations, 7) IDAS model, 8) AAA Daily Fuel Gauge Report, 9) California | AK86: 78 | AL86: 0.0519 | AM86: 0.0918 | BI86: 77 | BJ86: 3.2703 | BK86: 316.1615 | BL86: 0.3811 | BM86: 0.0075 | BN86: 0.0063 | BO86: 0.0559 | BT86: 77 | BU86: 1.173 | BV86: 183.8155 | BW86: 0.0525 | BX86: 0.0023 | BY86: 0.0012 | BZ86: 0.0072
B87: Board of Equalization, 10) AAA Your Driving Costs, 11) American Transportation Research | AK87: 79 | AL87: 0.0519 | AM87: 0.0936 | BI87: 78 | BJ87: 3.2703 | BK87: 316.1615 | BL87: 0.3811 | BM87: 0.0075 | BN87: 0.0063 | BO87: 0.0559 | BT87: 78 | BU87: 1.173 | BV87: 183.8155 | BW87: 0.0525 | BX87: 0.0023 | BY87: 0.0012 | BZ87: 0.0072
B88: Institute, 12) National Safety Council, 13) TASAS summary 2009 | AK88: 80 | AL88: 0.052 | AM88: 0.0953 | BI88: 79 | BJ88: 3.2703 | BK88: 316.1615 | BL88: 0.3811 | BM88: 0.0075 | BN88: 0.0063 | BO88: 0.0559 | BT88: 79 | BU88: 1.173 | BV88: 183.8155 | BW88: 0.0525 | BX88: 0.0023 | BY88: 0.0012 | BZ88: 0.0072
BI89: 80 | BJ89: 3.2703 | BK89: 316.1615 | BL89: 0.3811 | BM89: 0.0075 | BN89: 0.0063 | BO89: 0.0559 | BT89: 80 | BU89: 1.173 | BV89: 183.8155 | BW89: 0.0525 | BX89: 0.0023 | BY89: 0.0012 | BZ89: 0.0072
AJ90: * Includes motorcycles & motorhomes
AJ91: Note: Five mph is best estimate for idling | BH91: Truck | BI91: 0 | BS91: Truck | BT91: 0
BI92: 5 | BJ92: 8.2834 | BK92: 4158.9788 | BL92: 16.6988 | BM92: 0.6661 | BN92: 0.0377 | BO92: 2.1203 | BT92: 5 | BU92: 1.3644 | BV92: 3941.025 | BW92: 3.7188 | BX92: 0.0554 | BY92: 0.0338 | BZ92: 0.2943
AJ93: Source: California Air Resources Board, | BI93: 6 | BJ93: 7.6033 | BK93: 3834.5685 | BL93: 15.3364 | BM93: 0.6149 | BN93: 0.0348 | BO93: 1.9215 | BT93: 6 | BU93: 1.2417 | BV93: 3630.5188 | BW93: 3.4155 | BX93: 0.051 | BY93: 0.0311 | BZ93: 0.2663
AJ94: EMFAC2011, 2011 & 2031 average | BI94: 7 | BJ94: 6.9231 | BK94: 3510.1583 | BL94: 13.9741 | BM94: 0.5637 | BN94: 0.0318 | BO94: 1.7228 | BT94: 7 | BU94: 1.1189 | BV94: 3320.0125 | BW94: 3.1122 | BX94: 0.0466 | BY94: 0.0285 | BZ94: 0.2383
BI95: 8 | BJ95: 6.2429 | BK95: 3185.748 | BL95: 12.6117 | BM95: 0.5125 | BN95: 0.0289 | BO95: 1.5241 | BT95: 8 | BU95: 0.9961 | BV95: 3009.5063 | BW95: 2.809 | BX95: 0.0423 | BY95: 0.0258 | BZ95: 0.2104
BI96: 9 | BJ96: 5.5627 | BK96: 2861.3378 | BL96: 11.2493 | BM96: 0.4613 | BN96: 0.0259 | BO96: 1.3254 | BT96: 9 | BU96: 0.8733 | BV96: 2699 | BW96: 2.5057 | BX96: 0.0379 | BY96: 0.0232 | BZ96: 0.1824
BI97: 10 | BJ97: 4.8825 | BK97: 2536.9275 | BL97: 9.8869 | BM97: 0.41 | BN97: 0.023 | BO97: 1.1267 | BT97: 10 | BU97: 0.7505 | BV97: 2388.4938 | BW97: 2.2025 | BX97: 0.0335 | BY97: 0.0205 | BZ97: 0.1544
BI98: 11 | BJ98: 4.6834 | BK98: 2461.2965 | BL98: 9.529 | BM98: 0.3999 | BN98: 0.0223 | BO98: 1.0606 | BT98: 11 | BU98: 0.7153 | BV98: 2315.6983 | BW98: 2.1183 | BX98: 0.0326 | BY98: 0.0199 | BZ98: 0.1448
BI99: 12 | BJ99: 4.4843 | BK99: 2385.6655 | BL99: 9.171 | BM99: 0.3898 | BN99: 0.0216 | BO99: 0.9945 | BT99: 12 | BU99: 0.6801 | BV99: 2242.9028 | BW99: 2.0341 | BX99: 0.0317 | BY99: 0.0192 | BZ99: 0.1352
BI100: 13 | BJ100: 4.2851 | BK100: 2310.0345 | BL100: 8.8131 | BM100: 0.3796 | BN100: 0.0209 | BO100: 0.9283 | BT100: 13 | BU100: 0.6449 | BV100: 2170.1073 | BW100: 1.9499 | BX100: 0.0307 | BY100: 0.0186 | BZ100: 0.1256
BI101: 14 | BJ101: 4.086 | BK101: 2234.4035 | BL101: 8.4552 | BM101: 0.3695 | BN101: 0.0202 | BO101: 0.8622 | BT101: 14 | BU101: 0.6097 | BV101: 2097.3118 | BW101: 1.8657 | BX101: 0.0298 | BY101: 0.018 | BZ101: 0.116
BI102: 15 | BJ102: 3.8869 | BK102: 2158.7725 | BL102: 8.0973 | BM102: 0.3594 | BN102: 0.0195 | BO102: 0.7961 | BT102: 15 | BU102: 0.5745 | BV102: 2024.5163 | BW102: 1.7815 | BX102: 0.0289 | BY102: 0.0174 | BZ102: 0.1064
BI103: 16 | BJ103: 3.7962 | BK103: 2102.0165 | BL103: 7.8673 | BM103: 0.3513 | BN103: 0.019 | BO103: 0.7614 | BT103: 16 | BU103: 0.5581 | BV103: 1968.9365 | BW103: 1.7237 | BX103: 0.0282 | BY103: 0.0169 | BZ103: 0.1014
BI104: 17 | BJ104: 3.7055 | BK104: 2045.2605 | BL104: 7.6373 | BM104: 0.3432 | BN104: 0.0185 | BO104: 0.7267 | BT104: 17 | BU104: 0.5418 | BV104: 1913.3568 | BW104: 1.6659 | BX104: 0.0275 | BY104: 0.0164 | BZ104: 0.0964
BI105: 18 | BJ105: 3.6148 | BK105: 1988.5045 | BL105: 7.4073 | BM105: 0.3351 | BN105: 0.018 | BO105: 0.692 | BT105: 18 | BU105: 0.5255 | BV105: 1857.777 | BW105: 1.6081 | BX105: 0.0269 | BY105: 0.016 | BZ105: 0.0914
BI106: 19 | BJ106: 3.5241 | BK106: 1931.7485 | BL106: 7.1773 | BM106: 0.327 | BN106: 0.0175 | BO106: 0.6572 | BT106: 19 | BU106: 0.5092 | BV106: 1802.1973 | BW106: 1.5503 | BX106: 0.0262 | BY106: 0.0155 | BZ106: 0.0864
BI107: 20 | BJ107: 3.4334 | BK107: 1874.9925 | BL107: 6.9473 | BM107: 0.3189 | BN107: 0.017 | BO107: 0.6225 | BT107: 20 | BU107: 0.4929 | BV107: 1746.6175 | BW107: 1.4925 | BX107: 0.0255 | BY107: 0.015 | BZ107: 0.0814
BI108: 21 | BJ108: 3.3746 | BK108: 1843.161 | BL108: 6.8047 | BM108: 0.3137 | BN108: 0.0167 | BO108: 0.6018 | BT108: 21 | BU108: 0.4825 | BV108: 1717.7838 | BW108: 1.4589 | BX108: 0.0251 | BY108: 0.0148 | BZ108: 0.0786
BI109: 22 | BJ109: 3.3158 | BK109: 1811.3295 | BL109: 6.6622 | BM109: 0.3086 | BN109: 0.0164 | BO109: 0.581 | BT109: 22 | BU109: 0.4721 | BV109: 1688.95 | BW109: 1.4254 | BX109: 0.0247 | BY109: 0.0145 | BZ109: 0.0758
BI110: 23 | BJ110: 3.257 | BK110: 1779.498 | BL110: 6.5196 | BM110: 0.3034 | BN110: 0.0161 | BO110: 0.5602 | BT110: 23 | BU110: 0.4617 | BV110: 1660.1163 | BW110: 1.3918 | BX110: 0.0243 | BY110: 0.0143 | BZ110: 0.073
BI111: 24 | BJ111: 3.1982 | BK111: 1747.6665 | BL111: 6.377 | BM111: 0.2982 | BN111: 0.0158 | BO111: 0.5395 | BT111: 24 | BU111: 0.4513 | BV111: 1631.2825 | BW111: 1.3582 | BX111: 0.0239 | BY111: 0.014 | BZ111: 0.0702
BI112: 25 | BJ112: 3.1394 | BK112: 1715.835 | BL112: 6.2345 | BM112: 0.2931 | BN112: 0.0155 | BO112: 0.5187 | BT112: 25 | BU112: 0.4409 | BV112: 1602.4488 | BW112: 1.3246 | BX112: 0.0235 | BY112: 0.0138 | BZ112: 0.0674
BI113: 26 | BJ113: 3.1089 | BK113: 1702.579 | BL113: 6.1762 | BM113: 0.2903 | BN113: 0.0154 | BO113: 0.5051 | BT113: 26 | BU113: 0.4321 | BV113: 1588.874 | BW113: 1.3074 | BX113: 0.0233 | BY113: 0.0136 | BZ113: 0.0654
BI114: 27 | BJ114: 3.0785 | BK114: 1689.323 | BL114: 6.1179 | BM114: 0.2876 | BN114: 0.0153 | BO114: 0.4914 | BT114: 27 | BU114: 0.4232 | BV114: 1575.2993 | BW114: 1.2902 | BX114: 0.023 | BY114: 0.0135 | BZ114: 0.0634
BI115: 28 | BJ115: 3.048 | BK115: 1676.067 | BL115: 6.0596 | BM115: 0.2849 | BN115: 0.0152 | BO115: 0.4778 | BT115: 28 | BU115: 0.4144 | BV115: 1561.7245 | BW115: 1.273 | BX115: 0.0228 | BY115: 0.0134 | BZ115: 0.0614
BI116: 29 | BJ116: 3.0175 | BK116: 1662.811 | BL116: 6.0014 | BM116: 0.2822 | BN116: 0.0151 | BO116: 0.4642 | BT116: 29 | BU116: 0.4056 | BV116: 1548.1498 | BW116: 1.2558 | BX116: 0.0225 | BY116: 0.0133 | BZ116: 0.0594
BI117: 30 | BJ117: 2.9871 | BK117: 1649.555 | BL117: 5.9431 | BM117: 0.2795 | BN117: 0.0149 | BO117: 0.4506 | BT117: 30 | BU117: 0.3967 | BV117: 1534.575 | BW117: 1.2387 | BX117: 0.0223 | BY117: 0.0132 | BZ117: 0.0574
BI118: 31 | BJ118: 2.9006 | BK118: 1600.0991 | BL118: 5.7883 | BM118: 0.2675 | BN118: 0.0145 | BO118: 0.4408 | BT118: 31 | BU118: 0.3899 | BV118: 1486.5078 | BW118: 1.2038 | BX118: 0.0213 | BY118: 0.0128 | BZ118: 0.0564
BI119: 32 | BJ119: 2.8142 | BK119: 1550.6431 | BL119: 5.6334 | BM119: 0.2555 | BN119: 0.0141 | BO119: 0.4311 | BT119: 32 | BU119: 0.3831 | BV119: 1438.4407 | BW119: 1.169 | BX119: 0.0204 | BY119: 0.0124 | BZ119: 0.0554
BI120: 33 | BJ120: 2.7277 | BK120: 1501.1872 | BL120: 5.4786 | BM120: 0.2435 | BN120: 0.0136 | BO120: 0.4214 | BT120: 33 | BU120: 0.3762 | BV120: 1390.3735 | BW120: 1.1342 | BX120: 0.0195 | BY120: 0.0119 | BZ120: 0.0543
BI121: 34 | BJ121: 2.6413 | BK121: 1451.7312 | BL121: 5.3238 | BM121: 0.2315 | BN121: 0.0132 | BO121: 0.4116 | BT121: 34 | BU121: 0.3694 | BV121: 1342.3063 | BW121: 1.0993 | BX121: 0.0185 | BY121: 0.0115 | BZ121: 0.0533
BI122: 35 | BJ122: 2.5548 | BK122: 1402.2753 | BL122: 5.169 | BM122: 0.2195 | BN122: 0.0127 | BO122: 0.4019 | BT122: 35 | BU122: 0.3626 | BV122: 1294.2391 | BW122: 1.0645 | BX122: 0.0176 | BY122: 0.0111 | BZ122: 0.0523
BI123: 36 | BJ123: 2.5173 | BK123: 1390.0393 | BL123: 5.1227 | BM123: 0.2164 | BN123: 0.0126 | BO123: 0.3941 | BT123: 36 | BU123: 0.3582 | BV123: 1281.0952 | BW123: 1.0508 | BX123: 0.0173 | BY123: 0.011 | BZ123: 0.0512
BI124: 37 | BJ124: 2.4799 | BK124: 1377.8034 | BL124: 5.0763 | BM124: 0.2133 | BN124: 0.0125 | BO124: 0.3864 | BT124: 37 | BU124: 0.3539 | BV124: 1267.9513 | BW124: 1.0372 | BX124: 0.0171 | BY124: 0.0109 | BZ124: 0.0501
BI125: 38 | BJ125: 2.4424 | BK125: 1365.5675 | BL125: 5.03 | BM125: 0.2102 | BN125: 0.0124 | BO125: 0.3786 | BT125: 38 | BU125: 0.3496 | BV125: 1254.8074 | BW125: 1.0235 | BX125: 0.0168 | BY125: 0.0108 | BZ125: 0.049
BI126: 39 | BJ126: 2.4049 | BK126: 1353.3316 | BL126: 4.9836 | BM126: 0.2071 | BN126: 0.0123 | BO126: 0.3709 | BT126: 39 | BU126: 0.3452 | BV126: 1241.6635 | BW126: 1.0098 | BX126: 0.0165 | BY126: 0.0107 | BZ126: 0.0479
BI127: 40 | BJ127: 2.3675 | BK127: 1341.0956 | BL127: 4.9373 | BM127: 0.204 | BN127: 0.0122 | BO127: 0.3631 | BT127: 40 | BU127: 0.3409 | BV127: 1228.5196 | BW127: 0.9962 | BX127: 0.0163 | BY127: 0.0106 | BZ127: 0.0468
BI128: 41 | BJ128: 2.3379 | BK128: 1331.3962 | BL128: 4.9008 | BM128: 0.2015 | BN128: 0.0121 | BO128: 0.3571 | BT128: 41 | BU128: 0.3374 | BV128: 1218.1081 | BW128: 0.9854 | BX128: 0.0161 | BY128: 0.0105 | BZ128: 0.0459
BI129: 42 | BJ129: 2.3084 | BK129: 1321.6967 | BL129: 4.8642 | BM129: 0.1991 | BN129: 0.012 | BO129: 0.351 | BT129: 42 | BU129: 0.334 | BV129: 1207.6965 | BW129: 0.9747 | BX129: 0.0159 | BY129: 0.0104 | BZ129: 0.045
BI130: 43 | BJ130: 2.2789 | BK130: 1311.9973 | BL130: 4.8277 | BM130: 0.1967 | BN130: 0.0119 | BO130: 0.3449 | BT130: 43 | BU130: 0.3306 | BV130: 1197.2849 | BW130: 0.964 | BX130: 0.0157 | BY130: 0.0103 | BZ130: 0.0442
BI131: 44 | BJ131: 2.2493 | BK131: 1302.2978 | BL131: 4.7912 | BM131: 0.1943 | BN131: 0.0118 | BO131: 0.3388 | BT131: 44 | BU131: 0.3271 | BV131: 1186.8733 | BW131: 0.9533 | BX131: 0.0155 | BY131: 0.0102 | BZ131: 0.0433
BI132: 45 | BJ132: 2.2198 | BK132: 1292.5984 | BL132: 4.7547 | BM132: 0.1918 | BN132: 0.0117 | BO132: 0.3328 | BT132: 45 | BU132: 0.3237 | BV132: 1176.4618 | BW132: 0.9426 | BX132: 0.0153 | BY132: 0.0101 | BZ132: 0.0425
BI133: 46 | BJ133: 2.1914 | BK133: 1278.9976 | BL133: 4.7144 | BM133: 0.1878 | BN133: 0.0116 | BO133: 0.3277 | BT133: 46 | BU133: 0.3204 | BV133: 1161.4987 | BW133: 0.9308 | BX133: 0.0149 | BY133: 0.01 | BZ133: 0.0418
BI134: 47 | BJ134: 2.163 | BK134: 1265.3968 | BL134: 4.674 | BM134: 0.1837 | BN134: 0.0115 | BO134: 0.3226 | BT134: 47 | BU134: 0.3172 | BV134: 1146.5356 | BW134: 0.919 | BX134: 0.0146 | BY134: 0.0099 | BZ134: 0.0411
BI135: 48 | BJ135: 2.1347 | BK135: 1251.796 | BL135: 4.6336 | BM135: 0.1797 | BN135: 0.0114 | BO135: 0.3174 | BT135: 48 | BU135: 0.314 | BV135: 1131.5725 | BW135: 0.9071 | BX135: 0.0143 | BY135: 0.0097 | BZ135: 0.0403
BI136: 49 | BJ136: 2.1063 | BK136: 1238.1952 | BL136: 4.5933 | BM136: 0.1756 | BN136: 0.0112 | BO136: 0.3123 | BT136: 49 | BU136: 0.3107 | BV136: 1116.6095 | BW136: 0.8953 | BX136: 0.014 | BY136: 0.0096 | BZ136: 0.0396
BI137: 50 | BJ137: 2.0779 | BK137: 1224.5944 | BL137: 4.5529 | BM137: 0.1716 | BN137: 0.0111 | BO137: 0.3072 | BT137: 50 | BU137: 0.3075 | BV137: 1101.6464 | BW137: 0.8835 | BX137: 0.0137 | BY137: 0.0095 | BZ137: 0.0389
BI138: 51 | BJ138: 2.0537 | BK138: 1211.3023 | BL138: 4.5157 | BM138: 0.1671 | BN138: 0.011 | BO138: 0.303 | BT138: 51 | BU138: 0.3048 | BV138: 1087.9897 | BW138: 0.8735 | BX138: 0.0133 | BY138: 0.0093 | BZ138: 0.0383
BI139: 52 | BJ139: 2.0295 | BK139: 1198.0103 | BL139: 4.4784 | BM139: 0.1626 | BN139: 0.0109 | BO139: 0.2989 | BT139: 52 | BU139: 0.3021 | BV139: 1074.333 | BW139: 0.8635 | BX139: 0.013 | BY139: 0.0092 | BZ139: 0.0377
BI140: 53 | BJ140: 2.0053 | BK140: 1184.7182 | BL140: 4.4412 | BM140: 0.1582 | BN140: 0.0108 | BO140: 0.2947 | BT140: 53 | BU140: 0.2994 | BV140: 1060.6763 | BW140: 0.8536 | BX140: 0.0126 | BY140: 0.0091 | BZ140: 0.0372
BI141: 54 | BJ141: 1.9811 | BK141: 1171.4262 | BL141: 4.4039 | BM141: 0.1537 | BN141: 0.0107 | BO141: 0.2905 | BT141: 54 | BU141: 0.2967 | BV141: 1047.0196 | BW141: 0.8436 | BX141: 0.0123 | BY141: 0.009 | BZ141: 0.0366
BI142: 55 | BJ142: 1.9569 | BK142: 1158.1341 | BL142: 4.3667 | BM142: 0.1492 | BN142: 0.0105 | BO142: 0.2863 | BT142: 55 | BU142: 0.294 | BV142: 1033.3629 | BW142: 0.8336 | BX142: 0.0119 | BY142: 0.0089 | BZ142: 0.036
BI143: 56 | BJ143: 1.9302 | BK143: 1151.1971 | BL143: 4.3422 | BM143: 0.1468 | BN143: 0.0105 | BO143: 0.2822 | BT143: 56 | BU143: 0.2906 | BV143: 1031.234 | BW143: 0.8317 | BX143: 0.0118 | BY143: 0.0089 | BZ143: 0.0354
BI144: 57 | BJ144: 1.9035 | BK144: 1144.2601 | BL144: 4.3178 | BM144: 0.1443 | BN144: 0.0104 | BO144: 0.2782 | BT144: 57 | BU144: 0.2871 | BV144: 1029.105 | BW144: 0.8298 | BX144: 0.0116 | BY144: 0.0088 | BZ144: 0.0348
BI145: 58 | BJ145: 1.8768 | BK145: 1137.3231 | BL145: 4.2933 | BM145: 0.1418 | BN145: 0.0103 | BO145: 0.2741 | BT145: 58 | BU145: 0.2837 | BV145: 1026.9761 | BW145: 0.8278 | BX145: 0.0114 | BY145: 0.0088 | BZ145: 0.0342
BI146: 59 | BJ146: 1.8501 | BK146: 1130.386 | BL146: 4.2688 | BM146: 0.1393 | BN146: 0.0103 | BO146: 0.27 | BT146: 59 | BU146: 0.2802 | BV146: 1024.8472 | BW146: 0.8259 | BX146: 0.0113 | BY146: 0.0088 | BZ146: 0.0336
BI147: 60 | BJ147: 1.8234 | BK147: 1123.449 | BL147: 4.2444 | BM147: 0.1368 | BN147: 0.0102 | BO147: 0.266 | BT147: 60 | BU147: 0.2768 | BV147: 1022.7183 | BW147: 0.8239 | BX147: 0.0111 | BY147: 0.0088 | BZ147: 0.0331
BI148: 61 | BJ148: 1.8181 | BK148: 1135.6427 | BL148: 4.286 | BM148: 0.1375 | BN148: 0.0103 | BO148: 0.2626 | BT148: 61 | BU148: 0.273 | BV148: 1031.6621 | BW148: 0.8283 | BX148: 0.0111 | BY148: 0.0089 | BZ148: 0.0325
BI149: 62 | BJ149: 1.8127 | BK149: 1147.8364 | BL149: 4.3276 | BM149: 0.1382 | BN149: 0.0104 | BO149: 0.2592 | BT149: 62 | BU149: 0.2692 | BV149: 1040.6059 | BW149: 0.8327 | BX149: 0.0111 | BY149: 0.0089 | BZ149: 0.032
BI150: 63 | BJ150: 1.8073 | BK150: 1160.0301 | BL150: 4.3691 | BM150: 0.1389 | BN150: 0.0105 | BO150: 0.2558 | BT150: 63 | BU150: 0.2654 | BV150: 1049.5497 | BW150: 0.8371 | BX150: 0.0111 | BY150: 0.009 | BZ150: 0.0315
BI151: 64 | BJ151: 1.8019 | BK151: 1172.2238 | BL151: 4.4107 | BM151: 0.1396 | BN151: 0.0106 | BO151: 0.2525 | BT151: 64 | BU151: 0.2616 | BV151: 1058.4936 | BW151: 0.8415 | BX151: 0.0111 | BY151: 0.0091 | BZ151: 0.0309
BI152: 65 | BJ152: 1.7966 | BK152: 1184.4175 | BL152: 4.4523 | BM152: 0.1403 | BN152: 0.0107 | BO152: 0.2491 | BT152: 65 | BU152: 0.2578 | BV152: 1067.4374 | BW152: 0.8458 | BX152: 0.0111 | BY152: 0.0092 | BZ152: 0.0304
BI153: 66 | BJ153: 1.7933 | BK153: 1195.2919 | BL153: 4.4892 | BM153: 0.141 | BN153: 0.0108 | BO153: 0.2462 | BT153: 66 | BU153: 0.2546 | BV153: 1075.5101 | BW153: 0.8498 | BX153: 0.0112 | BY153: 0.0092 | BZ153: 0.0299
BI154: 67 | BJ154: 1.79 | BK154: 1206.1663 | BL154: 4.5262 | BM154: 0.1416 | BN154: 0.0109 | BO154: 0.2433 | BT154: 67 | BU154: 0.2513 | BV154: 1083.5828 | BW154: 0.8538 | BX154: 0.0112 | BY154: 0.0093 | BZ154: 0.0295
BI155: 68 | BJ155: 1.7868 | BK155: 1217.0407 | BL155: 4.5631 | BM155: 0.1422 | BN155: 0.011 | BO155: 0.2404 | BT155: 68 | BU155: 0.2481 | BV155: 1091.6555 | BW155: 0.8578 | BX155: 0.0112 | BY155: 0.0094 | BZ155: 0.029
BI156: 69 | BJ156: 1.7835 | BK156: 1227.9151 | BL156: 4.6 | BM156: 0.1428 | BN156: 0.0111 | BO156: 0.2376 | BT156: 69 | BU156: 0.2448 | BV156: 1099.7282 | BW156: 0.8618 | BX156: 0.0112 | BY156: 0.0095 | BZ156: 0.0285
BI157: 70 | BJ157: 1.7803 | BK157: 1238.7895 | BL157: 4.6369 | BM157: 0.1434 | BN157: 0.0112 | BO157: 0.2347 | BT157: 70 | BU157: 0.2416 | BV157: 1107.8009 | BW157: 0.8657 | BX157: 0.0112 | BY157: 0.0095 | BZ157: 0.0281
BI158: 71 | BJ158: 1.7853 | BK158: 1254.8216 | BL158: 4.6867 | BM158: 0.1447 | BN158: 0.0114 | BO158: 0.2326 | BT158: 71 | BU158: 0.2388 | BV158: 1120.9561 | BW158: 0.8729 | BX158: 0.0112 | BY158: 0.0096 | BZ158: 0.0277
BI159: 72 | BJ159: 1.7903 | BK159: 1270.8537 | BL159: 4.7365 | BM159: 0.146 | BN159: 0.0115 | BO159: 0.2306 | BT159: 72 | BU159: 0.236 | BV159: 1134.1112 | BW159: 0.8801 | BX159: 0.0113 | BY159: 0.0097 | BZ159: 0.0273
BI160: 73 | BJ160: 1.7952 | BK160: 1286.8858 | BL160: 4.7863 | BM160: 0.1473 | BN160: 0.0116 | BO160: 0.2285 | BT160: 73 | BU160: 0.2331 | BV160: 1147.2664 | BW160: 0.8872 | BX160: 0.0113 | BY160: 0.0099 | BZ160: 0.0269
BI161: 74 | BJ161: 1.8002 | BK161: 1302.9179 | BL161: 4.8361 | BM161: 0.1485 | BN161: 0.0118 | BO161: 0.2264 | BT161: 74 | BU161: 0.2303 | BV161: 1160.4216 | BW161: 0.8944 | BX161: 0.0114 | BY161: 0.01 | BZ161: 0.0265
BI162: 75 | BJ162: 1.8052 | BK162: 1318.95 | BL162: 4.8859 | BM162: 0.1498 | BN162: 0.0119 | BO162: 0.2243 | BT162: 75 | BU162: 0.2275 | BV162: 1173.5768 | BW162: 0.9015 | BX162: 0.0114 | BY162: 0.0101 | BZ162: 0.0261
BI163: 76 | BJ163: 1.8052 | BK163: 1318.95 | BL163: 4.8859 | BM163: 0.1498 | BN163: 0.0119 | BO163: 0.2243 | BT163: 76 | BU163: 0.2275 | BV163: 1173.5768 | BW163: 0.9015 | BX163: 0.0114 | BY163: 0.0101 | BZ163: 0.0261
BI164: 77 | BJ164: 1.8052 | BK164: 1318.95 | BL164: 4.8859 | BM164: 0.1498 | BN164: 0.0119 | BO164: 0.2243 | BT164: 77 | BU164: 0.2275 | BV164: 1173.5768 | BW164: 0.9015 | BX164: 0.0114 | BY164: 0.0101 | BZ164: 0.0261
BI165: 78 | BJ165: 1.8052 | BK165: 1318.95 | BL165: 4.8859 | BM165: 0.1498 | BN165: 0.0119 | BO165: 0.2243 | BT165: 78 | BU165: 0.2275 | BV165: 1173.5768 | BW165: 0.9015 | BX165: 0.0114 | BY165: 0.0101 | BZ165: 0.0261
BI166: 79 | BJ166: 1.8052 | BK166: 1318.95 | BL166: 4.8859 | BM166: 0.1498 | BN166: 0.0119 | BO166: 0.2243 | BT166: 79 | BU166: 0.2275 | BV166: 1173.5768 | BW166: 0.9015 | BX166: 0.0114 | BY166: 0.0101 | BZ166: 0.0261
BI167: 80 | BJ167: 1.8052 | BK167: 1318.95 | BL167: 4.8859 | BM167: 0.1498 | BN167: 0.0119 | BO167: 0.2243 | BT167: 80 | BU167: 0.2275 | BV167: 1173.5768 | BW167: 0.9015 | BX167: 0.0114 | BY167: 0.0101 | BZ167: 0.0261
BH169: Bus | BI169: 0 | BS169: Bus | BT169: 0
BI170: 5 | BJ170: 11.6161 | BK170: 3835.8125 | BL170: 30.2076 | BM170: 1.205 | BN170: 0.0349 | BO170: 2.7371 | BT170: 5 | BU170: 1.5021 | BV170: 3560.9 | BW170: 4.4025 | BX170: 0.0701 | BY170: 0.0304 | BZ170: 0.2601
BI171: 6 | BJ171: 10.5806 | BK171: 3500.6745 | BL171: 27.4284 | BM171: 1.0966 | BN171: 0.0319 | BO171: 2.4825 | BT171: 6 | BU171: 1.3695 | BV171: 3249.256 | BW171: 3.9975 | BX171: 0.0637 | BY171: 0.0277 | BZ171: 0.2371
BI172: 7 | BJ172: 9.5451 | BK172: 3165.5365 | BL172: 24.6492 | BM172: 0.9882 | BN172: 0.0288 | BO172: 2.2279 | BT172: 7 | BU172: 1.2369 | BV172: 2937.612 | BW172: 3.5926 | BX172: 0.0573 | BY172: 0.025 | BZ172: 0.214
BI173: 8 | BJ173: 8.5096 | BK173: 2830.3985 | BL173: 21.87 | BM173: 0.8798 | BN173: 0.0257 | BO173: 1.9732 | BT173: 8 | BU173: 1.1043 | BV173: 2625.968 | BW173: 3.1877 | BX173: 0.0509 | BY173: 0.0224 | BZ173: 0.191
BI174: 9 | BJ174: 7.4741 | BK174: 2495.2605 | BL174: 19.0908 | BM174: 0.7714 | BN174: 0.0227 | BO174: 1.7186 | BT174: 9 | BU174: 0.9717 | BV174: 2314.324 | BW174: 2.7827 | BX174: 0.0445 | BY174: 0.0197 | BZ174: 0.1679
BI175: 10 | BJ175: 6.4386 | BK175: 2160.1225 | BL175: 16.3117 | BM175: 0.663 | BN175: 0.0196 | BO175: 1.464 | BT175: 10 | BU175: 0.8391 | BV175: 2002.68 | BW175: 2.3778 | BX175: 0.0382 | BY175: 0.0171 | BZ175: 0.1449
BI176: 11 | BJ176: 5.8311 | BK176: 1942.681 | BL176: 14.8787 | BM176: 0.5985 | BN176: 0.0177 | BO176: 1.3458 | BT176: 11 | BU176: 0.7591 | BV176: 1801.5067 | BW176: 2.1693 | BX176: 0.0346 | BY176: 0.0154 | BZ176: 0.132
BI177: 12 | BJ177: 5.2237 | BK177: 1725.2395 | BL177: 13.4458 | BM177: 0.5339 | BN177: 0.0157 | BO177: 1.2277 | BT177: 12 | BU177: 0.6792 | BV177: 1600.3334 | BW177: 1.9609 | BX177: 0.031 | BY177: 0.0136 | BZ177: 0.1192
BI178: 13 | BJ178: 4.6162 | BK178: 1507.798 | BL178: 12.0129 | BM178: 0.4693 | BN178: 0.0137 | BO178: 1.1096 | BT178: 13 | BU178: 0.5992 | BV178: 1399.1601 | BW178: 1.7524 | BX178: 0.0274 | BY178: 0.0119 | BZ178: 0.1064
BI179: 14 | BJ179: 4.0088 | BK179: 1290.3565 | BL179: 10.58 | BM179: 0.4047 | BN179: 0.0117 | BO179: 0.9914 | BT179: 14 | BU179: 0.5192 | BV179: 1197.9868 | BW179: 1.5439 | BX179: 0.0237 | BY179: 0.0102 | BZ179: 0.0936
BI180: 15 | BJ180: 3.4013 | BK180: 1072.915 | BL180: 9.1471 | BM180: 0.3402 | BN180: 0.0098 | BO180: 0.8733 | BT180: 15 | BU180: 0.4393 | BV180: 996.8135 | BW180: 1.3354 | BX180: 0.0201 | BY180: 0.0085 | BZ180: 0.0808
BI181: 16 | BJ181: 3.3621 | BK181: 1079.7615 | BL181: 8.9673 | BM181: 0.3417 | BN181: 0.0098 | BO181: 0.8397 | BT181: 16 | BU181: 0.4345 | BV181: 1003.13 | BW181: 1.3095 | BX181: 0.0201 | BY181: 0.0085 | BZ181: 0.0782
BI182: 17 | BJ182: 3.3228 | BK182: 1086.608 | BL182: 8.7876 | BM182: 0.3432 | BN182: 0.0099 | BO182: 0.8062 | BT182: 17 | BU182: 0.4298 | BV182: 1009.4465 | BW182: 1.2836 | BX182: 0.02 | BY182: 0.0086 | BZ182: 0.0756
BI183: 18 | BJ183: 3.2836 | BK183: 1093.4545 | BL183: 8.6079 | BM183: 0.3447 | BN183: 0.01 | BO183: 0.7726 | BT183: 18 | BU183: 0.425 | BV183: 1015.763 | BW183: 1.2576 | BX183: 0.0199 | BY183: 0.0087 | BZ183: 0.0731
BI184: 19 | BJ184: 3.2443 | BK184: 1100.301 | BL184: 8.4281 | BM184: 0.3461 | BN184: 0.01 | BO184: 0.739 | BT184: 19 | BU184: 0.4203 | BV184: 1022.0795 | BW184: 1.2317 | BX184: 0.0198 | BY184: 0.0087 | BZ184: 0.0705
BI185: 20 | BJ185: 3.2051 | BK185: 1107.1475 | BL185: 8.2484 | BM185: 0.3476 | BN185: 0.0101 | BO185: 0.7054 | BT185: 20 | BU185: 0.4155 | BV185: 1028.396 | BW185: 1.2057 | BX185: 0.0198 | BY185: 0.0088 | BZ185: 0.0679
BI186: 21 | BJ186: 3.1815 | BK186: 1111.2545 | BL186: 8.1406 | BM186: 0.3485 | BN186: 0.0101 | BO186: 0.6853 | BT186: 21 | BU186: 0.4127 | BV186: 1032.1858 | BW186: 1.1902 | BX186: 0.0197 | BY186: 0.0088 | BZ186: 0.0664
BI187: 22 | BJ187: 3.158 | BK187: 1115.3615 | BL187: 8.0327 | BM187: 0.3494 | BN187: 0.0102 | BO187: 0.6651 | BT187: 22 | BU187: 0.4098 | BV187: 1035.9756 | BW187: 1.1746 | BX187: 0.0197 | BY187: 0.0088 | BZ187: 0.0648
BI188: 23 | BJ188: 3.1344 | BK188: 1119.4685 | BL188: 7.9249 | BM188: 0.3503 | BN188: 0.0102 | BO188: 0.645 | BT188: 23 | BU188: 0.407 | BV188: 1039.7654 | BW188: 1.159 | BX188: 0.0196 | BY188: 0.0089 | BZ188: 0.0633
BI189: 24 | BJ189: 3.1109 | BK189: 1123.5755 | BL189: 7.8171 | BM189: 0.3512 | BN189: 0.0102 | BO189: 0.6249 | BT189: 24 | BU189: 0.4041 | BV189: 1043.5552 | BW189: 1.1435 | BX189: 0.0196 | BY189: 0.0089 | BZ189: 0.0617
BI190: 25 | BJ190: 3.0873 | BK190: 1127.6825 | BL190: 7.7092 | BM190: 0.3521 | BN190: 0.0103 | BO190: 0.6047 | BT190: 25 | BU190: 0.4013 | BV190: 1047.345 | BW190: 1.1279 | BX190: 0.0195 | BY190: 0.0089 | BZ190: 0.0602
BI191: 26 | BJ191: 3.0716 | BK191: 1130.422 | BL191: 7.6373 | BM191: 0.3527 | BN191: 0.0103 | BO191: 0.5913 | BT191: 26 | BU191: 0.3994 | BV191: 1049.8715 | BW191: 1.1175 | BX191: 0.0195 | BY191: 0.009 | BZ191: 0.0592
BI192: 27 | BJ192: 3.0559 | BK192: 1133.1615 | BL192: 7.5654 | BM192: 0.3533 | BN192: 0.0103 | BO192: 0.5779 | BT192: 27 | BU192: 0.3975 | BV192: 1052.398 | BW192: 1.1072 | BX192: 0.0195 | BY192: 0.009 | BZ192: 0.0581
BI193: 28 | BJ193: 3.0402 | BK193: 1135.901 | BL193: 7.4936 | BM193: 0.3539 | BN193: 0.0104 | BO193: 0.5644 | BT193: 28 | BU193: 0.3956 | BV193: 1054.9245 | BW193: 1.0968 | BX193: 0.0194 | BY193: 0.009 | BZ193: 0.0571
BI194: 29 | BJ194: 3.0245 | BK194: 1138.6405 | BL194: 7.4217 | BM194: 0.3545 | BN194: 0.0104 | BO194: 0.551 | BT194: 29 | BU194: 0.3937 | BV194: 1057.451 | BW194: 1.0864 | BX194: 0.0194 | BY194: 0.009 | BZ194: 0.0561
BI195: 30 | BJ195: 3.0088 | BK195: 1141.38 | BL195: 7.3498 | BM195: 0.3551 | BN195: 0.0104 | BO195: 0.5376 | BT195: 30 | BU195: 0.3918 | BV195: 1059.9775 | BW195: 1.076 | BX195: 0.0194 | BY195: 0.009 | BZ195: 0.055
BI196: 31 | BJ196: 2.9687 | BK196: 1132.5015 | BL196: 7.2763 | BM196: 0.3548 | BN196: 0.0103 | BO196: 0.5248 | BT196: 31 | BU196: 0.3883 | BV196: 1051.274 | BW196: 1.0619 | BX196: 0.0193 | BY196: 0.009 | BZ196: 0.0537
BI197: 32 | BJ197: 2.9287 | BK197: 1123.623 | BL197: 7.2029 | BM197: 0.3545 | BN197: 0.0102 | BO197: 0.5121 | BT197: 32 | BU197: 0.3848 | BV197: 1042.5704 | BW197: 1.0477 | BX197: 0.0193 | BY197: 0.0089 | BZ197: 0.0524
BI198: 33 | BJ198: 2.8886 | BK198: 1114.7445 | BL198: 7.1294 | BM198: 0.3542 | BN198: 0.0102 | BO198: 0.4994 | BT198: 33 | BU198: 0.3813 | BV198: 1033.8669 | BW198: 1.0335 | BX198: 0.0192 | BY198: 0.0088 | BZ198: 0.051
BI199: 34 | BJ199: 2.8485 | BK199: 1105.866 | BL199: 7.0559 | BM199: 0.3539 | BN199: 0.0101 | BO199: 0.4866 | BT199: 34 | BU199: 0.3778 | BV199: 1025.1633 | BW199: 1.0193 | BX199: 0.0192 | BY199: 0.0087 | BZ199: 0.0497
BI200: 35 | BJ200: 2.8084 | BK200: 1096.9875 | BL200: 6.9825 | BM200: 0.3536 | BN200: 0.01 | BO200: 0.4739 | BT200: 35 | BU200: 0.3742 | BV200: 1016.4598 | BW200: 1.0052 | BX200: 0.0192 | BY200: 0.0087 | BZ200: 0.0484
BI201: 36 | BJ201: 2.7784 | BK201: 1090.329 | BL201: 6.9274 | BM201: 0.3534 | BN201: 0.0099 | BO201: 0.4643 | BT201: 36 | BU201: 0.3716 | BV201: 1009.9331 | BW201: 0.9946 | BX201: 0.0191 | BY201: 0.0086 | BZ201: 0.0474
BI202: 37 | BJ202: 2.7483 | BK202: 1083.6705 | BL202: 6.8723 | BM202: 0.3531 | BN202: 0.0099 | BO202: 0.4548 | BT202: 37 | BU202: 0.369 | BV202: 1003.4064 | BW202: 0.9839 | BX202: 0.0191 | BY202: 0.0086 | BZ202: 0.0464
... 45 more rows

Sheet 1) Project Information
C2: District: | E2: HQ | W2: Enter all project costs (in today's dollars) in columns 1 to 7. Costs during construction should be entered in the first eight rows.
P3: EA: | W3: Project costs (including maintenance and operating costs) should be net of costs without project.
C4: PROJECT: | E4: Hypothetical Project | P4: PPNO:
C7: 1A | D7: PROJECT DATA | V7: 1E | W7: PROJECT COSTS (enter costs in thousands of dollars)
V9: Col. no. | W9: (1) | X9: (2) | Y9: (3) | Z9: (4) | AA9: (5) | AB9: (6) | AC9: (7)
W10: DIRECT PROJECT COSTS | AC10: Transit
W11: INITIAL COSTS | Z11: SUBSEQUENT COSTS | AC11: Agency | AD11: TOTAL COSTS (in dollars)
C12: Project Location (enter 1 for So. Cal., 2 for No. Cal., or 3 for rural) | H12: 1 | V12: Year | W12: Project | Z12: Maint./ | AC12: Cost | AD12: Constant | AE12: Present
W13: Support | X13: R / W | Y13: Construction | Z13: Op. | AA13: Rehab. | AB13: Mitigation | AC13: Savings | AD13: Dollars | AE13: Value
D14: Length of Construction Period | F14: 7 | G14: years | V14: Construction Period
V15: 1 | W15: 542.581 | Z15: =IF(SUM(W15:Y15,AB15:AC15)=0,"<-- Must enter a cost -->","") ->  | AD15: =SUM(W15:AC15)*1000 -> 542581 | AE15: =$AD15/(1+DiscRate)^($V15+Adjust-1) -> 664685.056
D16: Time to Construction Start | F16: -3 | G16: years | V16: 2 | W16: 1506.837 | Z16: =IF(V16<=Construct,IF(SUM(W16:Y16,AB16:AC16)=0,"<-- Must enter a cost -->",""),IF(SUM(W16:Y16,AB16:AC16)<>0,"Adjust Construction Period","")) ->  | AD16: =SUM(W16:AC16)*1000 -> 1506837 | AE16: =$AD16/(1+DiscRate)^($V16+Adjust-1) -> 1725177.681
V17: 3 | W17: 1311.953 | AD17: =SUM(W17:AC17)*1000 -> 1311953 | AE17: 1403789.71
V18: 4 | Y18: 34953.917 | AD18: 34953917 | AE18: 34953917
V19: 5 | Y19: 34583.333 | AD19: 34583333 | AE19: 32320871.96
V20: 6 | Y20: 25872 | AD20: 25872000 | AE20: 22597606.78
V21: 7 | Y21: 11000 | AD21: 11000000 | AE21: 8979276.646
V22: 8 | AD22: 0 | AE22: 0
V23: Project Open
V24: 1 | Z24: 50 | AD24: =SUM(W24:AC24)*1000 -> 50000 | AE24: =$AD24/(1+DiscRate)^($V24+Adjust+Construct-1) -> 38144.7606
V25: 2 | Z25: 50 | AD25: =SUM(W25:AC25)*1000 -> 50000 | AE25: 35649.30897
V26: 3 | Z26: 50 | AD26: =SUM(W26:AC26)*1000 -> 50000 | AE26: 33317.11119
V27: 4 | Z27: 50 | AD27: 50000 | AE27: 31137.48709
V28: 5 | Z28: 50 | AD28: 50000 | AE28: 29100.45523
V29: 6 | Z29: 50 | AD29: 50000 | AE29: 27196.68713
V30: 7 | Z30: 50 | AD30: 50000 | AE30: 25417.46461
V31: 8 | Z31: 50 | AD31: 50000 | AE31: 23754.63982
V32: 9 | Z32: 50 | AD32: 50000 | AE32: 22200.59796
V33: 10 | Z33: 50 | AD33: 50000 | AE33: 20748.22239
V34: 11 | Z34: 50 | AD34: 50000 | AE34: 19390.86205
V35: 12 | Z35: 50 | AD35: 50000 | AE35: 18122.30098
V36: 13 | Z36: 50 | AD36: 50000 | AE36: 16936.72989
V37: 14 | Z37: 50 | AD37: 50000 | AE37: 15828.71952
V38: 15 | Z38: 50 | AD38: 50000 | AE38: 14793.19582
V39: 16 | Z39: 50 | AD39: 50000 | AE39: 13825.41665
V40: 17 | Z40: 50 | AD40: 50000 | AE40: 12920.95014
V41: 18 | Z41: 50 | AD41: 50000 | AE41: 12075.65434
V42: 19 | Z42: 50 | AD42: 50000 | AE42: 11285.65826
V43: 20 | Z43: 50 | AD43: 50000 | AE43: 10547.34417
V44: Total | W44: =SUM(W15:W43) -> 3361.371 | X44: 0 | Y44: 106409.25 | Z44: 1000 | AA44: 0 | AB44: 0 | AC44: 0 | AD44: 110770621 | AE44: 103077718.4
AB48: Present Value = Future Value (in Constant Dollars)
AD49: ( 1 + Real Discount Rate) ^ Year

Sheet 2) Model Inputs
D5: 2A | E5: DEFINITIONS OF MODEL GROUPS AND YEARS
F7: Name | G7: Description | J7: Avg. Vehicle Occupancy (AVO) | K7: Percent Trucks
D8: Model Group 1 | F8: 5 mph | G8: 5 mph speed bin | J8: 1.08 | K8: 0.13
D9: Model Group 2 | F9: 10 mph | G9: 10 mph speed bin | J9: 1.08 | K9: 0.13
D10: Model Group 3 | F10: 15 mph | G10: 15 mph speed bin | J10: 1.08 | K10: 0.13
D11: Model Group 4 | F11: 20 mph | G11: 20 mph speed bin | J11: 1.08 | K11: 0.13
D12: Model Group 5 | F12: 25 mph | G12: 25 mph speed bin | J12: 1.08 | K12: 0.13
D13: Model Group 6 | F13: 30 mph | G13: 30 mph speed bin | J13: 1.08 | K13: 0.13
D14: Model Group 7 | F14: 35 mph | G14: 35 mph speed bin | J14: 1.08 | K14: 0.13
D15: Model Group 8 | F15: 40 mph | G15: 40 mph speed bin | J15: 1.08 | K15: 0.13
D16: Model Group 9 | F16: 45 mph | G16: 45 mph speed bin | J16: 1.08 | K16: 0.13
D17: Model Group 10 | F17: 50 mph | G17: 50 mph speed bin | J17: 1.08 | K17: 0.13
D18: Model Group 11 | F18: 55 mph | G18: 55 mph speed bin | J18: 1.08 | K18: 0.13
D19: Model Group 12 | F19: 60 mph | G19: 60 mph speed bin | J19: 1.08 | K19: 0.13
D20: Model Group 13 | F20: 65 mph | G20: 65 mph speed bin | J20: 1.08 | K20: 0.13
D21: Model Group 14 | F21: 70 mph | G21: 70 mph speed bin | J21: 1.08 | K21: 0.13
D22: Model Group 15
D23: Model Group 16
D24: Model Group 17
D25: Model Group 18
D26: Model Group 19
D27: Model Group 20
D28: Model Group 21
D29: Model Group 22
D30: Model Group 23
D31: Model Group 24
D32: Model Group 25
D33: Model Group 26
D34: Model Group 27
D35: Model Group 28
D36: Model Group 29
D37: Model Group 30
D38: Model Group 31
D39: Model Group 32
D40: Model Group 33
D41: Model Group 34
D42: Model Group 35
D43: Model Group 36
D44: Model Group 37
D45: Model Group 38
D46: Model Group 39
D47: Model Group 40
D48: Model Group 41
D49: Model Group 42
D50: Model Group 43
D51: Model Group 44
D52: Model Group 45
D53: Model Group 46
D54: Model Group 47
D55: Model Group 48
D56: Model Group 49
D57: Model Group 50
D58: Model Group 51
D59: Model Group 52
D60: Model Group 53
D61: Model Group 54
D62: Model Group 55
D63: Model Group 56
D64: Model Group 57
D65: Model Group 58
D66: Model Group 59
D67: Model Group 60
D68: Model Group 61
D69: Model Group 62
D70: Model Group 63
D71: Model Group 64
D72: Model Group 65
D73: Model Group 66
D74: Model Group 67
D75: Model Group 68
D76: Model Group 69
D77: Model Group 70
D78: Model Group 71
D79: Model Group 72
D80: Model Group 73
D81: Model Group 74
D82: Model Group 75
D83: Model Group 76
D84: Model Group 77
D85: Model Group 78
D86: Model Group 79
D87: Model Group 80
D88: Model Group 81
D89: Model Group 82
D90: Model Group 83
D91: Model Group 84
D92: Model Group 85
D93: Model Group 86
D94: Model Group 87
D95: Model Group 88
D96: Model Group 89
D97: Model Group 90
D98: Model Group 91
D99: Model Group 92
D100: Model Group 93
D101: Model Group 94
D102: Model Group 95
D103: Model Group 96
D104: Model Group 97
D105: Model Group 98
D106: Model Group 99
D107: Model Group 100
D109: Base Year | F109: -8
D110: Forecast Year | F110: 17
D115: 2B | E115: ="AGGREGATE MODEL DATA - YEAR " & Year1 -> AGGREGATE MODEL DATA - YEAR -8 | Q115: 2C | R115: ="AGGREGATE MODEL DATA - YEAR " & Year20 -> AGGREGATE MODEL DATA - YEAR 17
F117: Number of Trips | G117: Vehicle Miles Traveled (VMT) | H117: Vehicle Hours Traveled (VHT) | I117: Speed | J117: Avg. Vehicle Occupancy (AVO) | K117: Percent Trucks | S117: Number of Trips | T117: Vehicle Miles Traveled (VMT) | U117: Vehicle Hours Traveled (VHT) | V117: Speed | W117: Avg. Vehicle Occupancy (AVO) | X117: Percent Trucks
C118: No Build | P118: No Build
D120: 1 | E120: =IF(ISBLANK(INDEX(ModelGroup,D120,1)),"Not Used",INDEX(ModelGroup,D120,1)) -> 5 mph | G120: 6127 | H120: 2360.071577 | I120: =IF(ISNUMBER(H120),G120/H120,55) -> 2.596107703 | J120: =INDEX(ModelGroup,D120,5) -> 1.08 | K120: =INDEX(ModelGroup,D120,6) -> 0.13 | Q120: 1 | R120: =IF(ISBLANK(INDEX(ModelGroup,Q120,1)),"Not Used",INDEX(ModelGroup,Q120,1)) -> 5 mph | T120: 105046.4526 | U120: 36951.83061 | V120: =IF(ISNUMBER(U120),T120/U120,55) -> 2.842794277 | W120: =INDEX(ModelGroup,Q120,5) -> 1.08 | X120: =INDEX(ModelGroup,Q120,6) -> 0.13
D121: 2 | E121: 10 mph | G121: 59912 | H121: 6950.071434 | I121: 8.620343052 | J121: 1.08 | K121: 0.13 | Q121: 2 | R121: 10 mph | T121: 402539.4158 | U121: 55844.76238 | V121: 7.208185668 | W121: 1.08 | X121: 0.13
D122: 3 | E122: 15 mph | G122: 132418 | H122: 10565.53308 | I122: 12.53301646 | J122: 1.08 | K122: 0.13 | Q122: 3 | R122: 15 mph | T122: 753765.5863 | U122: 59920.48378 | V122: 12.57943092 | W122: 1.08 | X122: 0.13
D123: 4 | E123: 20 mph | G123: 336386 | H123: 18840.18519 | I123: 17.85470772 | J123: 1.08 | K123: 0.13 | Q123: 4 | R123: 20 mph | T123: 1630206.309 | U123: 92004.92117 | V123: 17.718686 | W123: 1.08 | X123: 0.13
D124: 5 | E124: 25 mph | G124: 767859 | H124: 34056.02218 | I124: 22.54693739 | J124: 1.08 | K124: 0.13 | Q124: 5 | R124: 25 mph | T124: 2576930.487 | U124: 115325.7422 | V124: 22.34479864 | W124: 1.08 | X124: 0.13
D125: 6 | E125: 30 mph | G125: 1688045 | H125: 60747.27576 | I125: 27.78799508 | J125: 1.08 | K125: 0.13 | Q125: 6 | R125: 30 mph | T125: 3736261.264 | U125: 135103.2264 | V125: 27.65486334 | W125: 1.08 | X125: 0.13
D126: 7 | E126: 35 mph | G126: 5537794 | H126: 165865.348 | I126: 33.38728714 | J126: 1.08 | K126: 0.13 | Q126: 7 | R126: 35 mph | T126: 8271900.657 | U126: 248292.7189 | V126: 33.31511569 | W126: 1.08 | X126: 0.13
D127: 8 | E127: 40 mph | G127: 1930927 | H127: 51532.11326 | I127: 37.47036319 | J127: 1.08 | K127: 0.13 | Q127: 8 | R127: 40 mph | T127: 2952812.736 | U127: 78517.56818 | V127: 37.60703247 | W127: 1.08 | X127: 0.13
D128: 9 | E128: 45 mph | G128: 1755501 | H128: 41019.42709 | I128: 42.79681909 | J128: 1.08 | K128: 0.13 | Q128: 9 | R128: 45 mph | T128: 3220653.945 | U128: 75483.00415 | V128: 42.667273 | W128: 1.08 | X128: 0.13
D129: 10 | E129: 50 mph | G129: 1987242 | H129: 41801.72808 | I129: 47.53970927 | J129: 1.08 | K129: 0.13 | Q129: 10 | R129: 50 mph | T129: 2886467.689 | U129: 60642.82245 | V129: 47.59784542 | W129: 1.08 | X129: 0.13
D130: 11 | E130: 55 mph | G130: 3713000 | H130: 70078.25333 | I130: 52.9836265 | J130: 1.08 | K130: 0.13 | Q130: 11 | R130: 55 mph | T130: 4289072.426 | U130: 81243.63276 | V130: 52.79272086 | W130: 1.08 | X130: 0.13
D131: 12 | E131: 60 mph | G131: 2613060 | H131: 45652.25405 | I131: 57.23835667 | J131: 1.08 | K131: 0.13 | Q131: 12 | R131: 60 mph | T131: 1955786.823 | U131: 34065.62261 | V131: 57.41233163 | W131: 1.08 | X131: 0.13
D132: 13 | E132: 65 mph | G132: 2161970 | H132: 34563.56097 | I132: 62.55055728 | J132: 1.08 | K132: 0.13 | Q132: 13 | R132: 65 mph | T132: 1673826.893 | U132: 26837.5232 | V132: 62.36890342 | W132: 1.08 | X132: 0.13
D133: 14 | E133: 70 mph | G133: 4722589 | H133: 69652.40505 | I133: 67.80223879 | J133: 1.08 | K133: 0.13 | Q133: 14 | R133: 70 mph | T133: 3176961.548 | U133: 46522.68083 | V133: 68.28844536 | W133: 1.08 | X133: 0.13
D134: 15 | E134: Not Used | I134: 55 | J134: 0 | K134: 0 | Q134: 15 | R134: Not Used | V134: 55 | W134: 0 | X134: 0
D135: 16 | E135: Not Used | I135: =IF(ISNUMBER(H135),G135/H135,55) -> 55 | J135: =INDEX(ModelGroup,D135,5) -> 0 | K135: =INDEX(ModelGroup,D135,6) -> 0 | Q135: 16 | R135: Not Used | V135: =IF(ISNUMBER(U135),T135/U135,55) -> 55 | W135: =INDEX(ModelGroup,Q135,5) -> 0 | X135: =INDEX(ModelGroup,Q135,6) -> 0
D136: 17 | E136: Not Used | I136: 55 | J136: 0 | K136: 0 | Q136: 17 | R136: Not Used | V136: 55 | W136: 0 | X136: 0
D137: 18 | E137: Not Used | I137: 55 | J137: 0 | K137: 0 | Q137: 18 | R137: Not Used | V137: 55 | W137: 0 | X137: 0
D138: 19 | E138: Not Used | I138: 55 | J138: 0 | K138: 0 | Q138: 19 | R138: Not Used | V138: 55 | W138: 0 | X138: 0
D139: 20 | E139: Not Used | I139: 55 | J139: 0 | K139: 0 | Q139: 20 | R139: Not Used | V139: 55 | W139: 0 | X139: 0
D140: 21 | E140: Not Used | I140: 55 | J140: 0 | K140: 0 | Q140: 21 | R140: Not Used | V140: 55 | W140: 0 | X140: 0
D141: 22 | E141: Not Used | I141: 55 | J141: 0 | K141: 0 | Q141: 22 | R141: Not Used | V141: 55 | W141: 0 | X141: 0
D142: 23 | E142: Not Used | I142: 55 | J142: 0 | K142: 0 | Q142: 23 | R142: Not Used | V142: 55 | W142: 0 | X142: 0
D143: 24 | E143: Not Used | I143: 55 | J143: 0 | K143: 0 | Q143: 24 | R143: Not Used | V143: 55 | W143: 0 | X143: 0
D144: 25 | E144: Not Used | I144: 55 | J144: 0 | K144: 0 | Q144: 25 | R144: Not Used | V144: 55 | W144: 0 | X144: 0
D145: 26 | E145: Not Used | I145: 55 | J145: 0 | K145: 0 | Q145: 26 | R145: Not Used | V145: 55 | W145: 0 | X145: 0
D146: 27 | E146: Not Used | I146: 55 | J146: 0 | K146: 0 | Q146: 27 | R146: Not Used | V146: 55 | W146: 0 | X146: 0
D147: 28 | E147: Not Used | I147: 55 | J147: 0 | K147: 0 | Q147: 28 | R147: Not Used | V147: 55 | W147: 0 | X147: 0
D148: 29 | E148: Not Used | I148: 55 | J148: 0 | K148: 0 | Q148: 29 | R148: Not Used | V148: 55 | W148: 0 | X148: 0
D149: 30 | E149: Not Used | I149: 55 | J149: 0 | K149: 0 | Q149: 30 | R149: Not Used | V149: 55 | W149: 0 | X149: 0
D150: 31 | E150: Not Used | I150: 55 | J150: 0 | K150: 0 | Q150: 31 | R150: Not Used | V150: 55 | W150: 0 | X150: 0
D151: 32 | E151: Not Used | I151: 55 | J151: 0 | K151: 0 | Q151: 32 | R151: Not Used | V151: 55 | W151: 0 | X151: 0
D152: 33 | E152: Not Used | I152: 55 | J152: 0 | K152: 0 | Q152: 33 | R152: Not Used | V152: 55 | W152: 0 | X152: 0
D153: 34 | E153: Not Used | I153: 55 | J153: 0 | K153: 0 | Q153: 34 | R153: Not Used | V153: 55 | W153: 0 | X153: 0
D154: 35 | E154: Not Used | I154: 55 | J154: 0 | K154: 0 | Q154: 35 | R154: Not Used | V154: 55 | W154: 0 | X154: 0
D155: 36 | E155: Not Used | I155: 55 | J155: 0 | K155: 0 | Q155: 36 | R155: Not Used | V155: 55 | W155: 0 | X155: 0
D156: 37 | E156: Not Used | I156: 55 | J156: 0 | K156: 0 | Q156: 37 | R156: Not Used | V156: 55 | W156: 0 | X156: 0
D157: 38 | E157: Not Used | I157: 55 | J157: 0 | K157: 0 | Q157: 38 | R157: Not Used | V157: 55 | W157: 0 | X157: 0
D158: 39 | E158: Not Used | I158: 55 | J158: 0 | K158: 0 | Q158: 39 | R158: Not Used | V158: 55 | W158: 0 | X158: 0
D159: 40 | E159: Not Used | I159: 55 | J159: 0 | K159: 0 | Q159: 40 | R159: Not Used | V159: 55 | W159: 0 | X159: 0
D160: 41 | E160: Not Used | I160: 55 | J160: 0 | K160: 0 | Q160: 41 | R160: Not Used | V160: 55 | W160: 0 | X160: 0
D161: 42 | E161: Not Used | I161: 55 | J161: 0 | K161: 0 | Q161: 42 | R161: Not Used | V161: 55 | W161: 0 | X161: 0
D162: 43 | E162: Not Used | I162: 55 | J162: 0 | K162: 0 | Q162: 43 | R162: Not Used | V162: 55 | W162: 0 | X162: 0
D163: 44 | E163: Not Used | I163: 55 | J163: 0 | K163: 0 | Q163: 44 | R163: Not Used | V163: 55 | W163: 0 | X163: 0
D164: 45 | E164: Not Used | I164: 55 | J164: 0 | K164: 0 | Q164: 45 | R164: Not Used | V164: 55 | W164: 0 | X164: 0
D165: 46 | E165: Not Used | I165: 55 | J165: 0 | K165: 0 | Q165: 46 | R165: Not Used | V165: 55 | W165: 0 | X165: 0
D166: 47 | E166: Not Used | I166: 55 | J166: 0 | K166: 0 | Q166: 47 | R166: Not Used | V166: 55 | W166: 0 | X166: 0
D167: 48 | E167: Not Used | I167: 55 | J167: 0 | K167: 0 | Q167: 48 | R167: Not Used | V167: 55 | W167: 0 | X167: 0
D168: 49 | E168: Not Used | I168: 55 | J168: 0 | K168: 0 | Q168: 49 | R168: Not Used | V168: 55 | W168: 0 | X168: 0
D169: 50 | E169: Not Used | I169: 55 | J169: 0 | K169: 0 | Q169: 50 | R169: Not Used | V169: 55 | W169: 0 | X169: 0
D170: 51 | E170: Not Used | I170: 55 | J170: 0 | K170: 0 | Q170: 51 | R170: Not Used | V170: 55 | W170: 0 | X170: 0
D171: 52 | E171: Not Used | I171: 55 | J171: 0 | K171: 0 | Q171: 52 | R171: Not Used | V171: 55 | W171: 0 | X171: 0
D172: 53 | E172: Not Used | I172: 55 | J172: 0 | K172: 0 | Q172: 53 | R172: Not Used | V172: 55 | W172: 0 | X172: 0
D173: 54 | E173: Not Used | I173: 55 | J173: 0 | K173: 0 | Q173: 54 | R173: Not Used | V173: 55 | W173: 0 | X173: 0
D174: 55 | E174: Not Used | I174: 55 | J174: 0 | K174: 0 | Q174: 55 | R174: Not Used | V174: 55 | W174: 0 | X174: 0
D175: 56 | E175: Not Used | I175: 55 | J175: 0 | K175: 0 | Q175: 56 | R175: Not Used | V175: 55 | W175: 0 | X175: 0
D176: 57 | E176: Not Used | I176: 55 | J176: 0 | K176: 0 | Q176: 57 | R176: Not Used | V176: 55 | W176: 0 | X176: 0
D177: 58 | E177: Not Used | I177: 55 | J177: 0 | K177: 0 | Q177: 58 | R177: Not Used | V177: 55 | W177: 0 | X177: 0
D178: 59 | E178: Not Used | I178: 55 | J178: 0 | K178: 0 | Q178: 59 | R178: Not Used | V178: 55 | W178: 0 | X178: 0
D179: 60 | E179: Not Used | I179: 55 | J179: 0 | K179: 0 | Q179: 60 | R179: Not Used | V179: 55 | W179: 0 | X179: 0
D180: 61 | E180: Not Used | I180: 55 | J180: 0 | K180: 0 | Q180: 61 | R180: Not Used | V180: 55 | W180: 0 | X180: 0
D181: 62 | E181: Not Used | I181: 55 | J181: 0 | K181: 0 | Q181: 62 | R181: Not Used | V181: 55 | W181: 0 | X181: 0
D182: 63 | E182: Not Used | I182: 55 | J182: 0 | K182: 0 | Q182: 63 | R182: Not Used | V182: 55 | W182: 0 | X182: 0
D183: 64 | E183: Not Used | I183: 55 | J183: 0 | K183: 0 | Q183: 64 | R183: Not Used | V183: 55 | W183: 0 | X183: 0
D184: 65 | E184: Not Used | I184: 55 | J184: 0 | K184: 0 | Q184: 65 | R184: Not Used | V184: 55 | W184: 0 | X184: 0
D185: 66 | E185: Not Used | I185: 55 | J185: 0 | K185: 0 | Q185: 66 | R185: Not Used | V185: 55 | W185: 0 | X185: 0
D186: 67 | E186: Not Used | I186: 55 | J186: 0 | K186: 0 | Q186: 67 | R186: Not Used | V186: 55 | W186: 0 | X186: 0
D187: 68 | E187: Not Used | I187: 55 | J187: 0 | K187: 0 | Q187: 68 | R187: Not Used | V187: 55 | W187: 0 | X187: 0
D188: 69 | E188: Not Used | I188: 55 | J188: 0 | K188: 0 | Q188: 69 | R188: Not Used | V188: 55 | W188: 0 | X188: 0
D189: 70 | E189: Not Used | I189: 55 | J189: 0 | K189: 0 | Q189: 70 | R189: Not Used | V189: 55 | W189: 0 | X189: 0
D190: 71 | E190: Not Used | I190: 55 | J190: 0 | K190: 0 | Q190: 71 | R190: Not Used | V190: 55 | W190: 0 | X190: 0
D191: 72 | E191: Not Used | I191: 55 | J191: 0 | K191: 0 | Q191: 72 | R191: Not Used | V191: 55 | W191: 0 | X191: 0
D192: 73 | E192: Not Used | I192: 55 | J192: 0 | K192: 0 | Q192: 73 | R192: Not Used | V192: 55 | W192: 0 | X192: 0
D193: 74 | E193: Not Used | I193: 55 | J193: 0 | K193: 0 | Q193: 74 | R193: Not Used | V193: 55 | W193: 0 | X193: 0
D194: 75 | E194: Not Used | I194: 55 | J194: 0 | K194: 0 | Q194: 75 | R194: Not Used | V194: 55 | W194: 0 | X194: 0
D195: 76 | E195: Not Used | I195: 55 | J195: 0 | K195: 0 | Q195: 76 | R195: Not Used | V195: 55 | W195: 0 | X195: 0
D196: 77 | E196: Not Used | I196: 55 | J196: 0 | K196: 0 | Q196: 77 | R196: Not Used | V196: 55 | W196: 0 | X196: 0
D197: 78 | E197: Not Used | I197: 55 | J197: 0 | K197: 0 | Q197: 78 | R197: Not Used | V197: 55 | W197: 0 | X197: 0
D198: 79 | E198: Not Used | I198: 55 | J198: 0 | K198: 0 | Q198: 79 | R198: Not Used | V198: 55 | W198: 0 | X198: 0
D199: 80 | E199: Not Used | I199: =IF(ISNUMBER(H199),G199/H199,55) -> 55 | J199: =INDEX(ModelGroup,D199,5) -> 0 | K199: =INDEX(ModelGroup,D199,6) -> 0 | Q199: 80 | R199: Not Used | V199: =IF(ISNUMBER(U199),T199/U199,55) -> 55 | W199: =INDEX(ModelGroup,Q199,5) -> 0 | X199: =INDEX(ModelGroup,Q199,6) -> 0
D200: 81 | E200: Not Used | I200: 55 | J200: 0 | K200: 0 | Q200: 81 | R200: Not Used | V200: 55 | W200: 0 | X200: 0
D201: 82 | E201: Not Used | I201: 55 | J201: 0 | K201: 0 | Q201: 82 | R201: Not Used | V201: 55 | W201: 0 | X201: 0
D202: 83 | E202: Not Used | I202: 55 | J202: 0 | K202: 0 | Q202: 83 | R202: Not Used | V202: 55 | W202: 0 | X202: 0
D203: 84 | E203: Not Used | I203: 55 | J203: 0 | K203: 0 | Q203: 84 | R203: Not Used | V203: 55 | W203: 0 | X203: 0
D204: 85 | E204: Not Used | I204: 55 | J204: 0 | K204: 0 | Q204: 85 | R204: Not Used | V204: 55 | W204: 0 | X204: 0
D205: 86 | E205: Not Used | I205: 55 | J205: 0 | K205: 0 | Q205: 86 | R205: Not Used | V205: 55 | W205: 0 | X205: 0
D206: 87 | E206: Not Used | I206: 55 | J206: 0 | K206: 0 | Q206: 87 | R206: Not Used | V206: 55 | W206: 0 | X206: 0
D207: 88 | E207: Not Used | I207: 55 | J207: 0 | K207: 0 | Q207: 88 | R207: Not Used | V207: 55 | W207: 0 | X207: 0
D208: 89 | E208: Not Used | I208: 55 | J208: 0 | K208: 0 | Q208: 89 | R208: Not Used | V208: 55 | W208: 0 | X208: 0
D209: 90 | E209: Not Used | I209: 55 | J209: 0 | K209: 0 | Q209: 90 | R209: Not Used | V209: 55 | W209: 0 | X209: 0
D210: 91 | E210: Not Used | I210: 55 | J210: 0 | K210: 0 | Q210: 91 | R210: Not Used | V210: 55 | W210: 0 | X210: 0
D211: 92 | E211: Not Used | I211: 55 | J211: 0 | K211: 0 | Q211: 92 | R211: Not Used | V211: 55 | W211: 0 | X211: 0
D212: 93 | E212: Not Used | I212: 55 | J212: 0 | K212: 0 | Q212: 93 | R212: Not Used | V212: 55 | W212: 0 | X212: 0
... 110 more rows

Sheet 3) Results
B2: District: | E2: ='1) Project Information'!E2 -> HQ
O3: EA: | P3: ='1) Project Information'!Q3 -> 0
B4: PROJECT: | E4: =ProjName -> Hypothetical Project | O4: PPNO: | P4: ='1) Project Information'!Q4 -> 0
D9: 3 | E9: INVESTMENT ANALYSIS
E10: SUMMARY RESULTS
O12: Average | P12: Total Over
E13: Life-Cycle Costs (mil. $) | H13: =LifeCycleCost/1000000 -> 103.0777184 | L13: ITEMIZED BENEFITS (mil. $) | O13: Annual | P13: 20 Years
E14: Life-Cycle Benefits (mil. $) | H14: =LifeCycleBene/1000000 -> 409.5327705 | L14: Travel Time Savings | O14: =P14/20 -> 18.41400954 | P14: =('Final Calculations'!C55+'Final Calculations'!G55+'Final Calculations'!K55+'Final Calculations'!O55)/1000000 -> 368.2801909
E15: Net Present Value (mil. $) | H15: =NetPresentValue/1000000 -> 306.4550521 | L15: Veh. Op. Cost Savings | O15: =P15/20 -> -2.600622823 | P15: =('Final Calculations'!D55+'Final Calculations'!H55+'Final Calculations'!L55+'Final Calculations'!P55)/1000000 -> -52.01245647
L16: Accident Cost Savings | O16: =P16/20 -> 4.437402876 | P16: =('Final Calculations'!E55+'Final Calculations'!I55+'Final Calculations'!M55+'Final Calculations'!Q55)/1000000 -> 88.74805753
E17: Benefit / Cost Ratio: | H17: =IF(LifeCycleCost=0,"N/A",LifeCycleBene/LifeCycleCost) -> 3.973048462 | L17: Emission Cost Savings | O17: =P17/20 -> 0.2258489302 | P17: =('Final Calculations'!F55+'Final Calculations'!J55+'Final Calculations'!N55+'Final Calculations'!R55)/1000000 -> 4.516978603
L18: TOTAL BENEFITS | O18: =P18/20 -> 20.47663853 | P18: =SUM(P14:P17) -> 409.5327705
E19: Rate of Return on Investment: | H19: =ReturnOnInvest -> 0.2480845439
L20: Person-Hours of Time Saved | O20: =P20/20 -> 2576839.306 | P20: ='Final Calculations'!C57+'Final Calculations'!G57+'Final Calculations'!K57+'Final Calculations'!O57 -> 51536786.13
E21: Payback Period: | H21: =Payback -> 3 years | L21: CO2 Emissions Saved (tons) | O21: =P21/20 -> 5992.664395 | P21: ='Final Calculations'!C58+'Final Calculations'!G58+'Final Calculations'!K58+'Final Calculations'!O58 -> 119853.2879
L22: CO2 Emissions Saved (mil. $) | O22: =P22/20 -> 0.1215122471 | P22: =('Final Calculations'!C59+'Final Calculations'!G59+'Final Calculations'!K59+'Final Calculations'!O59)/1000000 -> 2.430244941
F28: Should benefit-cost results include:
G30: 1) Induced Travel? (y/n) | M30: Y
M31: Default = Y
G32: 2) Vehicle Operating Costs? (y/n) | M32: Y
M33: Default = Y
G34: 3) Accident Costs are not included
G36: 4) Vehicle Emissions? (y/n) | M36: Y
G37: includes value for CO2e | M37: Default = Y

Sheet Travel Time
B1: Travel Time Benefits
B3: This sheet calculates total travel time benefits on highway and transit.
B5: Formulas:
H6: TT Savings = Travel Time Reduction x Avg. Value of Time
B7: Avg. Annual Volume = Avg. Daily Traffic x Number of Days in Model Year | H7: $ / year | J7: $/hour
B8: vehicles / yr | H8: Avg. Value of Time (varies by vehicle type)
B10: Travel Time = AVO x Avg. Annual Volume x Affected Length / Speed | H10: Induced = Change in Trips x Change in Travel Time * 0.5
B11: vehicle-hrs / yr | D11: vehicles / yr x miles | F11: miles/hour
B15: A | C15: MODEL BENEFITS | AG15: C | AH15: SUMMARY OF TRAVEL TIME BENEFITS | AR15: SUMMARY OF TRAVEL TIME BENEFITS (continued) | BB15: SUMMARY OF TRAVEL TIME BENEFITS (continued) | BL15: SUMMARY OF TRAVEL TIME BENEFITS (continued) | BV15: SUMMARY OF TRAVEL TIME BENEFITS (continued) | CF15: SUMMARY OF TRAVEL TIME BENEFITS (continued) | CP15: SUMMARY OF TRAVEL TIME BENEFITS (continued) | CZ15: SUMMARY OF TRAVEL TIME BENEFITS (continued) | DJ15: SUMMARY OF TRAVEL TIME BENEFITS (continued) | DT15: SUMMARY OF TRAVEL TIME BENEFITS (continued) | ED15: SUMMARY OF TRAVEL TIME BENEFITS (continued)
A18: 1 | B18: =IF(ISBLANK(INDEX(ModelGroup,A18,1)),"Not Used",INDEX(ModelGroup,A18,1)) -> 5 mph
C20: ANNUAL VHT | E20: AVERAGE VEH OCC | G20: ANNUAL PERSON-TRIPS | I20: AVERAGE TRAVEL TIME | K20: PERCENT TRUCKS | M20: TIME BENEFIT | R20: Total | AH20: 1 | AI20: 2 | AJ20: 3 | AK20: 4 | AL20: 5 | AM20: 6 | AN20: 7 | AO20: 8 | AP20: 9 | AQ20: 10 | AR20: 11 | AS20: 12 | AT20: 13 | AU20: 14 | AV20: 15 | AW20: 16 | AX20: 17 | AY20: 18 | AZ20: 19 | BA20: 20 | BB20: 21 | BC20: 22 | BD20: 23 | BE20: 24 | BF20: 25 | BG20: 26 | BH20: 27 | BI20: 28 | BJ20: 29 | BK20: 30 | BL20: 31 | BM20: 32 | BN20: 33 | BO20: 34 | BP20: 35 | BQ20: 36 | BR20: 37 | BS20: 38 | BT20: 39 | BU20: 40 | BV20: 41 | BW20: 42 | BX20: 43 | BY20: 44 | BZ20: 45 | CA20: 46 | CB20: 47 | CC20: 48 | CD20: 49 | CE20: 50 | CF20: 51 | CG20: 52 | CH20: 53 | CI20: 54 | CJ20: 55 | CK20: 56 | CL20: 57 | CM20: 58 | CN20: 59 | CO20: 60 | CP20: 61 | CQ20: 62 | CR20: 63 | CS20: 64 | CT20: 65 | CU20: 66 | CV20: 67 | CW20: 68 | CX20: 69 | CY20: 70 | CZ20: 71 | DA20: 72 | DB20: 73 | DC20: 74 | DD20: 75 | DE20: 76 | DF20: 77 | DG20: 78 | DH20: 79 | DI20: 80 | DJ20: 81 | DK20: 82 | DL20: 83 | DM20: 84 | DN20: 85 | DO20: 86 | DP20: 87 | DQ20: 88 | DR20: 89 | DS20: 90 | DT20: 91 | DU20: 92 | DV20: 93 | DW20: 94 | DX20: 95 | DY20: 96 | DZ20: 97 | EA20: 98 | EB20: 99 | EC20: 100 | ED20: Present | EH20: Total
C21: (veh-hours/yr) | E21: (persons/vehicle) | G21: (trips/yr) | I21: (hours) | K21: (%) | M21: ($/yr) | R21: Per-Hrs | AH21: =IF(ISBLANK(INDEX(ModelGroup,AH20,1)),"Not Used",INDEX(ModelGroup,AH20,1)) -> 5 mph | AI21: 10 mph | AJ21: 15 mph | AK21: 20 mph | AL21: 25 mph | AM21: 30 mph | AN21: 35 mph | AO21: 40 mph | AP21: 45 mph | AQ21: 50 mph | AR21: 55 mph | AS21: 60 mph | AT21: 65 mph | AU21: 70 mph | AV21: Not Used | AW21: Not Used | AX21: Not Used | AY21: Not Used | AZ21: Not Used | BA21: Not Used | BB21: Not Used | BC21: Not Used | BD21: Not Used | BE21: Not Used | BF21: Not Used | BG21: Not Used | BH21: Not Used | BI21: Not Used | BJ21: Not Used | BK21: Not Used | BL21: Not Used | BM21: Not Used | BN21: =IF(ISBLANK(INDEX(ModelGroup,BN20,1)),"Not Used",INDEX(ModelGroup,BN20,1)) -> Not Used | BO21: Not Used | BP21: Not Used | BQ21: Not Used | BR21: Not Used | BS21: Not Used | BT21: Not Used | BU21: Not Used | BV21: Not Used | BW21: Not Used | BX21: Not Used | BY21: Not Used | BZ21: Not Used | CA21: Not Used | CB21: Not Used | CC21: Not Used | CD21: Not Used | CE21: Not Used | CF21: Not Used | CG21: Not Used | CH21: Not Used | CI21: Not Used | CJ21: Not Used | CK21: Not Used | CL21: Not Used | CM21: Not Used | CN21: Not Used | CO21: Not Used | CP21: Not Used | CQ21: Not Used | CR21: Not Used | CS21: Not Used | CT21: =IF(ISBLANK(INDEX(ModelGroup,CT20,1)),"Not Used",INDEX(ModelGroup,CT20,1)) -> Not Used | CU21: Not Used | CV21: Not Used | CW21: Not Used | CX21: Not Used | CY21: Not Used | CZ21: Not Used | DA21: Not Used | DB21: Not Used | DC21: Not Used | DD21: Not Used | DE21: Not Used | DF21: Not Used | DG21: Not Used | DH21: Not Used | DI21: Not Used | DJ21: Not Used | DK21: Not Used | DL21: Not Used | DM21: Not Used | DN21: Not Used | DO21: Not Used | DP21: Not Used | DQ21: Not Used | DR21: Not Used | DS21: Not Used | DT21: Not Used | DU21: Not Used | DV21: Not Used | DW21: Not Used | DX21: Not Used | DY21: Not Used | DZ21: =IF(ISBLANK(INDEX(ModelGroup,DZ20,1)),"Not Used",INDEX(ModelGroup,DZ20,1)) -> Not Used | EA21: =IF(ISBLANK(INDEX(ModelGroup,EA20,1)),"Not Used",INDEX(ModelGroup,EA20,1)) -> Not Used | EB21: =IF(ISBLANK(INDEX(ModelGroup,EB20,1)),"Not Used",INDEX(ModelGroup,EB20,1)) -> Not Used | EC21: =IF(ISBLANK(INDEX(ModelGroup,EC20,1)),"Not Used",INDEX(ModelGroup,EC20,1)) -> Not Used | ED21: Value of | EH21: Per-Hrs
B22: Year | M22: Existing | N22: New | O22: Constant | P22: Present | R22: of Time | AG22: Year | ED22: Travel Time | EF22: Constant | EH22: of Time
C23: No Build | D23: Build | E23: No Build | F23: Build | G23: No Build | H23: Build | I23: No Build | J23: Build | K23: No Build | L23: Build | M23: Users | N23: (Induced) | O23: Dollars | P23: Value | R23: Saved | ED23: =IF(Induced="Y","Benefits","Benefits*") -> Benefits | EF23: Dollars | EH23: Saved
B24: =Year1 -> -8 | C24: =INDEX(ModelData1NB,A18,3)*AnnualFactor -> 590017.8943 | D24: =INDEX(ModelData1B,A18,3)*AnnualFactor -> 579404.8934 | E24: =INDEX(ModelData1NB,A18,5) -> 1.08 | F24: =INDEX(ModelData1B,A18,5) -> 1.08 | G24: =IF(ISNUMBER(INDEX(ModelData1NB,A18,1)),INDEX(ModelData1NB,A18,1)*AnnualFactor,1) -> 1 | H24: =IF(ISNUMBER(INDEX(ModelData1B,A18,1)),INDEX(ModelData1B,A18,1)*AnnualFactor,1) -> 1 | I24: =C24*E24/G24 -> 637219.3258 | J24: =D24*F24/H24 -> 625757.2848 | K24: =INDEX(ModelData1NB,A18,6) -> 0.13 | L24: =INDEX(ModelData1B,A18,6) -> 0.13 | M24: =(I24*(K24*ValTimeTruck+(1-K24)*ValTimeAuto)-J24*(L24*ValTimeTruck+(1-L24)*ValTimeAuto))*MIN(G24,H24)*(1+TTUprater)^($B24+Adjust+Construct-1) -> 166862.1642 | N24: =IF(AND(H24>G24,Induced="Y"),(I24*(K24*ValTimeTruck+(1-K24)*ValTimeAuto)-J24*(L24*ValTimeTruck+(1-L24)*ValTimeAuto))*(H24-G24)*0.5,0)*(1+TTUprater)^($B24+Adjust+Construct-1) -> 0 | O24: =SUM(M24:N24) -> 166862.1642 | P24: =O24/(1+DiscRate)^(B24+Adjust+Construct-1) -> 234032.8172 | R24: =(I24-J24)*MIN(G24,H24) -> 11462.04096 | AG24: 1 | AH24: =OFFSET($P9,MATCH(AH$20,$A:$A),0) -> 519666.547 | AI24: 8344273.027 | AJ24: =OFFSET($P9,MATCH(AJ$20,$A:$A),0) -> 3065148.22 | AK24: 12584962.1 | AL24: 1060734.356 | AM24: -14942540.45 | AN24: 42794776.86 | AO24: -9277402.694 | AP24: 10713262.84 | AQ24: -35386348.12 | AR24: -2365378.523 | AS24: -891116.5879 | AT24: =OFFSET($P9,MATCH(AT$20,$A:$A),0) -> 10775334.11 | AU24: -1453348.02 | AV24: 0 | AW24: 0 | AX24: 0 | AY24: 0 | AZ24: 0 | BA24: 0 | BB24: =OFFSET($P9,MATCH(BB$20,$A:$A),0) -> 0 | BC24: 0 | BD24: =OFFSET($P9,MATCH(BD$20,$A:$A),0) -> 0 | BE24: 0 | BF24: 0 | BG24: 0 | BH24: 0 | BI24: 0 | BJ24: 0 | BK24: 0 | BL24: =OFFSET($P9,MATCH(BL$20,$A:$A),0) -> 0 | BM24: 0 | BN24: =OFFSET($P9,MATCH(BN$20,$A:$A),0) -> 0 | BO24: 0 | BP24: 0 | BQ24: 0 | BR24: 0 | BS24: 0 | BT24: 0 | BU24: 0 | BV24: =OFFSET($P9,MATCH(BV$20,$A:$A),0) -> 0 | BW24: 0 | BX24: =OFFSET($P9,MATCH(BX$20,$A:$A),0) -> 0 | BY24: 0 | BZ24: 0 | CA24: 0 | CB24: 0 | CC24: 0 | CD24: 0 | CE24: 0 | CF24: =OFFSET($P9,MATCH(CF$20,$A:$A),0) -> 0 | CG24: 0 | CH24: =OFFSET($P9,MATCH(CH$20,$A:$A),0) -> 0 | CI24: 0 | CJ24: 0 | CK24: 0 | CL24: 0 | CM24: 0 | CN24: 0 | CO24: 0 | CP24: =OFFSET($P9,MATCH(CP$20,$A:$A),0) -> 0 | CQ24: 0 | CR24: =OFFSET($P9,MATCH(CR$20,$A:$A),0) -> 0 | CS24: 0 | CT24: 0 | CU24: 0 | CV24: 0 | CW24: 0 | CX24: 0 | CY24: 0 | CZ24: =OFFSET($P9,MATCH(CZ$20,$A:$A),0) -> 0 | DA24: 0 | DB24: =OFFSET($P9,MATCH(DB$20,$A:$A),0) -> 0 | DC24: 0 | DD24: 0 | DE24: 0 | DF24: 0 | DG24: 0 | DH24: 0 | DI24: 0 | DJ24: =OFFSET($P9,MATCH(DJ$20,$A:$A),0) -> 0 | DK24: 0 | DL24: =OFFSET($P9,MATCH(DL$20,$A:$A),0) -> 0 | DM24: 0 | DN24: 0 | DO24: 0 | DP24: 0 | DQ24: 0 | DR24: 0 | DS24: 0 | DT24: =OFFSET($P9,MATCH(DT$20,$A:$A),0) -> 0 | DU24: 0 | DV24: 0 | DW24: 0 | DX24: 0 | DY24: 0 | DZ24: 0 | EA24: 0 | EB24: 0 | EC24: 0 | ED24: =SUM(AH24:EC24) -> 25542023.68 | EF24: =$ED24*(1+DiscRate)^($AG24+Adjust+Construct-1) -> 33480382.73 | EH24: =SUM(AH58:EC58) -> 2102820.17
B25: =Year20 -> 17 | C25: =INDEX(ModelData20NB,A18,3)*AnnualFactor -> 9237957.653 | D25: =INDEX(ModelData20B,A18,3)*AnnualFactor -> 9146786.54 | E25: =INDEX(ModelData20NB,A18,5) -> 1.08 | F25: =INDEX(ModelData20B,A18,5) -> 1.08 | G25: =IF(ISNUMBER(INDEX(ModelData20NB,A18,1)),INDEX(ModelData20NB,A18,1)*AnnualFactor,1) -> 1 | H25: =IF(ISNUMBER(INDEX(ModelData20B,A18,1)),INDEX(ModelData20B,A18,1)*AnnualFactor,1) -> 1 | I25: =C25*E25/G25 -> 9976994.265 | J25: =D25*F25/H25 -> 9878529.463 | K25: =INDEX(ModelData20NB,A18,6) -> 0.13 | L25: =INDEX(ModelData20B,A18,6) -> 0.13 | M25: =(I25*(K25*ValTimeTruck+(1-K25)*ValTimeAuto)-J25*(L25*ValTimeTruck+(1-L25)*ValTimeAuto))*MIN(G25,H25)*(1+TTUprater)^($B25+Adjust+Construct-1) -> 1838278.36 | N25: =IF(AND(H25>G25,Induced="Y"),(I25*(K25*ValTimeTruck+(1-K25)*ValTimeAuto)-J25*(L25*ValTimeTruck+(1-L25)*ValTimeAuto))*(H25-G25)*0.5,0)*(1+TTUprater)^($B25+Adjust+Construct-1) -> 0 | O25: =SUM(M25:N25) -> 1838278.36 | P25: =O25/(1+DiscRate)^(B25+Adjust+Construct-1) -> 475046.0608 | R25: =(I25-J25)*MIN(G25,H25) -> 98464.80257 | AG25: 2 | AH25: 530427.3682 | AI25: 8489381.334 | AJ25: =OFFSET($P10,MATCH(AJ$20,$A:$A),0) -> 3072886.086 | AK25: 12613042.5 | AL25: 989824.9169 | AM25: -14684528.72 | AN25: 40875736.06 | AO25: -8981994.497 | AP25: 10317983.16 | AQ25: -33985233.48 | AR25: -2325362.029 | AS25: -870285.8535 | AT25: =OFFSET($P10,MATCH(AT$20,$A:$A),0) -> 10045486.88 | AU25: -1405514.801 | AV25: 0 | AW25: 0 | AX25: 0 | AY25: 0 | AZ25: 0 | BA25: 0 | BB25: 0 | BC25: 0 | BD25: =OFFSET($P10,MATCH(BD$20,$A:$A),0) -> 0 | BE25: 0 | BF25: 0 | BG25: 0 | BH25: 0 | BI25: 0 | BJ25: 0 | BK25: 0 | BL25: 0 | BM25: 0 | BN25: =OFFSET($P10,MATCH(BN$20,$A:$A),0) -> 0 | BO25: 0 | BP25: 0 | BQ25: 0 | BR25: 0 | BS25: 0 | BT25: 0 | BU25: 0 | BV25: 0 | BW25: 0 | BX25: =OFFSET($P10,MATCH(BX$20,$A:$A),0) -> 0 | BY25: 0 | BZ25: 0 | CA25: 0 | CB25: 0 | CC25: 0 | CD25: 0 | CE25: 0 | CF25: 0 | CG25: 0 | CH25: =OFFSET($P10,MATCH(CH$20,$A:$A),0) -> 0 | CI25: 0 | CJ25: 0 | CK25: 0 | CL25: 0 | CM25: 0 | CN25: 0 | CO25: 0 | CP25: 0 | CQ25: 0 | CR25: =OFFSET($P10,MATCH(CR$20,$A:$A),0) -> 0 | CS25: 0 | CT25: 0 | CU25: 0 | CV25: 0 | CW25: 0 | CX25: 0 | CY25: 0 | CZ25: 0 | DA25: 0 | DB25: =OFFSET($P10,MATCH(DB$20,$A:$A),0) -> 0 | DC25: 0 | DD25: 0 | DE25: 0 | DF25: 0 | DG25: 0 | DH25: 0 | DI25: 0 | DJ25: 0 | DK25: 0 | DL25: =OFFSET($P10,MATCH(DL$20,$A:$A),0) -> 0 | DM25: 0 | DN25: 0 | DO25: 0 | DP25: 0 | DQ25: 0 | DR25: 0 | DS25: 0 | DT25: =OFFSET($P10,MATCH(DT$20,$A:$A),0) -> 0 | DU25: 0 | DV25: 0 | DW25: 0 | DX25: 0 | DY25: 0 | DZ25: 0 | EA25: 0 | EB25: 0 | EC25: 0 | ED25: =SUM(AH25:EC25) -> 24681848.93 | EF25: 34617569.93 | EH25: 2152716.921
AG26: 3 | AH26: 538347.3394 | AI26: 8591978.251 | AJ26: =OFFSET($P11,MATCH(AJ$20,$A:$A),0) -> 3070118.165 | AK26: 12598401.8 | AL26: 923532.5867 | AM26: -14408467.87 | AN26: 39037351.78 | AO26: -8690544.517 | AP26: 9933347.343 | AQ26: -32629985.09 | AR26: -2282395.718 | AS26: -848989.2676 | AT26: =OFFSET($P11,MATCH(AT$20,$A:$A),0) -> 9363609.939 | AU26: -1358476.178 | AV26: 0 | AW26: 0 | AX26: 0 | AY26: 0 | AZ26: 0 | BA26: 0 | BB26: 0 | BC26: 0 | BD26: =OFFSET($P11,MATCH(BD$20,$A:$A),0) -> 0 | BE26: 0 | BF26: 0 | BG26: 0 | BH26: 0 | BI26: 0 | BJ26: 0 | BK26: 0 | BL26: 0 | BM26: 0 | BN26: =OFFSET($P11,MATCH(BN$20,$A:$A),0) -> 0 | BO26: 0 | BP26: 0 | BQ26: 0 | BR26: 0 | BS26: 0 | BT26: 0 | BU26: 0 | BV26: 0 | BW26: 0 | BX26: =OFFSET($P11,MATCH(BX$20,$A:$A),0) -> 0 | BY26: 0 | BZ26: 0 | CA26: 0 | CB26: 0 | CC26: 0 | CD26: 0 | CE26: 0 | CF26: 0 | CG26: 0 | CH26: =OFFSET($P11,MATCH(CH$20,$A:$A),0) -> 0 | CI26: 0 | CJ26: 0 | CK26: 0 | CL26: 0 | CM26: 0 | CN26: 0 | CO26: 0 | CP26: 0 | CQ26: 0 | CR26: =OFFSET($P11,MATCH(CR$20,$A:$A),0) -> 0 | CS26: 0 | CT26: 0 | CU26: 0 | CV26: 0 | CW26: 0 | CX26: 0 | CY26: 0 | CZ26: 0 | DA26: 0 | DB26: =OFFSET($P11,MATCH(DB$20,$A:$A),0) -> 0 | DC26: 0 | DD26: 0 | DE26: 0 | DF26: 0 | DG26: 0 | DH26: 0 | DI26: 0 | DJ26: 0 | DK26: 0 | DL26: =OFFSET($P11,MATCH(DL$20,$A:$A),0) -> 0 | DM26: 0 | DN26: 0 | DO26: 0 | DP26: 0 | DQ26: 0 | DR26: 0 | DS26: 0 | DT26: =OFFSET($P11,MATCH(DT$20,$A:$A),0) -> 0 | DU26: 0 | DV26: 0 | DW26: 0 | DX26: 0 | DY26: 0 | DZ26: 0 | EA26: 0 | EB26: 0 | EC26: 0 | ED26: 23837828.56 | EF26: 35774152.84 | EH26: 2202613.672
B27: 1 | C27: =TREND(C24:C25,B24:B25,B27) -> 3703276.207 | D27: =TREND(D24:D25,B24:B25,B27) -> 3663662.286 | E27: =TREND(E24:E25,B24:B25,B27) -> 1.08 | F27: =TREND(F24:F25,B24:B25,B27) -> 1.08 | G27: =TREND(G24:G25,B24:B25,B27) -> 1 | H27: =TREND(H24:H25,B24:B25,B27) -> 1 | I27: =C27*E27/G27 -> 3999538.304 | J27: =D27*F27/H27 -> 3956755.269 | K27: =TREND(K24:K25,B24:B25,B27) -> 0.13 | L27: =TREND(L24:L25,B24:B25,B27) -> 0.13 | M27: =(I27*(K27*ValTimeTruck+(1-K27)*ValTimeAuto)-J27*(L27*ValTimeTruck+(1-L27)*ValTimeAuto))*MIN(G27,H27)*(1+TTUprater)^($B27+Adjust+Construct-1) -> 681176.8364 | N27: =IF(AND(H27>G27,Induced="Y"),(I27*(K27*ValTimeTruck+(1-K27)*ValTimeAuto)-J27*(L27*ValTimeTruck+(1-L27)*ValTimeAuto))*(H27-G27)*0.5,0)*(1+TTUprater)^($B27+Adjust+Construct-1) -> 0 | O27: =SUM(M27:N27) -> 681176.8364 | P27: =O27/(1+DiscRate)^(B27+Adjust+Construct-1) -> 519666.547 | R27: =(I27-J27)*MIN(G27,H27) -> 42783.03514 | AG27: 4 | AH27: =OFFSET($P12,MATCH(AH$20,$A:$A),0) -> 543711.2247 | AI27: =OFFSET($P12,MATCH(AI$20,$A:$A),0) -> 8656375.136 | AJ27: =OFFSET($P12,MATCH(AJ$20,$A:$A),0) -> 3057998.345 | AK27: 12545742.86 | AL27: 861562.5253 | AM27: -14117193.39 | AN27: 37276612.61 | AO27: -8403537.718 | AP27: 9559404.6 | AQ27: -31319864.71 | AR27: -2236936.239 | AS27: -827344.5749 | AT27: =OFFSET($P12,MATCH(AT$20,$A:$A),0) -> 8726618.354 | AU27: =OFFSET($P12,MATCH(AU$20,$A:$A),0) -> -1312293.443 | AV27: 0 | AW27: 0 | AX27: 0 | AY27: 0 | AZ27: 0 | BA27: 0 | BB27: 0 | BC27: 0 | BD27: =OFFSET($P12,MATCH(BD$20,$A:$A),0) -> 0 | BE27: =OFFSET($P12,MATCH(BE$20,$A:$A),0) -> 0 | BF27: 0 | BG27: 0 | BH27: 0 | BI27: 0 | BJ27: 0 | BK27: 0 | BL27: 0 | BM27: 0 | BN27: =OFFSET($P12,MATCH(BN$20,$A:$A),0) -> 0 | BO27: =OFFSET($P12,MATCH(BO$20,$A:$A),0) -> 0 | BP27: 0 | BQ27: 0 | BR27: 0 | BS27: 0 | BT27: 0 | BU27: 0 | BV27: 0 | BW27: 0 | BX27: =OFFSET($P12,MATCH(BX$20,$A:$A),0) -> 0 | BY27: =OFFSET($P12,MATCH(BY$20,$A:$A),0) -> 0 | BZ27: 0 | CA27: 0 | CB27: 0 | CC27: 0 | CD27: 0 | CE27: 0 | CF27: 0 | CG27: 0 | CH27: =OFFSET($P12,MATCH(CH$20,$A:$A),0) -> 0 | CI27: =OFFSET($P12,MATCH(CI$20,$A:$A),0) -> 0 | CJ27: 0 | CK27: 0 | CL27: 0 | CM27: 0 | CN27: 0 | CO27: 0 | CP27: 0 | CQ27: 0 | CR27: =OFFSET($P12,MATCH(CR$20,$A:$A),0) -> 0 | CS27: =OFFSET($P12,MATCH(CS$20,$A:$A),0) -> 0 | CT27: 0 | CU27: 0 | CV27: 0 | CW27: 0 | CX27: 0 | CY27: 0 | CZ27: 0 | DA27: 0 | DB27: =OFFSET($P12,MATCH(DB$20,$A:$A),0) -> 0 | DC27: =OFFSET($P12,MATCH(DC$20,$A:$A),0) -> 0 | DD27: 0 | DE27: 0 | DF27: 0 | DG27: 0 | DH27: 0 | DI27: 0 | DJ27: 0 | DK27: 0 | DL27: =OFFSET($P12,MATCH(DL$20,$A:$A),0) -> 0 | DM27: =OFFSET($P12,MATCH(DM$20,$A:$A),0) -> 0 | DN27: 0 | DO27: 0 | DP27: 0 | DQ27: 0 | DR27: 0 | DS27: 0 | DT27: =OFFSET($P12,MATCH(DT$20,$A:$A),0) -> 0 | DU27: 0 | DV27: 0 | DW27: 0 | DX27: 0 | DY27: 0 | DZ27: 0 | EA27: 0 | EB27: 0 | EC27: 0 | ED27: 23010855.58 | EF27: 36950405.65 | EH27: 2252510.423
B28: 2 | C28: =TREND(C24:C25,B24:B25,B28) -> 4049193.798 | D28: =TREND(D24:D25,B24:B25,B28) -> 4006357.552 | E28: =TREND(E24:E25,B24:B25,B28) -> 1.08 | F28: =TREND(F24:F25,B24:B25,B28) -> 1.08 | G28: =TREND(G24:G25,B24:B25,B28) -> 1 | H28: =TREND(H24:H25,B24:B25,B28) -> 1 | I28: =C28*E28/G28 -> 4373129.302 | J28: 4326866.156 | K28: =TREND(K24:K25,B24:B25,B28) -> 0.13 | L28: =TREND(L24:L25,B24:B25,B28) -> 0.13 | M28: 743951.8232 | N28: 0 | O28: 743951.8232 | P28: 530427.3682 | R28: 46263.14561 | AG28: 5 | AH28: 546780.7845 | AI28: 8686533.501 | AJ28: =OFFSET($P13,MATCH(AJ$20,$A:$A),0) -> 3037584.141 | AK28: 12459375.44 | AL28: 803638.4404 | AM28: -13813279.52 | AN28: 35590591.27 | AO28: -8121392.227 | AP28: 9196165.148 | AQ28: -30054072.66 | AR28: -2189398.301 | AS28: -805457.7799 | AT28: =OFFSET($P13,MATCH(AT$20,$A:$A),0) -> 8131622.335 | AU28: -1267018.515 | AV28: 0 | AW28: 0 | AX28: 0 | AY28: 0 | AZ28: 0 | BA28: 0 | BB28: 0 | BC28: 0 | BD28: =OFFSET($P13,MATCH(BD$20,$A:$A),0) -> 0 | BE28: 0 | BF28: 0 | BG28: 0 | BH28: 0 | BI28: 0 | BJ28: 0 | BK28: 0 | BL28: 0 | BM28: 0 | BN28: =OFFSET($P13,MATCH(BN$20,$A:$A),0) -> 0 | BO28: 0 | BP28: 0 | BQ28: 0 | BR28: 0 | BS28: 0 | BT28: 0 | BU28: 0 | BV28: 0 | BW28: 0 | BX28: =OFFSET($P13,MATCH(BX$20,$A:$A),0) -> 0 | BY28: 0 | BZ28: 0 | CA28: 0 | CB28: 0 | CC28: 0 | CD28: 0 | CE28: 0 | CF28: 0 | CG28: 0 | CH28: =OFFSET($P13,MATCH(CH$20,$A:$A),0) -> 0 | CI28: 0 | CJ28: 0 | CK28: 0 | CL28: 0 | CM28: 0 | CN28: 0 | CO28: 0 | CP28: 0 | CQ28: 0 | CR28: =OFFSET($P13,MATCH(CR$20,$A:$A),0) -> 0 | CS28: 0 | CT28: 0 | CU28: 0 | CV28: 0 | CW28: 0 | CX28: 0 | CY28: 0 | CZ28: 0 | DA28: 0 | DB28: =OFFSET($P13,MATCH(DB$20,$A:$A),0) -> 0 | DC28: 0 | DD28: 0 | DE28: 0 | DF28: 0 | DG28: 0 | DH28: 0 | DI28: 0 | DJ28: 0 | DK28: 0 | DL28: =OFFSET($P13,MATCH(DL$20,$A:$A),0) -> 0 | DM28: 0 | DN28: 0 | DO28: 0 | DP28: 0 | DQ28: 0 | DR28: 0 | DS28: 0 | DT28: =OFFSET($P13,MATCH(DT$20,$A:$A),0) -> 0 | DU28: 0 | DV28: 0 | DW28: 0 | DX28: 0 | DY28: 0 | DZ28: 0 | EA28: 0 | EB28: 0 | EC28: 0 | ED28: 22201672.06 | EF28: 38146606.11 | EH28: 2302407.175
B29: 3 | C29: =TREND(C24:C25,B24:B25,B29) -> 4395111.388 | D29: =TREND(D24:D25,B24:B25,B29) -> 4349052.818 | E29: =TREND(E24:E25,B24:B25,B29) -> 1.08 | F29: =TREND(F24:F25,B24:B25,B29) -> 1.08 | G29: =TREND(G24:G25,B24:B25,B29) -> 1 | H29: =TREND(H24:H25,B24:B25,B29) -> 1 | I29: 4746720.299 | J29: 4696977.043 | K29: =TREND(K24:K25,B24:B25,B29) -> 0.13 | L29: =TREND(L24:L25,B24:B25,B29) -> 0.13 | M29: 807914.1921 | N29: 0 | O29: 807914.1921 | P29: 538347.3394 | R29: 49743.25607 | AG29: 6 | AH29: 547796.4602 | AI29: 8686090.692 | AJ29: =OFFSET($P14,MATCH(AJ$20,$A:$A),0) -> 3009843.873 | AK29: 12343245.51 | AL29: 749501.4352 | AM29: -13499059.63 | AN29: 33976444.62 | AO29: -7844465.311 | AP29: 8843604.436 | AQ29: -28831757.06 | AR29: -2140157.944 | AS29: -783424.0936 | AT29: =OFFSET($P14,MATCH(AT$20,$A:$A),0) -> 7575915.042 | AU29: -1222694.801 | AV29: 0 | AW29: 0 | AX29: 0 | AY29: 0 | AZ29: 0 | BA29: 0 | BB29: 0 | BC29: 0 | BD29: =OFFSET($P14,MATCH(BD$20,$A:$A),0) -> 0 | BE29: 0 | BF29: 0 | BG29: 0 | BH29: 0 | BI29: 0 | BJ29: 0 | BK29: 0 | BL29: 0 | BM29: 0 | BN29: =OFFSET($P14,MATCH(BN$20,$A:$A),0) -> 0 | BO29: 0 | BP29: 0 | BQ29: 0 | BR29: 0 | BS29: 0 | BT29: 0 | BU29: 0 | BV29: 0 | BW29: 0 | BX29: =OFFSET($P14,MATCH(BX$20,$A:$A),0) -> 0 | BY29: 0 | BZ29: 0 | CA29: 0 | CB29: 0 | CC29: 0 | CD29: 0 | CE29: 0 | CF29: 0 | CG29: 0 | CH29: =OFFSET($P14,MATCH(CH$20,$A:$A),0) -> 0 | CI29: 0 | CJ29: 0 | CK29: 0 | CL29: 0 | CM29: 0 | CN29: 0 | CO29: 0 | CP29: 0 | CQ29: 0 | CR29: =OFFSET($P14,MATCH(CR$20,$A:$A),0) -> 0 | CS29: 0 | CT29: 0 | CU29: 0 | CV29: 0 | CW29: 0 | CX29: 0 | CY29: 0 | CZ29: 0 | DA29: 0 | DB29: =OFFSET($P14,MATCH(DB$20,$A:$A),0) -> 0 | DC29: 0 | DD29: 0 | DE29: 0 | DF29: 0 | DG29: 0 | DH29: 0 | DI29: 0 | DJ29: 0 | DK29: 0 | DL29: =OFFSET($P14,MATCH(DL$20,$A:$A),0) -> 0 | DM29: 0 | DN29: 0 | DO29: 0 | DP29: 0 | DQ29: 0 | DR29: 0 | DS29: 0 | DT29: =OFFSET($P14,MATCH(DT$20,$A:$A),0) -> 0 | DU29: 0 | DV29: 0 | DW29: 0 | DX29: 0 | DY29: 0 | DZ29: 0 | EA29: 0 | EB29: 0 | EC29: 0 | ED29: 21410883.24 | EF29: 39363035.53 | EH29: 2352303.926
B30: 4 | C30: =TREND(C24:C25,B24:B25,B30) -> 4741028.978 | D30: =TREND(D24:D25,B24:B25,B30) -> 4691748.084 | E30: =TREND(E24:E25,B24:B25,B30) -> 1.08 | F30: =TREND(F24:F25,B24:B25,B30) -> 1.08 | G30: =TREND(G24:G25,B24:B25,B30) -> 1 | H30: =TREND(H24:H25,B24:B25,B30) -> 1 | I30: 5120311.297 | J30: 5067087.93 | K30: =TREND(K24:K25,B24:B25,B30) -> 0.13 | L30: =TREND(L24:L25,B24:B25,B30) -> 0.13 | M30: 873081.4132 | N30: 0 | O30: 873081.4132 | P30: 543711.2247 | R30: 53223.36653 | AG30: 7 | AH30: 546978.9421 | AI30: 8658383.786 | AJ30: =OFFSET($P15,MATCH(AJ$20,$A:$A),0) -> 2975663.347 | AK30: 12200962.49 | AL30: 698908.9255 | AM30: -13176645.16 | AN30: 32431413.44 | AO30: -7573058.88 | AP30: 8501667.011 | AQ30: -27652022.17 | AR30: -2089555.571 | AS30: -761328.81 | AT30: =OFFSET($P15,MATCH(AT$20,$A:$A),0) -> 7056961.157 | AU30: -1179357.984 | AV30: 0 | AW30: 0 | AX30: 0 | AY30: 0 | AZ30: 0 | BA30: 0 | BB30: 0 | BC30: 0 | BD30: =OFFSET($P15,MATCH(BD$20,$A:$A),0) -> 0 | BE30: 0 | BF30: 0 | BG30: 0 | BH30: 0 | BI30: 0 | BJ30: 0 | BK30: 0 | BL30: 0 | BM30: 0 | BN30: =OFFSET($P15,MATCH(BN$20,$A:$A),0) -> 0 | BO30: 0 | BP30: 0 | BQ30: 0 | BR30: 0 | BS30: 0 | BT30: 0 | BU30: 0 | BV30: 0 | BW30: 0 | BX30: =OFFSET($P15,MATCH(BX$20,$A:$A),0) -> 0 | BY30: 0 | BZ30: 0 | CA30: 0 | CB30: 0 | CC30: 0 | CD30: 0 | CE30: 0 | CF30: 0 | CG30: 0 | CH30: =OFFSET($P15,MATCH(CH$20,$A:$A),0) -> 0 | CI30: 0 | CJ30: 0 | CK30: 0 | CL30: 0 | CM30: 0 | CN30: 0 | CO30: 0 | CP30: 0 | CQ30: 0 | CR30: =OFFSET($P15,MATCH(CR$20,$A:$A),0) -> 0 | CS30: 0 | CT30: 0 | CU30: 0 | CV30: 0 | CW30: 0 | CX30: 0 | CY30: 0 | CZ30: 0 | DA30: 0 | DB30: =OFFSET($P15,MATCH(DB$20,$A:$A),0) -> 0 | DC30: 0 | DD30: 0 | DE30: 0 | DF30: 0 | DG30: 0 | DH30: 0 | DI30: 0 | DJ30: 0 | DK30: 0 | DL30: =OFFSET($P15,MATCH(DL$20,$A:$A),0) -> 0 | DM30: 0 | DN30: 0 | DO30: 0 | DP30: 0 | DQ30: 0 | DR30: 0 | DS30: 0 | DT30: =OFFSET($P15,MATCH(DT$20,$A:$A),0) -> 0 | DU30: 0 | DV30: 0 | DW30: 0 | DX30: 0 | DY30: 0 | DZ30: 0 | EA30: 0 | EB30: 0 | EC30: 0 | ED30: 20638970.52 | EF30: 40599978.88 | EH30: 2402200.677
B31: 5 | C31: =TREND(C24:C25,B24:B25,B31) -> 5086946.569 | D31: =TREND(D24:D25,B24:B25,B31) -> 5034443.349 | E31: =TREND(E24:E25,B24:B25,B31) -> 1.08 | F31: =TREND(F24:F25,B24:B25,B31) -> 1.08 | G31: =TREND(G24:G25,B24:B25,B31) -> 1 | H31: =TREND(H24:H25,B24:B25,B31) -> 1 | I31: 5493902.294 | J31: 5437198.817 | K31: =TREND(K24:K25,B24:B25,B31) -> 0.13 | L31: =TREND(L24:L25,B24:B25,B31) -> 0.13 | M31: 939471.1873 | N31: 0 | O31: 939471.1873 | P31: 546780.7845 | R31: 56703.477 | AG31: 8 | AH31: 544530.6283 | AI31: 8606471.832 | AJ31: =OFFSET($P16,MATCH(AJ$20,$A:$A),0) -> 2935852.059 | AK31: 12035824.6 | AL31: 651633.6254 | AM31: -12847943.16 | AN31: 30952821.95 | AO31: -7307424.578 | AP31: 8170270.06 | AQ31: -26513936.02 | AR31: -2037898.762 | AS31: -739248.1195 | AT31: =OFFSET($P16,MATCH(AT$20,$A:$A),0) -> 6572386.156 | AU31: -1137036.754 | AV31: 0 | AW31: 0 | AX31: 0 | AY31: 0 | AZ31: 0 | BA31: 0 | BB31: 0 | BC31: 0 | BD31: =OFFSET($P16,MATCH(BD$20,$A:$A),0) -> 0 | BE31: 0 | BF31: 0 | BG31: 0 | BH31: 0 | BI31: 0 | BJ31: 0 | BK31: 0 | BL31: 0 | BM31: 0 | BN31: =OFFSET($P16,MATCH(BN$20,$A:$A),0) -> 0 | BO31: 0 | BP31: 0 | BQ31: 0 | BR31: 0 | BS31: 0 | BT31: 0 | BU31: 0 | BV31: 0 | BW31: 0 | BX31: =OFFSET($P16,MATCH(BX$20,$A:$A),0) -> 0 | BY31: 0 | BZ31: 0 | CA31: 0 | CB31: 0 | CC31: 0 | CD31: 0 | CE31: 0 | CF31: 0 | CG31: 0 | CH31: =OFFSET($P16,MATCH(CH$20,$A:$A),0) -> 0 | CI31: 0 | CJ31: 0 | CK31: 0 | CL31: 0 | CM31: 0 | CN31: 0 | CO31: 0 | CP31: 0 | CQ31: 0 | CR31: =OFFSET($P16,MATCH(CR$20,$A:$A),0) -> 0 | CS31: 0 | CT31: 0 | CU31: 0 | CV31: 0 | CW31: 0 | CX31: 0 | CY31: 0 | CZ31: 0 | DA31: 0 | DB31: =OFFSET($P16,MATCH(DB$20,$A:$A),0) -> 0 | DC31: 0 | DD31: 0 | DE31: 0 | DF31: 0 | DG31: 0 | DH31: 0 | DI31: 0 | DJ31: 0 | DK31: 0 | DL31: =OFFSET($P16,MATCH(DL$20,$A:$A),0) -> 0 | DM31: 0 | DN31: 0 | DO31: 0 | DP31: 0 | DQ31: 0 | DR31: 0 | DS31: 0 | DT31: =OFFSET($P16,MATCH(DT$20,$A:$A),0) -> 0 | DU31: 0 | DV31: 0 | DW31: 0 | DX31: 0 | DY31: 0 | DZ31: 0 | EA31: 0 | EB31: 0 | EC31: 0 | ED31: 19886303.52 | EF31: 41857724.79 | EH31: 2452097.428
B32: 6 | C32: =TREND(C24:C25,B24:B25,B32) -> 5432864.159 | D32: =TREND(D24:D25,B24:B25,B32) -> 5377138.615 | E32: =TREND(E24:E25,B24:B25,B32) -> 1.08 | F32: =TREND(F24:F25,B24:B25,B32) -> 1.08 | G32: =TREND(G24:G25,B24:B25,B32) -> 1 | H32: =TREND(H24:H25,B24:B25,B32) -> 1 | I32: 5867493.292 | J32: 5807309.704 | K32: =TREND(K24:K25,B24:B25,B32) -> 0.13 | L32: =TREND(L24:L25,B24:B25,B32) -> 0.13 | M32: 1007101.449 | N32: 0 | O32: 1007101.449 | P32: 547796.4602 | R32: 60183.58746 | AG32: 9 | AH32: 540636.9825 | AI32: 8533156.535 | AJ32: =OFFSET($P17,MATCH(AJ$20,$A:$A),0) -> 2891148.974 | AK32: 11850842.39 | AL32: 607462.5931 | AM32: -12514672.56 | AN32: 29538077.14 | AO32: -7047768.469 | AP32: 7849306.655 | AQ32: -25416537.25 | AR32: -1985464.884 | AS32: -717249.8616 | AT32: =OFFSET($P17,MATCH(AT$20,$A:$A),0) -> 6119966.251 | AU32: -1095753.481 | AV32: 0 | AW32: 0 | AX32: 0 | AY32: 0 | AZ32: 0 | BA32: 0 | BB32: 0 | BC32: 0 | BD32: =OFFSET($P17,MATCH(BD$20,$A:$A),0) -> 0 | BE32: 0 | BF32: 0 | BG32: 0 | BH32: 0 | BI32: 0 | BJ32: 0 | BK32: 0 | BL32: 0 | BM32: 0 | BN32: =OFFSET($P17,MATCH(BN$20,$A:$A),0) -> 0 | BO32: 0 | BP32: 0 | BQ32: 0 | BR32: 0 | BS32: 0 | BT32: 0 | BU32: 0 | BV32: 0 | BW32: 0 | BX32: =OFFSET($P17,MATCH(BX$20,$A:$A),0) -> 0 | BY32: 0 | BZ32: 0 | CA32: 0 | CB32: 0 | CC32: 0 | CD32: 0 | CE32: 0 | CF32: 0 | CG32: 0 | CH32: =OFFSET($P17,MATCH(CH$20,$A:$A),0) -> 0 | CI32: 0 | CJ32: 0 | CK32: 0 | CL32: 0 | CM32: 0 | CN32: 0 | CO32: 0 | CP32: 0 | CQ32: 0 | CR32: =OFFSET($P17,MATCH(CR$20,$A:$A),0) -> 0 | CS32: 0 | CT32: 0 | CU32: 0 | CV32: 0 | CW32: 0 | CX32: 0 | CY32: 0 | CZ32: 0 | DA32: 0 | DB32: =OFFSET($P17,MATCH(DB$20,$A:$A),0) -> 0 | DC32: 0 | DD32: 0 | DE32: 0 | DF32: 0 | DG32: 0 | DH32: 0 | DI32: 0 | DJ32: 0 | DK32: 0 | DL32: =OFFSET($P17,MATCH(DL$20,$A:$A),0) -> 0 | DM32: 0 | DN32: 0 | DO32: 0 | DP32: 0 | DQ32: 0 | DR32: 0 | DS32: 0 | DT32: =OFFSET($P17,MATCH(DT$20,$A:$A),0) -> 0 | DU32: 0 | DV32: 0 | DW32: 0 | DX32: 0 | DY32: 0 | DZ32: 0 | EA32: 0 | EB32: 0 | EC32: 0 | ED32: 19153151.02 | EF32: 43136565.63 | EH32: 2501994.18
B33: 7 | C33: =TREND(C24:C25,B24:B25,B33) -> 5778781.75 | D33: =TREND(D24:D25,B24:B25,B33) -> 5719833.881 | E33: =TREND(E24:E25,B24:B25,B33) -> 1.08 | F33: =TREND(F24:F25,B24:B25,B33) -> 1.08 | G33: =TREND(G24:G25,B24:B25,B33) -> 1 | H33: =TREND(H24:H25,B24:B25,B33) -> 1 | I33: 6241084.289 | J33: 6177420.592 | K33: =TREND(K24:K25,B24:B25,B33) -> 0.13 | L33: =TREND(L24:L25,B24:B25,B33) -> 0.13 | M33: 1075990.368 | N33: 0 | O33: 1075990.368 | P33: 546978.9421 | R33: 63663.69793 | AG33: 10 | AH33: 535467.7963 | AI33: 8441001.502 | AJ33: =OFFSET($P18,MATCH(AJ$20,$A:$A),0) -> 2842227.886 | AK33: 11648760.65 | AL33: 566196.3382 | AM33: -12178379.3 | AN33: 28184667.88 | AO33: -6794255.355 | AP33: 7538648.718 | AQ33: -24358841.36 | AR33: -1932503.514 | AS33: -695394.2213 | AT33: =OFFSET($P18,MATCH(AT$20,$A:$A),0) -> 5697618.952 | AU33: -1055524.833 | AV33: 0 | AW33: 0 | AX33: 0 | AY33: 0 | AZ33: 0 | BA33: 0 | BB33: 0 | BC33: 0 | BD33: =OFFSET($P18,MATCH(BD$20,$A:$A),0) -> 0 | BE33: 0 | BF33: 0 | BG33: 0 | BH33: 0 | BI33: 0 | BJ33: 0 | BK33: 0 | BL33: 0 | BM33: 0 | BN33: =OFFSET($P18,MATCH(BN$20,$A:$A),0) -> 0 | BO33: 0 | BP33: 0 | BQ33: 0 | BR33: 0 | BS33: 0 | BT33: 0 | BU33: 0 | BV33: 0 | BW33: 0 | BX33: =OFFSET($P18,MATCH(BX$20,$A:$A),0) -> 0 | BY33: 0 | BZ33: 0 | CA33: 0 | CB33: 0 | CC33: 0 | CD33: 0 | CE33: 0 | CF33: 0 | CG33: 0 | CH33: =OFFSET($P18,MATCH(CH$20,$A:$A),0) -> 0 | CI33: 0 | CJ33: 0 | CK33: 0 | CL33: 0 | CM33: 0 | CN33: 0 | CO33: 0 | CP33: 0 | CQ33: 0 | CR33: =OFFSET($P18,MATCH(CR$20,$A:$A),0) -> 0 | CS33: 0 | CT33: 0 | CU33: 0 | CV33: 0 | CW33: 0 | CX33: 0 | CY33: 0 | CZ33: 0 | DA33: 0 | DB33: =OFFSET($P18,MATCH(DB$20,$A:$A),0) -> 0 | DC33: 0 | DD33: 0 | DE33: 0 | DF33: 0 | DG33: 0 | DH33: 0 | DI33: 0 | DJ33: 0 | DK33: 0 | DL33: =OFFSET($P18,MATCH(DL$20,$A:$A),0) -> 0 | DM33: 0 | DN33: 0 | DO33: 0 | DP33: 0 | DQ33: 0 | DR33: 0 | DS33: 0 | DT33: =OFFSET($P18,MATCH(DT$20,$A:$A),0) -> 0 | DU33: 0 | DV33: 0 | DW33: 0 | DX33: 0 | DY33: 0 | DZ33: 0 | EA33: 0 | EB33: 0 | EC33: 0 | ED33: 18439691.14 | EF33: 44436797.5 | EH33: 2551890.931
B34: 8 | C34: =TREND(C24:C25,B24:B25,B34) -> 6124699.34 | D34: =TREND(D24:D25,B24:B25,B34) -> 6062529.147 | E34: =TREND(E24:E25,B24:B25,B34) -> 1.08 | F34: =TREND(F24:F25,B24:B25,B34) -> 1.08 | G34: =TREND(G24:G25,B24:B25,B34) -> 1 | H34: =TREND(H24:H25,B24:B25,B34) -> 1 | I34: 6614675.287 | J34: 6547531.479 | K34: =TREND(K24:K25,B24:B25,B34) -> 0.13 | L34: =TREND(L24:L25,B24:B25,B34) -> 0.13 | M34: 1146156.356 | N34: 0 | O34: 1146156.356 | P34: 544530.6283 | R34: 67143.80839 | AG34: 11 | AH34: 529178.3641 | AI34: 8332350.131 | AJ34: =OFFSET($P19,MATCH(AJ$20,$A:$A),0) -> 2789702.406 | AK34: 11432078.74 | AL34: 527647.9816 | AM34: -11840450.29 | AN34: 26890163.92 | AO34: -6547012.761 | AP34: 7238149.724 | AQ34: -23339846.34 | AR34: -1879238.683 | AS34: -673734.3753 | AT34: =OFFSET($P19,MATCH(AT$20,$A:$A),0) -> 5303394.209 | AU34: -1016362.345 | AV34: 0 | AW34: 0 | AX34: 0 | AY34: 0 | AZ34: 0 | BA34: 0 | BB34: 0 | BC34: 0 | BD34: =OFFSET($P19,MATCH(BD$20,$A:$A),0) -> 0 | BE34: 0 | BF34: 0 | BG34: 0 | BH34: 0 | BI34: 0 | BJ34: 0 | BK34: 0 | BL34: 0 | BM34: 0 | BN34: =OFFSET($P19,MATCH(BN$20,$A:$A),0) -> 0 | BO34: 0 | BP34: 0 | BQ34: 0 | BR34: 0 | BS34: 0 | BT34: 0 | BU34: 0 | BV34: 0 | BW34: 0 | BX34: =OFFSET($P19,MATCH(BX$20,$A:$A),0) -> 0 | BY34: 0 | BZ34: 0 | CA34: 0 | CB34: 0 | CC34: 0 | CD34: 0 | CE34: 0 | CF34: 0 | CG34: 0 | CH34: =OFFSET($P19,MATCH(CH$20,$A:$A),0) -> 0 | CI34: 0 | CJ34: 0 | CK34: 0 | CL34: 0 | CM34: 0 | CN34: 0 | CO34: 0 | CP34: 0 | CQ34: 0 | CR34: =OFFSET($P19,MATCH(CR$20,$A:$A),0) -> 0 | CS34: 0 | CT34: 0 | CU34: 0 | CV34: 0 | CW34: 0 | CX34: 0 | CY34: 0 | CZ34: 0 | DA34: 0 | DB34: =OFFSET($P19,MATCH(DB$20,$A:$A),0) -> 0 | DC34: 0 | DD34: 0 | DE34: 0 | DF34: 0 | DG34: 0 | DH34: 0 | DI34: 0 | DJ34: 0 | DK34: 0 | DL34: =OFFSET($P19,MATCH(DL$20,$A:$A),0) -> 0 | DM34: 0 | DN34: 0 | DO34: 0 | DP34: 0 | DQ34: 0 | DR34: 0 | DS34: 0 | DT34: =OFFSET($P19,MATCH(DT$20,$A:$A),0) -> 0 | DU34: 0 | DV34: 0 | DW34: 0 | DX34: 0 | DY34: 0 | DZ34: 0 | EA34: 0 | EB34: 0 | EC34: 0 | ED34: 17746020.68 | EF34: 45758720.36 | EH34: 2601787.682
B35: 9 | C35: =TREND(C24:C25,B24:B25,B35) -> 6470616.93 | D35: =TREND(D24:D25,B24:B25,B35) -> 6405224.413 | E35: =TREND(E24:E25,B24:B25,B35) -> 1.08 | F35: =TREND(F24:F25,B24:B25,B35) -> 1.08 | G35: =TREND(G24:G25,B24:B25,B35) -> 1 | H35: =TREND(H24:H25,B24:B25,B35) -> 1 | I35: 6988266.285 | J35: 6917642.366 | K35: =TREND(K24:K25,B24:B25,B35) -> 0.13 | L35: =TREND(L24:L25,B24:B25,B35) -> 0.13 | M35: 1217618.065 | N35: 0 | O35: 1217618.065 | P35: 540636.9825 | R35: 70623.91886 | AG35: 12 | AH35: 521910.5749 | AI35: 8209342.249 | AJ35: =OFFSET($P20,MATCH(AJ$20,$A:$A),0) -> 2734130.591 | AK35: 11203069.48 | AL35: 491642.469 | AM35: -11502126.41 | AN35: 25652214.68 | AO35: -6306134.591 | AP35: 6947647.181 | AQ35: -22358537.69 | AR35: -1825870.953 | AS35: -652317.0875 | AT35: =OFFSET($P20,MATCH(AT$20,$A:$A),0) -> 4935466.111 | AU35: -978272.9404 | AV35: 0 | AW35: 0 | AX35: 0 | AY35: 0 | AZ35: 0 | BA35: 0 | BB35: 0 | BC35: 0 | BD35: =OFFSET($P20,MATCH(BD$20,$A:$A),0) -> 0 | BE35: 0 | BF35: 0 | BG35: 0 | BH35: 0 | BI35: 0 | BJ35: 0 | BK35: 0 | BL35: 0 | BM35: 0 | BN35: =OFFSET($P20,MATCH(BN$20,$A:$A),0) -> 0 | BO35: 0 | BP35: 0 | BQ35: 0 | BR35: 0 | BS35: 0 | BT35: 0 | BU35: 0 | BV35: 0 | BW35: 0 | BX35: =OFFSET($P20,MATCH(BX$20,$A:$A),0) -> 0 | BY35: 0 | BZ35: 0 | CA35: 0 | CB35: 0 | CC35: 0 | CD35: 0 | CE35: 0 | CF35: 0 | CG35: 0 | CH35: =OFFSET($P20,MATCH(CH$20,$A:$A),0) -> 0 | CI35: 0 | CJ35: 0 | CK35: 0 | CL35: 0 | CM35: 0 | CN35: 0 | CO35: 0 | CP35: 0 | CQ35: 0 | CR35: =OFFSET($P20,MATCH(CR$20,$A:$A),0) -> 0 | CS35: 0 | CT35: 0 | CU35: 0 | CV35: 0 | CW35: 0 | CX35: 0 | CY35: 0 | CZ35: 0 | DA35: 0 | DB35: =OFFSET($P20,MATCH(DB$20,$A:$A),0) -> 0 | DC35: 0 | DD35: 0 | DE35: 0 | DF35: 0 | DG35: 0 | DH35: 0 | DI35: 0 | DJ35: 0 | DK35: 0 | DL35: =OFFSET($P20,MATCH(DL$20,$A:$A),0) -> 0 | DM35: 0 | DN35: 0 | DO35: 0 | DP35: 0 | DQ35: 0 | DR35: 0 | DS35: 0 | DT35: =OFFSET($P20,MATCH(DT$20,$A:$A),0) -> 0 | DU35: 0 | DV35: 0 | DW35: 0 | DX35: 0 | DY35: 0 | DZ35: 0 | EA35: 0 | EB35: 0 | EC35: 0 | ED35: 17072163.66 | EF35: 47102638 | EH35: 2651684.433
B36: 10 | C36: =TREND(C24:C25,B24:B25,B36) -> 6816534.521 | D36: =TREND(D24:D25,B24:B25,B36) -> 6747919.679 | E36: =TREND(E24:E25,B24:B25,B36) -> 1.08 | F36: =TREND(F24:F25,B24:B25,B36) -> 1.08 | G36: =TREND(G24:G25,B24:B25,B36) -> 1 | H36: =TREND(H24:H25,B24:B25,B36) -> 1 | I36: 7361857.282 | J36: 7287753.253 | K36: =TREND(K24:K25,B24:B25,B36) -> 0.13 | L36: =TREND(L24:L25,B24:B25,B36) -> 0.13 | M36: 1290394.392 | N36: 0 | O36: 1290394.392 | P36: 535467.7963 | R36: 74104.02932 | AG36: 13 | AH36: 513793.9273 | AI36: 8073929.573 | AJ36: =OFFSET($P21,MATCH(AJ$20,$A:$A),0) -> 2676019.247 | AK36: 10963796.71 | AL36: 458015.8324 | AM36: -11164514.53 | AN36: 24468547.99 | AO36: -6071684.503 | AP36: 6666964.872 | AQ36: -21413893.01 | AR36: -1772579.349 | AS36: -631183.2621 | AT36: =OFFSET($P21,MATCH(AT$20,$A:$A),0) -> 4592125.093 | AU36: -941259.4162 | AV36: 0 | AW36: 0 | AX36: 0 | AY36: 0 | AZ36: 0 | BA36: 0 | BB36: 0 | BC36: 0 | BD36: =OFFSET($P21,MATCH(BD$20,$A:$A),0) -> 0 | BE36: 0 | BF36: 0 | BG36: 0 | BH36: 0 | BI36: 0 | BJ36: 0 | BK36: 0 | BL36: 0 | BM36: 0 | BN36: =OFFSET($P21,MATCH(BN$20,$A:$A),0) -> 0 | BO36: 0 | BP36: 0 | BQ36: 0 | BR36: 0 | BS36: 0 | BT36: 0 | BU36: 0 | BV36: 0 | BW36: 0 | BX36: =OFFSET($P21,MATCH(BX$20,$A:$A),0) -> 0 | BY36: 0 | BZ36: 0 | CA36: 0 | CB36: 0 | CC36: 0 | CD36: 0 | CE36: 0 | CF36: 0 | CG36: 0 | CH36: =OFFSET($P21,MATCH(CH$20,$A:$A),0) -> 0 | CI36: 0 | CJ36: 0 | CK36: 0 | CL36: 0 | CM36: 0 | CN36: 0 | CO36: 0 | CP36: 0 | CQ36: 0 | CR36: =OFFSET($P21,MATCH(CR$20,$A:$A),0) -> 0 | CS36: 0 | CT36: 0 | CU36: 0 | CV36: 0 | CW36: 0 | CX36: 0 | CY36: 0 | CZ36: 0 | DA36: 0 | DB36: =OFFSET($P21,MATCH(DB$20,$A:$A),0) -> 0 | DC36: 0 | DD36: 0 | DE36: 0 | DF36: 0 | DG36: 0 | DH36: 0 | DI36: 0 | DJ36: 0 | DK36: 0 | DL36: =OFFSET($P21,MATCH(DL$20,$A:$A),0) -> 0 | DM36: 0 | DN36: 0 | DO36: 0 | DP36: 0 | DQ36: 0 | DR36: 0 | DS36: 0 | DT36: =OFFSET($P21,MATCH(DT$20,$A:$A),0) -> 0 | DU36: 0 | DV36: 0 | DW36: 0 | DX36: 0 | DY36: 0 | DZ36: 0 | EA36: 0 | EB36: 0 | EC36: 0 | ED36: 16418079.16 | EF36: 48468858.12 | EH36: 2701581.185
B37: 11 | C37: =TREND(C24:C25,B24:B25,B37) -> 7162452.111 | D37: =TREND(D24:D25,B24:B25,B37) -> 7090614.944 | E37: =TREND(E24:E25,B24:B25,B37) -> 1.08 | F37: =TREND(F24:F25,B24:B25,B37) -> 1.08 | G37: =TREND(G24:G25,B24:B25,B37) -> 1 | H37: =TREND(H24:H25,B24:B25,B37) -> 1 | I37: 7735448.28 | J37: 7657864.14 | K37: =TREND(K24:K25,B24:B25,B37) -> 0.13 | L37: =TREND(L24:L25,B24:B25,B37) -> 0.13 | M37: 1364504.483 | N37: 0 | O37: 1364504.483 | P37: 529178.3641 | R37: 77584.13978 | AG37: 14 | AH37: 504946.473 | AI37: 7927890.079 | AJ37: =OFFSET($P22,MATCH(AJ$20,$A:$A),0) -> 2615827.919 | AK37: 10716131.56 | AL37: 426614.4969 | AM37: -10828598.62 | AN37: 23336968.67 | AO37: -5843699.003 | AP37: 6395914.915 | AQ37: -20504886.07 | AR37: -1719523.143 | AS37: -610368.4529 | AT37: =OFFSET($P22,MATCH(AT$20,$A:$A),0) -> 4271770.632 | AU37: -905320.8801 | AV37: 0 | AW37: 0 | AX37: 0 | AY37: 0 | AZ37: 0 | BA37: 0 | BB37: 0 | BC37: 0 | BD37: =OFFSET($P22,MATCH(BD$20,$A:$A),0) -> 0 | BE37: 0 | BF37: 0 | BG37: 0 | BH37: 0 | BI37: 0 | BJ37: 0 | BK37: 0 | BL37: 0 | BM37: 0 | BN37: =OFFSET($P22,MATCH(BN$20,$A:$A),0) -> 0 | BO37: 0 | BP37: 0 | BQ37: 0 | BR37: 0 | BS37: 0 | BT37: 0 | BU37: 0 | BV37: 0 | BW37: 0 | BX37: =OFFSET($P22,MATCH(BX$20,$A:$A),0) -> 0 | BY37: 0 | BZ37: 0 | CA37: 0 | CB37: 0 | CC37: 0 | CD37: 0 | CE37: 0 | CF37: 0 | CG37: 0 | CH37: =OFFSET($P22,MATCH(CH$20,$A:$A),0) -> 0 | CI37: 0 | CJ37: 0 | CK37: 0 | CL37: 0 | CM37: 0 | CN37: 0 | CO37: 0 | CP37: 0 | CQ37: 0 | CR37: =OFFSET($P22,MATCH(CR$20,$A:$A),0) -> 0 | CS37: 0 | CT37: 0 | CU37: 0 | CV37: 0 | CW37: 0 | CX37: 0 | CY37: 0 | CZ37: 0 | DA37: 0 | DB37: =OFFSET($P22,MATCH(DB$20,$A:$A),0) -> 0 | DC37: 0 | DD37: 0 | DE37: 0 | DF37: 0 | DG37: 0 | DH37: 0 | DI37: 0 | DJ37: 0 | DK37: 0 | DL37: =OFFSET($P22,MATCH(DL$20,$A:$A),0) -> 0 | DM37: 0 | DN37: 0 | DO37: 0 | DP37: 0 | DQ37: 0 | DR37: 0 | DS37: 0 | DT37: =OFFSET($P22,MATCH(DT$20,$A:$A),0) -> 0 | DU37: 0 | DV37: 0 | DW37: 0 | DX37: 0 | DY37: 0 | DZ37: 0 | EA37: 0 | EB37: 0 | EC37: 0 | ED37: 15783668.57 | EF37: 49857692.37 | EH37: 2751477.936
B38: 12 | C38: =TREND(C24:C25,B24:B25,B38) -> 7508369.701 | D38: =TREND(D24:D25,B24:B25,B38) -> 7433310.21 | E38: =TREND(E24:E25,B24:B25,B38) -> 1.08 | F38: =TREND(F24:F25,B24:B25,B38) -> 1.08 | G38: =TREND(G24:G25,B24:B25,B38) -> 1 | H38: =TREND(H24:H25,B24:B25,B38) -> 1 | I38: 8109039.277 | J38: 8027975.027 | K38: =TREND(K24:K25,B24:B25,B38) -> 0.13 | L38: =TREND(L24:L25,B24:B25,B38) -> 0.13 | M38: 1439967.738 | N38: 0 | O38: 1439967.738 | P38: 521910.5749 | R38: 81064.25025 | AG38: 15 | AH38: 495475.6936 | AI38: 7772841.348 | AJ38: =OFFSET($P23,MATCH(AJ$20,$A:$A),0) -> 2553972.6 | AK38: 10461767.61 | AL38: 397294.631 | AM38: -10495250.05 | AN38: 22255357.04 | AO38: -5622190.291 | AP38: 6134299.617 | AQ38: -19630490.43 | AR38: -1666843.504 | AS38: -589903.3351 | AT38: =OFFSET($P23,MATCH(AT$20,$A:$A),0) -> 3972904.391 | AU38: -870453.1573 | AV38: 0 | AW38: 0 | AX38: 0 | AY38: 0 | AZ38: 0 | BA38: 0 | BB38: 0 | BC38: 0 | BD38: =OFFSET($P23,MATCH(BD$20,$A:$A),0) -> 0 | BE38: 0 | BF38: 0 | BG38: 0 | BH38: 0 | BI38: 0 | BJ38: 0 | BK38: 0 | BL38: 0 | BM38: 0 | BN38: =OFFSET($P23,MATCH(BN$20,$A:$A),0) -> 0 | BO38: 0 | BP38: 0 | BQ38: 0 | BR38: 0 | BS38: 0 | BT38: 0 | BU38: 0 | BV38: 0 | BW38: 0 | BX38: =OFFSET($P23,MATCH(BX$20,$A:$A),0) -> 0 | BY38: 0 | BZ38: 0 | CA38: 0 | CB38: 0 | CC38: 0 | CD38: 0 | CE38: 0 | CF38: 0 | CG38: 0 | CH38: =OFFSET($P23,MATCH(CH$20,$A:$A),0) -> 0 | CI38: 0 | CJ38: 0 | CK38: 0 | CL38: 0 | CM38: 0 | CN38: 0 | CO38: 0 | CP38: 0 | CQ38: 0 | CR38: =OFFSET($P23,MATCH(CR$20,$A:$A),0) -> 0 | CS38: 0 | CT38: 0 | CU38: 0 | CV38: 0 | CW38: 0 | CX38: 0 | CY38: 0 | CZ38: 0 | DA38: 0 | DB38: =OFFSET($P23,MATCH(DB$20,$A:$A),0) -> 0 | DC38: 0 | DD38: 0 | DE38: 0 | DF38: 0 | DG38: 0 | DH38: 0 | DI38: 0 | DJ38: 0 | DK38: 0 | DL38: =OFFSET($P23,MATCH(DL$20,$A:$A),0) -> 0 | DM38: 0 | DN38: 0 | DO38: 0 | DP38: 0 | DQ38: 0 | DR38: 0 | DS38: 0 | DT38: =OFFSET($P23,MATCH(DT$20,$A:$A),0) -> 0 | DU38: 0 | DV38: 0 | DW38: 0 | DX38: 0 | DY38: 0 | DZ38: 0 | EA38: 0 | EB38: 0 | EC38: 0 | ED38: 15168782.17 | EF38: 51269456.43 | EH38: 2801374.687
B39: 13 | C39: =TREND(C24:C25,B24:B25,B39) -> 7854287.292 | D39: =TREND(D24:D25,B24:B25,B39) -> 7776005.476 | E39: =TREND(E24:E25,B24:B25,B39) -> 1.08 | F39: =TREND(F24:F25,B24:B25,B39) -> 1.08 | G39: =TREND(G24:G25,B24:B25,B39) -> 1 | H39: =TREND(H24:H25,B24:B25,B39) -> 1 | I39: 8482630.275 | J39: 8398085.914 | K39: =TREND(K24:K25,B24:B25,B39) -> 0.13 | L39: =TREND(L24:L25,B24:B25,B39) -> 0.13 | M39: 1516803.806 | N39: 0 | O39: 1516803.806 | P39: 513793.9273 | R39: 84544.36071 | AG39: 16 | AH39: 485479.3144 | AI39: 7610252.965 | AJ39: =OFFSET($P24,MATCH(AJ$20,$A:$A),0) -> 2490829.17 | AK39: 10202234.88 | AL39: 369921.5365 | AM39: -10165237.14 | AN39: 21221667.37 | AO39: -5407148.87 | AP39: 5881913.168 | AQ39: -18789682.71 | AR39: -1614665.028 | AS39: -569814.1408 | AT39: =OFFSET($P24,MATCH(AT$20,$A:$A),0) -> 3694123.791 | AU39: -836649.1609 | AV39: 0 | AW39: 0 | AX39: 0 | AY39: 0 | AZ39: 0 | BA39: 0 | BB39: 0 | BC39: 0 | BD39: =OFFSET($P24,MATCH(BD$20,$A:$A),0) -> 0 | BE39: 0 | BF39: 0 | BG39: 0 | BH39: 0 | BI39: 0 | BJ39: 0 | BK39: 0 | BL39: 0 | BM39: 0 | BN39: =OFFSET($P24,MATCH(BN$20,$A:$A),0) -> 0 | BO39: 0 | BP39: 0 | BQ39: 0 | BR39: 0 | BS39: 0 | BT39: 0 | BU39: 0 | BV39: 0 | BW39: 0 | BX39: =OFFSET($P24,MATCH(BX$20,$A:$A),0) -> 0 | BY39: 0 | BZ39: 0 | CA39: 0 | CB39: 0 | CC39: 0 | CD39: 0 | CE39: 0 | CF39: 0 | CG39: 0 | CH39: =OFFSET($P24,MATCH(CH$20,$A:$A),0) -> 0 | CI39: 0 | CJ39: 0 | CK39: 0 | CL39: 0 | CM39: 0 | CN39: 0 | CO39: 0 | CP39: 0 | CQ39: 0 | CR39: =OFFSET($P24,MATCH(CR$20,$A:$A),0) -> 0 | CS39: 0 | CT39: 0 | CU39: 0 | CV39: 0 | CW39: 0 | CX39: 0 | CY39: 0 | CZ39: 0 | DA39: 0 | DB39: =OFFSET($P24,MATCH(DB$20,$A:$A),0) -> 0 | DC39: 0 | DD39: 0 | DE39: 0 | DF39: 0 | DG39: 0 | DH39: 0 | DI39: 0 | DJ39: 0 | DK39: 0 | DL39: =OFFSET($P24,MATCH(DL$20,$A:$A),0) -> 0 | DM39: 0 | DN39: 0 | DO39: 0 | DP39: 0 | DQ39: 0 | DR39: 0 | DS39: 0 | DT39: =OFFSET($P24,MATCH(DT$20,$A:$A),0) -> 0 | DU39: 0 | DV39: 0 | DW39: 0 | DX39: 0 | DY39: 0 | DZ39: 0 | EA39: 0 | EB39: 0 | EC39: 0 | ED39: 14573225.14 | EF39: 52704469.99 | EH39: 2851271.438
B40: 14 | C40: =TREND(C24:C25,B24:B25,B40) -> 8200204.882 | D40: =TREND(D24:D25,B24:B25,B40) -> 8118700.742 | E40: =TREND(E24:E25,B24:B25,B40) -> 1.08 | F40: =TREND(F24:F25,B24:B25,B40) -> 1.08 | G40: =TREND(G24:G25,B24:B25,B40) -> 1 | H40: =TREND(H24:H25,B24:B25,B40) -> 1 | I40: 8856221.273 | J40: 8768196.801 | K40: =TREND(K24:K25,B24:B25,B40) -> 0.13 | L40: =TREND(L24:L25,B24:B25,B40) -> 0.13 | M40: 1595032.6 | N40: 0 | O40: 1595032.6 | P40: 504946.473 | R40: 88024.47118 | AG40: 17 | AH40: 475046.0608 | AI40: 7441458.031 | AJ40: =OFFSET($P25,MATCH(AJ$20,$A:$A),0) -> 2426736.588 | AK40: 9938912.85 | AL40: 344369.0767 | AM40: -9839233.982 | AN40: 20233926.23 | AO40: -5198545.945 | AP40: 5638543.177 | AQ40: -17981445.47 | AR40: -1563097.156 | AS40: -550123.0603 | AT40: =OFFSET($P25,MATCH(AT$20,$A:$A),0) -> 3434115.986 | AU40: -803899.232 | AV40: 0 | AW40: 0 | AX40: 0 | AY40: 0 | AZ40: 0 | BA40: 0 | BB40: 0 | BC40: 0 | BD40: =OFFSET($P25,MATCH(BD$20,$A:$A),0) -> 0 | BE40: 0 | BF40: 0 | BG40: 0 | BH40: 0 | BI40: 0 | BJ40: 0 | BK40: 0 | BL40: 0 | BM40: 0 | BN40: =OFFSET($P25,MATCH(BN$20,$A:$A),0) -> 0 | BO40: 0 | BP40: 0 | BQ40: 0 | BR40: 0 | BS40: 0 | BT40: 0 | BU40: 0 | BV40: 0 | BW40: 0 | BX40: =OFFSET($P25,MATCH(BX$20,$A:$A),0) -> 0 | BY40: 0 | BZ40: 0 | CA40: 0 | CB40: 0 | CC40: 0 | CD40: 0 | CE40: 0 | CF40: 0 | CG40: 0 | CH40: =OFFSET($P25,MATCH(CH$20,$A:$A),0) -> 0 | CI40: 0 | CJ40: 0 | CK40: 0 | CL40: 0 | CM40: 0 | CN40: 0 | CO40: 0 | CP40: 0 | CQ40: 0 | CR40: =OFFSET($P25,MATCH(CR$20,$A:$A),0) -> 0 | CS40: 0 | CT40: 0 | CU40: 0 | CV40: 0 | CW40: 0 | CX40: 0 | CY40: 0 | CZ40: 0 | DA40: 0 | DB40: =OFFSET($P25,MATCH(DB$20,$A:$A),0) -> 0 | DC40: 0 | DD40: 0 | DE40: 0 | DF40: 0 | DG40: 0 | DH40: 0 | DI40: 0 | DJ40: 0 | DK40: 0 | DL40: =OFFSET($P25,MATCH(DL$20,$A:$A),0) -> 0 | DM40: 0 | DN40: 0 | DO40: 0 | DP40: 0 | DQ40: 0 | DR40: 0 | DS40: 0 | DT40: =OFFSET($P25,MATCH(DT$20,$A:$A),0) -> 0 | DU40: 0 | DV40: 0 | DW40: 0 | DX40: 0 | DY40: 0 | DZ40: 0 | EA40: 0 | EB40: 0 | EC40: 0 | ED40: 13996763.15 | EF40: 54163056.88 | EH40: 2901168.189
B41: 15 | C41: =TREND(C24:C25,B24:B25,B41) -> 8546122.472 | D41: =TREND(D24:D25,B24:B25,B41) -> 8461396.008 | E41: =TREND(E24:E25,B24:B25,B41) -> 1.08 | F41: =TREND(F24:F25,B24:B25,B41) -> 1.08 | G41: =TREND(G24:G25,B24:B25,B41) -> 1 | H41: =TREND(H24:H25,B24:B25,B41) -> 1 | I41: 9229812.27 | J41: 9138307.688 | K41: =TREND(K24:K25,B24:B25,B41) -> 0.13 | L41: =TREND(L24:L25,B24:B25,B41) -> 0.13 | M41: 1674674.289 | N41: 0 | O41: 1674674.289 | P41: 495475.6936 | R41: 91504.58164 | AG41: 18 | AH41: 464256.3606 | AI41: 7267663.847 | AJ41: =OFFSET($P26,MATCH(AJ$20,$A:$A),0) -> 2361999.847 | AK41: 9673042.568 | AL41: 320519.1396 | AM41: -9517828.56 | AN41: 19290230.81 | AO41: -4996335.613 | AP41: 5403972.05 | AQ41: -17204769.77 | AR41: -1512235.477 | AS41: -530848.6134 | AT41: =OFFSET($P26,MATCH(AT$20,$A:$A),0) -> 3191652.209 | AU41: -772191.4498 | AV41: 0 | AW41: 0 | AX41: 0 | AY41: 0 | AZ41: 0 | BA41: 0 | BB41: 0 | BC41: 0 | BD41: =OFFSET($P26,MATCH(BD$20,$A:$A),0) -> 0 | BE41: 0 | BF41: 0 | BG41: 0 | BH41: 0 | BI41: 0 | BJ41: 0 | BK41: 0 | BL41: 0 | BM41: 0 | BN41: =OFFSET($P26,MATCH(BN$20,$A:$A),0) -> 0 | BO41: 0 | BP41: 0 | BQ41: 0 | BR41: 0 | BS41: 0 | BT41: 0 | BU41: 0 | BV41: 0 | BW41: 0 | BX41: =OFFSET($P26,MATCH(BX$20,$A:$A),0) -> 0 | BY41: 0 | BZ41: 0 | CA41: 0 | CB41: 0 | CC41: 0 | CD41: 0 | CE41: 0 | CF41: 0 | CG41: 0 | CH41: =OFFSET($P26,MATCH(CH$20,$A:$A),0) -> 0 | CI41: 0 | CJ41: 0 | CK41: 0 | CL41: 0 | CM41: 0 | CN41: 0 | CO41: 0 | CP41: 0 | CQ41: 0 | CR41: =OFFSET($P26,MATCH(CR$20,$A:$A),0) -> 0 | CS41: 0 | CT41: 0 | CU41: 0 | CV41: 0 | CW41: 0 | CX41: 0 | CY41: 0 | CZ41: 0 | DA41: 0 | DB41: =OFFSET($P26,MATCH(DB$20,$A:$A),0) -> 0 | DC41: 0 | DD41: 0 | DE41: 0 | DF41: 0 | DG41: 0 | DH41: 0 | DI41: 0 | DJ41: 0 | DK41: 0 | DL41: =OFFSET($P26,MATCH(DL$20,$A:$A),0) -> 0 | DM41: 0 | DN41: 0 | DO41: 0 | DP41: 0 | DQ41: 0 | DR41: 0 | DS41: 0 | DT41: =OFFSET($P26,MATCH(DT$20,$A:$A),0) -> 0 | DU41: 0 | DV41: 0 | DW41: 0 | DX41: 0 | DY41: 0 | DZ41: 0 | EA41: 0 | EB41: 0 | EC41: 0 | ED41: 13439127.35 | EF41: 55645545.07 | EH41: 2951064.941
B42: 16 | C42: =TREND(C24:C25,B24:B25,B42) -> 8892040.063 | D42: =TREND(D24:D25,B24:B25,B42) -> 8804091.274 | E42: =TREND(E24:E25,B24:B25,B42) -> 1.08 | F42: =TREND(F24:F25,B24:B25,B42) -> 1.08 | G42: =TREND(G24:G25,B24:B25,B42) -> 1 | H42: =TREND(H24:H25,B24:B25,B42) -> 1 | I42: 9603403.268 | J42: 9508418.576 | K42: =TREND(K24:K25,B24:B25,B42) -> 0.13 | L42: =TREND(L24:L25,B24:B25,B42) -> 0.13 | M42: 1755749.308 | N42: 0 | O42: 1755749.308 | P42: 485479.3144 | R42: 94984.69211 | AG42: 19 | AH42: 453182.9952 | AI42: 7089961.832 | AJ42: =OFFSET($P27,MATCH(AJ$20,$A:$A),0) -> 2296892.721 | AK42: 9405737.8 | AL42: 298261.1348 | AM42: -9201530.321 | AN42: 18388747.26 | AO42: -4800456.874 | AP42: 5177978.245 | AQ42: -16458657.4 | AR42: -1462162.941 | AS42: -512005.9911 | AT42: =OFFSET($P27,MATCH(AT$20,$A:$A),0) -> 2965582.467 | AU42: -741511.9165 | AV42: 0 | AW42: 0 | AX42: 0 | AY42: 0 | AZ42: 0 | BA42: 0 | BB42: 0 | BC42: 0 | BD42: =OFFSET($P27,MATCH(BD$20,$A:$A),0) -> 0 | BE42: 0 | BF42: 0 | BG42: 0 | BH42: 0 | BI42: 0 | BJ42: 0 | BK42: 0 | BL42: 0 | BM42: 0 | BN42: =OFFSET($P27,MATCH(BN$20,$A:$A),0) -> 0 | BO42: 0 | BP42: 0 | BQ42: 0 | BR42: 0 | BS42: 0 | BT42: 0 | BU42: 0 | BV42: 0 | BW42: 0 | BX42: =OFFSET($P27,MATCH(BX$20,$A:$A),0) -> 0 | BY42: 0 | BZ42: 0 | CA42: 0 | CB42: 0 | CC42: 0 | CD42: 0 | CE42: 0 | CF42: 0 | CG42: 0 | CH42: =OFFSET($P27,MATCH(CH$20,$A:$A),0) -> 0 | CI42: 0 | CJ42: 0 | CK42: 0 | CL42: 0 | CM42: 0 | CN42: 0 | CO42: 0 | CP42: 0 | CQ42: 0 | CR42: =OFFSET($P27,MATCH(CR$20,$A:$A),0) -> 0 | CS42: 0 | CT42: 0 | CU42: 0 | CV42: 0 | CW42: 0 | CX42: 0 | CY42: 0 | CZ42: 0 | DA42: 0 | DB42: =OFFSET($P27,MATCH(DB$20,$A:$A),0) -> 0 | DC42: 0 | DD42: 0 | DE42: 0 | DF42: 0 | DG42: 0 | DH42: 0 | DI42: 0 | DJ42: 0 | DK42: 0 | DL42: =OFFSET($P27,MATCH(DL$20,$A:$A),0) -> 0 | DM42: 0 | DN42: 0 | DO42: 0 | DP42: 0 | DQ42: 0 | DR42: 0 | DS42: 0 | DT42: =OFFSET($P27,MATCH(DT$20,$A:$A),0) -> 0 | DU42: 0 | DV42: 0 | DW42: 0 | DX42: 0 | DY42: 0 | DZ42: 0 | EA42: 0 | EB42: 0 | EC42: 0 | ED42: 12900019.02 | EF42: 57152266.71 | EH42: 3000961.692
B43: 17 | C43: =TREND(C24:C25,B24:B25,B43) -> 9237957.653 | D43: =TREND(D24:D25,B24:B25,B43) -> 9146786.54 | E43: =TREND(E24:E25,B24:B25,B43) -> 1.08 | F43: =TREND(F24:F25,B24:B25,B43) -> 1.08 | G43: =TREND(G24:G25,B24:B25,B43) -> 1 | H43: =TREND(H24:H25,B24:B25,B43) -> 1 | I43: 9976994.265 | J43: 9878529.463 | K43: =TREND(K24:K25,B24:B25,B43) -> 0.13 | L43: =TREND(L24:L25,B24:B25,B43) -> 0.13 | M43: 1838278.36 | N43: 0 | O43: 1838278.36 | P43: 475046.0608 | R43: 98464.80257 | AG43: 20 | AH43: 441891.7043 | AI43: 6909336.722 | AJ43: =OFFSET($P28,MATCH(AJ$20,$A:$A),0) -> 2231660.305 | AK43: 9137995.421 | AL43: 277491.5211 | AM43: -8890777.117 | AN43: 17527708.86 | AO43: -4610835.469 | AP43: 4960337.402 | AQ43: -15742122.86 | AR43: -1412950.974 | AS43: -493607.3706 | AT43: =OFFSET($P28,MATCH(AT$20,$A:$A),0) -> 2754830.575 | AU43: -711845.0155 | AV43: 0 | AW43: 0 | AX43: 0 | AY43: 0 | AZ43: 0 | BA43: 0 | BB43: 0 | BC43: 0 | BD43: =OFFSET($P28,MATCH(BD$20,$A:$A),0) -> 0 | BE43: 0 | BF43: 0 | BG43: 0 | BH43: 0 | BI43: 0 | BJ43: 0 | BK43: 0 | BL43: 0 | BM43: 0 | BN43: =OFFSET($P28,MATCH(BN$20,$A:$A),0) -> 0 | BO43: 0 | BP43: 0 | BQ43: 0 | BR43: 0 | BS43: 0 | BT43: 0 | BU43: 0 | BV43: 0 | BW43: 0 | BX43: =OFFSET($P28,MATCH(BX$20,$A:$A),0) -> 0 | BY43: 0 | BZ43: 0 | CA43: 0 | CB43: 0 | CC43: 0 | CD43: 0 | CE43: 0 | CF43: 0 | CG43: 0 | CH43: =OFFSET($P28,MATCH(CH$20,$A:$A),0) -> 0 | CI43: 0 | CJ43: 0 | CK43: 0 | CL43: 0 | CM43: 0 | CN43: 0 | CO43: 0 | CP43: 0 | CQ43: 0 | CR43: =OFFSET($P28,MATCH(CR$20,$A:$A),0) -> 0 | CS43: 0 | CT43: 0 | CU43: 0 | CV43: 0 | CW43: 0 | CX43: 0 | CY43: 0 | CZ43: 0 | DA43: 0 | DB43: =OFFSET($P28,MATCH(DB$20,$A:$A),0) -> 0 | DC43: 0 | DD43: 0 | DE43: 0 | DF43: 0 | DG43: 0 | DH43: 0 | DI43: 0 | DJ43: 0 | DK43: 0 | DL43: =OFFSET($P28,MATCH(DL$20,$A:$A),0) -> 0 | DM43: 0 | DN43: 0 | DO43: 0 | DP43: 0 | DQ43: 0 | DR43: 0 | DS43: 0 | DT43: =OFFSET($P28,MATCH(DT$20,$A:$A),0) -> 0 | DU43: 0 | DV43: 0 | DW43: 0 | DX43: 0 | DY43: 0 | DZ43: 0 | EA43: 0 | EB43: 0 | EC43: 0 | ED43: 12379113.71 | EF43: 58683558.23 | EH43: 3050858.443
B44: 18 | C44: =TREND(C24:C25,B24:B25,B44) -> 9583875.243 | D44: =TREND(D24:D25,B24:B25,B44) -> 9489481.805 | E44: =TREND(E24:E25,B24:B25,B44) -> 1.08 | F44: =TREND(F24:F25,B24:B25,B44) -> 1.08 | G44: =TREND(G24:G25,B24:B25,B44) -> 1 | H44: =TREND(H24:H25,B24:B25,B44) -> 1 | I44: 10350585.26 | J44: 10248640.35 | K44: =TREND(K24:K25,B24:B25,B44) -> 0.13 | L44: =TREND(L24:L25,B24:B25,B44) -> 0.13 | M44: 1922282.419 | N44: 0 | O44: 1922282.419 | P44: 464256.3606 | R44: 101944.913
B45: 19 | C45: =TREND(C24:C25,B24:B25,B45) -> 9929792.834 | D45: =TREND(D24:D25,B24:B25,B45) -> 9832177.071 | E45: =TREND(E24:E25,B24:B25,B45) -> 1.08 | F45: =TREND(F24:F25,B24:B25,B45) -> 1.08 | G45: =TREND(G24:G25,B24:B25,B45) -> 1 | H45: =TREND(H24:H25,B24:B25,B45) -> 1 | I45: 10724176.26 | J45: 10618751.24 | K45: =TREND(K24:K25,B24:B25,B45) -> 0.13 | L45: =TREND(L24:L25,B24:B25,B45) -> 0.13 | M45: 2007782.731 | N45: 0 | O45: 2007782.731 | P45: 453182.9952 | R45: 105425.0235 | AG45: Total | AH45: =SUM(AH24:AH43) -> 10279505.54 | AI45: 162328672.4 | AJ45: 55136242.49 | AK45: 226015928 | AL45: 11824773.56 | AM45: -239628256.8 | AN45: 569924026.4 | AO45: -135445888.2 | AP45: 151069380.3 | AQ45: -489572929.6 | AR45: =SUM(AR24:AR43) -> -38014218.69 | AS45: -13753744.86 | AT45: 119181484.6 | AU45: -21064784.32 | AV45: 0 | AW45: 0 | AX45: 0 | AY45: 0 | AZ45: 0 | BA45: 0 | BB45: =SUM(BB24:BB43) -> 0 | BC45: 0 | BD45: 0 | BE45: 0 | BF45: 0 | BG45: 0 | BH45: 0 | BI45: 0 | BJ45: 0 | BK45: 0 | BL45: =SUM(BL24:BL43) -> 0 | BM45: 0 | BN45: 0 | BO45: 0 | BP45: 0 | BQ45: 0 | BR45: 0 | BS45: 0 | BT45: 0 | BU45: 0 | BV45: =SUM(BV24:BV43) -> 0 | BW45: 0 | BX45: 0 | BY45: 0 | BZ45: 0 | CA45: 0 | CB45: 0 | CC45: 0 | CD45: 0 | CE45: 0 | CF45: =SUM(CF24:CF43) -> 0 | CG45: 0 | CH45: 0 | CI45: 0 | CJ45: 0 | CK45: 0 | CL45: 0 | CM45: 0 | CN45: 0 | CO45: 0 | CP45: =SUM(CP24:CP43) -> 0 | CQ45: 0 | CR45: 0 | CS45: 0 | CT45: 0 | CU45: 0 | CV45: 0 | CW45: 0 | CX45: 0 | CY45: 0 | CZ45: =SUM(CZ24:CZ43) -> 0 | DA45: 0 | DB45: 0 | DC45: 0 | DD45: 0 | DE45: 0 | DF45: 0 | DG45: 0 | DH45: 0 | DI45: 0 | DJ45: =SUM(DJ24:DJ43) -> 0 | DK45: 0 | DL45: 0 | DM45: 0 | DN45: 0 | DO45: 0 | DP45: 0 | DQ45: 0 | DR45: 0 | DS45: 0 | DT45: =SUM(DT24:DT43) -> 0 | DU45: 0 | DV45: 0 | DW45: 0 | DX45: 0 | DY45: 0 | DZ45: 0 | EA45: 0 | EB45: 0 | EC45: 0 | ED45: 368280190.9 | EF45: =SUM(EF24:EF43) -> 909169481.7 | EH45: =SUM(AH79:EC79) -> 51536786.13
B46: 20 | C46: =TREND(C24:C25,B24:B25,B46) -> 10275710.42 | D46: =TREND(D24:D25,B24:B25,B46) -> 10174872.34 | E46: =TREND(E24:E25,B24:B25,B46) -> 1.08 | F46: =TREND(F24:F25,B24:B25,B46) -> 1.08 | G46: =TREND(G24:G25,B24:B25,B46) -> 1 | H46: =TREND(H24:H25,B24:B25,B46) -> 1 | I46: 11097767.26 | J46: 10988862.12 | K46: =TREND(K24:K25,B24:B25,B46) -> 0.13 | L46: =TREND(L24:L25,B24:B25,B46) -> 0.13 | M46: 2094800.821 | N46: 0 | O46: 2094800.821 | P46: 441891.7043 | R46: 108905.134
AG47: =IF(Induced="Y","","* Induced Travel Not Counted") -> 
B48: Total | P48: =SUM(P27:P46) -> 10279505.54 | R48: =SUM(R27:R46) -> 1516881.691
AH49: SUMMARY OF PERSON-HOURS SAVED | AR49: SUMMARY OF PERSON-HOURS SAVED (continued) | BB49: SUMMARY OF PERSON-HOURS SAVED (continued) | BL49: SUMMARY OF PERSON-HOURS SAVED (continued) | BV49: SUMMARY OF PERSON-HOURS SAVED (continued) | CF49: SUMMARY OF PERSON-HOURS SAVED (continued) | CP49: SUMMARY OF PERSON-HOURS SAVED (continued) | CZ49: SUMMARY OF PERSON-HOURS SAVED (continued) | DJ49: SUMMARY OF PERSON-HOURS SAVED (continued) | DT49: SUMMARY OF PERSON-HOURS SAVED (continued)
A51: 2 | B51: =IF(ISBLANK(INDEX(ModelGroup,A51,1)),"Not Used",INDEX(ModelGroup,A51,1)) -> 10 mph
C53: ANNUAL VHT | E53: AVERAGE VEH OCC | G53: ANNUAL PERSON-TRIPS | I53: AVERAGE TRAVEL TIME | K53: PERCENT TRUCKS | M53: TIME BENEFIT | R53: Total
C54: (veh-hours/yr) | E54: (persons/vehicle) | G54: (trips/yr) | I54: (hours) | K54: (%) | M54: ($/yr) | R54: Per-Hrs | AH54: 1 | AI54: 2 | AJ54: 3 | AK54: 4 | AL54: 5 | AM54: 6 | AN54: 7 | AO54: 8 | AP54: 9 | AQ54: 10 | AR54: 11 | AS54: 12 | AT54: 13 | AU54: 14 | AV54: 15 | AW54: 16 | AX54: 17 | AY54: 18 | AZ54: 19 | BA54: 20 | BB54: 21 | BC54: 22 | BD54: 23 | BE54: 24 | BF54: 25 | BG54: 26 | BH54: 27 | BI54: 28 | BJ54: 29 | BK54: 30 | BL54: 31 | BM54: 32 | BN54: 33 | BO54: 34 | BP54: 35 | BQ54: 36 | BR54: 37 | BS54: 38 | BT54: 39 | BU54: 40 | BV54: 41 | BW54: 42 | BX54: 43 | BY54: 44 | BZ54: 45 | CA54: 46 | CB54: 47 | CC54: 48 | CD54: 49 | CE54: 50 | CF54: 51 | CG54: 52 | CH54: 53 | CI54: 54 | CJ54: 55 | CK54: 56 | CL54: 57 | CM54: 58 | CN54: 59 | CO54: 60 | CP54: 61 | CQ54: 62 | CR54: 63 | CS54: 64 | CT54: 65 | CU54: 66 | CV54: 67 | CW54: 68 | CX54: 69 | CY54: 70 | CZ54: 71 | DA54: 72 | DB54: 73 | DC54: 74 | DD54: 75 | DE54: 76 | DF54: 77 | DG54: 78 | DH54: 79 | DI54: 80 | DJ54: 81 | DK54: 82 | DL54: 83 | DM54: 84 | DN54: 85 | DO54: 86 | DP54: 87 | DQ54: 88 | DR54: 89 | DS54: 90 | DT54: 91 | DU54: 92 | DV54: 93 | DW54: 94 | DX54: 95 | DY54: 96 | DZ54: 97 | EA54: 98 | EB54: 99 | EC54: 100
B55: Year | M55: Existing | N55: New | O55: Constant | P55: Present | R55: of Time | AH55: =IF(ISBLANK(INDEX(ModelGroup,AH54,1)),"Not Used",INDEX(ModelGroup,AH54,1)) -> 5 mph | AI55: 10 mph | AJ55: 15 mph | AK55: 20 mph | AL55: 25 mph | AM55: 30 mph | AN55: 35 mph | AO55: 40 mph | AP55: 45 mph | AQ55: 50 mph | AR55: 55 mph | AS55: 60 mph | AT55: 65 mph | AU55: 70 mph | AV55: Not Used | AW55: Not Used | AX55: Not Used | AY55: Not Used | AZ55: Not Used | BA55: Not Used | BB55: Not Used | BC55: Not Used | BD55: Not Used | BE55: Not Used | BF55: Not Used | BG55: Not Used | BH55: Not Used | BI55: Not Used | BJ55: Not Used | BK55: Not Used | BL55: Not Used | BM55: Not Used | BN55: =IF(ISBLANK(INDEX(ModelGroup,BN54,1)),"Not Used",INDEX(ModelGroup,BN54,1)) -> Not Used | BO55: Not Used | BP55: Not Used | BQ55: Not Used | BR55: Not Used | BS55: Not Used | BT55: Not Used | BU55: Not Used | BV55: Not Used | BW55: Not Used | BX55: Not Used | BY55: Not Used | BZ55: Not Used | CA55: Not Used | CB55: Not Used | CC55: Not Used | CD55: Not Used | CE55: Not Used | CF55: Not Used | CG55: Not Used | CH55: Not Used | CI55: Not Used | CJ55: Not Used | CK55: Not Used | CL55: Not Used | CM55: Not Used | CN55: Not Used | CO55: Not Used | CP55: Not Used | CQ55: Not Used | CR55: Not Used | CS55: Not Used | CT55: =IF(ISBLANK(INDEX(ModelGroup,CT54,1)),"Not Used",INDEX(ModelGroup,CT54,1)) -> Not Used | CU55: Not Used | CV55: Not Used | CW55: Not Used | CX55: Not Used | CY55: Not Used | CZ55: Not Used | DA55: Not Used | DB55: Not Used | DC55: Not Used | DD55: Not Used | DE55: Not Used | DF55: Not Used | DG55: Not Used | DH55: Not Used | DI55: Not Used | DJ55: Not Used | DK55: Not Used | DL55: Not Used | DM55: Not Used | DN55: Not Used | DO55: Not Used | DP55: Not Used | DQ55: Not Used | DR55: Not Used | DS55: Not Used | DT55: Not Used | DU55: Not Used | DV55: Not Used | DW55: Not Used | DX55: Not Used | DY55: Not Used | DZ55: =IF(ISBLANK(INDEX(ModelGroup,DZ54,1)),"Not Used",INDEX(ModelGroup,DZ54,1)) -> Not Used | EA55: =IF(ISBLANK(INDEX(ModelGroup,EA54,1)),"Not Used",INDEX(ModelGroup,EA54,1)) -> Not Used | EB55: =IF(ISBLANK(INDEX(ModelGroup,EB54,1)),"Not Used",INDEX(ModelGroup,EB54,1)) -> Not Used | EC55: =IF(ISBLANK(INDEX(ModelGroup,EC54,1)),"Not Used",INDEX(ModelGroup,EC54,1)) -> Not Used
C56: No Build | D56: Build | E56: No Build | F56: Build | G56: No Build | H56: Build | I56: No Build | J56: Build | K56: No Build | L56: Build | M56: Users | N56: (Induced) | O56: Dollars | P56: Value | R56: Saved | AG56: Year
B57: =Year1 -> -8 | C57: =INDEX(ModelData1NB,A51,3)*AnnualFactor -> 1737517.859 | D57: =INDEX(ModelData1B,A51,3)*AnnualFactor -> 1546988.234 | E57: =INDEX(ModelData1NB,A51,5) -> 1.08 | F57: =INDEX(ModelData1B,A51,5) -> 1.08 | G57: =IF(ISNUMBER(INDEX(ModelData1NB,A51,1)),INDEX(ModelData1NB,A51,1)*AnnualFactor,1) -> 1 | H57: =IF(ISNUMBER(INDEX(ModelData1B,A51,1)),INDEX(ModelData1B,A51,1)*AnnualFactor,1) -> 1 | I57: =C57*E57/G57 -> 1876519.287 | J57: =D57*F57/H57 -> 1670747.293 | K57: =INDEX(ModelData1NB,A51,6) -> 0.13 | L57: =INDEX(ModelData1B,A51,6) -> 0.13 | M57: =(I57*(K57*ValTimeTruck+(1-K57)*ValTimeAuto)-J57*(L57*ValTimeTruck+(1-L57)*ValTimeAuto))*MIN(G57,H57)*(1+TTUprater)^($B57+Adjust+Construct-1) -> 2995588.688 | N57: =IF(AND(H57>G57,Induced="Y"),(I57*(K57*ValTimeTruck+(1-K57)*ValTimeAuto)-J57*(L57*ValTimeTruck+(1-L57)*ValTimeAuto))*(H57-G57)*0.5,0)*(1+TTUprater)^($B57+Adjust+Construct-1) -> 0 | O57: =SUM(M57:N57) -> 2995588.688 | P57: =O57/(1+DiscRate)^(B57+Adjust+Construct-1) -> 4201468.099 | R57: =(I57-J57)*MIN(G57,H57) -> 205771.994
B58: =Year20 -> 17 | C58: =INDEX(ModelData20NB,A51,3)*AnnualFactor -> 13961190.59 | D58: =INDEX(ModelData20B,A51,3)*AnnualFactor -> 12533021.68 | E58: =INDEX(ModelData20NB,A51,5) -> 1.08 | F58: =INDEX(ModelData20B,A51,5) -> 1.08 | G58: =IF(ISNUMBER(INDEX(ModelData20NB,A51,1)),INDEX(ModelData20NB,A51,1)*AnnualFactor,1) -> 1 | H58: =IF(ISNUMBER(INDEX(ModelData20B,A51,1)),INDEX(ModelData20B,A51,1)*AnnualFactor,1) -> 1 | I58: =C58*E58/G58 -> 15078085.84 | J58: =D58*F58/H58 -> 13535663.42 | K58: =INDEX(ModelData20NB,A51,6) -> 0.13 | L58: =INDEX(ModelData20B,A51,6) -> 0.13 | M58: =(I58*(K58*ValTimeTruck+(1-K58)*ValTimeAuto)-J58*(L58*ValTimeTruck+(1-L58)*ValTimeAuto))*MIN(G58,H58)*(1+TTUprater)^($B58+Adjust+Construct-1) -> 28796094.52 | N58: =IF(AND(H58>G58,Induced="Y"),(I58*(K58*ValTimeTruck+(1-K58)*ValTimeAuto)-J58*(L58*ValTimeTruck+(1-L58)*ValTimeAuto))*(H58-G58)*0.5,0)*(1+TTUprater)^($B58+Adjust+Construct-1) -> 0 | O58: =SUM(M58:N58) -> 28796094.52 | P58: =O58/(1+DiscRate)^(B58+Adjust+Construct-1) -> 7441458.031 | R58: =(I58-J58)*MIN(G58,H58) -> 1542422.422 | AG58: 1 | AH58: =OFFSET($R9,MATCH(AH$54,$A:$A),0) -> 42783.03514 | AI58: =OFFSET($R9,MATCH(AI$54,$A:$A),0) -> 686966.1482 | AJ58: 252347.096 | AK58: 1036093.008 | AL58: 87327.99042 | AM58: -1230187.39 | AN58: 3523202.432 | AO58: -763788.7175 | AP58: 882000.012 | AQ58: -2913282.342 | AR58: -194736.5538 | AS58: -73363.7224 | AT58: 887110.2068 | AU58: -119651.0334 | AV58: 0 | AW58: 0 | AX58: 0 | AY58: 0 | AZ58: 0 | BA58: 0 | BB58: 0 | BC58: 0 | BD58: 0 | BE58: 0 | BF58: 0 | BG58: 0 | BH58: 0 | BI58: 0 | BJ58: 0 | BK58: 0 | BL58: 0 | BM58: 0 | BN58: 0 | BO58: 0 | BP58: 0 | BQ58: 0 | BR58: 0 | BS58: 0 | BT58: 0 | BU58: 0 | BV58: 0 | BW58: 0 | BX58: 0 | BY58: 0 | BZ58: 0 | CA58: 0 | CB58: 0 | CC58: 0 | CD58: 0 | CE58: 0 | CF58: 0 | CG58: 0 | CH58: 0 | CI58: 0 | CJ58: 0 | CK58: 0 | CL58: 0 | CM58: 0 | CN58: 0 | CO58: 0 | CP58: 0 | CQ58: 0 | CR58: 0 | CS58: 0 | CT58: 0 | CU58: =OFFSET($R9,MATCH(CU$54,$A:$A),0) -> 0 | CV58: 0 | CW58: 0 | CX58: 0 | CY58: 0 | CZ58: 0 | DA58: 0 | DB58: 0 | DC58: 0 | DD58: 0 | DE58: 0 | DF58: 0 | DG58: 0 | DH58: 0 | DI58: 0 | DJ58: 0 | DK58: 0 | DL58: 0 | DM58: 0 | DN58: 0 | DO58: 0 | DP58: 0 | DQ58: 0 | DR58: 0 | DS58: 0 | DT58: 0 | DU58: 0 | DV58: 0 | DW58: 0 | DX58: 0 | DY58: 0 | DZ58: 0 | EA58: 0 | EB58: 0 | EC58: 0
AG59: 2 | AH59: 46263.14561 | AI59: =OFFSET($R10,MATCH(AI$54,$A:$A),0) -> 740432.1653 | AJ59: 268012.8986 | AK59: 1100092.222 | AL59: 86331.16804 | AM59: -1280764.401 | AN59: 3565125.487 | AO59: -783397.208 | AP59: 899920.3018 | AQ59: -2964145.328 | AR59: -202814.8783 | AS59: -75905.13532 | AT59: 876153.5513 | AU59: -122587.0681 | AV59: 0 | AW59: 0 | AX59: 0 | AY59: 0 | AZ59: 0 | BA59: 0 | BB59: 0 | BC59: 0 | BD59: 0 | BE59: 0 | BF59: 0 | BG59: 0 | BH59: 0 | BI59: 0 | BJ59: 0 | BK59: 0 | BL59: 0 | BM59: 0 | BN59: 0 | BO59: 0 | BP59: 0 | BQ59: 0 | BR59: 0 | BS59: 0 | BT59: 0 | BU59: 0 | BV59: 0 | BW59: 0 | BX59: 0 | BY59: 0 | BZ59: 0 | CA59: 0 | CB59: 0 | CC59: 0 | CD59: 0 | CE59: 0 | CF59: 0 | CG59: 0 | CH59: 0 | CI59: 0 | CJ59: 0 | CK59: 0 | CL59: 0 | CM59: 0 | CN59: 0 | CO59: 0 | CP59: 0 | CQ59: 0 | CR59: 0 | CS59: 0 | CT59: 0 | CU59: 0 | CV59: 0 | CW59: 0 | CX59: 0 | CY59: 0 | CZ59: 0 | DA59: 0 | DB59: 0 | DC59: 0 | DD59: 0 | DE59: 0 | DF59: 0 | DG59: 0 | DH59: 0 | DI59: 0 | DJ59: 0 | DK59: 0 | DL59: 0 | DM59: 0 | DN59: 0 | DO59: 0 | DP59: 0 | DQ59: 0 | DR59: 0 | DS59: 0 | DT59: 0 | DU59: 0 | DV59: 0 | DW59: 0 | DX59: 0 | DY59: 0 | DZ59: 0 | EA59: 0 | EB59: 0 | EC59: 0
B60: 1 | C60: =TREND(C57:C58,B57:B58,B60) -> 6138040.043 | D60: =TREND(D57:D58,B57:B58,B60) -> 5501960.276 | E60: =TREND(E57:E58,B57:B58,B60) -> 1.08 | F60: =TREND(F57:F58,B57:B58,B60) -> 1.08 | G60: =TREND(G57:G58,B57:B58,B60) -> 1 | H60: =TREND(H57:H58,B57:B58,B60) -> 1 | I60: =C60*E60/G60 -> 6629083.247 | J60: =D60*F60/H60 -> 5942117.099 | K60: =TREND(K57:K58,B57:B58,B60) -> 0.13 | L60: =TREND(L57:L58,B57:B58,B60) -> 0.13 | M60: =(I60*(K60*ValTimeTruck+(1-K60)*ValTimeAuto)-J60*(L60*ValTimeTruck+(1-L60)*ValTimeAuto))*MIN(G60,H60)*(1+TTUprater)^($B60+Adjust+Construct-1) -> 10937639.79 | N60: =IF(AND(H60>G60,Induced="Y"),(I60*(K60*ValTimeTruck+(1-K60)*ValTimeAuto)-J60*(L60*ValTimeTruck+(1-L60)*ValTimeAuto))*(H60-G60)*0.5,0)*(1+TTUprater)^($B60+Adjust+Construct-1) -> 0 | O60: =SUM(M60:N60) -> 10937639.79 | P60: =O60/(1+DiscRate)^(B60+Adjust+Construct-1) -> 8344273.027 | R60: =(I60-J60)*MIN(G60,H60) -> 686966.1482 | AG60: 3 | AH60: 49743.25607 | AI60: =OFFSET($R11,MATCH(AI$54,$A:$A),0) -> 793898.1825 | AJ60: 283678.7012 | AK60: 1164091.435 | AL60: 85334.34567 | AM60: -1331341.412 | AN60: 3607048.542 | AO60: -803005.6985 | AP60: 917840.5916 | AQ60: -3015008.313 | AR60: -210893.2029 | AS60: -78446.54825 | AT60: 865196.8958 | AU60: -125523.1027 | AV60: 0 | AW60: 0 | AX60: 0 | AY60: 0 | AZ60: 0 | BA60: 0 | BB60: 0 | BC60: 0 | BD60: 0 | BE60: 0 | BF60: 0 | BG60: 0 | BH60: 0 | BI60: 0 | BJ60: 0 | BK60: 0 | BL60: 0 | BM60: 0 | BN60: 0 | BO60: 0 | BP60: 0 | BQ60: 0 | BR60: 0 | BS60: 0 | BT60: 0 | BU60: 0 | BV60: 0 | BW60: 0 | BX60: 0 | BY60: 0 | BZ60: 0 | CA60: 0 | CB60: 0 | CC60: 0 | CD60: 0 | CE60: 0 | CF60: 0 | CG60: 0 | CH60: 0 | CI60: 0 | CJ60: 0 | CK60: 0 | CL60: 0 | CM60: 0 | CN60: 0 | CO60: 0 | CP60: 0 | CQ60: 0 | CR60: 0 | CS60: 0 | CT60: 0 | CU60: 0 | CV60: 0 | CW60: 0 | CX60: 0 | CY60: 0 | CZ60: 0 | DA60: 0 | DB60: 0 | DC60: 0 | DD60: 0 | DE60: 0 | DF60: 0 | DG60: 0 | DH60: 0 | DI60: 0 | DJ60: 0 | DK60: 0 | DL60: 0 | DM60: 0 | DN60: 0 | DO60: 0 | DP60: 0 | DQ60: 0 | DR60: 0 | DS60: 0 | DT60: 0 | DU60: 0 | DV60: 0 | DW60: 0 | DX60: 0 | DY60: 0 | DZ60: 0 | EA60: 0 | EB60: 0 | EC60: 0
B61: 2 | C61: =TREND(C57:C58,B57:B58,B61) -> 6626986.953 | D61: =TREND(D57:D58,B57:B58,B61) -> 5941401.615 | E61: =TREND(E57:E58,B57:B58,B61) -> 1.08 | F61: =TREND(F57:F58,B57:B58,B61) -> 1.08 | G61: =TREND(G57:G58,B57:B58,B61) -> 1 | H61: =TREND(H57:H58,B57:B58,B61) -> 1 | I61: 7157145.909 | J61: 6416713.744 | K61: =TREND(K57:K58,B57:B58,B61) -> 0.13 | L61: =TREND(L57:L58,B57:B58,B61) -> 0.13 | M61: 11906796.48 | N61: 0 | O61: 11906796.48 | P61: 8489381.334 | R61: 740432.1653 | AG61: 4 | AH61: 53223.36653 | AI61: 847364.1996 | AJ61: 299344.5038 | AK61: 1228090.649 | AL61: 84337.52329 | AM61: -1381918.423 | AN61: 3648971.597 | AO61: -822614.189 | AP61: 935760.8815 | AQ61: -3065871.299 | AR61: -218971.5274 | AS61: -80987.96118 | AT61: 854240.2403 | AU61: -128459.1374 | AV61: 0 | AW61: 0 | AX61: 0 | AY61: 0 | AZ61: 0 | BA61: 0 | BB61: 0 | BC61: 0 | BD61: 0 | BE61: 0 | BF61: 0 | BG61: 0 | BH61: 0 | BI61: 0 | BJ61: 0 | BK61: 0 | BL61: 0 | BM61: 0 | BN61: 0 | BO61: 0 | BP61: 0 | BQ61: 0 | BR61: 0 | BS61: 0 | BT61: 0 | BU61: 0 | BV61: 0 | BW61: 0 | BX61: 0 | BY61: 0 | BZ61: 0 | CA61: 0 | CB61: 0 | CC61: 0 | CD61: 0 | CE61: 0 | CF61: 0 | CG61: 0 | CH61: 0 | CI61: 0 | CJ61: 0 | CK61: 0 | CL61: 0 | CM61: 0 | CN61: 0 | CO61: 0 | CP61: 0 | CQ61: 0 | CR61: 0 | CS61: 0 | CT61: 0 | CU61: 0 | CV61: 0 | CW61: 0 | CX61: 0 | CY61: 0 | CZ61: 0 | DA61: 0 | DB61: 0 | DC61: 0 | DD61: 0 | DE61: 0 | DF61: 0 | DG61: 0 | DH61: 0 | DI61: 0 | DJ61: 0 | DK61: 0 | DL61: 0 | DM61: 0 | DN61: 0 | DO61: 0 | DP61: 0 | DQ61: 0 | DR61: 0 | DS61: 0 | DT61: 0 | DU61: 0 | DV61: 0 | DW61: 0 | DX61: 0 | DY61: 0 | DZ61: 0 | EA61: 0 | EB61: 0 | EC61: 0
B62: 3 | C62: =TREND(C57:C58,B57:B58,B62) -> 7115933.862 | D62: =TREND(D57:D58,B57:B58,B62) -> 6380842.953 | E62: =TREND(E57:E58,B57:B58,B62) -> 1.08 | F62: =TREND(F57:F58,B57:B58,B62) -> 1.08 | G62: =TREND(G57:G58,B57:B58,B62) -> 1 | H62: =TREND(H57:H58,B57:B58,B62) -> 1 | I62: 7685208.571 | J62: 6891310.389 | K62: =TREND(K57:K58,B57:B58,B62) -> 0.13 | L62: =TREND(L57:L58,B57:B58,B62) -> 0.13 | M62: 12894242.54 | N62: 0 | O62: 12894242.54 | P62: 8591978.251 | R62: 793898.1825 | AG62: 5 | AH62: 56703.477 | AI62: 900830.2167 | AJ62: 315010.3064 | AK62: 1292089.863 | AL62: 83340.70091 | AM62: -1432495.434 | AN62: 3690894.652 | AO62: -842222.6794 | AP62: 953681.1713 | AQ62: -3116734.285 | AR62: -227049.852 | AS62: -83529.3741 | AT62: 843283.5848 | AU62: -131395.172 | AV62: 0 | AW62: 0 | AX62: 0 | AY62: 0 | AZ62: 0 | BA62: 0 | BB62: 0 | BC62: 0 | BD62: 0 | BE62: 0 | BF62: 0 | BG62: 0 | BH62: 0 | BI62: 0 | BJ62: 0 | BK62: 0 | BL62: 0 | BM62: 0 | BN62: 0 | BO62: 0 | BP62: 0 | BQ62: 0 | BR62: 0 | BS62: 0 | BT62: 0 | BU62: 0 | BV62: 0 | BW62: 0 | BX62: 0 | BY62: 0 | BZ62: 0 | CA62: 0 | CB62: 0 | CC62: 0 | CD62: 0 | CE62: 0 | CF62: 0 | CG62: 0 | CH62: 0 | CI62: 0 | CJ62: 0 | CK62: 0 | CL62: 0 | CM62: 0 | CN62: 0 | CO62: 0 | CP62: 0 | CQ62: 0 | CR62: 0 | CS62: 0 | CT62: 0 | CU62: 0 | CV62: 0 | CW62: 0 | CX62: 0 | CY62: 0 | CZ62: 0 | DA62: 0 | DB62: 0 | DC62: 0 | DD62: 0 | DE62: 0 | DF62: 0 | DG62: 0 | DH62: 0 | DI62: 0 | DJ62: 0 | DK62: 0 | DL62: 0 | DM62: 0 | DN62: 0 | DO62: 0 | DP62: 0 | DQ62: 0 | DR62: 0 | DS62: 0 | DT62: 0 | DU62: 0 | DV62: 0 | DW62: 0 | DX62: 0 | DY62: 0 | DZ62: 0 | EA62: 0 | EB62: 0 | EC62: 0
B63: 4 | C63: =TREND(C57:C58,B57:B58,B63) -> 7604880.772 | D63: =TREND(D57:D58,B57:B58,B63) -> 6820284.291 | E63: =TREND(E57:E58,B57:B58,B63) -> 1.08 | F63: =TREND(F57:F58,B57:B58,B63) -> 1.08 | G63: =TREND(G57:G58,B57:B58,B63) -> 1 | H63: =TREND(H57:H58,B57:B58,B63) -> 1 | I63: 8213271.233 | J63: 7365907.034 | K63: =TREND(K57:K58,B57:B58,B63) -> 0.13 | L63: =TREND(L57:L58,B57:B58,B63) -> 0.13 | M63: 13900246.85 | N63: 0 | O63: 13900246.85 | P63: 8656375.136 | R63: 847364.1996 | AG63: 6 | AH63: 60183.58746 | AI63: 954296.2339 | AJ63: 330676.1091 | AK63: 1356089.076 | AL63: 82343.87853 | AM63: -1483072.445 | AN63: 3732817.707 | AO63: -861831.1699 | AP63: 971601.4611 | AQ63: -3167597.271 | AR63: -235128.1765 | AS63: -86070.78703 | AT63: 832326.9293 | AU63: -134331.2067 | AV63: 0 | AW63: 0 | AX63: 0 | AY63: 0 | AZ63: 0 | BA63: 0 | BB63: 0 | BC63: 0 | BD63: 0 | BE63: 0 | BF63: 0 | BG63: 0 | BH63: 0 | BI63: 0 | BJ63: 0 | BK63: 0 | BL63: 0 | BM63: 0 | BN63: 0 | BO63: 0 | BP63: 0 | BQ63: 0 | BR63: 0 | BS63: 0 | BT63: 0 | BU63: 0 | BV63: 0 | BW63: 0 | BX63: 0 | BY63: 0 | BZ63: 0 | CA63: 0 | CB63: 0 | CC63: 0 | CD63: 0 | CE63: 0 | CF63: 0 | CG63: 0 | CH63: 0 | CI63: 0 | CJ63: 0 | CK63: 0 | CL63: 0 | CM63: 0 | CN63: 0 | CO63: 0 | CP63: 0 | CQ63: 0 | CR63: 0 | CS63: 0 | CT63: =OFFSET($R14,MATCH(CT$54,$A:$A),0) -> 0 | CU63: 0 | CV63: 0 | CW63: 0 | CX63: 0 | CY63: 0 | CZ63: 0 | DA63: 0 | DB63: 0 | DC63: 0 | DD63: 0 | DE63: 0 | DF63: 0 | DG63: 0 | DH63: 0 | DI63: 0 | DJ63: 0 | DK63: 0 | DL63: 0 | DM63: 0 | DN63: 0 | DO63: 0 | DP63: 0 | DQ63: 0 | DR63: 0 | DS63: 0 | DT63: 0 | DU63: 0 | DV63: 0 | DW63: 0 | DX63: 0 | DY63: 0 | DZ63: 0 | EA63: 0 | EB63: 0 | EC63: 0
B64: 5 | C64: =TREND(C57:C58,B57:B58,B64) -> 8093827.681 | D64: =TREND(D57:D58,B57:B58,B64) -> 7259725.629 | E64: =TREND(E57:E58,B57:B58,B64) -> 1.08 | F64: =TREND(F57:F58,B57:B58,B64) -> 1.08 | G64: =TREND(G57:G58,B57:B58,B64) -> 1 | H64: =TREND(H57:H58,B57:B58,B64) -> 1 | I64: 8741333.896 | J64: 7840503.679 | K64: =TREND(K57:K58,B57:B58,B64) -> 0.13 | L64: =TREND(L57:L58,B57:B58,B64) -> 0.13 | M64: 14925081.81 | N64: 0 | O64: 14925081.81 | P64: 8686533.501 | R64: 900830.2167 | AG64: 7 | AH64: 63663.69793 | AI64: =OFFSET($R15,MATCH(AI$54,$A:$A),0) -> 1007762.251 | AJ64: 346341.9117 | AK64: 1420088.29 | AL64: 81347.05615 | AM64: -1533649.456 | AN64: 3774740.762 | AO64: -881439.6604 | AP64: 989521.7509 | AQ64: -3218460.257 | AR64: -243206.5011 | AS64: -88612.19995 | AT64: 821370.2738 | AU64: -137267.2413 | AV64: 0 | AW64: 0 | AX64: 0 | AY64: 0 | AZ64: 0 | BA64: 0 | BB64: 0 | BC64: 0 | BD64: 0 | BE64: 0 | BF64: 0 | BG64: 0 | BH64: 0 | BI64: 0 | BJ64: 0 | BK64: 0 | BL64: 0 | BM64: 0 | BN64: 0 | BO64: 0 | BP64: 0 | BQ64: 0 | BR64: 0 | BS64: 0 | BT64: 0 | BU64: 0 | BV64: 0 | BW64: 0 | BX64: 0 | BY64: 0 | BZ64: 0 | CA64: 0 | CB64: 0 | CC64: 0 | CD64: 0 | CE64: 0 | CF64: 0 | CG64: 0 | CH64: 0 | CI64: 0 | CJ64: 0 | CK64: 0 | CL64: 0 | CM64: 0 | CN64: 0 | CO64: 0 | CP64: 0 | CQ64: 0 | CR64: 0 | CS64: 0 | CT64: 0 | CU64: 0 | CV64: 0 | CW64: 0 | CX64: 0 | CY64: 0 | CZ64: 0 | DA64: 0 | DB64: 0 | DC64: 0 | DD64: 0 | DE64: 0 | DF64: 0 | DG64: 0 | DH64: 0 | DI64: 0 | DJ64: 0 | DK64: 0 | DL64: 0 | DM64: 0 | DN64: 0 | DO64: 0 | DP64: 0 | DQ64: 0 | DR64: 0 | DS64: 0 | DT64: 0 | DU64: 0 | DV64: 0 | DW64: 0 | DX64: 0 | DY64: 0 | DZ64: 0 | EA64: 0 | EB64: 0 | EC64: 0
B65: 6 | C65: =TREND(C57:C58,B57:B58,B65) -> 8582774.59 | D65: =TREND(D57:D58,B57:B58,B65) -> 7699166.967 | E65: =TREND(E57:E58,B57:B58,B65) -> 1.08 | F65: =TREND(F57:F58,B57:B58,B65) -> 1.08 | G65: =TREND(G57:G58,B57:B58,B65) -> 1 | H65: =TREND(H57:H58,B57:B58,B65) -> 1 | I65: 9269396.558 | J65: 8315100.324 | K65: =TREND(K57:K58,B57:B58,B65) -> 0.13 | L65: =TREND(L57:L58,B57:B58,B65) -> 0.13 | M65: 15969023.45 | N65: 0 | O65: 15969023.45 | P65: 8686090.692 | R65: 954296.2339 | AG65: 8 | AH65: 67143.80839 | AI65: 1061228.268 | AJ65: 362007.7143 | AK65: 1484087.504 | AL65: 80350.23378 | AM65: -1584226.467 | AN65: 3816663.817 | AO65: -901048.1509 | AP65: 1007442.041 | AQ65: -3269323.243 | AR65: -251284.8256 | AS65: -91153.61288 | AT65: 810413.6183 | AU65: -140203.2759 | AV65: 0 | AW65: 0 | AX65: 0 | AY65: 0 | AZ65: 0 | BA65: 0 | BB65: 0 | BC65: 0 | BD65: 0 | BE65: 0 | BF65: 0 | BG65: 0 | BH65: 0 | BI65: 0 | BJ65: 0 | BK65: 0 | BL65: 0 | BM65: 0 | BN65: 0 | BO65: 0 | BP65: 0 | BQ65: 0 | BR65: 0 | BS65: 0 | BT65: 0 | BU65: 0 | BV65: 0 | BW65: 0 | BX65: 0 | BY65: 0 | BZ65: 0 | CA65: 0 | CB65: 0 | CC65: 0 | CD65: 0 | CE65: 0 | CF65: 0 | CG65: 0 | CH65: 0 | CI65: 0 | CJ65: 0 | CK65: 0 | CL65: 0 | CM65: 0 | CN65: 0 | CO65: 0 | CP65: 0 | CQ65: 0 | CR65: 0 | CS65: 0 | CT65: 0 | CU65: 0 | CV65: 0 | CW65: 0 | CX65: 0 | CY65: 0 | CZ65: 0 | DA65: 0 | DB65: 0 | DC65: 0 | DD65: 0 | DE65: 0 | DF65: 0 | DG65: 0 | DH65: 0 | DI65: 0 | DJ65: 0 | DK65: 0 | DL65: 0 | DM65: 0 | DN65: 0 | DO65: 0 | DP65: 0 | DQ65: 0 | DR65: 0 | DS65: 0 | DT65: 0 | DU65: 0 | DV65: 0 | DW65: 0 | DX65: 0 | DY65: 0 | DZ65: 0 | EA65: 0 | EB65: 0 | EC65: 0
B66: 7 | C66: =TREND(C57:C58,B57:B58,B66) -> 9071721.5 | D66: =TREND(D57:D58,B57:B58,B66) -> 8138608.305 | E66: =TREND(E57:E58,B57:B58,B66) -> 1.08 | F66: =TREND(F57:F58,B57:B58,B66) -> 1.08 | G66: =TREND(G57:G58,B57:B58,B66) -> 1 | H66: =TREND(H57:H58,B57:B58,B66) -> 1 | I66: 9797459.22 | J66: 8789696.969 | K66: =TREND(K57:K58,B57:B58,B66) -> 0.13 | L66: =TREND(L57:L58,B57:B58,B66) -> 0.13 | M66: 17032351.42 | N66: 0 | O66: 17032351.42 | P66: 8658383.786 | R66: 1007762.251 | AG66: 9 | AH66: 70623.91886 | AI66: 1114694.285 | AJ66: 377673.5169 | AK66: 1548086.717 | AL66: 79353.4114 | AM66: -1634803.478 | AN66: 3858586.872 | AO66: -920656.6414 | AP66: 1025362.331 | AQ66: -3320186.229 | AR66: -259363.1502 | AS66: -93695.0258 | AT66: 799456.9627 | AU66: -143139.3106 | AV66: 0 | AW66: 0 | AX66: 0 | AY66: 0 | AZ66: 0 | BA66: 0 | BB66: 0 | BC66: 0 | BD66: 0 | BE66: 0 | BF66: 0 | BG66: 0 | BH66: 0 | BI66: 0 | BJ66: 0 | BK66: 0 | BL66: 0 | BM66: 0 | BN66: 0 | BO66: 0 | BP66: 0 | BQ66: 0 | BR66: 0 | BS66: 0 | BT66: 0 | BU66: 0 | BV66: 0 | BW66: 0 | BX66: 0 | BY66: 0 | BZ66: 0 | CA66: 0 | CB66: 0 | CC66: 0 | CD66: 0 | CE66: 0 | CF66: 0 | CG66: 0 | CH66: 0 | CI66: 0 | CJ66: 0 | CK66: 0 | CL66: 0 | CM66: 0 | CN66: 0 | CO66: 0 | CP66: 0 | CQ66: 0 | CR66: 0 | CS66: 0 | CT66: 0 | CU66: 0 | CV66: 0 | CW66: 0 | CX66: 0 | CY66: 0 | CZ66: 0 | DA66: 0 | DB66: 0 | DC66: 0 | DD66: 0 | DE66: 0 | DF66: 0 | DG66: 0 | DH66: 0 | DI66: 0 | DJ66: 0 | DK66: 0 | DL66: 0 | DM66: 0 | DN66: 0 | DO66: 0 | DP66: 0 | DQ66: 0 | DR66: 0 | DS66: 0 | DT66: 0 | DU66: 0 | DV66: 0 | DW66: 0 | DX66: 0 | DY66: 0 | DZ66: 0 | EA66: 0 | EB66: 0 | EC66: 0
B67: 8 | C67: =TREND(C57:C58,B57:B58,B67) -> 9560668.409 | D67: =TREND(D57:D58,B57:B58,B67) -> 8578049.643 | E67: =TREND(E57:E58,B57:B58,B67) -> 1.08 | F67: =TREND(F57:F58,B57:B58,B67) -> 1.08 | G67: =TREND(G57:G58,B57:B58,B67) -> 1 | H67: =TREND(H57:H58,B57:B58,B67) -> 1 | I67: 10325521.88 | J67: 9264293.614 | K67: =TREND(K57:K58,B57:B58,B67) -> 0.13 | L67: =TREND(L57:L58,B57:B58,B67) -> 0.13 | M67: 18115349.04 | N67: 0 | O67: 18115349.04 | P67: 8606471.832 | R67: 1061228.268 | AG67: 10 | AH67: 74104.02932 | AI67: 1168160.302 | AJ67: 393339.3195 | AK67: 1612085.931 | AL67: 78356.58902 | AM67: -1685380.489 | AN67: 3900509.927 | AO67: -940265.1318 | AP67: 1043282.62 | AQ67: -3371049.215 | AR67: -267441.4747 | AS67: -96236.43873 | AT67: 788500.3072 | AU67: -146075.3452 | AV67: 0 | AW67: 0 | AX67: 0 | AY67: 0 | AZ67: 0 | BA67: 0 | BB67: 0 | BC67: 0 | BD67: 0 | BE67: 0 | BF67: 0 | BG67: 0 | BH67: 0 | BI67: 0 | BJ67: 0 | BK67: 0 | BL67: 0 | BM67: 0 | BN67: 0 | BO67: 0 | BP67: 0 | BQ67: 0 | BR67: 0 | BS67: 0 | BT67: 0 | BU67: 0 | BV67: 0 | BW67: 0 | BX67: 0 | BY67: 0 | BZ67: 0 | CA67: 0 | CB67: 0 | CC67: 0 | CD67: 0 | CE67: 0 | CF67: 0 | CG67: 0 | CH67: 0 | CI67: 0 | CJ67: 0 | CK67: 0 | CL67: 0 | CM67: 0 | CN67: 0 | CO67: 0 | CP67: 0 | CQ67: 0 | CR67: 0 | CS67: 0 | CT67: =OFFSET($R18,MATCH(CT$54,$A:$A),0) -> 0 | CU67: 0 | CV67: 0 | CW67: 0 | CX67: 0 | CY67: 0 | CZ67: 0 | DA67: 0 | DB67: 0 | DC67: 0 | DD67: 0 | DE67: 0 | DF67: 0 | DG67: 0 | DH67: 0 | DI67: 0 | DJ67: 0 | DK67: 0 | DL67: 0 | DM67: 0 | DN67: 0 | DO67: 0 | DP67: 0 | DQ67: 0 | DR67: 0 | DS67: 0 | DT67: 0 | DU67: 0 | DV67: 0 | DW67: 0 | DX67: 0 | DY67: 0 | DZ67: 0 | EA67: 0 | EB67: 0 | EC67: 0
B68: 9 | C68: =TREND(C57:C58,B57:B58,B68) -> 10049615.32 | D68: =TREND(D57:D58,B57:B58,B68) -> 9017490.981 | E68: =TREND(E57:E58,B57:B58,B68) -> 1.08 | F68: =TREND(F57:F58,B57:B58,B68) -> 1.08 | G68: =TREND(G57:G58,B57:B58,B68) -> 1 | H68: =TREND(H57:H58,B57:B58,B68) -> 1 | I68: 10853584.54 | J68: 9738890.259 | K68: =TREND(K57:K58,B57:B58,B68) -> 0.13 | L68: =TREND(L57:L58,B57:B58,B68) -> 0.13 | M68: 19218303.38 | N68: 0 | O68: 19218303.38 | P68: 8533156.535 | R68: 1114694.285 | AG68: 11 | AH68: 77584.13978 | AI68: =OFFSET($R19,MATCH(AI$54,$A:$A),0) -> 1221626.32 | AJ68: 409005.1221 | AK68: 1676085.145 | AL68: 77359.76664 | AM68: -1735957.5 | AN68: 3942432.982 | AO68: -959873.6223 | AP68: 1061202.91 | AQ68: -3421912.201 | AR68: -275519.7993 | AS68: -98777.85166 | AT68: 777543.6517 | AU68: -149011.3799 | AV68: 0 | AW68: 0 | AX68: 0 | AY68: 0 | AZ68: 0 | BA68: 0 | BB68: 0 | BC68: 0 | BD68: 0 | BE68: 0 | BF68: 0 | BG68: 0 | BH68: 0 | BI68: 0 | BJ68: 0 | BK68: 0 | BL68: 0 | BM68: 0 | BN68: 0 | BO68: 0 | BP68: 0 | BQ68: 0 | BR68: 0 | BS68: 0 | BT68: 0 | BU68: 0 | BV68: 0 | BW68: 0 | BX68: 0 | BY68: 0 | BZ68: 0 | CA68: 0 | CB68: 0 | CC68: 0 | CD68: 0 | CE68: 0 | CF68: 0 | CG68: 0 | CH68: 0 | CI68: 0 | CJ68: 0 | CK68: 0 | CL68: 0 | CM68: 0 | CN68: 0 | CO68: 0 | CP68: 0 | CQ68: 0 | CR68: 0 | CS68: 0 | CT68: 0 | CU68: 0 | CV68: 0 | CW68: 0 | CX68: 0 | CY68: 0 | CZ68: 0 | DA68: 0 | DB68: 0 | DC68: 0 | DD68: 0 | DE68: 0 | DF68: 0 | DG68: 0 | DH68: 0 | DI68: 0 | DJ68: 0 | DK68: 0 | DL68: 0 | DM68: 0 | DN68: 0 | DO68: 0 | DP68: 0 | DQ68: 0 | DR68: 0 | DS68: 0 | DT68: 0 | DU68: 0 | DV68: 0 | DW68: 0 | DX68: 0 | DY68: 0 | DZ68: 0 | EA68: 0 | EB68: 0 | EC68: 0
B69: 10 | C69: =TREND(C57:C58,B57:B58,B69) -> 10538562.23 | D69: =TREND(D57:D58,B57:B58,B69) -> 9456932.319 | E69: =TREND(E57:E58,B57:B58,B69) -> 1.08 | F69: =TREND(F57:F58,B57:B58,B69) -> 1.08 | G69: =TREND(G57:G58,B57:B58,B69) -> 1 | H69: =TREND(H57:H58,B57:B58,B69) -> 1 | I69: 11381647.21 | J69: 10213486.9 | K69: =TREND(K57:K58,B57:B58,B69) -> 0.13 | L69: =TREND(L57:L58,B57:B58,B69) -> 0.13 | M69: 20341505.27 | N69: 0 | O69: 20341505.27 | P69: 8441001.502 | R69: 1168160.302 | AG69: 12 | AH69: 81064.25025 | AI69: 1275092.337 | AJ69: 424670.9248 | AK69: 1740084.358 | AL69: 76362.94427 | AM69: -1786534.511 | AN69: 3984356.037 | AO69: -979482.1128 | AP69: 1079123.2 | AQ69: -3472775.187 | AR69: -283598.1238 | AS69: -101319.2646 | AT69: 766586.9962 | AU69: -151947.4145 | AV69: 0 | AW69: 0 | AX69: 0 | AY69: 0 | AZ69: 0 | BA69: 0 | BB69: 0 | BC69: 0 | BD69: 0 | BE69: 0 | BF69: 0 | BG69: 0 | BH69: 0 | BI69: 0 | BJ69: 0 | BK69: 0 | BL69: 0 | BM69: 0 | BN69: 0 | BO69: 0 | BP69: 0 | BQ69: 0 | BR69: 0 | BS69: 0 | BT69: 0 | BU69: 0 | BV69: 0 | BW69: 0 | BX69: 0 | BY69: 0 | BZ69: 0 | CA69: 0 | CB69: 0 | CC69: 0 | CD69: 0 | CE69: 0 | CF69: 0 | CG69: 0 | CH69: 0 | CI69: 0 | CJ69: 0 | CK69: 0 | CL69: 0 | CM69: 0 | CN69: 0 | CO69: 0 | CP69: 0 | CQ69: 0 | CR69: 0 | CS69: 0 | CT69: 0 | CU69: 0 | CV69: 0 | CW69: 0 | CX69: 0 | CY69: 0 | CZ69: 0 | DA69: 0 | DB69: 0 | DC69: 0 | DD69: 0 | DE69: 0 | DF69: 0 | DG69: 0 | DH69: 0 | DI69: 0 | DJ69: 0 | DK69: 0 | DL69: 0 | DM69: 0 | DN69: 0 | DO69: 0 | DP69: 0 | DQ69: 0 | DR69: 0 | DS69: 0 | DT69: 0 | DU69: 0 | DV69: 0 | DW69: 0 | DX69: 0 | DY69: 0 | DZ69: 0 | EA69: 0 | EB69: 0 | EC69: 0
B70: 11 | C70: =TREND(C57:C58,B57:B58,B70) -> 11027509.14 | D70: =TREND(D57:D58,B57:B58,B70) -> 9896373.657 | E70: =TREND(E57:E58,B57:B58,B70) -> 1.08 | F70: =TREND(F57:F58,B57:B58,B70) -> 1.08 | G70: =TREND(G57:G58,B57:B58,B70) -> 1 | H70: =TREND(H57:H58,B57:B58,B70) -> 1 | I70: 11909709.87 | J70: 10688083.55 | K70: =TREND(K57:K58,B57:B58,B70) -> 0.13 | L70: =TREND(L57:L58,B57:B58,B70) -> 0.13 | M70: 21485249.36 | N70: 0 | O70: 21485249.36 | P70: 8332350.131 | R70: 1221626.32 | AG70: 13 | AH70: 84544.36071 | AI70: 1328558.354 | AJ70: 440336.7274 | AK70: 1804083.572 | AL70: 75366.12189 | AM70: -1837111.523 | AN70: 4026279.092 | AO70: -999090.6033 | AP70: 1097043.49 | AQ70: -3523638.173 | AR70: -291676.4484 | AS70: -103860.6775 | AT70: 755630.3407 | AU70: -154883.4491 | AV70: 0 | AW70: 0 | AX70: 0 | AY70: 0 | AZ70: 0 | BA70: 0 | BB70: 0 | BC70: 0 | BD70: 0 | BE70: 0 | BF70: 0 | BG70: 0 | BH70: 0 | BI70: 0 | BJ70: 0 | BK70: 0 | BL70: 0 | BM70: 0 | BN70: 0 | BO70: 0 | BP70: 0 | BQ70: 0 | BR70: 0 | BS70: 0 | BT70: 0 | BU70: 0 | BV70: 0 | BW70: 0 | BX70: 0 | BY70: 0 | BZ70: 0 | CA70: 0 | CB70: 0 | CC70: 0 | CD70: 0 | CE70: 0 | CF70: 0 | CG70: 0 | CH70: 0 | CI70: 0 | CJ70: 0 | CK70: 0 | CL70: 0 | CM70: 0 | CN70: 0 | CO70: 0 | CP70: 0 | CQ70: 0 | CR70: 0 | CS70: 0 | CT70: 0 | CU70: 0 | CV70: 0 | CW70: 0 | CX70: 0 | CY70: 0 | CZ70: 0 | DA70: 0 | DB70: 0 | DC70: 0 | DD70: 0 | DE70: 0 | DF70: 0 | DG70: 0 | DH70: 0 | DI70: 0 | DJ70: 0 | DK70: 0 | DL70: 0 | DM70: 0 | DN70: 0 | DO70: 0 | DP70: 0 | DQ70: 0 | DR70: 0 | DS70: 0 | DT70: 0 | DU70: 0 | DV70: 0 | DW70: 0 | DX70: 0 | DY70: 0 | DZ70: 0 | EA70: 0 | EB70: 0 | EC70: 0
B71: 12 | C71: =TREND(C57:C58,B57:B58,B71) -> 11516456.05 | D71: =TREND(D57:D58,B57:B58,B71) -> 10335814.99 | E71: =TREND(E57:E58,B57:B58,B71) -> 1.08 | F71: =TREND(F57:F58,B57:B58,B71) -> 1.08 | G71: =TREND(G57:G58,B57:B58,B71) -> 1 | H71: =TREND(H57:H58,B57:B58,B71) -> 1 | I71: 12437772.53 | J71: 11162680.19 | K71: =TREND(K57:K58,B57:B58,B71) -> 0.13 | L71: =TREND(L57:L58,B57:B58,B71) -> 0.13 | M71: 22649834.19 | N71: 0 | O71: 22649834.19 | P71: 8209342.249 | R71: 1275092.337 | AG71: 14 | AH71: 88024.47118 | AI71: 1382024.371 | AJ71: 456002.53 | AK71: 1868082.786 | AL71: 74369.29951 | AM71: -1887688.534 | AN71: 4068202.147 | AO71: -1018699.094 | AP71: 1114963.78 | AQ71: -3574501.159 | AR71: -299754.7729 | AS71: -106402.0904 | AT71: 744673.6852 | AU71: -157819.4838 | AV71: 0 | AW71: 0 | AX71: 0 | AY71: 0 | AZ71: 0 | BA71: 0 | BB71: 0 | BC71: 0 | BD71: 0 | BE71: 0 | BF71: 0 | BG71: 0 | BH71: 0 | BI71: 0 | BJ71: 0 | BK71: 0 | BL71: 0 | BM71: 0 | BN71: 0 | BO71: 0 | BP71: 0 | BQ71: 0 | BR71: 0 | BS71: 0 | BT71: 0 | BU71: 0 | BV71: 0 | BW71: 0 | BX71: 0 | BY71: 0 | BZ71: 0 | CA71: 0 | CB71: 0 | CC71: 0 | CD71: 0 | CE71: 0 | CF71: 0 | CG71: 0 | CH71: 0 | CI71: 0 | CJ71: 0 | CK71: 0 | CL71: 0 | CM71: 0 | CN71: 0 | CO71: 0 | CP71: 0 | CQ71: 0 | CR71: 0 | CS71: 0 | CT71: =OFFSET($R22,MATCH(CT$54,$A:$A),0) -> 0 | CU71: 0 | CV71: 0 | CW71: 0 | CX71: 0 | CY71: 0 | CZ71: 0 | DA71: 0 | DB71: 0 | DC71: 0 | DD71: 0 | DE71: 0 | DF71: 0 | DG71: 0 | DH71: 0 | DI71: 0 | DJ71: 0 | DK71: 0 | DL71: 0 | DM71: 0 | DN71: 0 | DO71: 0 | DP71: 0 | DQ71: 0 | DR71: 0 | DS71: 0 | DT71: 0 | DU71: 0 | DV71: 0 | DW71: 0 | DX71: 0 | DY71: 0 | DZ71: 0 | EA71: 0 | EB71: 0 | EC71: 0
B72: 13 | C72: =TREND(C57:C58,B57:B58,B72) -> 12005402.96 | D72: =TREND(D57:D58,B57:B58,B72) -> 10775256.33 | E72: =TREND(E57:E58,B57:B58,B72) -> 1.08 | F72: =TREND(F57:F58,B57:B58,B72) -> 1.08 | G72: =TREND(G57:G58,B57:B58,B72) -> 1 | H72: =TREND(H57:H58,B57:B58,B72) -> 1 | I72: 12965835.19 | J72: 11637276.84 | K72: =TREND(K57:K58,B57:B58,B72) -> 0.13 | L72: =TREND(L57:L58,B57:B58,B72) -> 0.13 | M72: 23835562.19 | N72: 0 | O72: 23835562.19 | P72: 8073929.573 | R72: 1328558.354 | AG72: 15 | AH72: 91504.58164 | AI72: =OFFSET($R23,MATCH(AI$54,$A:$A),0) -> 1435490.388 | AJ72: 471668.3326 | AK72: 1932081.999 | AL72: 73372.47713 | AM72: -1938265.545 | AN72: 4110125.202 | AO72: -1038307.584 | AP72: 1132884.069 | AQ72: -3625364.145 | AR72: -307833.0975 | AS72: -108943.5034 | AT72: 733717.0297 | AU72: -160755.5184 | AV72: 0 | AW72: 0 | AX72: 0 | AY72: 0 | AZ72: 0 | BA72: 0 | BB72: 0 | BC72: 0 | BD72: 0 | BE72: 0 | BF72: 0 | BG72: 0 | BH72: 0 | BI72: 0 | BJ72: 0 | BK72: 0 | BL72: 0 | BM72: 0 | BN72: 0 | BO72: 0 | BP72: 0 | BQ72: 0 | BR72: 0 | BS72: 0 | BT72: 0 | BU72: 0 | BV72: 0 | BW72: 0 | BX72: 0 | BY72: 0 | BZ72: 0 | CA72: 0 | CB72: 0 | CC72: 0 | CD72: 0 | CE72: 0 | CF72: 0 | CG72: 0 | CH72: 0 | CI72: 0 | CJ72: 0 | CK72: 0 | CL72: 0 | CM72: 0 | CN72: 0 | CO72: 0 | CP72: 0 | CQ72: 0 | CR72: 0 | CS72: 0 | CT72: 0 | CU72: 0 | CV72: 0 | CW72: 0 | CX72: 0 | CY72: 0 | CZ72: 0 | DA72: 0 | DB72: 0 | DC72: 0 | DD72: 0 | DE72: 0 | DF72: 0 | DG72: 0 | DH72: 0 | DI72: 0 | DJ72: 0 | DK72: 0 | DL72: 0 | DM72: 0 | DN72: 0 | DO72: 0 | DP72: 0 | DQ72: 0 | DR72: 0 | DS72: 0 | DT72: 0 | DU72: 0 | DV72: 0 | DW72: 0 | DX72: 0 | DY72: 0 | DZ72: 0 | EA72: 0 | EB72: 0 | EC72: 0
B73: 14 | C73: =TREND(C57:C58,B57:B58,B73) -> 12494349.87 | D73: =TREND(D57:D58,B57:B58,B73) -> 11214697.67 | E73: =TREND(E57:E58,B57:B58,B73) -> 1.08 | F73: =TREND(F57:F58,B57:B58,B73) -> 1.08 | G73: =TREND(G57:G58,B57:B58,B73) -> 1 | H73: =TREND(H57:H58,B57:B58,B73) -> 1 | I73: 13493897.86 | J73: 12111873.48 | K73: =TREND(K57:K58,B57:B58,B73) -> 0.13 | L73: =TREND(L57:L58,B57:B58,B73) -> 0.13 | M73: 25042739.77 | N73: 0 | O73: 25042739.77 | P73: 7927890.079 | R73: 1382024.371 | AG73: 16 | AH73: 94984.69211 | AI73: 1488956.405 | AJ73: 487334.1352 | AK73: 1996081.213 | AL73: 72375.65476 | AM73: -1988842.556 | AN73: 4152048.257 | AO73: -1057916.075 | AP73: 1150804.359 | AQ73: -3676227.131 | AR73: -315911.422 | AS73: -111484.9163 | AT73: 722760.3742 | AU73: -163691.5531 | AV73: 0 | AW73: 0 | AX73: 0 | AY73: 0 | AZ73: 0 | BA73: 0 | BB73: 0 | BC73: 0 | BD73: 0 | BE73: 0 | BF73: 0 | BG73: 0 | BH73: 0 | BI73: 0 | BJ73: 0 | BK73: 0 | BL73: 0 | BM73: 0 | BN73: 0 | BO73: 0 | BP73: 0 | BQ73: 0 | BR73: 0 | BS73: 0 | BT73: 0 | BU73: 0 | BV73: 0 | BW73: 0 | BX73: 0 | BY73: 0 | BZ73: 0 | CA73: 0 | CB73: 0 | CC73: 0 | CD73: 0 | CE73: 0 | CF73: 0 | CG73: 0 | CH73: 0 | CI73: 0 | CJ73: 0 | CK73: 0 | CL73: 0 | CM73: 0 | CN73: 0 | CO73: 0 | CP73: 0 | CQ73: 0 | CR73: 0 | CS73: 0 | CT73: 0 | CU73: 0 | CV73: 0 | CW73: 0 | CX73: 0 | CY73: 0 | CZ73: 0 | DA73: 0 | DB73: 0 | DC73: 0 | DD73: 0 | DE73: 0 | DF73: 0 | DG73: 0 | DH73: 0 | DI73: 0 | DJ73: 0 | DK73: 0 | DL73: 0 | DM73: 0 | DN73: 0 | DO73: 0 | DP73: 0 | DQ73: 0 | DR73: 0 | DS73: 0 | DT73: 0 | DU73: 0 | DV73: 0 | DW73: 0 | DX73: 0 | DY73: 0 | DZ73: 0 | EA73: 0 | EB73: 0 | EC73: 0
B74: 15 | C74: =TREND(C57:C58,B57:B58,B74) -> 12983296.78 | D74: =TREND(D57:D58,B57:B58,B74) -> 11654139.01 | E74: =TREND(E57:E58,B57:B58,B74) -> 1.08 | F74: =TREND(F57:F58,B57:B58,B74) -> 1.08 | G74: =TREND(G57:G58,B57:B58,B74) -> 1 | H74: =TREND(H57:H58,B57:B58,B74) -> 1 | I74: 14021960.52 | J74: 12586470.13 | K74: =TREND(K57:K58,B57:B58,B74) -> 0.13 | L74: =TREND(L57:L58,B57:B58,B74) -> 0.13 | M74: 26271677.35 | N74: 0 | O74: 26271677.35 | P74: 7772841.348 | R74: 1435490.388 | AG74: 17 | AH74: 98464.80257 | AI74: 1542422.422 | AJ74: 502999.9379 | AK74: 2060080.426 | AL74: 71378.83238 | AM74: -2039419.567 | AN74: 4193971.312 | AO74: -1077524.565 | AP74: 1168724.649 | AQ74: -3727090.117 | AR74: -323989.7466 | AS74: -114026.3292 | AT74: 711803.7187 | AU74: -166627.5877 | AV74: 0 | AW74: 0 | AX74: 0 | AY74: 0 | AZ74: 0 | BA74: 0 | BB74: 0 | BC74: 0 | BD74: 0 | BE74: 0 | BF74: 0 | BG74: 0 | BH74: 0 | BI74: 0 | BJ74: 0 | BK74: 0 | BL74: 0 | BM74: 0 | BN74: 0 | BO74: 0 | BP74: 0 | BQ74: 0 | BR74: 0 | BS74: 0 | BT74: 0 | BU74: 0 | BV74: 0 | BW74: 0 | BX74: 0 | BY74: 0 | BZ74: 0 | CA74: 0 | CB74: 0 | CC74: 0 | CD74: 0 | CE74: 0 | CF74: 0 | CG74: 0 | CH74: 0 | CI74: 0 | CJ74: 0 | CK74: 0 | CL74: 0 | CM74: 0 | CN74: 0 | CO74: 0 | CP74: 0 | CQ74: 0 | CR74: 0 | CS74: 0 | CT74: 0 | CU74: 0 | CV74: 0 | CW74: 0 | CX74: 0 | CY74: 0 | CZ74: 0 | DA74: 0 | DB74: 0 | DC74: 0 | DD74: 0 | DE74: 0 | DF74: 0 | DG74: 0 | DH74: 0 | DI74: 0 | DJ74: 0 | DK74: 0 | DL74: 0 | DM74: 0 | DN74: 0 | DO74: 0 | DP74: 0 | DQ74: 0 | DR74: 0 | DS74: 0 | DT74: 0 | DU74: 0 | DV74: 0 | DW74: 0 | DX74: 0 | DY74: 0 | DZ74: 0 | EA74: 0 | EB74: 0 | EC74: 0
B75: 16 | C75: =TREND(C57:C58,B57:B58,B75) -> 13472243.68 | D75: =TREND(D57:D58,B57:B58,B75) -> 12093580.35 | E75: =TREND(E57:E58,B57:B58,B75) -> 1.08 | F75: =TREND(F57:F58,B57:B58,B75) -> 1.08 | G75: =TREND(G57:G58,B57:B58,B75) -> 1 | H75: =TREND(H57:H58,B57:B58,B75) -> 1 | I75: 14550023.18 | J75: 13061066.77 | K75: =TREND(K57:K58,B57:B58,B75) -> 0.13 | L75: =TREND(L57:L58,B57:B58,B75) -> 0.13 | M75: 27522689.4 | N75: 0 | O75: 27522689.4 | P75: 7610252.965 | R75: 1488956.405 | AG75: 18 | AH75: 101944.913 | AI75: 1595888.439 | AJ75: 518665.7405 | AK75: 2124079.64 | AL75: 70382.01 | AM75: -2089996.578 | AN75: 4235894.367 | AO75: -1097133.056 | AP75: 1186644.939 | AQ75: -3777953.103 | AR75: -332068.0711 | AS75: -116567.7421 | AT75: 700847.0631 | AU75: -169563.6224 | AV75: 0 | AW75: 0 | AX75: 0 | AY75: 0 | AZ75: 0 | BA75: 0 | BB75: 0 | BC75: 0 | BD75: 0 | BE75: 0 | BF75: 0 | BG75: 0 | BH75: 0 | BI75: 0 | BJ75: 0 | BK75: 0 | BL75: 0 | BM75: 0 | BN75: 0 | BO75: 0 | BP75: 0 | BQ75: 0 | BR75: 0 | BS75: 0 | BT75: 0 | BU75: 0 | BV75: 0 | BW75: 0 | BX75: 0 | BY75: 0 | BZ75: 0 | CA75: 0 | CB75: 0 | CC75: 0 | CD75: 0 | CE75: 0 | CF75: 0 | CG75: 0 | CH75: 0 | CI75: 0 | CJ75: 0 | CK75: 0 | CL75: 0 | CM75: 0 | CN75: 0 | CO75: 0 | CP75: 0 | CQ75: 0 | CR75: 0 | CS75: 0 | CT75: =OFFSET($R26,MATCH(CT$54,$A:$A),0) -> 0 | CU75: 0 | CV75: 0 | CW75: 0 | CX75: 0 | CY75: 0 | CZ75: 0 | DA75: 0 | DB75: 0 | DC75: 0 | DD75: 0 | DE75: 0 | DF75: 0 | DG75: 0 | DH75: 0 | DI75: 0 | DJ75: 0 | DK75: 0 | DL75: 0 | DM75: 0 | DN75: 0 | DO75: 0 | DP75: 0 | DQ75: 0 | DR75: 0 | DS75: 0 | DT75: 0 | DU75: 0 | DV75: 0 | DW75: 0 | DX75: 0 | DY75: 0 | DZ75: 0 | EA75: 0 | EB75: 0 | EC75: 0
B76: 17 | C76: =TREND(C57:C58,B57:B58,B76) -> 13961190.59 | D76: =TREND(D57:D58,B57:B58,B76) -> 12533021.68 | E76: =TREND(E57:E58,B57:B58,B76) -> 1.08 | F76: =TREND(F57:F58,B57:B58,B76) -> 1.08 | G76: =TREND(G57:G58,B57:B58,B76) -> 1 | H76: =TREND(H57:H58,B57:B58,B76) -> 1 | I76: 15078085.84 | J76: 13535663.42 | K76: =TREND(K57:K58,B57:B58,B76) -> 0.13 | L76: =TREND(L57:L58,B57:B58,B76) -> 0.13 | M76: 28796094.52 | N76: 0 | O76: 28796094.52 | P76: 7441458.031 | R76: 1542422.422 | AG76: 19 | AH76: 105425.0235 | AI76: =OFFSET($R27,MATCH(AI$54,$A:$A),0) -> 1649354.457 | AJ76: 534331.5431 | AK76: 2188078.854 | AL76: 69385.18762 | AM76: -2140573.589 | AN76: 4277817.422 | AO76: -1116741.546 | AP76: 1204565.229 | AQ76: -3828816.089 | AR76: -340146.3957 | AS76: -119109.1551 | AT76: 689890.4076 | AU76: -172499.657 | AV76: 0 | AW76: 0 | AX76: 0 | AY76: 0 | AZ76: 0 | BA76: 0 | BB76: 0 | BC76: 0 | BD76: 0 | BE76: 0 | BF76: 0 | BG76: 0 | BH76: 0 | BI76: 0 | BJ76: 0 | BK76: 0 | BL76: 0 | BM76: 0 | BN76: 0 | BO76: 0 | BP76: 0 | BQ76: 0 | BR76: 0 | BS76: 0 | BT76: 0 | BU76: 0 | BV76: 0 | BW76: 0 | BX76: 0 | BY76: 0 | BZ76: 0 | CA76: 0 | CB76: 0 | CC76: 0 | CD76: 0 | CE76: 0 | CF76: 0 | CG76: 0 | CH76: 0 | CI76: 0 | CJ76: 0 | CK76: 0 | CL76: 0 | CM76: 0 | CN76: 0 | CO76: 0 | CP76: 0 | CQ76: 0 | CR76: 0 | CS76: 0 | CT76: 0 | CU76: 0 | CV76: 0 | CW76: 0 | CX76: 0 | CY76: 0 | CZ76: 0 | DA76: 0 | DB76: 0 | DC76: 0 | DD76: 0 | DE76: 0 | DF76: 0 | DG76: 0 | DH76: 0 | DI76: 0 | DJ76: 0 | DK76: 0 | DL76: 0 | DM76: 0 | DN76: 0 | DO76: 0 | DP76: 0 | DQ76: 0 | DR76: 0 | DS76: 0 | DT76: 0 | DU76: 0 | DV76: 0 | DW76: 0 | DX76: 0 | DY76: 0 | DZ76: 0 | EA76: 0 | EB76: 0 | EC76: 0
B77: 18 | C77: =TREND(C57:C58,B57:B58,B77) -> 14450137.5 | D77: =TREND(D57:D58,B57:B58,B77) -> 12972463.02 | E77: =TREND(E57:E58,B57:B58,B77) -> 1.08 | F77: =TREND(F57:F58,B57:B58,B77) -> 1.08 | G77: =TREND(G57:G58,B57:B58,B77) -> 1 | H77: =TREND(H57:H58,B57:B58,B77) -> 1 | I77: 15606148.5 | J77: 14010260.06 | K77: =TREND(K57:K58,B57:B58,B77) -> 0.13 | L77: =TREND(L57:L58,B57:B58,B77) -> 0.13 | M77: 30092215.48 | N77: 0 | O77: 30092215.48 | P77: 7267663.847 | R77: 1595888.439 | AG77: 20 | AH77: 108905.134 | AI77: 1702820.474 | AJ77: 549997.3457 | AK77: 2252078.067 | AL77: 68388.36524 | AM77: -2191150.6 | AN77: 4319740.477 | AO77: -1136350.037 | AP77: 1222485.519 | AQ77: -3879679.075 | AR77: -348224.7202 | AS77: -121650.568 | AT77: 678933.7521 | AU77: -175435.6916 | AV77: 0 | AW77: 0 | AX77: 0 | AY77: 0 | AZ77: 0 | BA77: 0 | BB77: 0 | BC77: 0 | BD77: 0 | BE77: 0 | BF77: 0 | BG77: 0 | BH77: 0 | BI77: 0 | BJ77: 0 | BK77: 0 | BL77: 0 | BM77: 0 | BN77: 0 | BO77: 0 | BP77: 0 | BQ77: 0 | BR77: 0 | BS77: 0 | BT77: 0 | BU77: 0 | BV77: 0 | BW77: 0 | BX77: 0 | BY77: 0 | BZ77: 0 | CA77: 0 | CB77: 0 | CC77: 0 | CD77: 0 | CE77: 0 | CF77: 0 | CG77: 0 | CH77: 0 | CI77: 0 | CJ77: 0 | CK77: 0 | CL77: 0 | CM77: 0 | CN77: 0 | CO77: 0 | CP77: 0 | CQ77: 0 | CR77: 0 | CS77: 0 | CT77: 0 | CU77: 0 | CV77: 0 | CW77: 0 | CX77: 0 | CY77: 0 | CZ77: 0 | DA77: 0 | DB77: 0 | DC77: 0 | DD77: 0 | DE77: 0 | DF77: 0 | DG77: 0 | DH77: 0 | DI77: 0 | DJ77: 0 | DK77: 0 | DL77: 0 | DM77: 0 | DN77: 0 | DO77: 0 | DP77: 0 | DQ77: 0 | DR77: 0 | DS77: 0 | DT77: 0 | DU77: 0 | DV77: 0 | DW77: 0 | DX77: 0 | DY77: 0 | DZ77: 0 | EA77: 0 | EB77: 0 | EC77: 0
B78: 19 | C78: =TREND(C57:C58,B57:B58,B78) -> 14939084.41 | D78: =TREND(D57:D58,B57:B58,B78) -> 13411904.36 | E78: =TREND(E57:E58,B57:B58,B78) -> 1.08 | F78: =TREND(F57:F58,B57:B58,B78) -> 1.08 | G78: =TREND(G57:G58,B57:B58,B78) -> 1 | H78: =TREND(H57:H58,B57:B58,B78) -> 1 | I78: 16134211.17 | J78: 14484856.71 | K78: =TREND(K57:K58,B57:B58,B78) -> 0.13 | L78: =TREND(L57:L58,B57:B58,B78) -> 0.13 | M78: 31411379.24 | N78: 0 | O78: 31411379.24 | P78: 7089961.832 | R78: 1649354.457
B79: 20 | C79: =TREND(C57:C58,B57:B58,B79) -> 15428031.32 | D79: =TREND(D57:D58,B57:B58,B79) -> 13851345.7 | E79: =TREND(E57:E58,B57:B58,B79) -> 1.08 | F79: =TREND(F57:F58,B57:B58,B79) -> 1.08 | G79: =TREND(G57:G58,B57:B58,B79) -> 1 | H79: =TREND(H57:H58,B57:B58,B79) -> 1 | I79: 16662273.83 | J79: 14959453.35 | K79: =TREND(K57:K58,B57:B58,B79) -> 0.13 | L79: =TREND(L57:L58,B57:B58,B79) -> 0.13 | M79: 32753917.06 | N79: 0 | O79: 32753917.06 | P79: 6909336.722 | R79: 1702820.474 | AG79: Total | AH79: =SUM(AH58:AH77) -> 1516881.691 | AI79: =SUM(AI58:AI77) -> 23897866.22 | AJ79: 8023444.417 | AK79: 32881710.75 | AL79: 1557163.557 | AM79: -34213379.9 | AN79: 78429429.09 | AO79: -19001387.54 | AP79: 21044855.31 | AQ79: -67929614.16 | AR79: -5429612.74 | AS79: -1950142.904 | AT79: 15660439.59 | AU79: -2950867.251 | AV79: 0 | AW79: 0 | AX79: 0 | AY79: 0 | AZ79: 0 | BA79: 0 | BB79: 0 | BC79: 0 | BD79: 0 | BE79: 0 | BF79: 0 | BG79: 0 | BH79: 0 | BI79: 0 | BJ79: 0 | BK79: 0 | BL79: 0 | BM79: 0 | BN79: 0 | BO79: 0 | BP79: 0 | BQ79: 0 | BR79: 0 | BS79: 0 | BT79: 0 | BU79: 0 | BV79: 0 | BW79: 0 | BX79: 0 | BY79: 0 | BZ79: 0 | CA79: 0 | CB79: 0 | CC79: 0 | CD79: 0 | CE79: 0 | CF79: 0 | CG79: 0 | CH79: 0 | CI79: 0 | CJ79: 0 | CK79: 0 | CL79: 0 | CM79: 0 | CN79: 0 | CO79: 0 | CP79: 0 | CQ79: 0 | CR79: 0 | CS79: 0 | CT79: 0 | CU79: =SUM(CU58:CU77) -> 0 | CV79: 0 | CW79: 0 | CX79: 0 | CY79: 0 | CZ79: 0 | DA79: 0 | DB79: 0 | DC79: 0 | DD79: 0 | DE79: 0 | DF79: 0 | DG79: 0 | DH79: 0 | DI79: 0 | DJ79: 0 | DK79: 0 | DL79: 0 | DM79: 0 | DN79: 0 | DO79: 0 | DP79: 0 | DQ79: 0 | DR79: 0 | DS79: 0 | DT79: 0 | DU79: 0 | DV79: 0 | DW79: 0 | DX79: 0 | DY79: 0 | DZ79: 0 | EA79: 0 | EB79: 0 | EC79: 0
B81: Total | P81: =SUM(P60:P79) -> 162328672.4 | R81: =SUM(R60:R79) -> 23897866.22 | AG81: =IF(Induced="Y","","* Induced Travel Not Counted") -> 
A84: 3 | B84: =IF(ISBLANK(INDEX(ModelGroup,A84,1)),"Not Used",INDEX(ModelGroup,A84,1)) -> 15 mph
C86: ANNUAL VHT | E86: AVERAGE VEH OCC | G86: ANNUAL PERSON-TRIPS | I86: AVERAGE TRAVEL TIME | K86: PERCENT TRUCKS | M86: TIME BENEFIT | R86: Total
C87: (veh-hours/yr) | E87: (persons/vehicle) | G87: (trips/yr) | I87: (hours) | K87: (%) | M87: ($/yr) | R87: Per-Hrs
B88: Year | M88: Existing | N88: New | O88: Constant | P88: Present | R88: of Time
C89: No Build | D89: Build | E89: No Build | F89: Build | G89: No Build | H89: Build | I89: No Build | J89: Build | K89: No Build | L89: Build | M89: Users | N89: (Induced) | O89: Dollars | P89: Value | R89: Saved
B90: =Year1 -> -8 | C90: =INDEX(ModelData1NB,A84,3)*AnnualFactor -> 2641383.271 | D90: =INDEX(ModelData1B,A84,3)*AnnualFactor -> 2538276.907 | E90: =INDEX(ModelData1NB,A84,5) -> 1.08 | F90: =INDEX(ModelData1B,A84,5) -> 1.08 | G90: =IF(ISNUMBER(INDEX(ModelData1NB,A84,1)),INDEX(ModelData1NB,A84,1)*AnnualFactor,1) -> 1 | H90: =IF(ISNUMBER(INDEX(ModelData1B,A84,1)),INDEX(ModelData1B,A84,1)*AnnualFactor,1) -> 1 | I90: =C90*E90/G90 -> 2852693.932 | J90: =D90*F90/H90 -> 2741339.06 | K90: =INDEX(ModelData1NB,A84,6) -> 0.13 | L90: =INDEX(ModelData1B,A84,6) -> 0.13 | M90: =(I90*(K90*ValTimeTruck+(1-K90)*ValTimeAuto)-J90*(L90*ValTimeTruck+(1-L90)*ValTimeAuto))*MIN(G90,H90)*(1+TTUprater)^($B90+Adjust+Construct-1) -> 1621082.586 | N90: =IF(AND(H90>G90,Induced="Y"),(I90*(K90*ValTimeTruck+(1-K90)*ValTimeAuto)-J90*(L90*ValTimeTruck+(1-L90)*ValTimeAuto))*(H90-G90)*0.5,0)*(1+TTUprater)^($B90+Adjust+Construct-1) -> 0 | O90: =SUM(M90:N90) -> 1621082.586 | P90: =O90/(1+DiscRate)^(B90+Adjust+Construct-1) -> 2273652.186 | R90: =(I90-J90)*MIN(G90,H90) -> 111354.8724
B91: =Year20 -> 17 | C91: =INDEX(ModelData20NB,A84,3)*AnnualFactor -> 14980120.94 | D91: =INDEX(ModelData20B,A84,3)*AnnualFactor -> 14514380.26 | E91: =INDEX(ModelData20NB,A84,5) -> 1.08 | F91: =INDEX(ModelData20B,A84,5) -> 1.08 | G91: =IF(ISNUMBER(INDEX(ModelData20NB,A84,1)),INDEX(ModelData20NB,A84,1)*AnnualFactor,1) -> 1 | H91: =IF(ISNUMBER(INDEX(ModelData20B,A84,1)),INDEX(ModelData20B,A84,1)*AnnualFactor,1) -> 1 | I91: =C91*E91/G91 -> 16178530.62 | J91: =D91*F91/H91 -> 15675530.68 | K91: =INDEX(ModelData20NB,A84,6) -> 0.13 | L91: =INDEX(ModelData20B,A84,6) -> 0.13 | M91: =(I91*(K91*ValTimeTruck+(1-K91)*ValTimeAuto)-J91*(L91*ValTimeTruck+(1-L91)*ValTimeAuto))*MIN(G91,H91)*(1+TTUprater)^($B91+Adjust+Construct-1) -> 9390704.87 | N91: =IF(AND(H91>G91,Induced="Y"),(I91*(K91*ValTimeTruck+(1-K91)*ValTimeAuto)-J91*(L91*ValTimeTruck+(1-L91)*ValTimeAuto))*(H91-G91)*0.5,0)*(1+TTUprater)^($B91+Adjust+Construct-1) -> 0 | O91: =SUM(M91:N91) -> 9390704.87 | P91: =O91/(1+DiscRate)^(B91+Adjust+Construct-1) -> 2426736.588 | R91: =(I91-J91)*MIN(G91,H91) -> 502999.9379
B93: 1 | C93: =TREND(C90:C91,B90:B91,B93) -> 7083328.833 | D93: =TREND(D90:D91,B90:B91,B93) -> 6849674.115 | E93: =TREND(E90:E91,B90:B91,B93) -> 1.08 | F93: =TREND(F90:F91,B90:B91,B93) -> 1.08 | G93: =TREND(G90:G91,B90:B91,B93) -> 1 | H93: =TREND(H90:H91,B90:B91,B93) -> 1 | I93: =C93*E93/G93 -> 7649995.14 | J93: =D93*F93/H93 -> 7397648.044 | K93: =TREND(K90:K91,B90:B91,B93) -> 0.13 | L93: =TREND(L90:L91,B90:B91,B93) -> 0.13 | M93: =(I93*(K93*ValTimeTruck+(1-K93)*ValTimeAuto)-J93*(L93*ValTimeTruck+(1-L93)*ValTimeAuto))*MIN(G93,H93)*(1+TTUprater)^($B93+Adjust+Construct-1) -> 4017784.057 | N93: =IF(AND(H93>G93,Induced="Y"),(I93*(K93*ValTimeTruck+(1-K93)*ValTimeAuto)-J93*(L93*ValTimeTruck+(1-L93)*ValTimeAuto))*(H93-G93)*0.5,0)*(1+TTUprater)^($B93+Adjust+Construct-1) -> 0 | O93: =SUM(M93:N93) -> 4017784.057 | P93: =O93/(1+DiscRate)^(B93+Adjust+Construct-1) -> 3065148.22 | R93: =(I93-J93)*MIN(G93,H93) -> 252347.096
B94: 2 | C94: =TREND(C90:C91,B90:B91,B94) -> 7576878.34 | D94: =TREND(D90:D91,B90:B91,B94) -> 7328718.249 | E94: =TREND(E90:E91,B90:B91,B94) -> 1.08 | F94: =TREND(F90:F91,B90:B91,B94) -> 1.08 | G94: =TREND(G90:G91,B90:B91,B94) -> 1 | H94: =TREND(H90:H91,B90:B91,B94) -> 1 | I94: 8183028.607 | J94: 7915015.709 | K94: =TREND(K90:K91,B90:B91,B94) -> 0.13 | L94: =TREND(L90:L91,B90:B91,B94) -> 0.13 | M94: 4309881.698 | N94: 0 | O94: 4309881.698 | P94: 3072886.086 | R94: 268012.8986
B95: 3 | C95: =TREND(C90:C91,B90:B91,B95) -> 8070427.847 | D95: =TREND(D90:D91,B90:B91,B95) -> 7807762.383 | E95: =TREND(E90:E91,B90:B91,B95) -> 1.08 | F95: =TREND(F90:F91,B90:B91,B95) -> 1.08 | G95: =TREND(G90:G91,B90:B91,B95) -> 1 | H95: =TREND(H90:H91,B90:B91,B95) -> 1 | I95: 8716062.075 | J95: 8432383.373 | K95: =TREND(K90:K91,B90:B91,B95) -> 0.13 | L95: =TREND(L90:L91,B90:B91,B95) -> 0.13 | M95: 4607419.514 | N95: 0 | O95: 4607419.514 | P95: 3070118.165 | R95: 283678.7012
B96: 4 | C96: =TREND(C90:C91,B90:B91,B96) -> 8563977.354 | D96: =TREND(D90:D91,B90:B91,B96) -> 8286806.517 | E96: =TREND(E90:E91,B90:B91,B96) -> 1.08 | F96: =TREND(F90:F91,B90:B91,B96) -> 1.08 | G96: =TREND(G90:G91,B90:B91,B96) -> 1 | H96: =TREND(H90:H91,B90:B91,B96) -> 1 | I96: 9249095.542 | J96: 8949751.038 | K96: =TREND(K90:K91,B90:B91,B96) -> 0.13 | L96: =TREND(L90:L91,B90:B91,B96) -> 0.13 | M96: 4910477.098 | N96: 0 | O96: 4910477.098 | P96: 3057998.345 | R96: 299344.5038
B97: 5 | C97: =TREND(C90:C91,B90:B91,B97) -> 9057526.861 | D97: =TREND(D90:D91,B90:B91,B97) -> 8765850.651 | E97: =TREND(E90:E91,B90:B91,B97) -> 1.08 | F97: =TREND(F90:F91,B90:B91,B97) -> 1.08 | G97: =TREND(G90:G91,B90:B91,B97) -> 1 | H97: =TREND(H90:H91,B90:B91,B97) -> 1 | I97: 9782129.01 | J97: 9467118.703 | K97: =TREND(K90:K91,B90:B91,B97) -> 0.13 | L97: =TREND(L90:L91,B90:B91,B97) -> 0.13 | M97: 5219135.091 | N97: 0 | O97: 5219135.091 | P97: 3037584.141 | R97: 315010.3064
B98: 6 | C98: =TREND(C90:C91,B90:B91,B98) -> 9551076.368 | D98: =TREND(D90:D91,B90:B91,B98) -> 9244894.785 | E98: =TREND(E90:E91,B90:B91,B98) -> 1.08 | F98: =TREND(F90:F91,B90:B91,B98) -> 1.08 | G98: =TREND(G90:G91,B90:B91,B98) -> 1 | H98: =TREND(H90:H91,B90:B91,B98) -> 1 | I98: 10315162.48 | J98: 9984486.368 | K98: =TREND(K90:K91,B90:B91,B98) -> 0.13 | L98: =TREND(L90:L91,B90:B91,B98) -> 0.13 | M98: 5533475.197 | N98: 0 | O98: 5533475.197 | P98: 3009843.873 | R98: 330676.1091
B99: 7 | C99: =TREND(C90:C91,B90:B91,B99) -> 10044625.87 | D99: =TREND(D90:D91,B90:B91,B99) -> 9723938.919 | E99: =TREND(E90:E91,B90:B91,B99) -> 1.08 | F99: =TREND(F90:F91,B90:B91,B99) -> 1.08 | G99: =TREND(G90:G91,B90:B91,B99) -> 1 | H99: =TREND(H90:H91,B90:B91,B99) -> 1 | I99: 10848195.94 | J99: 10501854.03 | K99: =TREND(K90:K91,B90:B91,B99) -> 0.13 | L99: =TREND(L90:L91,B90:B91,B99) -> 0.13 | M99: 5853580.191 | N99: 0 | O99: 5853580.191 | P99: 2975663.347 | R99: 346341.9117
B100: 8 | C100: =TREND(C90:C91,B90:B91,B100) -> 10538175.38 | D100: =TREND(D90:D91,B90:B91,B100) -> 10202983.05 | E100: =TREND(E90:E91,B90:B91,B100) -> 1.08 | F100: =TREND(F90:F91,B90:B91,B100) -> 1.08 | G100: =TREND(G90:G91,B90:B91,B100) -> 1 | H100: =TREND(H90:H91,B90:B91,B100) -> 1 | I100: 11381229.41 | J100: 11019221.7 | K100: =TREND(K90:K91,B90:B91,B100) -> 0.13 | L100: =TREND(L90:L91,B90:B91,B100) -> 0.13 | M100: 6179533.938 | N100: 0 | O100: 6179533.938 | P100: 2935852.059 | R100: 362007.7143
B101: 9 | C101: =TREND(C90:C91,B90:B91,B101) -> 11031724.89 | D101: =TREND(D90:D91,B90:B91,B101) -> 10682027.19 | E101: =TREND(E90:E91,B90:B91,B101) -> 1.08 | F101: =TREND(F90:F91,B90:B91,B101) -> 1.08 | G101: =TREND(G90:G91,B90:B91,B101) -> 1 | H101: =TREND(H90:H91,B90:B91,B101) -> 1 | I101: 11914262.88 | J101: 11536589.36 | K101: =TREND(K90:K91,B90:B91,B101) -> 0.13 | L101: =TREND(L90:L91,B90:B91,B101) -> 0.13 | M101: 6511421.401 | N101: 0 | O101: 6511421.401 | P101: 2891148.974 | R101: 377673.5169
B102: 10 | C102: =TREND(C90:C91,B90:B91,B102) -> 11525274.4 | D102: =TREND(D90:D91,B90:B91,B102) -> 11161071.32 | E102: =TREND(E90:E91,B90:B91,B102) -> 1.08 | F102: =TREND(F90:F91,B90:B91,B102) -> 1.08 | G102: =TREND(G90:G91,B90:B91,B102) -> 1 | H102: =TREND(H90:H91,B90:B91,B102) -> 1 | I102: 12447296.35 | J102: 12053957.03 | K102: =TREND(K90:K91,B90:B91,B102) -> 0.13 | L102: =TREND(L90:L91,B90:B91,B102) -> 0.13 | M102: 6849328.661 | N102: 0 | O102: 6849328.661 | P102: 2842227.886 | R102: 393339.3195
B103: 11 | C103: =TREND(C90:C91,B90:B91,B103) -> 12018823.9 | D103: =TREND(D90:D91,B90:B91,B103) -> 11640115.46 | E103: =TREND(E90:E91,B90:B91,B103) -> 1.08 | F103: =TREND(F90:F91,B90:B91,B103) -> 1.08 | G103: =TREND(G90:G91,B90:B91,B103) -> 1 | H103: =TREND(H90:H91,B90:B91,B103) -> 1 | I103: 12980329.81 | J103: 12571324.69 | K103: =TREND(K90:K91,B90:B91,B103) -> 0.13 | L103: =TREND(L90:L91,B90:B91,B103) -> 0.13 | M103: 7193342.923 | N103: 0 | O103: 7193342.923 | P103: 2789702.406 | R103: 409005.1221
B104: 12 | C104: =TREND(C90:C91,B90:B91,B104) -> 12512373.41 | D104: =TREND(D90:D91,B90:B91,B104) -> 12119159.59 | E104: =TREND(E90:E91,B90:B91,B104) -> 1.08 | F104: =TREND(F90:F91,B90:B91,B104) -> 1.08 | G104: =TREND(G90:G91,B90:B91,B104) -> 1 | H104: =TREND(H90:H91,B90:B91,B104) -> 1 | I104: 13513363.28 | J104: 13088692.36 | K104: =TREND(K90:K91,B90:B91,B104) -> 0.13 | L104: =TREND(L90:L91,B90:B91,B104) -> 0.13 | M104: 7543552.538 | N104: 0 | O104: 7543552.538 | P104: 2734130.591 | R104: 424670.9248
B105: 13 | C105: =TREND(C90:C91,B90:B91,B105) -> 13005922.92 | D105: =TREND(D90:D91,B90:B91,B105) -> 12598203.72 | E105: =TREND(E90:E91,B90:B91,B105) -> 1.08 | F105: =TREND(F90:F91,B90:B91,B105) -> 1.08 | G105: =TREND(G90:G91,B90:B91,B105) -> 1 | H105: =TREND(H90:H91,B90:B91,B105) -> 1 | I105: 14046396.75 | J105: 13606060.02 | K105: =TREND(K90:K91,B90:B91,B105) -> 0.13 | L105: =TREND(L90:L91,B90:B91,B105) -> 0.13 | M105: 7900047.011 | N105: 0 | O105: 7900047.011 | P105: 2676019.247 | R105: 440336.7274
B106: 14 | C106: =TREND(C90:C91,B90:B91,B106) -> 13499472.42 | D106: =TREND(D90:D91,B90:B91,B106) -> 13077247.86 | E106: =TREND(E90:E91,B90:B91,B106) -> 1.08 | F106: =TREND(F90:F91,B90:B91,B106) -> 1.08 | G106: =TREND(G90:G91,B90:B91,B106) -> 1 | H106: =TREND(H90:H91,B90:B91,B106) -> 1 | I106: 14579430.22 | J106: 14123427.69 | K106: =TREND(K90:K91,B90:B91,B106) -> 0.13 | L106: =TREND(L90:L91,B90:B91,B106) -> 0.13 | M106: 8262917.018 | N106: 0 | O106: 8262917.018 | P106: 2615827.919 | R106: 456002.53
B107: 15 | C107: =TREND(C90:C91,B90:B91,B107) -> 13993021.93 | D107: =TREND(D90:D91,B90:B91,B107) -> 13556291.99 | E107: =TREND(E90:E91,B90:B91,B107) -> 1.08 | F107: =TREND(F90:F91,B90:B91,B107) -> 1.08 | G107: =TREND(G90:G91,B90:B91,B107) -> 1 | H107: =TREND(H90:H91,B90:B91,B107) -> 1 | I107: 15112463.68 | J107: 14640795.35 | K107: =TREND(K90:K91,B90:B91,B107) -> 0.13 | L107: =TREND(L90:L91,B90:B91,B107) -> 0.13 | M107: 8632254.421 | N107: 0 | O107: 8632254.421 | P107: 2553972.6 | R107: 471668.3326
B108: 16 | C108: =TREND(C90:C91,B90:B91,B108) -> 14486571.44 | D108: =TREND(D90:D91,B90:B91,B108) -> 14035336.13 | E108: =TREND(E90:E91,B90:B91,B108) -> 1.08 | F108: =TREND(F90:F91,B90:B91,B108) -> 1.08 | G108: =TREND(G90:G91,B90:B91,B108) -> 1 | H108: =TREND(H90:H91,B90:B91,B108) -> 1 | I108: 15645497.15 | J108: 15158163.02 | K108: =TREND(K90:K91,B90:B91,B108) -> 0.13 | L108: =TREND(L90:L91,B90:B91,B108) -> 0.13 | M108: 9008152.28 | N108: 0 | O108: 9008152.28 | P108: 2490829.17 | R108: 487334.1352
B109: 17 | C109: =TREND(C90:C91,B90:B91,B109) -> 14980120.94 | D109: =TREND(D90:D91,B90:B91,B109) -> 14514380.26 | E109: =TREND(E90:E91,B90:B91,B109) -> 1.08 | F109: =TREND(F90:F91,B90:B91,B109) -> 1.08 | G109: =TREND(G90:G91,B90:B91,B109) -> 1 | H109: =TREND(H90:H91,B90:B91,B109) -> 1 | I109: 16178530.62 | J109: 15675530.68 | K109: =TREND(K90:K91,B90:B91,B109) -> 0.13 | L109: =TREND(L90:L91,B90:B91,B109) -> 0.13 | M109: 9390704.87 | N109: 0 | O109: 9390704.87 | P109: 2426736.588 | R109: 502999.9379
B110: 18 | C110: =TREND(C90:C91,B90:B91,B110) -> 15473670.45 | D110: =TREND(D90:D91,B90:B91,B110) -> 14993424.39 | E110: =TREND(E90:E91,B90:B91,B110) -> 1.08 | F110: =TREND(F90:F91,B90:B91,B110) -> 1.08 | G110: =TREND(G90:G91,B90:B91,B110) -> 1 | H110: =TREND(H90:H91,B90:B91,B110) -> 1 | I110: 16711564.09 | J110: 16192898.35 | K110: =TREND(K90:K91,B90:B91,B110) -> 0.13 | L110: =TREND(L90:L91,B90:B91,B110) -> 0.13 | M110: 9780007.698 | N110: 0 | O110: 9780007.698 | P110: 2361999.847 | R110: 518665.7405
B111: 19 | C111: =TREND(C90:C91,B90:B91,B111) -> 15967219.96 | D111: =TREND(D90:D91,B90:B91,B111) -> 15472468.53 | E111: =TREND(E90:E91,B90:B91,B111) -> 1.08 | F111: =TREND(F90:F91,B90:B91,B111) -> 1.08 | G111: =TREND(G90:G91,B90:B91,B111) -> 1 | H111: =TREND(H90:H91,B90:B91,B111) -> 1 | I111: 17244597.55 | J111: 16710266.01 | K111: =TREND(K90:K91,B90:B91,B111) -> 0.13 | L111: =TREND(L90:L91,B90:B91,B111) -> 0.13 | M111: 10176157.51 | N111: 0 | O111: 10176157.51 | P111: 2296892.721 | R111: 534331.5431
B112: 20 | C112: =TREND(C90:C91,B90:B91,B112) -> 16460769.46 | D112: =TREND(D90:D91,B90:B91,B112) -> 15951512.66 | E112: =TREND(E90:E91,B90:B91,B112) -> 1.08 | F112: =TREND(F90:F91,B90:B91,B112) -> 1.08 | G112: =TREND(G90:G91,B90:B91,B112) -> 1 | H112: =TREND(H90:H91,B90:B91,B112) -> 1 | I112: 17777631.02 | J112: 17227633.68 | K112: =TREND(K90:K91,B90:B91,B112) -> 0.13 | L112: =TREND(L90:L91,B90:B91,B112) -> 0.13 | M112: 10579252.32 | N112: 0 | O112: 10579252.32 | P112: 2231660.305 | R112: 549997.3457
B114: Total | P114: =SUM(P93:P112) -> 55136242.49 | R114: =SUM(R93:R112) -> 8023444.417
A117: 4 | B117: =IF(ISBLANK(INDEX(ModelGroup,A117,1)),"Not Used",INDEX(ModelGroup,A117,1)) -> 20 mph
C119: ANNUAL VHT | E119: AVERAGE VEH OCC | G119: ANNUAL PERSON-TRIPS | I119: AVERAGE TRAVEL TIME | K119: PERCENT TRUCKS | M119: TIME BENEFIT | R119: Total
C120: (veh-hours/yr) | E120: (persons/vehicle) | G120: (trips/yr) | I120: (hours) | K120: (%) | M120: ($/yr) | R120: Per-Hrs
B121: Year | M121: Existing | N121: New | O121: Constant | P121: Present | R121: of Time
C122: No Build | D122: Build | E122: No Build | F122: Build | G122: No Build | H122: Build | I122: No Build | J122: Build | K122: No Build | L122: Build | M122: Users | N122: (Induced) | O122: Dollars | P122: Value | R122: Saved
B123: =Year1 -> -8 | C123: =INDEX(ModelData1NB,A117,3)*AnnualFactor -> 4710046.298 | D123: =INDEX(ModelData1B,A117,3)*AnnualFactor -> 4284027.701 | E123: =INDEX(ModelData1NB,A117,5) -> 1.08 | F123: =INDEX(ModelData1B,A117,5) -> 1.08 | G123: =IF(ISNUMBER(INDEX(ModelData1NB,A117,1)),INDEX(ModelData1NB,A117,1)*AnnualFactor,1) -> 1 | H123: =IF(ISNUMBER(INDEX(ModelData1B,A117,1)),INDEX(ModelData1B,A117,1)*AnnualFactor,1) -> 1 | I123: =C123*E123/G123 -> 5086850.002 | J123: =D123*F123/H123 -> 4626749.917 | K123: =INDEX(ModelData1NB,A117,6) -> 0.13 | L123: =INDEX(ModelData1B,A117,6) -> 0.13 | M123: =(I123*(K123*ValTimeTruck+(1-K123)*ValTimeAuto)-J123*(L123*ValTimeTruck+(1-L123)*ValTimeAuto))*MIN(G123,H123)*(1+TTUprater)^($B123+Adjust+Construct-1) -> 6698047.598 | N123: =IF(AND(H123>G123,Induced="Y"),(I123*(K123*ValTimeTruck+(1-K123)*ValTimeAuto)-J123*(L123*ValTimeTruck+(1-L123)*ValTimeAuto))*(H123-G123)*0.5,0)*(1+TTUprater)^($B123+Adjust+Construct-1) -> 0 | O123: =SUM(M123:N123) -> 6698047.598 | P123: =O123/(1+DiscRate)^(B123+Adjust+Construct-1) -> 9394358.25 | R123: =(I123-J123)*MIN(G123,H123) -> 460100.085
B124: =Year20 -> 17 | C124: =INDEX(ModelData20NB,A117,3)*AnnualFactor -> 23001230.29 | D124: =INDEX(ModelData20B,A117,3)*AnnualFactor -> 21093748.42 | E124: =INDEX(ModelData20NB,A117,5) -> 1.08 | F124: =INDEX(ModelData20B,A117,5) -> 1.08 | G124: =IF(ISNUMBER(INDEX(ModelData20NB,A117,1)),INDEX(ModelData20NB,A117,1)*AnnualFactor,1) -> 1 | H124: =IF(ISNUMBER(INDEX(ModelData20B,A117,1)),INDEX(ModelData20B,A117,1)*AnnualFactor,1) -> 1 | I124: =C124*E124/G124 -> 24841328.72 | J124: =D124*F124/H124 -> 22781248.29 | K124: =INDEX(ModelData20NB,A117,6) -> 0.13 | L124: =INDEX(ModelData20B,A117,6) -> 0.13 | M124: =(I124*(K124*ValTimeTruck+(1-K124)*ValTimeAuto)-J124*(L124*ValTimeTruck+(1-L124)*ValTimeAuto))*MIN(G124,H124)*(1+TTUprater)^($B124+Adjust+Construct-1) -> 38460456.63 | N124: =IF(AND(H124>G124,Induced="Y"),(I124*(K124*ValTimeTruck+(1-K124)*ValTimeAuto)-J124*(L124*ValTimeTruck+(1-L124)*ValTimeAuto))*(H124-G124)*0.5,0)*(1+TTUprater)^($B124+Adjust+Construct-1) -> 0 | O124: =SUM(M124:N124) -> 38460456.63 | P124: =O124/(1+DiscRate)^(B124+Adjust+Construct-1) -> 9938912.85 | R124: =(I124-J124)*MIN(G124,H124) -> 2060080.426
B126: 1 | C126: =TREND(C123:C124,B123:B124,B126) -> 11294872.54 | D126: =TREND(D123:D124,B123:B124,B126) -> 10335527.16 | E126: =TREND(E123:E124,B123:B124,B126) -> 1.08 | F126: =TREND(F123:F124,B123:B124,B126) -> 1.08 | G126: =TREND(G123:G124,B123:B124,B126) -> 1 | H126: =TREND(H123:H124,B123:B124,B126) -> 1 | I126: =C126*E126/G126 -> 12198462.34 | J126: =D126*F126/H126 -> 11162369.33 | K126: =TREND(K123:K124,B123:B124,B126) -> 0.13 | L126: =TREND(L123:L124,B123:B124,B126) -> 0.13 | M126: =(I126*(K126*ValTimeTruck+(1-K126)*ValTimeAuto)-J126*(L126*ValTimeTruck+(1-L126)*ValTimeAuto))*MIN(G126,H126)*(1+TTUprater)^($B126+Adjust+Construct-1) -> 16496318.11 | N126: =IF(AND(H126>G126,Induced="Y"),(I126*(K126*ValTimeTruck+(1-K126)*ValTimeAuto)-J126*(L126*ValTimeTruck+(1-L126)*ValTimeAuto))*(H126-G126)*0.5,0)*(1+TTUprater)^($B126+Adjust+Construct-1) -> 0 | O126: =SUM(M126:N126) -> 16496318.11 | P126: =O126/(1+DiscRate)^(B126+Adjust+Construct-1) -> 12584962.1 | R126: =(I126-J126)*MIN(G126,H126) -> 1036093.008
B127: 2 | C127: =TREND(C123:C124,B123:B124,B127) -> 12026519.9 | D127: =TREND(D123:D124,B123:B124,B127) -> 11007915.99 | E127: =TREND(E123:E124,B123:B124,B127) -> 1.08 | F127: =TREND(F123:F124,B123:B124,B127) -> 1.08 | G127: =TREND(G123:G124,B123:B124,B127) -> 1 | H127: =TREND(H123:H124,B123:B124,B127) -> 1 | I127: 12988641.49 | J127: 11888549.27 | K127: =TREND(K123:K124,B123:B124,B127) -> 0.13 | L127: =TREND(L123:L124,B123:B124,B127) -> 0.13 | M127: 17690444.59 | N127: 0 | O127: 17690444.59 | P127: 12613042.5 | R127: 1100092.222
B128: 3 | C128: =TREND(C123:C124,B123:B124,B128) -> 12758167.26 | D128: =TREND(D123:D124,B123:B124,B128) -> 11680304.82 | E128: =TREND(E123:E124,B123:B124,B128) -> 1.08 | F128: =TREND(F123:F124,B123:B124,B128) -> 1.08 | G128: =TREND(G123:G124,B123:B124,B128) -> 1 | H128: =TREND(H123:H124,B123:B124,B128) -> 1 | I128: 13778820.64 | J128: 12614729.2 | K128: =TREND(K123:K124,B123:B124,B128) -> 0.13 | L128: =TREND(L123:L124,B123:B124,B128) -> 0.13 | M128: 18906803.97 | N128: 0 | O128: 18906803.97 | P128: 12598401.8 | R128: 1164091.435
B129: 4 | C129: =TREND(C123:C124,B123:B124,B129) -> 13489814.62 | D129: =TREND(D123:D124,B123:B124,B129) -> 12352693.64 | E129: =TREND(E123:E124,B123:B124,B129) -> 1.08 | F129: =TREND(F123:F124,B123:B124,B129) -> 1.08 | G129: =TREND(G123:G124,B123:B124,B129) -> 1 | H129: =TREND(H123:H124,B123:B124,B129) -> 1 | I129: 14568999.79 | J129: 13340909.14 | K129: =TREND(K123:K124,B123:B124,B129) -> 0.13 | L129: =TREND(L123:L124,B123:B124,B129) -> 0.13 | M129: 20145721.5 | N129: 0 | O129: 20145721.5 | P129: 12545742.86 | R129: 1228090.649
B130: 5 | C130: =TREND(C123:C124,B123:B124,B130) -> 14221461.98 | D130: =TREND(D123:D124,B123:B124,B130) -> 13025082.47 | E130: =TREND(E123:E124,B123:B124,B130) -> 1.08 | F130: =TREND(F123:F124,B123:B124,B130) -> 1.08 | G130: =TREND(G123:G124,B123:B124,B130) -> 1 | H130: =TREND(H123:H124,B123:B124,B130) -> 1 | I130: 15359178.93 | J130: 14067089.07 | K130: =TREND(K123:K124,B123:B124,B130) -> 0.13 | L130: =TREND(L123:L124,B123:B124,B130) -> 0.13 | M130: 21407526.69 | N130: 0 | O130: 21407526.69 | P130: 12459375.44 | R130: 1292089.863
B131: 6 | C131: =TREND(C123:C124,B123:B124,B131) -> 14953109.34 | D131: =TREND(D123:D124,B123:B124,B131) -> 13697471.3 | E131: =TREND(E123:E124,B123:B124,B131) -> 1.08 | F131: =TREND(F123:F124,B123:B124,B131) -> 1.08 | G131: =TREND(G123:G124,B123:B124,B131) -> 1 | H131: =TREND(H123:H124,B123:B124,B131) -> 1 | I131: 16149358.08 | J131: 14793269.01 | K131: =TREND(K123:K124,B123:B124,B131) -> 0.13 | L131: =TREND(L123:L124,B123:B124,B131) -> 0.13 | M131: 22692553.42 | N131: 0 | O131: 22692553.42 | P131: 12343245.51 | R131: 1356089.076
B132: 7 | C132: =TREND(C123:C124,B123:B124,B132) -> 15684756.7 | D132: =TREND(D123:D124,B123:B124,B132) -> 14369860.13 | E132: =TREND(E123:E124,B123:B124,B132) -> 1.08 | F132: =TREND(F123:F124,B123:B124,B132) -> 1.08 | G132: =TREND(G123:G124,B123:B124,B132) -> 1 | H132: =TREND(H123:H124,B123:B124,B132) -> 1 | I132: 16939537.23 | J132: 15519448.94 | K132: =TREND(K123:K124,B123:B124,B132) -> 0.13 | L132: =TREND(L123:L124,B123:B124,B132) -> 0.13 | M132: 24001139.92 | N132: 0 | O132: 24001139.92 | P132: 12200962.49 | R132: 1420088.29
B133: 8 | C133: =TREND(C123:C124,B123:B124,B133) -> 16416404.06 | D133: =TREND(D123:D124,B123:B124,B133) -> 15042248.96 | E133: =TREND(E123:E124,B123:B124,B133) -> 1.08 | F133: =TREND(F123:F124,B123:B124,B133) -> 1.08 | G133: =TREND(G123:G124,B123:B124,B133) -> 1 | H133: =TREND(H123:H124,B123:B124,B133) -> 1 | I133: 17729716.38 | J133: 16245628.88 | K133: =TREND(K123:K124,B123:B124,B133) -> 0.13 | L133: =TREND(L123:L124,B123:B124,B133) -> 0.13 | M133: 25333628.91 | N133: 0 | O133: 25333628.91 | P133: 12035824.6 | R133: 1484087.504
B134: 9 | C134: =TREND(C123:C124,B123:B124,B134) -> 17148051.41 | D134: =TREND(D123:D124,B123:B124,B134) -> 15714637.79 | E134: =TREND(E123:E124,B123:B124,B134) -> 1.08 | F134: =TREND(F123:F124,B123:B124,B134) -> 1.08 | G134: =TREND(G123:G124,B123:B124,B134) -> 1 | H134: =TREND(H123:H124,B123:B124,B134) -> 1 | I134: 18519895.53 | J134: 16971808.81 | K134: =TREND(K123:K124,B123:B124,B134) -> 0.13 | L134: =TREND(L123:L124,B123:B124,B134) -> 0.13 | M134: 26690367.55 | N134: 0 | O134: 26690367.55 | P134: 11850842.39 | R134: 1548086.717
B135: 10 | C135: =TREND(C123:C124,B123:B124,B135) -> 17879698.77 | D135: =TREND(D123:D124,B123:B124,B135) -> 16387026.62 | E135: =TREND(E123:E124,B123:B124,B135) -> 1.08 | F135: =TREND(F123:F124,B123:B124,B135) -> 1.08 | G135: =TREND(G123:G124,B123:B124,B135) -> 1 | H135: =TREND(H123:H124,B123:B124,B135) -> 1 | I135: 19310074.68 | J135: 17697988.75 | K135: =TREND(K123:K124,B123:B124,B135) -> 0.13 | L135: =TREND(L123:L124,B123:B124,B135) -> 0.13 | M135: 28071707.61 | N135: 0 | O135: 28071707.61 | P135: 11648760.65 | R135: 1612085.931
B136: 11 | C136: =TREND(C123:C124,B123:B124,B136) -> 18611346.13 | D136: =TREND(D123:D124,B123:B124,B136) -> 17059415.45 | E136: =TREND(E123:E124,B123:B124,B136) -> 1.08 | F136: =TREND(F123:F124,B123:B124,B136) -> 1.08 | G136: =TREND(G123:G124,B123:B124,B136) -> 1 | H136: =TREND(H123:H124,B123:B124,B136) -> 1 | I136: 20100253.83 | J136: 18424168.68 | K136: =TREND(K123:K124,B123:B124,B136) -> 0.13 | L136: =TREND(L123:L124,B123:B124,B136) -> 0.13 | M136: 29478005.43 | N136: 0 | O136: 29478005.43 | P136: 11432078.74 | R136: 1676085.145
B137: 12 | C137: =TREND(C123:C124,B123:B124,B137) -> 19342993.49 | D137: =TREND(D123:D124,B123:B124,B137) -> 17731804.27 | E137: =TREND(E123:E124,B123:B124,B137) -> 1.08 | F137: =TREND(F123:F124,B123:B124,B137) -> 1.08 | G137: =TREND(G123:G124,B123:B124,B137) -> 1 | H137: =TREND(H123:H124,B123:B124,B137) -> 1 | I137: 20890432.97 | J137: 19150348.62 | K137: =TREND(K123:K124,B123:B124,B137) -> 0.13 | L137: =TREND(L123:L124,B123:B124,B137) -> 0.13 | M137: 30909622.04 | N137: 0 | O137: 30909622.04 | P137: 11203069.48 | R137: 1740084.358
B138: 13 | C138: =TREND(C123:C124,B123:B124,B138) -> 20074640.85 | D138: =TREND(D123:D124,B123:B124,B138) -> 18404193.1 | E138: =TREND(E123:E124,B123:B124,B138) -> 1.08 | F138: =TREND(F123:F124,B123:B124,B138) -> 1.08 | G138: =TREND(G123:G124,B123:B124,B138) -> 1 | H138: =TREND(H123:H124,B123:B124,B138) -> 1 | I138: 21680612.12 | J138: 19876528.55 | K138: =TREND(K123:K124,B123:B124,B138) -> 0.13 | L138: =TREND(L123:L124,B123:B124,B138) -> 0.13 | M138: 32366923.18 | N138: 0 | O138: 32366923.18 | P138: 10963796.71 | R138: 1804083.572
B139: 14 | C139: =TREND(C123:C124,B123:B124,B139) -> 20806288.21 | D139: =TREND(D123:D124,B123:B124,B139) -> 19076581.93 | E139: =TREND(E123:E124,B123:B124,B139) -> 1.08 | F139: =TREND(F123:F124,B123:B124,B139) -> 1.08 | G139: =TREND(G123:G124,B123:B124,B139) -> 1 | H139: =TREND(H123:H124,B123:B124,B139) -> 1 | I139: 22470791.27 | J139: 20602708.49 | K139: =TREND(K123:K124,B123:B124,B139) -> 0.13 | L139: =TREND(L123:L124,B123:B124,B139) -> 0.13 | M139: 33850279.38 | N139: 0 | O139: 33850279.38 | P139: 10716131.56 | R139: 1868082.786
B140: 15 | C140: =TREND(C123:C124,B123:B124,B140) -> 21537935.57 | D140: =TREND(D123:D124,B123:B124,B140) -> 19748970.76 | E140: =TREND(E123:E124,B123:B124,B140) -> 1.08 | F140: =TREND(F123:F124,B123:B124,B140) -> 1.08 | G140: =TREND(G123:G124,B123:B124,B140) -> 1 | H140: =TREND(H123:H124,B123:B124,B140) -> 1 | I140: 23260970.42 | J140: 21328888.42 | K140: =TREND(K123:K124,B123:B124,B140) -> 0.13 | L140: =TREND(L123:L124,B123:B124,B140) -> 0.13 | M140: 35360066.02 | N140: 0 | O140: 35360066.02 | P140: 10461767.61 | R140: 1932081.999
B141: 16 | C141: =TREND(C123:C124,B123:B124,B141) -> 22269582.93 | D141: =TREND(D123:D124,B123:B124,B141) -> 20421359.59 | E141: =TREND(E123:E124,B123:B124,B141) -> 1.08 | F141: =TREND(F123:F124,B123:B124,B141) -> 1.08 | G141: =TREND(G123:G124,B123:B124,B141) -> 1 | H141: =TREND(H123:H124,B123:B124,B141) -> 1 | I141: 24051149.57 | J141: 22055068.36 | K141: =TREND(K123:K124,B123:B124,B141) -> 0.13 | L141: =TREND(L123:L124,B123:B124,B141) -> 0.13 | M141: 36896663.35 | N141: 0 | O141: 36896663.35 | P141: 10202234.88 | R141: 1996081.213
B142: 17 | C142: =TREND(C123:C124,B123:B124,B142) -> 23001230.29 | D142: =TREND(D123:D124,B123:B124,B142) -> 21093748.42 | E142: =TREND(E123:E124,B123:B124,B142) -> 1.08 | F142: =TREND(F123:F124,B123:B124,B142) -> 1.08 | G142: =TREND(G123:G124,B123:B124,B142) -> 1 | H142: =TREND(H123:H124,B123:B124,B142) -> 1 | I142: 24841328.72 | J142: 22781248.29 | K142: =TREND(K123:K124,B123:B124,B142) -> 0.13 | L142: =TREND(L123:L124,B123:B124,B142) -> 0.13 | M142: 38460456.63 | N142: 0 | O142: 38460456.63 | P142: 9938912.85 | R142: 2060080.426
B143: 18 | C143: =TREND(C123:C124,B123:B124,B143) -> 23732877.65 | D143: =TREND(D123:D124,B123:B124,B143) -> 21766137.25 | E143: =TREND(E123:E124,B123:B124,B143) -> 1.08 | F143: =TREND(F123:F124,B123:B124,B143) -> 1.08 | G143: =TREND(G123:G124,B123:B124,B143) -> 1 | H143: =TREND(H123:H124,B123:B124,B143) -> 1 | I143: 25631507.87 | J143: 23507428.23 | K143: =TREND(K123:K124,B123:B124,B143) -> 0.13 | L143: =TREND(L123:L124,B123:B124,B143) -> 0.13 | M143: 40051836.11 | N143: 0 | O143: 40051836.11 | P143: 9673042.568 | R143: 2124079.64
B144: 19 | C144: =TREND(C123:C124,B123:B124,B144) -> 24464525.01 | D144: =TREND(D123:D124,B123:B124,B144) -> 22438526.07 | E144: =TREND(E123:E124,B123:B124,B144) -> 1.08 | F144: =TREND(F123:F124,B123:B124,B144) -> 1.08 | G144: =TREND(G123:G124,B123:B124,B144) -> 1 | H144: =TREND(H123:H124,B123:B124,B144) -> 1 | I144: 26421687.01 | J144: 24233608.16 | K144: =TREND(K123:K124,B123:B124,B144) -> 0.13 | L144: =TREND(L123:L124,B123:B124,B144) -> 0.13 | M144: 41671197.13 | N144: 0 | O144: 41671197.13 | P144: 9405737.8 | R144: 2188078.854
B145: 20 | C145: =TREND(C123:C124,B123:B124,B145) -> 25196172.37 | D145: =TREND(D123:D124,B123:B124,B145) -> 23110914.9 | E145: =TREND(E123:E124,B123:B124,B145) -> 1.08 | F145: =TREND(F123:F124,B123:B124,B145) -> 1.08 | G145: =TREND(G123:G124,B123:B124,B145) -> 1 | H145: =TREND(H123:H124,B123:B124,B145) -> 1 | I145: 27211866.16 | J145: 24959788.1 | K145: =TREND(K123:K124,B123:B124,B145) -> 0.13 | L145: =TREND(L123:L124,B123:B124,B145) -> 0.13 | M145: 43318940.18 | N145: 0 | O145: 43318940.18 | P145: 9137995.421 | R145: 2252078.067
B147: Total | P147: =SUM(P126:P145) -> 226015928 | R147: =SUM(R126:R145) -> 32881710.75
A150: 5 | B150: =IF(ISBLANK(INDEX(ModelGroup,A150,1)),"Not Used",INDEX(ModelGroup,A150,1)) -> 25 mph
C152: ANNUAL VHT | E152: AVERAGE VEH OCC | G152: ANNUAL PERSON-TRIPS | I152: AVERAGE TRAVEL TIME | K152: PERCENT TRUCKS | M152: TIME BENEFIT | R152: Total
C153: (veh-hours/yr) | E153: (persons/vehicle) | G153: (trips/yr) | I153: (hours) | K153: (%) | M153: ($/yr) | R153: Per-Hrs
B154: Year | M154: Existing | N154: New | O154: Constant | P154: Present | R154: of Time
C155: No Build | D155: Build | E155: No Build | F155: Build | G155: No Build | H155: Build | I155: No Build | J155: Build | K155: No Build | L155: Build | M155: Users | N155: (Induced) | O155: Dollars | P155: Value | R155: Saved
B156: =Year1 -> -8 | C156: =INDEX(ModelData1NB,A150,3)*AnnualFactor -> 8514005.545 | D156: =INDEX(ModelData1B,A150,3)*AnnualFactor -> 8424839.442 | E156: =INDEX(ModelData1NB,A150,5) -> 1.08 | F156: =INDEX(ModelData1B,A150,5) -> 1.08 | G156: =IF(ISNUMBER(INDEX(ModelData1NB,A150,1)),INDEX(ModelData1NB,A150,1)*AnnualFactor,1) -> 1 | H156: =IF(ISNUMBER(INDEX(ModelData1B,A150,1)),INDEX(ModelData1B,A150,1)*AnnualFactor,1) -> 1 | I156: =C156*E156/G156 -> 9195125.989 | J156: =D156*F156/H156 -> 9098826.597 | K156: =INDEX(ModelData1NB,A150,6) -> 0.13 | L156: =INDEX(ModelData1B,A150,6) -> 0.13 | M156: =(I156*(K156*ValTimeTruck+(1-K156)*ValTimeAuto)-J156*(L156*ValTimeTruck+(1-L156)*ValTimeAuto))*MIN(G156,H156)*(1+TTUprater)^($B156+Adjust+Construct-1) -> 1401907.826 | N156: =IF(AND(H156>G156,Induced="Y"),(I156*(K156*ValTimeTruck+(1-K156)*ValTimeAuto)-J156*(L156*ValTimeTruck+(1-L156)*ValTimeAuto))*(H156-G156)*0.5,0)*(1+TTUprater)^($B156+Adjust+Construct-1) -> 0 | O156: =SUM(M156:N156) -> 1401907.826 | P156: =O156/(1+DiscRate)^(B156+Adjust+Construct-1) -> 1966248.248 | R156: =(I156-J156)*MIN(G156,H156) -> 96299.39182
B157: =Year20 -> 17 | C157: =INDEX(ModelData20NB,A150,3)*AnnualFactor -> 28831435.54 | D157: =INDEX(ModelData20B,A150,3)*AnnualFactor -> 28765344.03 | E157: =INDEX(ModelData20NB,A150,5) -> 1.08 | F157: =INDEX(ModelData20B,A150,5) -> 1.08 | G157: =IF(ISNUMBER(INDEX(ModelData20NB,A150,1)),INDEX(ModelData20NB,A150,1)*AnnualFactor,1) -> 1 | H157: =IF(ISNUMBER(INDEX(ModelData20B,A150,1)),INDEX(ModelData20B,A150,1)*AnnualFactor,1) -> 1 | I157: =C157*E157/G157 -> 31137950.38 | J157: =D157*F157/H157 -> 31066571.55 | K157: =INDEX(ModelData20NB,A150,6) -> 0.13 | L157: =INDEX(ModelData20B,A150,6) -> 0.13 | M157: =(I157*(K157*ValTimeTruck+(1-K157)*ValTimeAuto)-J157*(L157*ValTimeTruck+(1-L157)*ValTimeAuto))*MIN(G157,H157)*(1+TTUprater)^($B157+Adjust+Construct-1) -> 1332599.665 | N157: =IF(AND(H157>G157,Induced="Y"),(I157*(K157*ValTimeTruck+(1-K157)*ValTimeAuto)-J157*(L157*ValTimeTruck+(1-L157)*ValTimeAuto))*(H157-G157)*0.5,0)*(1+TTUprater)^($B157+Adjust+Construct-1) -> 0 | O157: =SUM(M157:N157) -> 1332599.665 | P157: =O157/(1+DiscRate)^(B157+Adjust+Construct-1) -> 344369.0767 | R157: =(I157-J157)*MIN(G157,H157) -> 71378.83238
B159: 1 | C159: =TREND(C156:C157,B156:B157,B159) -> 15828280.34 | D159: =TREND(D156:D157,B156:B157,B159) -> 15747421.09 | E159: =TREND(E156:E157,B156:B157,B159) -> 1.08 | F159: =TREND(F156:F157,B156:B157,B159) -> 1.08 | G159: =TREND(G156:G157,B156:B157,B159) -> 1 | H159: =TREND(H156:H157,B156:B157,B159) -> 1 | I159: =C159*E159/G159 -> 17094542.77 | J159: =D159*F159/H159 -> 17007214.78 | K159: =TREND(K156:K157,B156:B157,B159) -> 0.13 | L159: =TREND(L156:L157,B156:B157,B159) -> 0.13 | M159: =(I159*(K159*ValTimeTruck+(1-K159)*ValTimeAuto)-J159*(L159*ValTimeTruck+(1-L159)*ValTimeAuto))*MIN(G159,H159)*(1+TTUprater)^($B159+Adjust+Construct-1) -> 1390406.362 | N159: =IF(AND(H159>G159,Induced="Y"),(I159*(K159*ValTimeTruck+(1-K159)*ValTimeAuto)-J159*(L159*ValTimeTruck+(1-L159)*ValTimeAuto))*(H159-G159)*0.5,0)*(1+TTUprater)^($B159+Adjust+Construct-1) -> 0 | O159: =SUM(M159:N159) -> 1390406.362 | P159: =O159/(1+DiscRate)^(B159+Adjust+Construct-1) -> 1060734.356 | R159: =(I159-J159)*MIN(G159,H159) -> 87327.99042
B160: 2 | C160: =TREND(C156:C157,B156:B157,B160) -> 16640977.54 | D160: =TREND(D156:D157,B156:B157,B160) -> 16561041.28 | E160: =TREND(E156:E157,B156:B157,B160) -> 1.08 | F160: =TREND(F156:F157,B156:B157,B160) -> 1.08 | G160: =TREND(G156:G157,B156:B157,B160) -> 1 | H160: =TREND(H156:H157,B156:B157,B160) -> 1 | I160: 17972255.75 | J160: 17885924.58 | K160: =TREND(K156:K157,B156:B157,B160) -> 0.13 | L160: =TREND(L156:L157,B156:B157,B160) -> 0.13 | M160: 1388280.65 | N160: 0 | O160: 1388280.65 | P160: 989824.9169 | R160: 86331.16804
B161: 3 | C161: =TREND(C156:C157,B156:B157,B161) -> 17453674.74 | D161: =TREND(D156:D157,B156:B157,B161) -> 17374661.46 | E161: =TREND(E156:E157,B156:B157,B161) -> 1.08 | F161: =TREND(F156:F157,B156:B157,B161) -> 1.08 | G161: =TREND(G156:G157,B156:B157,B161) -> 1 | H161: =TREND(H156:H157,B156:B157,B161) -> 1 | I161: 18849968.72 | J161: 18764634.38 | K161: =TREND(K156:K157,B156:B157,B161) -> 0.13 | L161: =TREND(L156:L157,B156:B157,B161) -> 0.13 | M161: 1385973.384 | N161: 0 | O161: 1385973.384 | P161: 923532.5867 | R161: 85334.34567
B162: 4 | C162: =TREND(C156:C157,B156:B157,B162) -> 18266371.94 | D162: =TREND(D156:D157,B156:B157,B162) -> 18188281.64 | E162: =TREND(E156:E157,B156:B157,B162) -> 1.08 | F162: =TREND(F156:F157,B156:B157,B162) -> 1.08 | G162: =TREND(G156:G157,B156:B157,B162) -> 1 | H162: =TREND(H156:H157,B156:B157,B162) -> 1 | I162: 19727681.7 | J162: 19643344.17 | K162: =TREND(K156:K157,B156:B157,B162) -> 0.13 | L162: =TREND(L156:L157,B156:B157,B162) -> 0.13 | M162: 1383481.144 | N162: 0 | O162: 1383481.144 | P162: 861562.5253 | R162: 84337.52329
B163: 5 | C163: =TREND(C156:C157,B156:B157,B163) -> 19079069.14 | D163: =TREND(D156:D157,B156:B157,B163) -> 19001901.83 | E163: =TREND(E156:E157,B156:B157,B163) -> 1.08 | F163: =TREND(F156:F157,B156:B157,B163) -> 1.08 | G163: =TREND(G156:G157,B156:B157,B163) -> 1 | H163: =TREND(H156:H157,B156:B157,B163) -> 1 | I163: 20605394.67 | J163: 20522053.97 | K163: =TREND(K156:K157,B156:B157,B163) -> 0.13 | L163: =TREND(L156:L157,B156:B157,B163) -> 0.13 | M163: 1380800.462 | N163: 0 | O163: 1380800.462 | P163: 803638.4404 | R163: 83340.70091
B164: 6 | C164: =TREND(C156:C157,B156:B157,B164) -> 19891766.34 | D164: =TREND(D156:D157,B156:B157,B164) -> 19815522.01 | E164: =TREND(E156:E157,B156:B157,B164) -> 1.08 | F164: =TREND(F156:F157,B156:B157,B164) -> 1.08 | G164: =TREND(G156:G157,B156:B157,B164) -> 1 | H164: =TREND(H156:H157,B156:B157,B164) -> 1 | I164: 21483107.65 | J164: 21400763.77 | K164: =TREND(K156:K157,B156:B157,B164) -> 0.13 | L164: =TREND(L156:L157,B156:B157,B164) -> 0.13 | M164: 1377927.818 | N164: 0 | O164: 1377927.818 | P164: 749501.4352 | R164: 82343.87853
B165: 7 | C165: =TREND(C156:C157,B156:B157,B165) -> 20704463.54 | D165: =TREND(D156:D157,B156:B157,B165) -> 20629142.19 | E165: =TREND(E156:E157,B156:B157,B165) -> 1.08 | F165: =TREND(F156:F157,B156:B157,B165) -> 1.08 | G165: =TREND(G156:G157,B156:B157,B165) -> 1 | H165: =TREND(H156:H157,B156:B157,B165) -> 1 | I165: 22360820.62 | J165: 22279473.57 | K165: =TREND(K156:K157,B156:B157,B165) -> 0.13 | L165: =TREND(L156:L157,B156:B157,B165) -> 0.13 | M165: 1374859.642 | N165: 0 | O165: 1374859.642 | P165: 698908.9255 | R165: 81347.05615
B166: 8 | C166: =TREND(C156:C157,B156:B157,B166) -> 21517160.74 | D166: =TREND(D156:D157,B156:B157,B166) -> 21442762.38 | E166: =TREND(E156:E157,B156:B157,B166) -> 1.08 | F166: =TREND(F156:F157,B156:B157,B166) -> 1.08 | G166: =TREND(G156:G157,B156:B157,B166) -> 1 | H166: =TREND(H156:H157,B156:B157,B166) -> 1 | I166: 23238533.6 | J166: 23158183.37 | K166: =TREND(K156:K157,B156:B157,B166) -> 0.13 | L166: =TREND(L156:L157,B156:B157,B166) -> 0.13 | M166: 1371592.309 | N166: 0 | O166: 1371592.309 | P166: 651633.6254 | R166: 80350.23378
B167: 9 | C167: =TREND(C156:C157,B156:B157,B167) -> 22329857.94 | D167: =TREND(D156:D157,B156:B157,B167) -> 22256382.56 | E167: =TREND(E156:E157,B156:B157,B167) -> 1.08 | F167: =TREND(F156:F157,B156:B157,B167) -> 1.08 | G167: =TREND(G156:G157,B156:B157,B167) -> 1 | H167: =TREND(H156:H157,B156:B157,B167) -> 1 | I167: 24116246.58 | J167: 24036893.16 | K167: =TREND(K156:K157,B156:B157,B167) -> 0.13 | L167: =TREND(L156:L157,B156:B157,B167) -> 0.13 | M167: 1368122.143 | N167: 0 | O167: 1368122.143 | P167: 607462.5931 | R167: 79353.4114
B168: 10 | C168: =TREND(C156:C157,B156:B157,B168) -> 23142555.14 | D168: =TREND(D156:D157,B156:B157,B168) -> 23070002.74 | E168: =TREND(E156:E157,B156:B157,B168) -> 1.08 | F168: =TREND(F156:F157,B156:B157,B168) -> 1.08 | G168: =TREND(G156:G157,B156:B157,B168) -> 1 | H168: =TREND(H156:H157,B156:B157,B168) -> 1 | I168: 24993959.55 | J168: 24915602.96 | K168: =TREND(K156:K157,B156:B157,B168) -> 0.13 | L168: =TREND(L156:L157,B156:B157,B168) -> 0.13 | M168: 1364445.415 | N168: 0 | O168: 1364445.415 | P168: 566196.3382 | R168: 78356.58902
B169: 11 | C169: =TREND(C156:C157,B156:B157,B169) -> 23955252.34 | D169: =TREND(D156:D157,B156:B157,B169) -> 23883622.93 | E169: =TREND(E156:E157,B156:B157,B169) -> 1.08 | F169: =TREND(F156:F157,B156:B157,B169) -> 1.08 | G169: =TREND(G156:G157,B156:B157,B169) -> 1 | H169: =TREND(H156:H157,B156:B157,B169) -> 1 | I169: 25871672.53 | J169: 25794312.76 | K169: =TREND(K156:K157,B156:B157,B169) -> 0.13 | L169: =TREND(L156:L157,B156:B157,B169) -> 0.13 | M169: 1360558.34 | N169: 0 | O169: 1360558.34 | P169: 527647.9816 | R169: 77359.76664
B170: 12 | C170: =TREND(C156:C157,B156:B157,B170) -> 24767949.54 | D170: =TREND(D156:D157,B156:B157,B170) -> 24697243.11 | E170: =TREND(E156:E157,B156:B157,B170) -> 1.08 | F170: =TREND(F156:F157,B156:B157,B170) -> 1.08 | G170: =TREND(G156:G157,B156:B157,B170) -> 1 | H170: =TREND(H156:H157,B156:B157,B170) -> 1 | I170: 26749385.5 | J170: 26673022.56 | K170: =TREND(K156:K157,B156:B157,B170) -> 0.13 | L170: =TREND(L156:L157,B156:B157,B170) -> 0.13 | M170: 1356457.079 | N170: 0 | O170: 1356457.079 | P170: 491642.469 | R170: 76362.94427
B171: 13 | C171: =TREND(C156:C157,B156:B157,B171) -> 25580646.74 | D171: =TREND(D156:D157,B156:B157,B171) -> 25510863.29 | E171: =TREND(E156:E157,B156:B157,B171) -> 1.08 | F171: =TREND(F156:F157,B156:B157,B171) -> 1.08 | G171: =TREND(G156:G157,B156:B157,B171) -> 1 | H171: =TREND(H156:H157,B156:B157,B171) -> 1 | I171: 27627098.48 | J171: 27551732.36 | K171: =TREND(K156:K157,B156:B157,B171) -> 0.13 | L171: =TREND(L156:L157,B156:B157,B171) -> 0.13 | M171: 1352137.737 | N171: 0 | O171: 1352137.737 | P171: 458015.8324 | R171: 75366.12189
B172: 14 | C172: =TREND(C156:C157,B156:B157,B172) -> 26393343.94 | D172: =TREND(D156:D157,B156:B157,B172) -> 26324483.48 | E172: =TREND(E156:E157,B156:B157,B172) -> 1.08 | F172: =TREND(F156:F157,B156:B157,B172) -> 1.08 | G172: =TREND(G156:G157,B156:B157,B172) -> 1 | H172: =TREND(H156:H157,B156:B157,B172) -> 1 | I172: 28504811.45 | J172: 28430442.15 | K172: =TREND(K156:K157,B156:B157,B172) -> 0.13 | L172: =TREND(L156:L157,B156:B157,B172) -> 0.13 | M172: 1347596.362 | N172: 0 | O172: 1347596.362 | P172: 426614.4969 | R172: 74369.29951
B173: 15 | C173: =TREND(C156:C157,B156:B157,B173) -> 27206041.14 | D173: =TREND(D156:D157,B156:B157,B173) -> 27138103.66 | E173: =TREND(E156:E157,B156:B157,B173) -> 1.08 | F173: =TREND(F156:F157,B156:B157,B173) -> 1.08 | G173: =TREND(G156:G157,B156:B157,B173) -> 1 | H173: =TREND(H156:H157,B156:B157,B173) -> 1 | I173: 29382524.43 | J173: 29309151.95 | K173: =TREND(K156:K157,B156:B157,B173) -> 0.13 | L173: =TREND(L156:L157,B156:B157,B173) -> 0.13 | M173: 1342828.946 | N173: 0 | O173: 1342828.946 | P173: 397294.631 | R173: 73372.47713
B174: 16 | C174: =TREND(C156:C157,B156:B157,B174) -> 28018738.34 | D174: =TREND(D156:D157,B156:B157,B174) -> 27951723.84 | E174: =TREND(E156:E157,B156:B157,B174) -> 1.08 | F174: =TREND(F156:F157,B156:B157,B174) -> 1.08 | G174: =TREND(G156:G157,B156:B157,B174) -> 1 | H174: =TREND(H156:H157,B156:B157,B174) -> 1 | I174: 30260237.41 | J174: 30187861.75 | K174: =TREND(K156:K157,B156:B157,B174) -> 0.13 | L174: =TREND(L156:L157,B156:B157,B174) -> 0.13 | M174: 1337831.423 | N174: 0 | O174: 1337831.423 | P174: 369921.5365 | R174: 72375.65476
B175: 17 | C175: =TREND(C156:C157,B156:B157,B175) -> 28831435.54 | D175: =TREND(D156:D157,B156:B157,B175) -> 28765344.03 | E175: =TREND(E156:E157,B156:B157,B175) -> 1.08 | F175: =TREND(F156:F157,B156:B157,B175) -> 1.08 | G175: =TREND(G156:G157,B156:B157,B175) -> 1 | H175: =TREND(H156:H157,B156:B157,B175) -> 1 | I175: 31137950.38 | J175: 31066571.55 | K175: =TREND(K156:K157,B156:B157,B175) -> 0.13 | L175: =TREND(L156:L157,B156:B157,B175) -> 0.13 | M175: 1332599.665 | N175: 0 | O175: 1332599.665 | P175: 344369.0767 | R175: 71378.83238
B176: 18 | C176: =TREND(C156:C157,B156:B157,B176) -> 29644132.74 | D176: =TREND(D156:D157,B156:B157,B176) -> 29578964.21 | E176: =TREND(E156:E157,B156:B157,B176) -> 1.08 | F176: =TREND(F156:F157,B156:B157,B176) -> 1.08 | G176: =TREND(G156:G157,B156:B157,B176) -> 1 | H176: =TREND(H156:H157,B156:B157,B176) -> 1 | I176: 32015663.36 | J176: 31945281.35 | K176: =TREND(K156:K157,B156:B157,B176) -> 0.13 | L176: =TREND(L156:L157,B156:B157,B176) -> 0.13 | M176: 1327129.49 | N176: 0 | O176: 1327129.49 | P176: 320519.1396 | R176: 70382.01
B177: 19 | C177: =TREND(C156:C157,B156:B157,B177) -> 30456829.94 | D177: =TREND(D156:D157,B156:B157,B177) -> 30392584.39 | E177: =TREND(E156:E157,B156:B157,B177) -> 1.08 | F177: =TREND(F156:F157,B156:B157,B177) -> 1.08 | G177: =TREND(G156:G157,B156:B157,B177) -> 1 | H177: =TREND(H156:H157,B156:B157,B177) -> 1 | I177: 32893376.33 | J177: 32823991.15 | K177: =TREND(K156:K157,B156:B157,B177) -> 0.13 | L177: =TREND(L156:L157,B156:B157,B177) -> 0.13 | M177: 1321416.651 | N177: 0 | O177: 1321416.651 | P177: 298261.1348 | R177: 69385.18762
B178: 20 | C178: =TREND(C156:C157,B156:B157,B178) -> 31269527.14 | D178: =TREND(D156:D157,B156:B157,B178) -> 31206204.58 | E178: =TREND(E156:E157,B156:B157,B178) -> 1.08 | F178: =TREND(F156:F157,B156:B157,B178) -> 1.08 | G178: =TREND(G156:G157,B156:B157,B178) -> 1 | H178: =TREND(H156:H157,B156:B157,B178) -> 1 | I178: 33771089.31 | J178: 33702700.94 | K178: =TREND(K156:K157,B156:B157,B178) -> 0.13 | L178: =TREND(L156:L157,B156:B157,B178) -> 0.13 | M178: 1315456.842 | N178: 0 | O178: 1315456.842 | P178: 277491.5211 | R178: 68388.36524
B180: Total | P180: =SUM(P159:P178) -> 11824773.56 | R180: =SUM(R159:R178) -> 1557163.557
A183: 6 | B183: =IF(ISBLANK(INDEX(ModelGroup,A183,1)),"Not Used",INDEX(ModelGroup,A183,1)) -> 30 mph
C185: ANNUAL VHT | E185: AVERAGE VEH OCC | G185: ANNUAL PERSON-TRIPS | I185: AVERAGE TRAVEL TIME | K185: PERCENT TRUCKS | M185: TIME BENEFIT | R185: Total
C186: (veh-hours/yr) | E186: (persons/vehicle) | G186: (trips/yr) | I186: (hours) | K186: (%) | M186: ($/yr) | R186: Per-Hrs
B187: Year | M187: Existing | N187: New | O187: Constant | P187: Present | R187: of Time
C188: No Build | D188: Build | E188: No Build | F188: Build | G188: No Build | H188: Build | I188: No Build | J188: Build | K188: No Build | L188: Build | M188: Users | N188: (Induced) | O188: Dollars | P188: Value | R188: Saved
B189: =Year1 -> -8 | C189: =INDEX(ModelData1NB,A183,3)*AnnualFactor -> 15186818.94 | D189: =INDEX(ModelData1B,A183,3)*AnnualFactor -> 15904406.25 | E189: =INDEX(ModelData1NB,A183,5) -> 1.08 | F189: =INDEX(ModelData1B,A183,5) -> 1.08 | G189: =IF(ISNUMBER(INDEX(ModelData1NB,A183,1)),INDEX(ModelData1NB,A183,1)*AnnualFactor,1) -> 1 | H189: =IF(ISNUMBER(INDEX(ModelData1B,A183,1)),INDEX(ModelData1B,A183,1)*AnnualFactor,1) -> 1 | I189: =C189*E189/G189 -> 16401764.45 | J189: =D189*F189/H189 -> 17176758.74 | K189: =INDEX(ModelData1NB,A183,6) -> 0.13 | L189: =INDEX(ModelData1B,A183,6) -> 0.13 | M189: =(I189*(K189*ValTimeTruck+(1-K189)*ValTimeAuto)-J189*(L189*ValTimeTruck+(1-L189)*ValTimeAuto))*MIN(G189,H189)*(1+TTUprater)^($B189+Adjust+Construct-1) -> -11282216.23 | N189: =IF(AND(H189>G189,Induced="Y"),(I189*(K189*ValTimeTruck+(1-K189)*ValTimeAuto)-J189*(L189*ValTimeTruck+(1-L189)*ValTimeAuto))*(H189-G189)*0.5,0)*(1+TTUprater)^($B189+Adjust+Construct-1) -> 0 | O189: =SUM(M189:N189) -> -11282216.23 | P189: =O189/(1+DiscRate)^(B189+Adjust+Construct-1) -> -15823891.9 | R189: =(I189-J189)*MIN(G189,H189) -> -774994.2906
B190: =Year20 -> 17 | C190: =INDEX(ModelData20NB,A183,3)*AnnualFactor -> 33775806.61 | D190: =INDEX(ModelData20B,A183,3)*AnnualFactor -> 35664158.06 | E190: =INDEX(ModelData20NB,A183,5) -> 1.08 | F190: =INDEX(ModelData20B,A183,5) -> 1.08 | G190: =IF(ISNUMBER(INDEX(ModelData20NB,A183,1)),INDEX(ModelData20NB,A183,1)*AnnualFactor,1) -> 1 | H190: =IF(ISNUMBER(INDEX(ModelData20B,A183,1)),INDEX(ModelData20B,A183,1)*AnnualFactor,1) -> 1 | I190: =C190*E190/G190 -> 36477871.14 | J190: =D190*F190/H190 -> 38517290.7 | K190: =INDEX(ModelData20NB,A183,6) -> 0.13 | L190: =INDEX(ModelData20B,A183,6) -> 0.13 | M190: =(I190*(K190*ValTimeTruck+(1-K190)*ValTimeAuto)-J190*(L190*ValTimeTruck+(1-L190)*ValTimeAuto))*MIN(G190,H190)*(1+TTUprater)^($B190+Adjust+Construct-1) -> -38074730.86 | N190: =IF(AND(H190>G190,Induced="Y"),(I190*(K190*ValTimeTruck+(1-K190)*ValTimeAuto)-J190*(L190*ValTimeTruck+(1-L190)*ValTimeAuto))*(H190-G190)*0.5,0)*(1+TTUprater)^($B190+Adjust+Construct-1) -> 0 | O190: =SUM(M190:N190) -> -38074730.86 | P190: =O190/(1+DiscRate)^(B190+Adjust+Construct-1) -> -9839233.982 | R190: =(I190-J190)*MIN(G190,H190) -> -2039419.567
B192: 1 | C192: =TREND(C189:C190,B189:B190,B192) -> 21878854.5 | D192: =TREND(D189:D190,B189:B190,B192) -> 23017916.9 | E192: =TREND(E189:E190,B189:B190,B192) -> 1.08 | F192: =TREND(F189:F190,B189:B190,B192) -> 1.08 | G192: =TREND(G189:G190,B189:B190,B192) -> 1 | H192: =TREND(H189:H190,B189:B190,B192) -> 1 | I192: =C192*E192/G192 -> 23629162.86 | J192: =D192*F192/H192 -> 24859350.25 | K192: =TREND(K189:K190,B189:B190,B192) -> 0.13 | L192: =TREND(L189:L190,B189:B190,B192) -> 0.13 | M192: =(I192*(K192*ValTimeTruck+(1-K192)*ValTimeAuto)-J192*(L192*ValTimeTruck+(1-L192)*ValTimeAuto))*MIN(G192,H192)*(1+TTUprater)^($B192+Adjust+Construct-1) -> -19586622.4 | N192: =IF(AND(H192>G192,Induced="Y"),(I192*(K192*ValTimeTruck+(1-K192)*ValTimeAuto)-J192*(L192*ValTimeTruck+(1-L192)*ValTimeAuto))*(H192-G192)*0.5,0)*(1+TTUprater)^($B192+Adjust+Construct-1) -> 0 | O192: =SUM(M192:N192) -> -19586622.4 | P192: =O192/(1+DiscRate)^(B192+Adjust+Construct-1) -> -14942540.45 | R192: =(I192-J192)*MIN(G192,H192) -> -1230187.39
B193: 2 | C193: =TREND(C189:C190,B189:B190,B193) -> 22622414.01 | D193: =TREND(D189:D190,B189:B190,B193) -> 23808306.97 | E193: =TREND(E189:E190,B189:B190,B193) -> 1.08 | F193: =TREND(F189:F190,B189:B190,B193) -> 1.08 | G193: =TREND(G189:G190,B189:B190,B193) -> 1 | H193: =TREND(H189:H190,B189:B190,B193) -> 1 | I193: 24432207.13 | J193: 25712971.53 | K193: =TREND(K189:K190,B189:B190,B193) -> 0.13 | L193: =TREND(L189:L190,B189:B190,B193) -> 0.13 | M193: -20595811.18 | N193: 0 | O193: -20595811.18 | P193: -14684528.72 | R193: -1280764.401
B194: 3 | C194: =TREND(C189:C190,B189:B190,B194) -> 23365973.51 | D194: =TREND(D189:D190,B189:B190,B194) -> 24598697.04 | E194: =TREND(E189:E190,B189:B190,B194) -> 1.08 | F194: =TREND(F189:F190,B189:B190,B194) -> 1.08 | G194: =TREND(G189:G190,B189:B190,B194) -> 1 | H194: =TREND(H189:H190,B189:B190,B194) -> 1 | I194: 25235251.39 | J194: 26566592.81 | K194: =TREND(K189:K190,B189:B190,B194) -> 0.13 | L194: =TREND(L189:L190,B189:B190,B194) -> 0.13 | M194: -21623225.06 | N194: 0 | O194: -21623225.06 | P194: -14408467.87 | R194: -1331341.412
B195: 4 | C195: =TREND(C189:C190,B189:B190,B195) -> 24109533.02 | D195: =TREND(D189:D190,B189:B190,B195) -> 25389087.12 | E195: =TREND(E189:E190,B189:B190,B195) -> 1.08 | F195: =TREND(F189:F190,B189:B190,B195) -> 1.08 | G195: =TREND(G189:G190,B189:B190,B195) -> 1 | H195: =TREND(H189:H190,B189:B190,B195) -> 1 | I195: 26038295.66 | J195: 27420214.08 | K195: =TREND(K189:K190,B189:B190,B195) -> 0.13 | L195: =TREND(L189:L190,B189:B190,B195) -> 0.13 | M195: -22669127.65 | N195: 0 | O195: -22669127.65 | P195: -14117193.39 | R195: -1381918.423
B196: 5 | C196: =TREND(C189:C190,B189:B190,B196) -> 24853092.53 | D196: =TREND(D189:D190,B189:B190,B196) -> 26179477.19 | E196: =TREND(E189:E190,B189:B190,B196) -> 1.08 | F196: =TREND(F189:F190,B189:B190,B196) -> 1.08 | G196: =TREND(G189:G190,B189:B190,B196) -> 1 | H196: =TREND(H189:H190,B189:B190,B196) -> 1 | I196: 26841339.93 | J196: 28273835.36 | K196: =TREND(K189:K190,B189:B190,B196) -> 0.13 | L196: =TREND(L189:L190,B189:B190,B196) -> 0.13 | M196: -23733785.96 | N196: 0 | O196: -23733785.96 | P196: -13813279.52 | R196: -1432495.434
B197: 6 | C197: =TREND(C189:C190,B189:B190,B197) -> 25596652.03 | D197: =TREND(D189:D190,B189:B190,B197) -> 26969867.26 | E197: =TREND(E189:E190,B189:B190,B197) -> 1.08 | F197: =TREND(F189:F190,B189:B190,B197) -> 1.08 | G197: =TREND(G189:G190,B189:B190,B197) -> 1 | H197: =TREND(H189:H190,B189:B190,B197) -> 1 | I197: 27644384.2 | J197: 29127456.64 | K197: =TREND(K189:K190,B189:B190,B197) -> 0.13 | L197: =TREND(L189:L190,B189:B190,B197) -> 0.13 | M197: -24817470.53 | N197: 0 | O197: -24817470.53 | P197: -13499059.63 | R197: -1483072.445
B198: 7 | C198: =TREND(C189:C190,B189:B190,B198) -> 26340211.54 | D198: =TREND(D189:D190,B189:B190,B198) -> 27760257.33 | E198: =TREND(E189:E190,B189:B190,B198) -> 1.08 | F198: =TREND(F189:F190,B189:B190,B198) -> 1.08 | G198: =TREND(G189:G190,B189:B190,B198) -> 1 | H198: =TREND(H189:H190,B189:B190,B198) -> 1 | I198: 28447428.46 | J198: 29981077.92 | K198: =TREND(K189:K190,B189:B190,B198) -> 0.13 | L198: =TREND(L189:L190,B189:B190,B198) -> 0.13 | M198: -25920455.41 | N198: 0 | O198: -25920455.41 | P198: -13176645.16 | R198: -1533649.456
B199: 8 | C199: =TREND(C189:C190,B189:B190,B199) -> 27083771.05 | D199: =TREND(D189:D190,B189:B190,B199) -> 28550647.41 | E199: =TREND(E189:E190,B189:B190,B199) -> 1.08 | F199: =TREND(F189:F190,B189:B190,B199) -> 1.08 | G199: =TREND(G189:G190,B189:B190,B199) -> 1 | H199: =TREND(H189:H190,B189:B190,B199) -> 1 | I199: 29250472.73 | J199: 30834699.2 | K199: =TREND(K189:K190,B189:B190,B199) -> 0.13 | L199: =TREND(L189:L190,B189:B190,B199) -> 0.13 | M199: -27043018.24 | N199: 0 | O199: -27043018.24 | P199: -12847943.16 | R199: -1584226.467
B200: 9 | C200: =TREND(C189:C190,B189:B190,B200) -> 27827330.55 | D200: =TREND(D189:D190,B189:B190,B200) -> 29341037.48 | E200: =TREND(E189:E190,B189:B190,B200) -> 1.08 | F200: =TREND(F189:F190,B189:B190,B200) -> 1.08 | G200: =TREND(G189:G190,B189:B190,B200) -> 1 | H200: =TREND(H189:H190,B189:B190,B200) -> 1 | I200: 30053517 | J200: 31688320.48 | K200: =TREND(K189:K190,B189:B190,B200) -> 0.13 | L200: =TREND(L189:L190,B189:B190,B200) -> 0.13 | M200: -28185440.28 | N200: 0 | O200: -28185440.28 | P200: -12514672.56 | R200: -1634803.478
